Workbook

Sheet Obsah
B4: Analýza | C4: Název | D4: odkaz | F4: Analýza | G4: Název | H4: odkaz | J4: Analýza | K4: Název | L4: odkaz
B5: Globální | C5: Inflace | D5: Inflation | F5: Odvětvová | G5: Elektromobily statistika | H5: EV cars | J5: Firemní | K5: Altmanovo Z-score | L5: Altmanovo Z+Kralicek Q test
B6: Globální | C6: Fed fund rates | D6: FFR & NASDAQ & TSLA | F6: Odvětvová | G6: Regulace odvětví | H6: Regulation | J6: Firemní | K6: Finanční analýza | L6: Financial analysis
B7: Globální | C7: Měnové agregáty | D7: Aggregates | J7: Firemní | K7: FCFF model | L7: FCFF
B8: Globální | C8: HDP | D8: GDP | J8: Firemní | K8: Historické modely | L8: Historicke modely
J9: Firemní | K9: 12 měsíců | L9: 12M
J10: Firemní | K10: Globální data o odvětvích | L10: Global industry averages
J11: Firemní | K11: Provozní marže (odvětví) | L11: Operating margin global
J12: Firemní | K12: WACC | L12: WACC
J13: Firemní | K13: Operativní leasing | L13: Operating lease converter
J14: Firemní | K14: S/C ratio | L14: Sales to Capital ratio
J15: Firemní | K15: Splatnost | L15: Maturity
J16: Firemní | K16: Beta koeficient (odvětví) | L16: Betas
J17: Firemní | K17: Ukazatele tržeb (odvětví) | L17: Revenues multiples
J18: Firemní | K18: Riziková přirážka (země) | L18: ERPs by country
J19: Firemní | K19: Riziková přirážka (ostatní) | L19: ERP Others
J20: Firemní | K20: Výkaz zisků a ztrát 2008-2010 | L20: IS 2008-2010
J21: Firemní | K21: Výkaz zisků a ztrát 2011-2013 | L21: IS 2011-2013
J22: Firemní | K22: Výkaz zisků a ztrát 2014-2016 | L22: IS 2014-2016
J23: Firemní | K23: Rozvaha 2009-2010 | L23: BS 2009-2010
J24: Firemní | K24: Rozvaha 2011-2012 | L24: BS 2011-2012
J25: Firemní | K25: Rozvaha 2013-2014 | L25: BS 2013-2014
J26: Firemní | K26: Rozvaha 2015-2016 | L26: BS 2015-2016

Sheet Inflation
B1: Series Name | C1: 2002 | D1: 2003 | E1: 2004 | F1: 2005 | G1: 2006 | H1: 2007 | I1: 2008 | J1: 2009 | K1: 2010 | L1: 2011 | M1: 2012 | N1: 2013 | O1: 2014 | P1: 2015 | Q1: 2016 | R1: 2017 | S1: 2018 | T1: 2019 | U1: 2020 | V1: 2021 | W1: http://databank.worldbank.org/data/home.aspx
B2: Real interest rate (%) | C2: 3.092403166 | D2: 2.08683115 | E2: 1.547720834 | F2: 2.878895959 | G2: 4.739619623 | H2: 5.248970835 | I2: 3.065749495 | J2: 2.471793576 | K2: 2.004172652 | L2: 1.161394072 | M2: 1.382482478 | N2: 1.609007329 | O2: 1.43397513 | P2: 2.160830623 | Q2: ..
B3: Lending interest rate (%) | C3: 4.675 | D3: 4.1225 | E3: 4.34 | F3: 6.189166667 | G3: 7.9575 | H3: 8.05 | I3: 5.0875 | J3: 3.25 | K3: 3.25 | L3: 3.25 | M3: 3.25 | N3: 3.25 | O3: 3.25 | P3: 3.26 | Q3: 3.5
B4: Inflation, consumer prices (annual %) | C4: 1.586031627 | D4: 2.270094973 | E4: 2.677236693 | F4: 3.392746845 | G4: 3.225944101 | H4: 2.852672482 | I4: 3.839100297 | J4: -0.3555462663 | K4: 1.640043442 | L4: 3.156841569 | M4: 2.069337265 | N4: 1.464832656 | O4: 1.622222977 | P4: 0.1186271356 | Q4: 1.2 | R4: 2.3 | S4: 2.5 | T4: 2 | U4: 2 | V4: 2 | W4: http://www.pwc.com/gx/en/issues/economy/global-economy-watch/projections.html
B5: 10y Treasury Bond yield | C5: 4.61 | D5: 4.01 | E5: 4.27 | F5: 4.29 | G5: 4.8 | H5: 4.63 | I5: 3.66 | J5: 3.26 | K5: 3.22 | L5: 2.78 | M5: 1.8 | N5: 2.35 | O5: 2.54 | P5: 2.14 | Q5: 1.84
B6: Fed Fund rates | C6: 1.25 | D6: 1 | E6: 2.25 | F6: 4.25 | G6: 5.25 | H6: 4.25 | I6: 0.25 | J6: 0.25 | K6: 0.25 | L6: 0.25 | M6: 0.25 | N6: 0.25 | O6: 0.25 | P6: 0.5 | Q6: 0.75 | R6: 1
B7: Nasdaq 100 | C7: 984.37 | D7: 1467.92 | E7: 1621.12 | F7: 1645.2 | G7: 1756.9 | H7: 2084.93 | I7: 1211.65 | J7: 1860.31 | K7: 2217.86 | L7: 2277.83 | M7: 2660.93 | N7: 3592 | O7: 4236.28 | P7: 4593.27 | Q7: 4863.62
B8: Nasdaq 100 returns | D8: =(D7-C7)/C7 -> 0.491227892 | E8: 0.1043653605 | F8: 0.01485392815 | G8: 0.06789448091 | H8: 0.1867095452 | I8: -0.4188533908 | J8: 0.5353526183 | K8: 0.1921991496 | L8: 0.02703957869 | M8: 0.1681863879 | N8: 0.3499039809 | O8: 0.1793652561 | P8: 0.08426968944 | Q8: 0.05885785073
B9: TSLA | K9: 26.63 | L9: 28.56 | M9: 33.87 | N9: 150.43 | O9: 222.41 | P9: 240.01 | Q9: 213.69
B10: TSLA returns | L10: =(L9-K9)/K9 -> 0.07247465265 | M10: 0.1859243697 | N10: 3.441393564 | O10: 0.4784949811 | P10: 0.0791331325 | Q10: -0.1096620974
B18: Correl Inflation vs. NASDAQ100 returns 2002-2016 | C18: =CORREL(D8:Q8,D4:Q4) -> -0.6053884782
B19: Correl Inflation vs. NASDAQ100 returns 2010-2016 | C19: =CORREL(K8:Q8,K4:Q4) -> -0.1240053018
B20: Correl Inflation vs TSLA returns | C20: =CORREL(L10:Q10,L4:Q4) -> -0.05131559395
B22: Correl FFR vs. Real Interest Rate | C22: =CORREL($C$6:$Q$6,C2:Q2) -> 0.7681122626
B23: Correl FFR vs. Bank Lending Rate | C23: =CORREL($C$6:$Q$6,C3:Q3) -> 0.9231925743
B24: Correl FFR vs. 10y Treasury Bonds | C24: =CORREL($C$6:$Q$6,C5:Q5) -> 0.724301881

Sheet FFR & NASDAQ & TSLA
B1: EFFR (target) | C1: Nasdaq 100 | D1: TSLA | E1: Nasdaq 100 returns | F1: TSLA returns
A2: Jan 31, 2002 | B2: 0.0175 | C2: 1550.17
A3: Feb 28, 2002 | B3: 0.0175 | C3: 1359.22 | E3: =(C3-C2)/C2 -> -0.1231800383 | I3: Cov(NASDAQ100,tsla) | J3: =_xlfn.COVARIANCE.P(E104:E184,F104:F184) -> 0.001354547581
A4: Mar 28, 2002 | B4: 0.0175 | C4: 1452.81 | E4: 0.06885566722 | I4: Var(NASDAQ100) | J4: =_xlfn.VAR.P(E104:E184) -> 0.001676897532
A5: Apr 30, 2002 | B5: 0.0175 | C5: 1277.07 | E5: -0.1209655771 | I5: β | J5: =J3/J4 -> 0.8077700364
A6: May 31, 2002 | B6: 0.0175 | C6: 1208.34 | E6: -0.05381850642
A7: Jun 28, 2002 | B7: 0.0175 | C7: 1051.41 | E7: -0.1298723869 | I7: CORELL (NASDA100;TSLA) | J7: =CORREL(E104:E184,F104:F184) -> 0.1974248944
A8: Jul 31, 2002 | B8: 0.0175 | C8: 962.1 | E8: -0.08494307644
A9: Aug 30, 2002 | B9: 0.0175 | C9: 942.38 | E9: -0.02049682985 | I9: CORREL(EFFR;NASDAQ100) od 2010 | J9: =CORREL(E104:E184,B104:B184) -> -0.03039357256
A10: Sep 30, 2002 | B10: 0.0175 | C10: 832.52 | E10: -0.1165771769 | I10: CORREL(EFFRtarget;NASDAQ100) od 2002 | J10: =CORREL(B2:B184,E2:E184) -> -0.06554114195
A11: Oct 31, 2002 | B11: 0.0175 | C11: 989.54 | E11: 0.1886080815 | I11: CORREL(EFFR;TSLA) | J11: =CORREL(F104:F184,B104:B184) -> -0.05045685482
A12: Nov 29, 2002 | B12: 0.0125 | C12: 1116.1 | E12: 0.1278978111
A13: Dec 31, 2002 | B13: 0.0125 | C13: 984.37 | E13: -0.1180270585
A14: Jan 31, 2003 | B14: 0.0125 | C14: 983.05 | E14: -0.001340959192
A15: Feb 28, 2003 | B15: 0.0125 | C15: 1009.74 | E15: 0.02715019582
A16: Mar 31, 2003 | B16: 0.0125 | C16: 1018.66 | E16: 0.008833957256
A17: Apr 30, 2003 | B17: 0.0125 | C17: 1106.06 | E17: 0.08579899083
A18: May 30, 2003 | B18: 0.0125 | C18: 1197.89 | E18: 0.08302442905
A19: Jun 30, 2003 | B19: 0.01 | C19: 1201.69 | E19: 0.00317224453
A20: Jul 31, 2003 | B20: 0.01 | C20: 1276.94 | E20: 0.0626201433
A21: Aug 29, 2003 | B21: 0.01 | C21: 1341.2 | E21: 0.05032342945
A22: Sep 30, 2003 | B22: 0.01 | C22: 1303.7 | E22: -0.02796003579
A23: Oct 31, 2003 | B23: 0.01 | C23: 1416.39 | E23: 0.08643859784
A24: Nov 28, 2003 | B24: 0.01 | C24: 1424.25 | E24: 0.005549319043
A25: Dec 31, 2003 | B25: 0.01 | C25: 1467.92 | E25: 0.0306617518
A26: Jan 30, 2004 | B26: 0.01 | C26: 1493.08 | E26: 0.01713989863
A27: Feb 27, 2004 | B27: 0.01 | C27: 1470.38 | E27: -0.01520347202
A28: Mar 31, 2004 | B28: 0.01 | C28: 1438.41 | E28: -0.02174267876
A29: Apr 30, 2004 | B29: 0.01 | C29: 1401.36 | E29: -0.02575760736
A30: May 28, 2004 | B30: 0.01 | C30: 1466.22 | E30: 0.04628361021
A31: Jun 30, 2004 | B31: 0.0125 | C31: 1516.64 | E31: 0.03438774536
A32: Jul 30, 2004 | B32: 0.0125 | C32: 1400.39 | E32: -0.07664969934
A33: Aug 31, 2004 | B33: 0.015 | C33: 1368.68 | E33: -0.02264369211
A34: Sep 30, 2004 | B34: 0.0175 | C34: 1412.74 | E34: 0.03219160067
A35: Oct 29, 2004 | B35: 0.0175 | C35: 1486.72 | E35: 0.0523663236
A36: Nov 30, 2004 | B36: 0.02 | C36: 1571.5 | E36: 0.05702486009
A37: Dec 31, 2004 | B37: 0.0225 | C37: 1621.12 | E37: 0.03157492841
A38: Jan 31, 2005 | B38: 0.0225 | C38: 1519.63 | E38: -0.06260486577
A39: Feb 28, 2005 | B39: 0.025 | C39: 1511.02 | E39: -0.005665852872
A40: Mar 31, 2005 | B40: 0.0275 | C40: 1482.53 | E40: -0.0188548133
A41: Apr 29, 2005 | B41: 0.0275 | C41: 1420.79 | E41: -0.04164502573
A42: May 31, 2005 | B42: 0.03 | C42: 1542.63 | E42: 0.08575510807
A43: Jun 30, 2005 | B43: 0.0325 | C43: 1493.52 | E43: -0.03183524241
A44: Jul 29, 2005 | B44: 0.0325 | C44: 1605.14 | E44: 0.07473619369
A45: Aug 31, 2005 | B45: 0.035 | C45: 1581.71 | E45: -0.01459685759
A46: Sep 30, 2005 | B46: 0.0375 | C46: 1601.66 | E46: 0.01261293157
A47: Oct 31, 2005 | B47: 0.0375 | C47: 1579.18 | E47: -0.01403543823
A48: Nov 30, 2005 | B48: 0.04 | C48: 1672.56 | E48: 0.05913195456
A49: Dec 30, 2005 | B49: 0.0425 | C49: 1645.2 | E49: -0.01635815755
A50: Jan 31, 2006 | B50: 0.045 | C50: 1710.75 | E50: 0.03984318016
A51: Feb 28, 2006 | B51: 0.045 | C51: 1670.57 | E51: -0.02348677481
A52: Mar 31, 2006 | B52: 0.0475 | C52: 1703.66 | E52: 0.01980761058
A53: Apr 28, 2006 | B53: 0.0475 | C53: 1700.71 | E53: -0.001731566158
A54: May 31, 2006 | B54: 0.05 | C54: 1579.58 | E54: -0.07122319502
A55: Jun 30, 2006 | B55: 0.0525 | C55: 1575.23 | E55: -0.002753896605
A56: Jul 31, 2006 | B56: 0.0525 | C56: 1509.43 | E56: -0.04177167779
A57: Aug 31, 2006 | B57: 0.0525 | C57: 1579.73 | E57: 0.04657387226
A58: Sep 29, 2006 | B58: 0.0525 | C58: 1654.13 | E58: 0.04709665576
A59: Oct 31, 2006 | B59: 0.0525 | C59: 1732.54 | E59: 0.04740256207
A60: Nov 30, 2006 | B60: 0.0525 | C60: 1791.25 | E60: 0.03388666351
A61: Dec 29, 2006 | B61: 0.0525 | C61: 1756.9 | E61: -0.01917655269
A62: Jan 31, 2007 | B62: 0.0525 | C62: 1792.28 | E62: 0.02013774261
A63: Feb 28, 2007 | B63: 0.0525 | C63: 1761.6 | E63: -0.01711786105
A64: Mar 30, 2007 | B64: 0.0525 | C64: 1772.36 | E64: 0.00610808356
A65: Apr 30, 2007 | B65: 0.0525 | C65: 1867.75 | E65: 0.05382089417
A66: May 31, 2007 | B66: 0.0525 | C66: 1928.19 | E66: 0.03235979119
A67: Jun 29, 2007 | B67: 0.0525 | C67: 1934.1 | E67: =(C67-C66)/C66 -> 0.003065050643
A68: Jul 31, 2007 | B68: 0.0525 | C68: 1932.06 | E68: -0.001054754149
A69: Aug 31, 2007 | B69: 0.0525 | C69: 1988.73 | E69: 0.02933138722
A70: Sep 28, 2007 | B70: 0.0475 | C70: 2091.11 | E70: 0.05148009031
A71: Oct 31, 2007 | B71: 0.045 | C71: 2238.98 | E71: 0.07071364012
A72: Nov 30, 2007 | B72: 0.045 | C72: 2089.1 | E72: -0.06694119644
A73: Dec 31, 2007 | B73: 0.0425 | C73: 2084.93 | E73: -0.001996074865
A74: Jan 31, 2008 | B74: 0.03 | C74: 1841.42 | E74: -0.1167952881
A75: Feb 29, 2008 | B75: 0.03 | C75: 1745.27 | E75: -0.05221513832
A76: Mar 31, 2008 | B76: 0.0225 | C76: 1781.93 | E76: 0.02100534588
A77: Apr 30, 2008 | B77: 0.02 | C77: 1917.7 | E77: 0.0761926675
A78: May 30, 2008 | B78: 0.02 | C78: 2032.57 | E78: 0.05989988006
A79: Jun 30, 2008 | B79: 0.02 | C79: 1837.09 | E79: -0.09617380951
A80: Jul 31, 2008 | B80: 0.02 | C80: 1849.15 | E80: 0.006564730089
A81: Aug 29, 2008 | B81: 0.02 | C81: 1872.54 | E81: 0.01264905497
A82: Sep 30, 2008 | B82: 0.02 | C82: 1594.63 | E82: -0.148413385
A83: Oct 31, 2008 | B83: 0.01 | C83: 1334.78 | E83: -0.1629531615
A84: Nov 28, 2008 | B84: 0.01 | C84: 1185.75 | E84: -0.1116513583
A85: Dec 31, 2008 | B85: 0.0025 | C85: 1211.65 | E85: 0.02184271558
A86: Jan 30, 2009 | B86: 0.0025 | C86: 1180.25 | E86: -0.02591507449
A87: Feb 27, 2009 | B87: 0.0025 | C87: 1116.99 | E87: -0.05359881381
A88: Mar 31, 2009 | B88: 0.0025 | C88: 1237.01 | E88: 0.1074494848
A89: Apr 30, 2009 | B89: 0.0025 | C89: 1394.33 | E89: 0.1271776299
A90: May 29, 2009 | B90: 0.0025 | C90: 1435.57 | E90: 0.02957692942
A91: Jun 30, 2009 | B91: 0.0025 | C91: 1477.25 | E91: 0.02903376359
A92: Jul 31, 2009 | B92: 0.0025 | C92: 1603.36 | E92: 0.08536808259
A93: Aug 31, 2009 | B93: 0.0025 | C93: 1625.19 | E93: 0.01361515817
A94: Sep 30, 2009 | B94: 0.0025 | C94: 1718.99 | E94: 0.05771632855
A95: Oct 30, 2009 | B95: 0.0025 | C95: 1667.13 | E95: -0.03016887824
A96: Nov 30, 2009 | B96: 0.0025 | C96: 1767.43 | E96: 0.06016327461
A97: Dec 31, 2009 | B97: 0.0025 | C97: 1860.31 | E97: 0.05255087896
A98: Jan 29, 2010 | B98: 0.0025 | C98: 1741.04 | E98: -0.06411297042
A99: Feb 26, 2010 | B99: 0.0025 | C99: 1818.68 | E99: 0.04459403575
A100: Mar 31, 2010 | B100: 0.0025 | C100: 1958.34 | E100: 0.076791959
A101: Apr 30, 2010 | B101: 0.0025 | C101: 2000.63 | E101: 0.0215948201
A102: May 28, 2010 | B102: 0.0025 | C102: 1852.39 | E102: -0.07409665955
A103: Jun 30, 2010 | B103: 0.0025 | C103: 1739.14 | D103: 23.83 | E103: -0.06113723352
A104: Jul 30, 2010 | B104: 0.0025 | C104: 1864 | D104: 19.94 | E104: 0.07179410513 | F104: -0.1632396139
A105: Aug 31, 2010 | B105: 0.0025 | C105: 1767.43 | D105: 19.48 | E105: =(C105-C104)/C104 -> -0.05180793991 | F105: -0.02306920762
A106: Sep 30, 2010 | B106: 0.0025 | C106: 1998.04 | D106: 20.41 | E106: 0.1304775861 | F106: 0.0477412731
A107: Oct 29, 2010 | B107: 0.0025 | C107: 2124.45 | D107: 21.84 | E107: 0.06326700166 | F107: 0.07006369427
A108: Nov 30, 2010 | B108: 0.0025 | C108: 2117.33 | D108: 35.33 | E108: -0.003351455671 | F108: 0.6176739927
A109: Dec 31, 2010 | B109: 0.0025 | C109: 2217.86 | D109: 26.63 | E109: 0.04747960875 | F109: -0.2462496462
A110: Jan 31, 2011 | B110: 0.0025 | C110: 2281.91 | D110: 24.1 | E110: 0.02887918985 | F110: -0.09500563275
A111: Feb 28, 2011 | B111: 0.0025 | C111: 2350.99 | D111: 23.89 | E111: 0.03027288543 | F111: -0.008713692946
A112: Mar 31, 2011 | B112: 0.0025 | C112: 2338.99 | D112: 27.75 | E112: -0.005104232685 | F112: 0.1615738803
A113: Apr 29, 2011 | B113: 0.0025 | C113: 2404.08 | D113: 27.6 | E113: 0.02782825066 | F113: -0.005405405405
A114: May 31, 2011 | B114: 0.0025 | C114: 2372.54 | D114: 30.14 | E114: -0.01311936375 | F114: 0.09202898551
A115: Jun 30, 2011 | B115: 0.0025 | C115: 2325.07 | D115: 29.13 | E115: -0.02000809259 | F115: -0.03351028534
A116: Jul 29, 2011 | B116: 0.0025 | C116: 2362.81 | D116: 28.17 | E116: 0.01623176937 | F116: -0.03295571576
A117: Aug 31, 2011 | B117: 0.0025 | C117: 2241.01 | D117: 24.74 | E117: -0.05154879148 | F117: -0.1217607384
A118: Sep 30, 2011 | B118: 0.0025 | C118: 2139.18 | D118: 24.39 | E118: -0.04543933316 | F118: -0.01414713015
A119: Oct 31, 2011 | B119: 0.0025 | C119: 2360.08 | D119: 29.37 | E119: 0.1032638675 | F119: 0.2041820418
A120: Nov 30, 2011 | B120: 0.0025 | C120: 2295.2 | D120: 32.74 | E120: -0.02749059354 | F120: 0.114742935
A121: Dec 30, 2011 | B121: 0.0025 | C121: 2277.83 | D121: 28.56 | E121: -0.007567967933 | F121: -0.1276725718
A122: Jan 31, 2012 | B122: 0.0025 | C122: 2467.95 | D122: 29.07 | E122: 0.08346540348 | F122: 0.01785714286
A123: Feb 29, 2012 | B123: 0.0025 | C123: 2623.1 | D123: 33.41 | E123: 0.06286594137 | F123: 0.1492948056
A124: Mar 30, 2012 | B124: 0.0025 | C124: 2755.27 | D124: 37.24 | E124: 0.05038694674 | F124: 0.1146363364
A125: Apr 30, 2012 | B125: 0.0025 | C125: 2723.68 | D125: 33.13 | E125: -0.01146530104 | F125: -0.1103651987
A126: May 31, 2012 | B126: 0.0025 | C126: 2524.87 | D126: 29.5 | E126: -0.07299315632 | F126: -0.109568367
A127: Jun 29, 2012 | B127: 0.0025 | C127: 2615.72 | D127: 31.29 | E127: 0.03598205056 | F127: 0.0606779661
A128: Jul 31, 2012 | B128: 0.0025 | C128: 2642.53 | D128: 27.42 | E128: 0.010249568 | F128: -0.1236816874
A129: Aug 31, 2012 | B129: 0.0025 | C129: 2772.24 | D129: 28.52 | E129: 0.04908553545 | F129: 0.04011670314
A130: Sep 28, 2012 | B130: 0.0025 | C130: 2799.19 | D130: 29.28 | E130: 0.009721380544 | F130: 0.02664796634
A131: Oct 31, 2012 | B131: 0.0025 | C131: 2647.92 | D131: 28.13 | E131: -0.05404063318 | F131: -0.03927595628
A132: Nov 30, 2012 | B132: 0.0025 | C132: 2677.88 | D132: 33.82 | E132: 0.01131454122 | F132: 0.2022751511
A133: Dec 31, 2012 | B133: 0.0025 | C133: 2660.93 | D133: 33.87 | E133: -0.006329633889 | F133: 0.001478415139
A134: Jan 31, 2013 | B134: 0.0025 | C134: 2731.53 | D134: 37.51 | E134: 0.02653207713 | F134: 0.1074697372
A135: Feb 28, 2013 | B135: 0.0025 | C135: 2738.58 | D135: 34.83 | E135: 0.002580971104 | F135: -0.07144761397
A136: Mar 28, 2013 | B136: 0.0025 | C136: 2818.69 | D136: 37.89 | E136: 0.02925238627 | F136: 0.08785529716
A137: Apr 30, 2013 | B137: 0.0025 | C137: 2887.44 | D137: 53.99 | E137: =(C137-C136)/C136 -> 0.02439076308 | F137: 0.4249142254
A138: May 31, 2013 | B138: 0.0025 | C138: 2981.76 | D138: 97.76 | E138: 0.03266561383 | F138: 0.8107056862
A139: Jun 28, 2013 | B139: 0.0025 | C139: 2909.6 | D139: 107.36 | E139: -0.0242004722 | F139: 0.09819967267
A140: Jul 31, 2013 | B140: 0.0025 | C140: 3090.19 | D140: 134.28 | E140: 0.06206695078 | F140: 0.2507451565
A141: Aug 30, 2013 | B141: 0.0025 | C141: 3073.81 | D141: 169 | E141: -0.005300644944 | F141: 0.2585641942
A142: Sep 30, 2013 | B142: 0.0025 | C142: 3218.2 | D142: 193.37 | E142: 0.04697427622 | F142: 0.1442011834
A143: Oct 31, 2013 | B143: 0.0025 | C143: 3377.73 | D143: 159.94 | E143: 0.04957118886 | F143: -0.1728810053
A144: Nov 29, 2013 | B144: 0.0025 | C144: 3487.82 | D144: 127.28 | E144: 0.03259289523 | F144: -0.2042015756
A145: Dec 31, 2013 | B145: 0.0025 | C145: 3592 | D145: 150.43 | E145: 0.0298696607 | F145: 0.1818824639
A146: Jan 31, 2014 | B146: 0.0025 | C146: 3521.92 | D146: 181.41 | E146: -0.01951002227 | F146: 0.2059429635
A147: Feb 28, 2014 | B147: 0.0025 | C147: 3696.1 | D147: 244.81 | E147: 0.04945597856 | F147: 0.3494845929
A148: Mar 31, 2014 | B148: 0.0025 | C148: 3595.74 | D148: 208.45 | E148: -0.027152945 | F148: -0.1485233446
A149: Apr 30, 2014 | B149: 0.0025 | C149: 3582.02 | D149: 207.89 | E149: -0.003815626269 | F149: -0.002686495562
A150: May 30, 2014 | B150: 0.0025 | C150: 3736.82 | D150: 207.77 | E150: 0.04321583911 | F150: -0.0005772283419
A151: Jun 30, 2014 | B151: 0.0025 | C151: 3849.48 | D151: 240.06 | E151: 0.03014862905 | F151: 0.1554122347
A152: Jul 31, 2014 | B152: 0.0025 | C152: 3892.5 | D152: 223.3 | E152: 0.0111755354 | F152: -0.06981587936
A153: Aug 29, 2014 | B153: 0.0025 | C153: 4082.56 | D153: 269.7 | E153: 0.04882723186 | F153: 0.2077922078
A154: Sep 30, 2014 | B154: 0.0025 | C154: 4049.45 | D154: 242.68 | E154: -0.008110107384 | F154: -0.1001853912
A155: Oct 31, 2014 | B155: 0.0025 | C155: 4158.21 | D155: 241.7 | E155: 0.02685796837 | F155: -0.004038239657
A156: Nov 28, 2014 | B156: 0.0025 | C156: 4337.79 | D156: 244.52 | E156: 0.04318685203 | F156: 0.01166735623
A157: Dec 31, 2014 | B157: 0.0025 | C157: 4236.28 | D157: 222.41 | E157: -0.02340131726 | F157: -0.09042205137
A158: Jan 30, 2015 | B158: 0.0025 | C158: 4148.43 | D158: 203.6 | E158: -0.02073753387 | F158: -0.08457353536
A159: Feb 27, 2015 | B159: 0.0025 | C159: 4440.67 | D159: 203.34 | E159: 0.07044592774 | F159: -0.001277013752
A160: Mar 31, 2015 | B160: 0.0025 | C160: 4333.69 | D160: 188.77 | E160: -0.02409095925 | F160: -0.07165338841
A161: Apr 30, 2015 | B161: 0.0025 | C161: 4414.25 | D161: 226.05 | E161: 0.01858923919 | F161: 0.1974890078
A162: May 29, 2015 | B162: 0.0025 | C162: 4508.25 | D162: 250.8 | E162: 0.02129467067 | F162: 0.1094890511
A163: Jun 30, 2015 | B163: 0.0025 | C163: 4396.76 | D163: 268.26 | E163: -0.02473021682 | F163: 0.06961722488
A164: Jul 31, 2015 | B164: 0.0025 | C164: 4588.91 | D164: 266.15 | E164: 0.04370263558 | F164: -0.007865503616
A165: Aug 31, 2015 | B165: 0.0025 | C165: 4274.58 | D165: 249.06 | E165: -0.06849774783 | F165: -0.06421191058
A166: Sep 30, 2015 | B166: 0.0025 | C166: 4181.06 | D166: 248.4 | E166: -0.02187817283 | F166: -0.002649963864
A167: Oct 30, 2015 | B167: 0.0025 | C167: 4648.83 | D167: 206.93 | E167: 0.1118783275 | F167: -0.1669484702
A168: Nov 30, 2015 | B168: 0.0025 | C168: 4664.51 | D168: 230.26 | E168: 0.003372891674 | F168: 0.1127434398
A169: Dec 31, 2015 | B169: 0.005 | C169: 4593.27 | D169: 240.01 | E169: =(C169-C168)/C168 -> -0.01527277249 | F169: 0.04234343785
A170: Jan 29, 2016 | B170: 0.005 | C170: 4279.17 | D170: 191.2 | E170: -0.06838265549 | F170: -0.2033665264
A171: Feb 29, 2016 | B171: 0.005 | C171: 4201.12 | D171: 191.93 | E171: -0.01823951841 | F171: 0.003817991632
A172: Mar 31, 2016 | B172: 0.005 | C172: 4483.66 | D172: 229.77 | E172: 0.06725349431 | F172: 0.1971552128
A173: Apr 29, 2016 | B173: 0.005 | C173: 4341.3 | D173: 240.76 | E173: -0.03175084641 | F173: 0.04783043913
A174: May 31, 2016 | B174: 0.005 | C174: 4523.89 | D174: 223.23 | E174: 0.0420588303 | F174: -0.07281109819
A175: Jun 30, 2016 | B175: 0.005 | C175: 4417.7 | D175: 212.28 | E175: -0.02347316137 | F175: -0.0490525467
A176: Jul 29, 2016 | B176: 0.005 | C176: 4730.23 | D176: 234.79 | E176: 0.07074495778 | F176: 0.1060391935
A177: Aug 31, 2016 | B177: 0.005 | C177: 4771.05 | D177: 212.01 | E177: 0.00862960152 | F177: -0.0970228715
A178: Sep 30, 2016 | B178: 0.005 | C178: 4875.7 | D178: 204.03 | E178: 0.02193437503 | F178: -0.03763973397
A179: Oct 31, 2016 | B179: 0.005 | C179: 4801.27 | D179: 197.73 | E179: -0.01526550034 | F179: -0.03087781209
A180: Nov 30, 2016 | B180: 0.005 | C180: 4810.81 | D180: 189.4 | E180: 0.00198697428 | F180: -0.04212815455
A181: Dec 30, 2016 | B181: 0.0075 | C181: 4863.62 | D181: 213.69 | E181: 0.0109773614 | F181: 0.1282470961
A182: Jan 30, 2017 | B182: 0.0075 | C182: 5116.77 | D182: 250.63 | E182: 0.05204970783 | F182: 0.1728672376
A183: Feb 28, 2017 | B183: 0.0075 | C183: 5330.31 | D183: 249.99 | E183: 0.04173335913 | F183: -0.002553565016
A184: Mar 21,2017 | B184: 0.01 | C184: 5332.53 | D184: 250.68 | E184: 0.0004164860956 | F184: 0.002760110404

Sheet Aggregates
A1: Download Page | B1: H.6 Statistical Release for Mar 23, 2017
A2: Series Description | B2: M1; Seasonally adjusted | C2: M2; Seasonally adjusted
A4: Unit: | B4: Currency | C4: Currency | F4: Returns
A5: Multiplier: | B5: 1000000000 | C5: 1000000000 | G5: M1 | H5: M2
A6: Currency: | B6: USD | C6: USD | F6: TSLA | G6: =CORREL(F113:F193,I113:I193) -> 0.02079847121 | H6: =CORREL(G113:G191,I113:I191) -> -0.1658430812
A7: Unique Identifier: | B7: H6/H6_M2/M1.M | C7: H6/H6_M2/M2.M | F7: NASDAQ-100 | G7: =CORREL(F11:F191,H11:H191) -> -0.02764230718 | H7: =CORREL(G11:G191,H11:H191) -> -0.04186993893
F8: od 2010 | G8: =CORREL(F112:F191,H112:H191) -> -0.1724759159 | H8: =CORREL(G112:G191,H112:H191) -> -0.1598106209
A10: Time Period | B10: M1 | C10: M2 | D10: Nasdaq 100 | E10: TSLA | F10: M1 | G10: M2 | H10: Nasdaq 100 | I10: TSLA
A11: Jan 31, 2002 | B11: 1190.7 | C11: 5428.8 | D11: 1550.17 | F11: =(B12-B11)/B11 -> -8.398421097e-05 | G11: =(C12-C11)/C11 -> 0.005397141173 | H11: -0.1231800383
A12: Feb 28, 2002 | B12: 1190.6 | C12: 5458.1 | D12: 1359.22 | F12: =(B13-B12)/B12 -> 0.002267764153 | G12: 0.002216888661 | H12: 0.06885566722
A13: Mar 28, 2002 | B13: 1193.3 | C13: 5470.2 | D13: 1452.81 | F13: -0.005363278304 | G13: 1.828086724e-05 | H13: -0.1209655771
A14: Apr 30, 2002 | B14: 1186.9 | C14: 5470.3 | D14: 1277.07 | F14: 0.002022074311 | G14: 0.004624974864 | H14: -0.05381850642
A15: May 31, 2002 | B15: 1189.3 | C15: 5495.6 | D15: 1208.34 | F15: 0.003279239889 | G15: 0.004421719194 | H15: -0.1298723869
A16: Jun 28, 2002 | B16: 1193.2 | C16: 5519.9 | D16: 1051.41 | F16: 0.004944686557 | G16: 0.007663182304 | H16: -0.08494307644
A17: Jul 31, 2002 | B17: 1199.1 | C17: 5562.2 | D17: 962.1 | F17: -0.01009090151 | G17: 0.007622883032 | H17: -0.02049682985
A18: Aug 30, 2002 | B18: 1187 | C18: 5604.6 | D18: 942.38 | F18: 0.007666385847 | G18: 0.004407094173 | H18: -0.1165771769
A19: Sep 30, 2002 | B19: 1196.1 | C19: 5629.3 | D19: 832.52 | F19: 0.00652119388 | G19: 0.007834011334 | H19: 0.1886080815
A20: Oct 31, 2002 | B20: 1203.9 | C20: 5673.4 | D20: 989.54 | F20: 0.004734612509 | G20: 0.008777805196 | H20: 0.1278978111
A21: Nov 29, 2002 | B21: 1209.6 | C21: 5723.2 | D21: 1116.1 | F21: 0.008763227513 | G21: 0.00366927593 | H21: -0.1180270585
A22: Dec 31, 2002 | B22: 1220.2 | C22: 5744.2 | D22: 984.37 | F22: 0.005654810687 | G22: 0.005710107587 | H22: -0.001340959192
A23: Jan 31, 2003 | B23: 1227.1 | C23: 5777 | D23: 983.05 | F23: 0.008801238693 | G23: 0.006231608101 | H23: 0.02715019582
A24: Feb 28, 2003 | B24: 1237.9 | C24: 5813 | D24: 1009.74 | F24: 0.001130947573 | G24: 0.00354378118 | H24: 0.008833957256
A25: Mar 31, 2003 | B25: 1239.3 | C25: 5833.6 | D25: 1018.66 | F25: 0.008472524812 | G25: 0.006376851344 | H25: 0.08579899083
A26: Apr 30, 2003 | B26: 1249.8 | C26: 5870.8 | D26: 1106.06 | F26: 0.01504240679 | G26: 0.01032227294 | H26: 0.08302442905
A27: May 30, 2003 | B27: 1268.6 | C27: 5931.4 | D27: 1197.89 | F27: 0.00938041936 | G27: 0.006221128233 | H27: 0.00317224453
A28: Jun 30, 2003 | B28: 1280.5 | C28: 5968.3 | D28: 1201.69 | F28: 0.005154236626 | G28: 0.007807918503 | H28: 0.0626201433
A29: Jul 31, 2003 | B29: 1287.1 | C29: 6014.9 | D29: 1276.94 | F29: 0.006914769637 | G29: 0.009626095197 | H29: 0.05032342945
A30: Aug 29, 2003 | B30: 1296 | C30: 6072.8 | D30: 1341.2 | F30: 0.0006172839506 | G30: -0.004594256356 | H30: -0.02796003579
A31: Sep 30, 2003 | B31: 1296.8 | C31: 6044.9 | D31: 1303.7 | F31: 0.0004626773597 | G31: -0.001637744214 | H31: 0.08643859784
A32: Oct 31, 2003 | B32: 1297.4 | C32: 6035 | D32: 1416.39 | F32: 0.001079081239 | G32: 0.0007622203811 | H32: 0.005549319043
A33: Nov 28, 2003 | B33: 1298.8 | C33: 6039.6 | D33: 1424.25 | F33: 0.005543578688 | G33: -0.0003808199218 | H33: 0.0306617518
A34: Dec 31, 2003 | B34: 1306 | C34: 6037.3 | D34: 1467.92 | F34: -7.656967841e-05 | G34: 0.001374786742 | H34: 0.01713989863
A35: Jan 30, 2004 | B35: 1305.9 | C35: 6045.6 | D35: 1493.08 | F35: 0.01179263343 | G35: 0.006450972608 | H35: -0.01520347202
A36: Feb 27, 2004 | B36: 1321.3 | C36: 6084.6 | D36: 1470.38 | F36: 0.005676227957 | G36: 0.005916576275 | H36: -0.02174267876
A37: Mar 31, 2004 | B37: 1328.8 | C37: 6120.6 | D37: 1438.41 | F37: 0.002859723058 | G37: 0.006551645264 | H37: -0.02575760736
A38: Apr 30, 2004 | B38: 1332.6 | C38: 6160.7 | D38: 1401.36 | F38: 0.0003752063635 | G38: 0.01243365202 | H38: 0.04628361021
A39: May 28, 2004 | B39: 1333.1 | C39: 6237.3 | D39: 1466.22 | F39: 0.006601155202 | G39: 0.000320651564 | H39: 0.03438774536
A40: Jun 30, 2004 | B40: 1341.9 | C40: 6239.3 | D40: 1516.64 | F40: -0.001341381623 | G40: 0.002163704262 | H40: -0.07664969934
A41: Jul 30, 2004 | B41: 1340.1 | C41: 6252.8 | D41: 1400.39 | F41: 0.01007387508 | G41: 0.004158137155 | H41: -0.02264369211
A42: Aug 31, 2004 | B42: 1353.6 | C42: 6278.8 | D42: 1368.68 | F42: 0.00613179669 | G42: 0.005558386953 | H42: 0.03219160067
A43: Sep 30, 2004 | B43: 1361.9 | C43: 6313.7 | D43: 1412.74 | F43: -0.0001468536603 | G43: 0.004387284793 | H43: 0.0523663236
A44: Oct 29, 2004 | B44: 1361.7 | C44: 6341.4 | D44: 1486.72 | F44: 0.009106264229 | G44: 0.00421042672 | H44: 0.05702486009
A45: Nov 30, 2004 | B45: 1374.1 | C45: 6368.1 | D45: 1571.5 | F45: 0.00130994833 | G45: 0.002936511675 | H45: 0.03157492841
A46: Dec 31, 2004 | B46: 1375.9 | C46: 6386.8 | D46: 1621.12 | F46: -0.006177774548 | G46: 0.001002066763 | H46: -0.06260486577
A47: Jan 31, 2005 | B47: 1367.4 | C47: 6393.2 | D47: 1519.63 | F47: 0.002925259617 | G47: 0.001266971157 | H47: -0.005665852872
A48: Feb 28, 2005 | B48: 1371.4 | C48: 6401.3 | D48: 1511.02 | F48: -0.0002187545574 | G48: 0.001484073548 | H48: -0.0188548133
A49: Mar 31, 2005 | B49: 1371.1 | C49: 6410.8 | D49: 1482.53 | F49: -0.00933556998 | G49: 0.00202782804 | H49: -0.04164502573
A50: Apr 29, 2005 | B50: 1358.3 | C50: 6423.8 | D50: 1420.79 | F50: 0.005447986454 | G50: 0.002661975778 | H50: 0.08575510807
A51: May 31, 2005 | B51: 1365.7 | C51: 6440.9 | D51: 1542.63 | F51: 0.009592150546 | G51: 0.005045878682 | H51: -0.03183524241
A52: Jun 30, 2005 | B52: 1378.8 | C52: 6473.4 | D52: 1493.52 | F52: -0.008413112852 | G52: 0.004866067291 | H52: 0.07473619369
A53: Jul 29, 2005 | B53: 1367.2 | C53: 6504.9 | D53: 1605.14 | F53: 0.00738736103 | G53: 0.005057725714 | H53: -0.01459685759
A54: Aug 31, 2005 | B54: 1377.3 | C54: 6537.8 | D54: 1581.71 | F54: 0.000145211646 | G54: 0.005154639175 | H54: 0.01261293157
A55: Sep 30, 2005 | B55: 1377.5 | C55: 6571.5 | D55: 1601.66 | F55: -0.001234119782 | G55: 0.005189074032 | H55: -0.01403543823
A56: Oct 31, 2005 | B56: 1375.8 | C56: 6605.6 | D56: 1579.18 | F56: 0 | G56: 0.002528157927 | H56: 0.05913195456
A57: Nov 30, 2005 | B57: 1375.8 | C57: 6622.3 | D57: 1672.56 | F57: -0.0007268498328 | G57: 0.004046932335 | H57: -0.01635815755
A58: Dec 30, 2005 | B58: 1374.8 | C58: 6649.1 | D58: 1645.2 | F58: 0.004073319756 | G58: 0.006406882134 | H58: 0.03984318016
A59: Jan 31, 2006 | B59: 1380.4 | C59: 6691.7 | D59: 1710.75 | F59: -0.0007968704723 | G59: 0.003676195884 | H59: -0.02348677481
A60: Feb 28, 2006 | B60: 1379.3 | C60: 6716.3 | D60: 1670.57 | F60: 0.003262524469 | G60: 0.002292929143 | H60: 0.01980761058
A61: Mar 31, 2006 | B61: 1383.8 | C61: 6731.7 | D61: 1703.66 | F61: -0.001662089897 | G61: 0.005362686988 | H61: -0.001731566158
A62: Apr 28, 2006 | B62: 1381.5 | C62: 6767.8 | D62: 1700.71 | F62: 0.003908794788 | G62: 0.0009752061231 | H62: -0.07122319502
A63: May 31, 2006 | B63: 1386.9 | C63: 6774.4 | D63: 1579.58 | F63: -0.009661835749 | G63: 0.005520784128 | H63: -0.002753896605
A64: Jun 30, 2006 | B64: 1373.5 | C64: 6811.8 | D64: 1575.23 | F64: -0.002766654532 | G64: 0.006048327902 | H64: -0.04177167779
A65: Jul 31, 2006 | B65: 1369.7 | C65: 6853 | D65: 1509.43 | F65: 0.001460173761 | G65: 0.004421421275 | H65: 0.04657387226
A66: Aug 31, 2006 | B66: 1371.7 | C66: 6883.3 | D66: 1579.73 | F66: -0.006415396953 | G66: 0.003893481324 | H66: 0.04709665576
A67: Sep 29, 2006 | B67: 1362.9 | C67: 6910.1 | D67: 1654.13 | F67: 0.004769242057 | G67: 0.007076598023 | H67: 0.04740256207
A68: Oct 31, 2006 | B68: 1369.4 | C68: 6959 | D68: 1732.54 | F68: 0.0007302468234 | G68: 0.005058198017 | H68: 0.03388666351
A69: Nov 30, 2006 | B69: 1370.4 | C69: 6994.2 | D69: 1791.25 | F69: -0.002189141856 | G69: 0.006190843842 | H69: -0.01917655269
A70: Dec 29, 2006 | B70: 1367.4 | C70: 7037.5 | D70: 1756.9 | F70: 0.004461020916 | G70: 0.005428063943 | H70: 0.02013774261
A71: Jan 31, 2007 | B71: 1373.5 | C71: 7075.7 | D71: 1792.28 | F71: -0.006552602839 | G71: 0.002275393247 | H71: -0.01711786105
A72: Feb 28, 2007 | B72: 1364.5 | C72: 7091.8 | D72: 1761.6 | F72: 0.002052033712 | G72: 0.004892974985 | H72: 0.00610808356
A73: Mar 30, 2007 | B73: 1367.3 | C73: 7126.5 | D73: 1772.36 | F73: 0.008191325971 | G73: 0.01006103978 | H73: 0.05382089417
A74: Apr 30, 2007 | B74: 1378.5 | C74: 7198.2 | D74: 1867.75 | F74: 0.001523394995 | G74: 0.002000500125 | H74: 0.03235979119
A75: May 31, 2007 | B75: 1380.6 | C75: 7212.6 | D75: 1928.19 | F75: -0.01086484137 | G75: 0.004533732635 | H75: 0.003065050643
A76: Jun 29, 2007 | B76: 1365.6 | C76: 7245.3 | D76: 1934.1 | F76: =(B77-B76)/B76 -> 0.001684241359 | G76: 0.004085407091 | H76: -0.001054754149
A77: Jul 31, 2007 | B77: 1367.9 | C77: 7274.9 | D77: 1932.06 | F77: 0.005702171211 | G77: 0.01041938721 | H77: 0.02933138722
A78: Aug 31, 2007 | B78: 1375.7 | C78: 7350.7 | D78: 1988.73 | F78: -0.001453805335 | G78: 0.002421538085 | H78: 0.05148009031
A79: Sep 28, 2007 | B79: 1373.7 | C79: 7368.5 | D79: 2091.11 | F79: 0.003348620514 | G79: 0.001804980661 | H79: 0.07071364012
A80: Oct 31, 2007 | B80: 1378.3 | C80: 7381.8 | D80: 2238.98 | F80: -0.005296379598 | G80: 0.003454442006 | H80: -0.06694119644
A81: Nov 30, 2007 | B81: 1371 | C81: 7407.3 | D81: 2089.1 | F81: 0.002698760029 | G81: 0.004198560879 | H81: -0.001996074865
A82: Dec 31, 2007 | B82: 1374.7 | C82: 7438.4 | D82: 2084.93 | F82: 0.00385538663 | G82: 0.004584319208 | H82: -0.1167952881
A83: Jan 31, 2008 | B83: 1380 | C83: 7472.5 | D83: 1841.42 | F83: 0.001739130435 | G83: 0.01140180662 | H83: -0.05221513832
A84: Feb 29, 2008 | B84: 1382.4 | C84: 7557.7 | D84: 1745.27 | F84: 0.005497685185 | G84: 0.008997446313 | H84: 0.02100534588
A85: Mar 31, 2008 | B85: 1390 | C85: 7625.7 | D85: 1781.93 | F85: 0.001438848921 | G85: 0.0056650537 | H85: 0.0761926675
A86: Apr 30, 2008 | B86: 1392 | C86: 7668.9 | D86: 1917.7 | F86: 0.000933908046 | G86: 0.001499563171 | H86: 0.05989988006
A87: May 30, 2008 | B87: 1393.3 | C87: 7680.4 | D87: 2032.57 | F87: 0.006028852365 | G87: 0.002122285298 | H87: -0.09617380951
A88: Jun 30, 2008 | B88: 1401.7 | C88: 7696.7 | D88: 1837.09 | F88: 0.01048726546 | G88: 0.005768706069 | H88: 0.006564730089
A89: Jul 31, 2008 | B89: 1416.4 | C89: 7741.1 | D89: 1849.15 | F89: -0.007201355549 | G89: 0.0017439382 | H89: 0.01264905497
A90: Aug 29, 2008 | B90: 1406.2 | C90: 7754.6 | D90: 1872.54 | F90: 0.03804579718 | G90: 0.008807675444 | H90: -0.148413385
A91: Sep 30, 2008 | B91: 1459.7 | C91: 7822.9 | D91: 1594.63 | F91: 0.008768925122 | G91: 0.01378005599 | H91: -0.1629531615
A92: Oct 31, 2008 | B92: 1472.5 | C92: 7930.7 | D92: 1334.78 | F92: 0.02777589134 | G92: 0.0064811429 | H92: -0.1116513583
A93: Nov 28, 2008 | B93: 1513.4 | C93: 7982.1 | D93: 1185.75 | F93: 0.05960089864 | G93: 0.02226231192 | H93: 0.02184271558
A94: Dec 31, 2008 | B94: 1603.6 | C94: 8159.8 | D94: 1211.65 | F94: -0.01078822649 | G94: 0.01006152112 | H94: -0.02591507449
A95: Jan 30, 2009 | B95: 1586.3 | C95: 8241.9 | D95: 1180.25 | F95: -0.01027548383 | G95: 0.003724869266 | H95: -0.05359881381
A96: Feb 27, 2009 | B96: 1570 | C96: 8272.6 | D96: 1116.99 | F96: 0.006878980892 | G96: 0.008231994778 | H96: 0.1074494848
A97: Mar 31, 2009 | B97: 1580.8 | C97: 8340.7 | D97: 1237.01 | F97: 0.02011639676 | G97: 0.0004795760548 | H97: 0.1271776299
A98: Apr 30, 2009 | B98: 1612.6 | C98: 8344.7 | D98: 1394.33 | F98: 0.003038571251 | G98: 0.006758781023 | H98: 0.02957692942
A99: May 29, 2009 | B99: 1617.5 | C99: 8401.1 | D99: 1435.57 | F99: 0.02355486862 | G99: 0.0008570306269 | H99: 0.02903376359
A100: Jun 30, 2009 | B100: 1655.6 | C100: 8408.3 | D100: 1477.25 | F100: 0.0004832085045 | G100: 0.0001783951572 | H100: 0.08536808259
A101: Jul 31, 2009 | B101: 1656.4 | C101: 8409.8 | D101: 1603.36 | F101: 0.001388553489 | G101: -0.0003091631192 | H101: 0.01361515817
A102: Aug 31, 2009 | B102: 1658.7 | C102: 8407.2 | D102: 1625.19 | F102: 0.001868933502 | G102: -0.0005352554953 | H102: 0.05771632855
A103: Sep 30, 2009 | B103: 1661.8 | C103: 8402.7 | D103: 1718.99 | F103: 0.008665302684 | G103: 0.003510776298 | H103: -0.03016887824
A104: Oct 30, 2009 | B104: 1676.2 | C104: 8432.2 | D104: 1667.13 | F104: 0.003161913853 | G104: 0.003925428714 | H104: 0.06016327461
A105: Nov 30, 2009 | B105: 1681.5 | C105: 8465.3 | D105: 1767.43 | F105: 0.007493309545 | G105: -0.0002362586087 | H105: 0.05255087896
A106: Dec 31, 2009 | B106: 1694.1 | C106: 8463.3 | D106: 1860.31 | F106: -0.009503571218 | G106: -0.00425365992 | H106: -0.06411297042
A107: Jan 29, 2010 | B107: 1678 | C107: 8427.3 | D107: 1741.04 | F107: 0.01471990465 | G107: 0.006111091334 | H107: 0.04459403575
A108: Feb 26, 2010 | B108: 1702.7 | C108: 8478.8 | D108: 1818.68 | F108: 0.006695248723 | G108: -1.179412181e-05 | H108: 0.076791959
A109: Mar 31, 2010 | B109: 1714.1 | C109: 8478.7 | D109: 1958.34 | F109: -0.008167551485 | G109: 0.003785957753 | H109: 0.0215948201
A110: Apr 30, 2010 | B110: 1700.1 | C110: 8510.8 | D110: 2000.63 | F110: 0.006234927357 | G110: 0.006168632796 | H110: -0.07409665955
A111: May 28, 2010 | B111: 1710.7 | C111: 8563.3 | D111: 1852.39 | F111: 0.01052200853 | G111: 0.001693272453 | H111: -0.06113723352
A112: Jun 30, 2010 | B112: 1728.7 | C112: 8577.8 | D112: 1739.14 | E112: 23.83 | F112: -0.005726846763 | G112: 0.0005712420434 | H112: 0.07179410513
A113: Jul 30, 2010 | B113: 1718.8 | C113: 8582.7 | D113: 1864 | E113: 19.94 | F113: 0.01640679544 | G113: 0.005452829529 | H113: -0.05180793991 | I113: =(E114-E113)/E113 -> -0.02306920762
A114: Aug 31, 2010 | B114: 1747 | C114: 8629.5 | D114: 1767.43 | E114: 19.48 | F114: 0.009158557527 | G114: 0.002897039226 | H114: 0.1304775861 | I114: 0.0477412731
A115: Sep 30, 2010 | B115: 1763 | C115: 8654.5 | D115: 1998.04 | E115: 20.41 | F115: 0.008735110607 | G115: 0.005973770871 | H115: 0.06326700166 | I115: 0.07006369427
A116: Oct 29, 2010 | B116: 1778.4 | C116: 8706.2 | D116: 2124.45 | E116: 21.84 | F116: 0.0272717049 | G116: 0.0031356964 | H116: -0.003351455671 | I116: 0.6176739927
A117: Nov 30, 2010 | B117: 1826.9 | C117: 8733.5 | D117: 2117.33 | E117: 35.33 | F117: 0.005802178554 | G117: 0.00408770825 | H117: 0.04747960875 | I117: -0.2462496462
A118: Dec 31, 2010 | B118: 1837.5 | C118: 8769.2 | D118: 2217.86 | E118: 26.63 | F118: 0.0106122449 | G118: 0.00450440177 | H118: 0.02887918985 | I118: -0.09500563275
A119: Jan 31, 2011 | B119: 1857 | C119: 8808.7 | D119: 2281.91 | E119: 24.1 | F119: 0.009746903608 | G119: 0.005517272696 | H119: 0.03027288543 | I119: -0.008713692946
A120: Feb 28, 2011 | B120: 1875.1 | C120: 8857.3 | D120: 2350.99 | E120: 23.89 | F120: 0.009759479494 | G120: 0.005396678446 | H120: -0.005104232685 | I120: 0.1615738803
A121: Mar 31, 2011 | B121: 1893.4 | C121: 8905.1 | D121: 2338.99 | E121: 27.75 | F121: 0.004383648463 | G121: 0.007287958586 | H121: 0.02782825066 | I121: -0.005405405405
A122: Apr 29, 2011 | B122: 1901.7 | C122: 8970 | D122: 2404.08 | E122: 27.6 | F122: 0.01956144502 | G122: 0.005473801561 | H122: -0.01311936375 | I122: 0.09202898551
A123: May 31, 2011 | B123: 1938.9 | C123: 9019.1 | D123: 2372.54 | E123: 30.14 | F123: 0.007787920986 | G123: 0.008748101252 | H123: -0.02000809259 | I123: -0.03351028534
A124: Jun 30, 2011 | B124: 1954 | C124: 9098 | D124: 2325.07 | E124: 29.13 | F124: 0.0219037871 | G124: 0.01999340514 | H124: 0.01623176937 | I124: -0.03295571576
A125: Jul 29, 2011 | B125: 1996.8 | C125: 9279.9 | D125: 2362.81 | E125: 28.17 | F125: 0.05739182692 | G125: 0.02240325866 | H125: -0.05154879148 | I125: -0.1217607384
A126: Aug 31, 2011 | B126: 2111.4 | C126: 9487.8 | D126: 2241.01 | E126: 24.74 | F126: 0.006062328313 | G126: 0.001855013807 | H126: -0.04543933316 | I126: -0.01414713015
A127: Sep 30, 2011 | B127: 2124.2 | C127: 9505.4 | D127: 2139.18 | E127: 24.39 | F127: 0.00611995104 | G127: 0.003471710817 | H127: 0.1032638675 | I127: 0.2041820418
A128: Oct 31, 2011 | B128: 2137.2 | C128: 9538.4 | D128: 2360.08 | E128: 29.37 | F128: 0.01300767359 | G128: 0.005304872935 | H128: -0.02749059354 | I128: 0.114742935
A129: Nov 30, 2011 | B129: 2165 | C129: 9589 | D129: 2295.2 | E129: 32.74 | F129: -0.0001847575058 | G129: 0.004515590781 | H129: -0.007567967933 | I129: -0.1276725718
A130: Dec 30, 2011 | B130: 2164.6 | C130: 9632.3 | D130: 2277.83 | E130: 28.56 | F130: 0.01866395639 | G130: 0.008554550834 | H130: 0.08346540348 | I130: 0.01785714286
A131: Jan 31, 2012 | B131: 2205 | C131: 9714.7 | D131: 2467.95 | E131: 29.07 | F131: 0.003174603175 | G131: 0.00473509218 | H131: 0.06286594137 | I131: 0.1492948056
A132: Feb 29, 2012 | B132: 2212 | C132: 9760.7 | D132: 2623.1 | E132: 33.41 | F132: 0.008544303797 | G132: 0.004886944584 | H132: 0.05038694674 | I132: 0.1146363364
A133: Mar 30, 2012 | B133: 2230.9 | C133: 9808.4 | D133: 2755.27 | E133: 37.24 | F133: 0.008113317495 | G133: 0.005831736063 | H133: -0.01146530104 | I133: -0.1103651987
A134: Apr 30, 2012 | B134: 2249 | C134: 9865.6 | D134: 2723.68 | E134: 33.13 | F134: 0.003823921743 | G134: 0.002848280895 | H134: -0.07299315632 | I134: -0.109568367
A135: May 31, 2012 | B135: 2257.6 | C135: 9893.7 | D135: 2524.87 | E135: 29.5 | F135: 0.008105953225 | G135: 0.006478870392 | H135: 0.03598205056 | I135: 0.0606779661
A136: Jun 29, 2012 | B136: 2275.9 | C136: 9957.8 | D136: 2615.72 | E136: 31.29 | F136: 0.01726789402 | G136: 0.006728393822 | H136: 0.010249568 | I136: -0.1236816874
A137: Jul 31, 2012 | B137: 2315.2 | C137: 10024.8 | D137: 2642.53 | E137: 27.42 | F137: 0.01364892882 | G137: 0.00664352406 | H137: 0.04908553545 | I137: 0.04011670314
A138: Aug 31, 2012 | B138: 2346.8 | C138: 10091.4 | D138: 2772.24 | E138: 28.52 | F138: 0.01695926368 | G138: 0.007422161444 | H138: 0.009721380544 | I138: 0.02664796634
A139: Sep 28, 2012 | B139: 2386.6 | C139: 10166.3 | D139: 2799.19 | E139: 29.28 | F139: 0.01357579821 | G139: 0.005705123791 | H139: -0.05404063318 | I139: -0.03927595628
A140: Oct 31, 2012 | B140: 2419 | C140: 10224.3 | D140: 2647.92 | E140: 28.13 | F140: =(B141-B140)/B140 -> 0.001240181893 | G140: 0.007218098061 | H140: 0.01131454122 | I140: 0.2022751511
A141: Nov 30, 2012 | B141: 2422 | C141: 10298.1 | D141: 2677.88 | E141: 33.82 | F141: 0.01597853014 | G141: 0.01262368786 | H141: -0.006329633889 | I141: 0.001478415139
A142: Dec 31, 2012 | B142: 2460.7 | C142: 10428.1 | D142: 2660.93 | E142: 33.87 | F142: 0.005892632178 | G142: 0.002704231835 | H142: 0.02653207713 | I142: 0.1074697372
A143: Jan 31, 2013 | B143: 2475.2 | C143: 10456.3 | D143: 2731.53 | E143: 37.51 | F143: -0.0008888170653 | G143: -2.86908371e-05 | H143: 0.002580971104 | I143: -0.07144761397
A144: Feb 28, 2013 | B144: 2473 | C144: 10456 | D144: 2738.58 | E144: 34.83 | F144: 0.003477557622 | G144: 0.007048584545 | H144: 0.02925238627 | I144: 0.08785529716
A145: Mar 28, 2013 | B145: 2481.6 | C145: 10529.7 | D145: 2818.69 | E145: 37.89 | F145: 0.01378143133 | G145: 0.003523367237 | H145: 0.02439076308 | I145: 0.4249142254
A146: Apr 30, 2013 | B146: 2515.8 | C146: 10566.8 | D146: 2887.44 | E146: 53.99 | F146: 0.006081564512 | G146: 0.003189234205 | H146: 0.03266561383 | I146: 0.8107056862
A147: May 31, 2013 | B147: 2531.1 | C147: 10600.5 | D147: 2981.76 | E147: 97.76 | F147: -0.0002765595986 | G147: 0.004745059195 | H147: -0.0242004722 | I147: 0.09819967267
A148: Jun 28, 2013 | B148: 2530.4 | C148: 10650.8 | D148: 2909.6 | E148: 107.36 | F148: 0.004623774897 | G148: 0.004816539603 | H148: 0.06206695078 | I148: 0.2507451565
A149: Jul 31, 2013 | B149: 2542.1 | C149: 10702.1 | D149: 3090.19 | E149: 134.28 | F149: 0.003383029779 | G149: 0.005083114529 | H149: -0.005300644944 | I149: 0.2585641942
A150: Aug 30, 2013 | B150: 2550.7 | C150: 10756.5 | D150: 3073.81 | E150: 169 | F150: 0.01176147724 | G150: 0.004360154325 | H150: 0.04697427622 | I150: 0.1442011834
A151: Sep 30, 2013 | B151: 2580.7 | C151: 10803.4 | D151: 3218.2 | E151: 193.37 | F151: 0.01410470028 | G151: 0.009571060962 | H151: 0.04957118886 | I151: -0.1728810053
A152: Oct 31, 2013 | B152: 2617.1 | C152: 10906.8 | D152: 3377.73 | E152: 159.94 | F152: 0.00141377861 | G152: 0.002154619137 | H152: 0.03259289523 | I152: -0.2042015756
A153: Nov 29, 2013 | B153: 2620.8 | C153: 10930.3 | D153: 3487.82 | E153: 127.28 | F153: 0.01522435897 | G153: 0.005983367337 | H153: 0.0298696607 | I153: 0.1818824639
A154: Dec 31, 2013 | B154: 2660.7 | C154: 10995.7 | D154: 3592 | E154: 150.43 | F154: 0.01334235352 | G154: 0.004810971562 | H154: -0.01951002227 | I154: 0.2059429635
A155: Jan 31, 2014 | B155: 2696.2 | C155: 11048.6 | D155: 3521.92 | E155: 181.41 | F155: 0.009977004673 | G155: 0.007512263997 | H155: 0.04945597856 | I155: 0.3494845929
A156: Feb 28, 2014 | B156: 2723.1 | C156: 11131.6 | D156: 3696.1 | E156: 244.81 | F156: 0.01160442143 | G156: 0.003952711201 | H156: -0.027152945 | I156: -0.1485233446
A157: Mar 31, 2014 | B157: 2754.7 | C157: 11175.6 | D157: 3595.74 | E157: 208.45 | F157: 0.007841144226 | G157: 0.005064605032 | H157: -0.003815626269 | I157: -0.002686495562
A158: Apr 30, 2014 | B158: 2776.3 | C158: 11232.2 | D158: 3582.02 | E158: 207.89 | F158: 0.006879659979 | G158: 0.005991702427 | H158: 0.04321583911 | I158: -0.0005772283419
A159: May 30, 2014 | B159: 2795.4 | C159: 11299.5 | D159: 3736.82 | E159: 207.77 | F159: 0.01151892395 | G159: 0.004363024913 | H159: 0.03014862905 | I159: 0.1554122347
A160: Jun 30, 2014 | B160: 2827.6 | C160: 11348.8 | D160: 3849.48 | E160: 240.06 | F160: 0.002899985854 | G160: 0.00528690258 | H160: 0.0111755354 | I160: -0.06981587936
A161: Jul 31, 2014 | B161: 2835.8 | C161: 11408.8 | D161: 3892.5 | E161: 223.3 | F161: -0.01177798152 | G161: 0.002427950354 | H161: 0.04882723186 | I161: 0.2077922078
A162: Aug 29, 2014 | B162: 2802.4 | C162: 11436.5 | D162: 4082.56 | E162: 269.7 | F162: 0.01951898373 | G162: 0.002745595243 | H162: -0.008110107384 | I162: -0.1001853912
A163: Sep 30, 2014 | B163: 2857.1 | C163: 11467.9 | D163: 4049.45 | E163: 242.68 | F163: 0.001505022575 | G163: 0.003915276555 | H163: 0.02685796837 | I163: -0.004038239657
A164: Oct 31, 2014 | B164: 2861.4 | C164: 11512.8 | D164: 4158.21 | E164: 241.7 | F164: 0.006605158314 | G164: 0.004846779237 | H164: 0.04318685203 | I164: 0.01166735623
A165: Nov 28, 2014 | B165: 2880.3 | C165: 11568.6 | D165: 4337.79 | E165: 244.52 | F165: 0.0182619866 | G165: 0.006967135176 | H165: -0.02340131726 | I165: -0.09042205137
A166: Dec 31, 2014 | B166: 2932.9 | C166: 11649.2 | D166: 4236.28 | E166: 222.41 | F166: 0.003068635139 | G166: 0.005631287985 | H166: -0.02073753387 | I166: -0.08457353536
A167: Jan 30, 2015 | B167: 2941.9 | C167: 11714.8 | D167: 4148.43 | E167: 203.6 | F167: 0.01968115844 | G167: 0.01004711988 | H167: 0.07044592774 | I167: -0.001277013752
A168: Feb 27, 2015 | B168: 2999.8 | C168: 11832.5 | D168: 4440.67 | E168: 203.34 | F168: 0.0005333688913 | G168: 0.001850834566 | H168: -0.02409095925 | I168: -0.07165338841
A169: Mar 31, 2015 | B169: 3001.4 | C169: 11854.4 | D169: 4333.69 | E169: 188.77 | F169: -0.000999533551 | G169: 0.003804494534 | H169: 0.01858923919 | I169: 0.1974890078
A170: Apr 30, 2015 | B170: 2998.4 | C170: 11899.5 | D170: 4414.25 | E170: 226.05 | F170: -0.003468516542 | G170: 0.002907685197 | H170: 0.02129467067 | I170: 0.1094890511
A171: May 29, 2015 | B171: 2988 | C171: 11934.1 | D171: 4508.25 | E171: 250.8 | F171: 0.00983935743 | G171: 0.003737190069 | H171: -0.02473021682 | I171: 0.06961722488
A172: Jun 30, 2015 | B172: 3017.4 | C172: 11978.7 | D172: 4396.76 | E172: 268.26 | F172: 0.00497116723 | G172: 0.004474609098 | H172: 0.04370263558 | I172: -0.007865503616
A173: Jul 31, 2015 | B173: 3032.4 | C173: 12032.3 | D173: 4588.91 | E173: 266.15 | F173: -0.0006925207756 | G173: 0.004238591126 | H173: -0.06849774783 | I173: -0.06421191058
A174: Aug 31, 2015 | B174: 3030.3 | C174: 12083.3 | D174: 4274.58 | E174: 249.06 | F174: 0.002673002673 | G174: 0.004386218996 | H174: -0.02187817283 | I174: -0.002649963864
A175: Sep 30, 2015 | B175: 3038.4 | C175: 12136.3 | D175: 4181.06 | E175: 248.4 | F175: -0.008820431806 | G175: 0.001087646152 | H175: 0.1118783275 | I175: -0.1669484702
A176: Oct 30, 2015 | B176: 3011.6 | C176: 12149.5 | D176: 4648.83 | E176: 206.93 | F176: 0.0206202683 | G176: 0.008411868801 | H176: 0.003372891674 | I176: 0.1127434398
A177: Nov 30, 2015 | B177: 3073.7 | C177: 12251.7 | D177: 4664.51 | E177: 230.26 | F177: 0.00296060123 | G177: 0.004913603826 | H177: -0.01527277249 | I177: 0.04234343785
A178: Dec 31, 2015 | B178: 3082.8 | C178: 12311.9 | D178: 4593.27 | E178: 240.01 | F178: 0.006520046711 | G178: 0.0105670124 | H178: -0.06838265549 | I178: -0.2033665264
A179: Jan 29, 2016 | B179: 3102.9 | C179: 12442 | D179: 4279.17 | E179: 191.2 | F179: 0.005349834026 | G179: 0.005497508439 | H179: -0.01823951841 | I179: 0.003817991632
A180: Feb 29, 2016 | B180: 3119.5 | C180: 12510.4 | D180: 4201.12 | E180: 191.93 | F180: 0.01237377785 | G180: 0.005747218314 | H180: 0.06725349431 | I180: 0.1971552128
A181: Mar 31, 2016 | B181: 3158.1 | C181: 12582.3 | D181: 4483.66 | E181: 229.77 | F181: 0.01326747095 | G181: 0.006819103026 | H181: -0.03175084641 | I181: 0.04783043913
A182: Apr 29, 2016 | B182: 3200 | C182: 12668.1 | D182: 4341.3 | E182: 240.76 | F182: 0.01428125 | G182: 0.005833550414 | H182: 0.0420588303 | I182: -0.07281109819
A183: May 31, 2016 | B183: 3245.7 | C183: 12742 | D183: 4523.89 | E183: 223.23 | F183: 0.0002156699633 | G183: 0.005423010516 | H183: -0.02347316137 | I183: -0.0490525467
A184: Jun 30, 2016 | B184: 3246.4 | C184: 12811.1 | D184: 4417.7 | E184: 212.28 | F184: -0.001170527353 | G184: 0.004769301621 | H184: 0.07074495778 | I184: 0.1060391935
A185: Jul 29, 2016 | B185: 3242.6 | C185: 12872.2 | D185: 4730.23 | E185: 234.79 | F185: 0.02386973416 | G185: 0.006463541586 | H185: 0.00862960152 | I185: -0.0970228715
A186: Aug 31, 2016 | B186: 3320 | C186: 12955.4 | D186: 4771.05 | E186: 212.01 | F186: 0.000813253012 | G186: 0.004646711024 | H186: 0.02193437503 | I186: -0.03763973397
A187: Sep 30, 2016 | B187: 3322.7 | C187: 13015.6 | D187: 4875.7 | E187: 204.03 | F187: 0.003250368676 | G187: 0.004225698393 | H187: -0.01526550034 | I187: -0.03087781209
A188: Oct 31, 2016 | B188: 3333.5 | C188: 13070.6 | D188: 4801.27 | E188: 197.73 | F188: 0.002879856007 | G188: 0.005914036081 | H188: 0.00198697428 | I188: -0.04212815455
A189: Nov 30, 2016 | B189: 3343.1 | C189: 13147.9 | D189: 4810.81 | E189: 189.4 | F189: -0.004277467022 | G189: 0.002829349174 | H189: 0.0109773614 | I189: 0.1282470961
A190: Dec 30, 2016 | B190: 3328.8 | C190: 13185.1 | D190: 4863.62 | E190: 213.69 | F190: 0.01970680125 | G190: 0.006302568809 | H190: 0.05204970783 | I190: 0.1728672376
A191: Jan 30, 2017 | B191: 3394.4 | C191: 13268.2 | D191: 5116.77 | E191: 250.63 | F191: -0.00656964412 | G191: 0.003240831462 | H191: 0.04173335913 | I191: -0.002553565016
A192: Feb 28, 2017 | B192: 3372.1 | C192: 13311.2 | D192: 5330.31 | E192: 249.99 | H192: 0.0004164860956 | I192: 0.002760110404
A193: Mar 21,2017 | D193: 5332.53 | E193: 250.68

Sheet GDP
B2: 2010-2017 | H2: 2000-2017
B3: CORREL | C3: GDP | D3: GDP+3M | E3: GDP+6M | F3: GDP+9M | H3: CORREL | I3: GDP | J3: GDP+3M | K3: GDP+6M | L3: GDP+9M
B4: TSLA | C4: =CORREL($I$51:$I$76,K51:K76) -> -0.1300681637 | D4: =CORREL($I$51:$I$76,L51:L76) -> -0.08865941986 | E4: -0.06442460083 | F4: -0.176549002 | H4: TSLA | I4: =CORREL($I$51:$I$76,K51:K76) -> -0.1300681637 | J4: =CORREL($I$51:$I$76,L51:L76) -> -0.08865941986 | K4: -0.06442460083 | L4: -0.176549002
B5: NASDAQ100 | C5: =CORREL($J$50:$J$76,K50:K76) -> 0.2335872273 | D5: =CORREL($J$50:$J$76,L50:L76) -> 0.119114901 | E5: 0.05558813468 | F5: 0.1388491378 | H5: NASDAQ100 | I5: =CORREL($J$17:$J$76,K17:K76) -> 0.2566134066 | J5: =CORREL($J$17:$J$76,L17:L76) -> -0.06208432671 | K5: =CORREL($J$17:$J$76,M17:M76) -> -0.1342690959 | L5: =CORREL($J$17:$J$76,N17:N76) -> -0.006421556125
C8: TSLA | D8: NASDAQ-100 | E8: HDP čtvrtletí | F8: 3 měsíce | G8: 6 měsíců | H8: 9 měsíců | I8: TSLA | J8: NASDAQ-100 | K8: HDP čtvrtletí | L8: 3 měsíce | M8: 6 měsíců | N8: 9 měsíců
B9: 2000q1 | D9: 4397.84 | E9: 10031 | F9: 9926.1 | G9: 9712.3 | H9: 9557
B10: 2000q2 | D10: 3763.79 | E10: 10278.3 | F10: 10031 | G10: 9926.1 | H10: 9712.3 | J10: =(D10-D9)/D9 -> -0.1441730486 | K10: =(E10-E9)/E9 -> 0.02465357392 | L10: 0.01056809825 | M10: 0.02201332331 | N10: =(H10-H9)/H9 -> 0.01624986921
B11: 2000q3 | D11: 3570.61 | E11: 10357.4 | F11: 10278.3 | G11: 10031 | H11: 9926.1 | J11: =(D11-D10)/D10 -> -0.05132592413 | K11: 0.007695825185 | L11: 0.02465357392 | M11: 0.01056809825 | N11: 0.02201332331
B12: 2000q4 | D12: 2341.7 | E12: 10472.3 | F12: 10357.4 | G12: 10278.3 | H12: 10031 | J12: -0.3441736846 | K12: 0.01109351768 | L12: 0.007695825185 | M12: 0.02465357392 | N12: 0.01056809825
B13: 2001q1 | D13: 1573.25 | E13: 10508.1 | F13: 10472.3 | G13: 10357.4 | H13: 10278.3 | J13: -0.3281590298 | K13: 0.00341854225 | L13: 0.01109351768 | M13: 0.007695825185 | N13: 0.02465357392
B14: 2001q2 | D14: 1830.19 | E14: 10638.4 | F14: 10508.1 | G14: 10472.3 | H14: 10357.4 | J14: 0.1633179724 | K14: 0.01239995813 | L14: 0.00341854225 | M14: 0.01109351768 | N14: 0.007695825185
B15: 2001q3 | D15: 1168.37 | E15: 10639.5 | F15: 10638.4 | G15: 10508.1 | H15: 10472.3 | J15: -0.3616127287 | K15: 0.0001033990074 | L15: 0.01239995813 | M15: 0.00341854225 | N15: 0.01109351768
B16: 2001q4 | D16: 1577.05 | E16: 10701.3 | F16: 10639.5 | G16: 10638.4 | H16: 10508.1 | J16: 0.3497864546 | K16: 0.005808543635 | L16: 0.0001033990074 | M16: 0.01239995813 | N16: 0.00341854225
B17: 2002q1 | D17: 1452.81 | E17: 10834.4 | F17: 10701.3 | G17: 10639.5 | H17: 10638.4 | J17: -0.07878000063 | K17: 0.01243774121 | L17: 0.005808543635 | M17: 0.0001033990074 | N17: 0.01239995813
B18: 2002q2 | D18: 1051.41 | E18: 10934.8 | F18: 10834.4 | G18: 10701.3 | H18: 10639.5 | J18: -0.2762921511 | K18: 0.009266779886 | L18: 0.01243774121 | M18: 0.005808543635 | N18: 0.0001033990074
B19: 2002q3 | D19: 832.52 | E19: 11037.1 | F19: 10934.8 | G19: 10834.4 | H19: 10701.3 | J19: -0.2081871011 | K19: 0.009355452317 | L19: 0.009266779886 | M19: 0.01243774121 | N19: 0.005808543635
B20: 2002q4 | D20: 984.37 | E20: 11103.8 | F20: 11037.1 | G20: 10934.8 | H20: 10834.4 | J20: 0.1823980205 | K20: 0.006043254116 | L20: 0.009355452317 | M20: 0.009266779886 | N20: 0.01243774121
B21: 2003q1 | D21: 1018.66 | E21: 11230.1 | F21: 11103.8 | G21: 11037.1 | H21: 10934.8 | J21: 0.03483446265 | K21: 0.01137448441 | L21: 0.006043254116 | M21: 0.009355452317 | N21: 0.009266779886
B22: 2003q2 | D22: 1201.69 | E22: 11370.7 | F22: 11230.1 | G22: 11103.8 | H22: 11037.1 | J22: 0.179677223 | K22: 0.01251992413 | L22: 0.01137448441 | M22: 0.006043254116 | N22: 0.009355452317
B23: 2003q3 | D23: 1303.7 | E23: 11625.1 | F23: 11370.7 | G23: 11230.1 | H23: 11103.8 | J23: 0.08488878163 | K23: 0.02237329276 | L23: 0.01251992413 | M23: 0.01137448441 | N23: 0.006043254116
B24: 2003q4 | D24: 1467.92 | E24: 11816.8 | F24: 11625.1 | G24: 11370.7 | H24: 11230.1 | J24: 0.1259645624 | K24: 0.01649018073 | L24: 0.02237329276 | M24: 0.01251992413 | N24: 0.01137448441
B25: 2004q1 | D25: 1438.41 | E25: 11988.4 | F25: 11816.8 | G25: 11625.1 | H25: 11370.7 | J25: -0.02010327538 | K25: 0.01452169792 | L25: 0.01649018073 | M25: 0.02237329276 | N25: 0.01251992413
B26: 2004q2 | D26: 1516.64 | E26: 12181.4 | F26: 11988.4 | G26: 11816.8 | H26: 11625.1 | J26: 0.05438644058 | K26: 0.0160988956 | L26: 0.01452169792 | M26: 0.01649018073 | N26: 0.02237329276
B27: 2004q3 | D27: 1412.74 | E27: 12367.7 | F27: 12181.4 | G27: 11988.4 | H27: 11816.8 | J27: -0.06850669902 | K27: 0.01529380859 | L27: 0.0160988956 | M27: 0.01452169792 | N27: 0.01649018073
B28: 2004q4 | D28: 1621.12 | E28: 12562.2 | F28: 12367.7 | G28: 12181.4 | H28: 11988.4 | J28: 0.1475006017 | K28: 0.01572644873 | L28: 0.01529380859 | M28: 0.0160988956 | N28: 0.01452169792
B29: 2005q1 | D29: 1482.53 | E29: 12813.7 | F29: 12562.2 | G29: 12367.7 | H29: 12181.4 | J29: -0.08549027833 | K29: 0.0200203786 | L29: 0.01572644873 | M29: 0.01529380859 | N29: 0.0160988956
B30: 2005q2 | D30: 1493.52 | E30: 12974.1 | F30: 12813.7 | G30: 12562.2 | H30: 12367.7 | J30: 0.007413003447 | K30: 0.01251785199 | L30: 0.0200203786 | M30: 0.01572644873 | N30: 0.01529380859
B31: 2005q3 | D31: 1601.66 | E31: 13205.4 | F31: 12974.1 | G31: 12813.7 | H31: 12562.2 | J31: 0.07240612781 | K31: 0.01782782621 | L31: 0.01251785199 | M31: 0.0200203786 | N31: 0.01572644873
B32: 2005q4 | D32: 1645.2 | E32: 13381.6 | F32: 13205.4 | G32: 12974.1 | H32: 12813.7 | J32: 0.02718429629 | K32: 0.01334302634 | L32: 0.01782782621 | M32: 0.01251785199 | N32: 0.0200203786
B33: 2006q1 | D33: 1703.66 | E33: 13648.9 | F33: 13381.6 | G33: 13205.4 | H33: 12974.1 | J33: 0.03553367372 | K33: 0.01997518981 | L33: 0.01334302634 | M33: 0.01782782621 | N33: 0.01251785199
B34: 2006q2 | D34: 1575.23 | E34: 13799.8 | F34: 13648.9 | G34: 13381.6 | H34: 13205.4 | J34: -0.07538475987 | K34: 0.011055836 | L34: 0.01997518981 | M34: 0.01334302634 | N34: 0.01782782621
B35: 2006q3 | D35: 1654.13 | E35: 13908.5 | F35: 13799.8 | G35: 13648.9 | H35: 13381.6 | J35: 0.05008792367 | K35: 0.007876925753 | L35: 0.011055836 | M35: 0.01997518981 | N35: 0.01334302634
B36: 2006q4 | D36: 1756.9 | E36: 14066.4 | F36: 13908.5 | G36: 13799.8 | H36: 13648.9 | J36: 0.06212933687 | K36: 0.01135276989 | L36: 0.007876925753 | M36: 0.011055836 | N36: 0.01997518981
B37: 2007q1 | D37: 1772.36 | E37: 14233.2 | F37: 14066.4 | G37: 13908.5 | H37: 13799.8 | J37: 0.008799590187 | K37: 0.0118580447 | L37: 0.01135276989 | M37: 0.007876925753 | N37: 0.011055836
B38: 2007q2 | D38: 1934.1 | E38: 14422.3 | F38: 14233.2 | G38: 14066.4 | H38: 13908.5 | J38: 0.09125685527 | K38: 0.01328583874 | L38: 0.0118580447 | M38: 0.01135276989 | N38: 0.007876925753
B39: 2007q3 | D39: 2091.11 | E39: 14569.7 | F39: 14422.3 | G39: 14233.2 | H39: 14066.4 | J39: 0.08117987695 | K39: 0.01022028387 | L39: 0.01328583874 | M39: 0.0118580447 | N39: 0.01135276989
B40: 2007q4 | D40: 2084.93 | E40: 14685.3 | F40: 14569.7 | G40: 14422.3 | H40: 14233.2 | J40: -0.002955368202 | K40: 0.007934274556 | L40: 0.01022028387 | M40: 0.01328583874 | N40: 0.0118580447
B41: 2008q1 | D41: 1781.93 | E41: 14668.4 | F41: 14685.3 | G41: 14569.7 | H41: 14422.3 | J41: -0.1453286201 | K41: -0.001150810675 | L41: 0.007934274556 | M41: 0.01022028387 | N41: 0.01328583874
B42: 2008q2 | D42: 1837.09 | E42: 14813 | F42: 14668.4 | G42: 14685.3 | H42: 14569.7 | J42: 0.03095520026 | K42: 0.009857925881 | L42: -0.001150810675 | M42: 0.007934274556 | N42: 0.01022028387
B43: 2008q3 | D43: 1594.63 | E43: 14843 | F43: 14813 | G43: 14668.4 | H43: 14685.3 | J43: -0.1319804691 | K43: 0.002025248093 | L43: 0.009857925881 | M43: -0.001150810675 | N43: 0.007934274556
B44: 2008q4 | D44: 1211.65 | E44: 14549.9 | F44: 14843 | G44: 14813 | H44: 14668.4 | J44: -0.2401685657 | K44: -0.01974668194 | L44: 0.002025248093 | M44: 0.009857925881 | N44: -0.001150810675
B45: 2009q1 | D45: 1237.01 | E45: 14383.9 | F45: 14549.9 | G45: 14843 | H45: 14813 | J45: 0.02093013659 | K45: -0.01140901312 | L45: -0.01974668194 | M45: 0.002025248093 | N45: 0.009857925881
B46: 2009q2 | D46: 1477.25 | E46: 14340.4 | F46: 14383.9 | G46: 14549.9 | H46: 14843 | J46: 0.1942102327 | K46: -0.003024214573 | L46: -0.01140901312 | M46: -0.01974668194 | N46: 0.002025248093
B47: 2009q3 | D47: 1718.99 | E47: 14384.1 | F47: 14340.4 | G47: 14383.9 | H47: 14549.9 | J47: 0.1636419022 | K47: 0.003047334802 | L47: -0.003024214573 | M47: -0.01140901312 | N47: -0.01974668194
B48: 2009q4 | D48: 1860.31 | E48: 14566.5 | F48: 14384.1 | G48: 14340.4 | H48: 14383.9 | J48: 0.0822110658 | K48: 0.01268066824 | L48: 0.003047334802 | M48: -0.003024214573 | N48: -0.01140901312
B49: 2010q1 | D49: 1958.34 | E49: 14681.1 | F49: 14566.5 | G49: 14384.1 | H49: 14340.4 | J49: 0.05269551849 | K49: 0.007867366904 | L49: 0.01268066824 | M49: 0.003047334802 | N49: -0.003024214573
B50: 2010q2 | C50: 23.83 | D50: 1739.14 | E50: 14888.6 | F50: 14681.1 | G50: 14566.5 | H50: 14384.1 | J50: -0.1119315339 | K50: 0.01413381831 | L50: 0.007867366904 | M50: 0.01268066824 | N50: 0.003047334802
B51: 2010q3 | C51: 20.41 | D51: 1998.04 | E51: 15057.7 | F51: 14888.6 | G51: 14681.1 | H51: 14566.5 | I51: =(C51-C50)/C50 -> -0.1435165757 | J51: 0.1488666812 | K51: 0.01135768306 | L51: 0.01413381831 | M51: 0.007867366904 | N51: 0.01268066824
B52: 2010q4 | C52: 26.63 | D52: 2217.86 | E52: 15230.2 | F52: 15057.7 | G52: 14888.6 | H52: 14681.1 | I52: =(C52-C51)/C51 -> 0.3047525723 | J52: 0.1100178175 | K52: 0.01145593284 | L52: 0.01135768306 | M52: 0.01413381831 | N52: 0.007867366904
B53: 2011q1 | C53: 27.75 | D53: 2338.99 | E53: 15238.4 | F53: 15230.2 | G53: 15057.7 | H53: 14888.6 | I53: 0.04205782952 | J53: 0.05461571064 | K53: 0.0005384039606 | L53: 0.01145593284 | M53: 0.01135768306 | N53: 0.01413381831
B54: 2011q2 | C54: 29.13 | D54: 2325.07 | E54: 15460.9 | F54: 15238.4 | G54: 15230.2 | H54: 15057.7 | I54: 0.04972972973 | J54: -0.005951286666 | K54: 0.01460127047 | L54: 0.0005384039606 | M54: 0.01145593284 | N54: 0.01135768306
B55: 2011q3 | C55: 24.39 | D55: 2139.18 | E55: 15587.1 | F55: 15460.9 | G55: 15238.4 | H55: 15230.2 | I55: -0.1627188465 | J55: -0.07995028107 | K55: 0.008162526114 | L55: 0.01460127047 | M55: 0.0005384039606 | N55: 0.01145593284
B56: 2011q4 | C56: 28.56 | D56: 2277.83 | E56: 15785.3 | F56: 15587.1 | G56: 15460.9 | H56: 15238.4 | I56: 0.1709717097 | J56: 0.06481455511 | K56: 0.01271564306 | L56: 0.008162526114 | M56: 0.01460127047 | N56: 0.0005384039606
B57: 2012q1 | C57: 37.24 | D57: 2755.27 | E57: 15973.9 | F57: 15785.3 | G57: 15587.1 | H57: 15460.9 | I57: 0.3039215686 | J57: 0.2096029993 | K57: 0.01194782488 | L57: 0.01271564306 | M57: 0.008162526114 | N57: 0.01460127047
B58: 2012q2 | C58: 31.29 | D58: 2615.72 | E58: 16121.9 | F58: 15973.9 | G58: 15785.3 | H58: 15587.1 | I58: -0.1597744361 | J58: -0.05064839381 | K58: 0.009265113717 | L58: 0.01194782488 | M58: 0.01271564306 | N58: 0.008162526114
B59: 2012q3 | C59: 29.28 | D59: 2799.19 | E59: 16227.9 | F59: 16121.9 | G59: 15973.9 | H59: 15785.3 | I59: -0.06423777565 | J59: 0.07014129953 | K59: 0.006574907424 | L59: 0.009265113717 | M59: 0.01194782488 | N59: 0.01271564306
B60: 2012q4 | C60: 33.87 | D60: 2660.93 | E60: 16297.3 | F60: 16227.9 | G60: 16121.9 | H60: 15973.9 | I60: 0.1567622951 | J60: -0.04939286008 | K60: 0.004276585387 | L60: 0.006574907424 | M60: 0.009265113717 | N60: 0.01194782488
B61: 2013q1 | C61: 37.89 | D61: 2818.69 | E61: 16475.4 | F61: 16297.3 | G61: 16227.9 | H61: 16121.9 | I61: 0.1186891054 | J61: 0.05928754233 | K61: 0.01092819056 | L61: 0.004276585387 | M61: 0.006574907424 | N61: 0.009265113717
B62: 2013q2 | C62: 107.36 | D62: 2909.6 | E62: 16541.4 | F62: 16475.4 | G62: 16297.3 | H62: 16227.9 | I62: 1.833465294 | J62: 0.03225257123 | K62: 0.004005972541 | L62: 0.01092819056 | M62: 0.004276585387 | N62: 0.006574907424
B63: 2013q3 | C63: 193.37 | D63: 3218.2 | E63: 16749.3 | F63: 16541.4 | G63: 16475.4 | H63: 16297.3 | I63: 0.8011363636 | J63: 0.106062689 | K63: 0.01256846458 | L63: 0.004005972541 | M63: 0.01092819056 | N63: 0.004276585387
B64: 2013q4 | C64: 150.43 | D64: 3592 | E64: 16999.9 | F64: 16749.3 | G64: 16541.4 | H64: 16475.4 | I64: -0.2220613332 | J64: 0.1161518861 | K64: 0.0149618193 | L64: 0.01256846458 | M64: 0.004005972541 | N64: 0.01092819056
B65: 2014q1 | C65: 208.45 | D65: 3595.74 | E65: 17025.2 | F65: 16999.9 | G65: 16749.3 | H65: 16541.4 | I65: 0.3856943429 | J65: 0.001041202673 | K65: 0.001488244048 | L65: 0.0149618193 | M65: 0.01256846458 | N65: 0.004005972541
B66: 2014q2 | C66: 240.06 | D66: 3849.48 | E66: 17285.6 | F66: 17025.2 | G66: 16999.9 | H66: 16749.3 | I66: 0.1516430799 | J66: 0.07056683742 | K66: 0.01529497451 | L66: 0.001488244048 | M66: 0.0149618193 | N66: 0.01256846458
B67: 2014q3 | C67: 242.68 | D67: 4049.45 | E67: 17569.4 | F67: 17285.6 | G67: 17025.2 | H67: 16999.9 | I67: 0.01091393818 | J67: 0.051947276 | K67: 0.01641829037 | L67: 0.01529497451 | M67: 0.001488244048 | N67: 0.0149618193
B68: 2014q4 | C68: 222.41 | D68: 4236.28 | E68: 17692.2 | F68: 17569.4 | G68: 17285.6 | H68: 17025.2 | I68: -0.08352563046 | J68: 0.04613712973 | K68: 0.006989424795 | L68: 0.01641829037 | M68: 0.01529497451 | N68: 0.001488244048
B69: 2015q1 | C69: 188.77 | D69: 4333.69 | E69: 17783.6 | F69: 17692.2 | G69: 17569.4 | H69: 17285.6 | I69: -0.1512521919 | J69: 0.02299423079 | K69: 0.005166118402 | L69: 0.006989424795 | M69: 0.01641829037 | N69: 0.01529497451
B70: 2015q2 | C70: 268.26 | D70: 4396.76 | E70: 17998.3 | F70: 17783.6 | G70: 17692.2 | H70: 17569.4 | I70: 0.4210944536 | J70: 0.01455341753 | K70: 0.01207292112 | L70: 0.005166118402 | M70: 0.006989424795 | N70: 0.01641829037
B71: 2015q3 | C71: 248.4 | D71: 4181.06 | E71: 18141.9 | F71: 17998.3 | G71: 17783.6 | H71: 17692.2 | I71: -0.07403265489 | J71: -0.04905885243 | K71: 0.007978531306 | L71: 0.01207292112 | M71: 0.005166118402 | N71: 0.006989424795
B72: 2015q4 | C72: 240.01 | D72: 4593.27 | E72: 18222.8 | F72: 18141.9 | G72: 17998.3 | H72: 17783.6 | I72: -0.03377616747 | J72: 0.09858983129 | K72: 0.004459290372 | L72: 0.007978531306 | M72: 0.01207292112 | N72: 0.005166118402
B73: 2016q1 | C73: 229.77 | D73: 4483.66 | E73: 18281.6 | F73: 18222.8 | G73: 18141.9 | H73: 17998.3 | I73: -0.04266488896 | J73: -0.02386317373 | K73: 0.003226726957 | L73: 0.004459290372 | M73: 0.007978531306 | N73: 0.01207292112
B74: 2016q2 | C74: 212.28 | D74: 4417.7 | E74: 18450.1 | F74: 18281.6 | G74: 18222.8 | H74: 18141.9 | I74: -0.07611959786 | J74: -0.01471119576 | K74: 0.009216917556 | L74: 0.003226726957 | M74: 0.004459290372 | N74: 0.007978531306
B75: 2016q3 | C75: 204.03 | D75: 4875.7 | E75: 18675.3 | F75: 18450.1 | G75: 18281.6 | H75: 18222.8 | I75: -0.03886376484 | J75: 0.1036738574 | K75: 0.0122058959 | L75: 0.009216917556 | M75: 0.003226726957 | N75: 0.004459290372
B76: 2016q4 | C76: 213.69 | D76: 4863.62 | E76: 18855.5 | F76: 18675.3 | G76: 18450.1 | H76: 18281.6 | I76: =(C76-C75)/C75 -> 0.04734597853 | J76: =(D76-D75)/D75 -> -0.002477592961 | K76: 0.009649108716 | L76: 0.0122058959 | M76: 0.009216917556 | N76: 0.003226726957
B77: 2017q1 | F77: 18855.5 | G77: 18675.3 | H77: 18450.1
G78: 18855.5 | H78: 18675.3
H79: 18855.5

Sheet EV cars
B1: 2011 | C1: 2012 | D1: 2013 | E1: 2014 | F1: 2015 | G1: Share | H1: BEV+PVEH 2015
A2: Čína | B2: 5.84 | C2: 15.48 | D2: 30.09 | E2: 79 | F2: 225.72 | G2: =F2/$F$12 -> 0.3050971169 | H2: 312.29
A3: USA | B3: 13.52 | C3: 28.17 | D3: 75.86 | E3: 139.28 | F3: 210.33 | G3: 0.2842950408 | H3: 404.09
A4: Japonsko | B4: 16.13 | C4: 29.6 | D4: 44.35 | E4: 60.46 | F4: 70.93 | G4: 0.09587337632 | H4: 126.4
A5: Norsko | B5: 2.8 | C5: 6.87 | D5: 14.75 | E5: 32.86 | F5: 60.65 | G5: 0.08197829231 | H5: 70.82
A6: Ostaní | B6: 5.34 | C6: 10.37 | D6: 17.02 | E6: 28.95 | F6: 55.65 | G6: 0.07521998297 | H6: 84.14
A7: Francie | B7: 2.93 | C7: 8.58 | D7: 17.34 | E7: 27.9 | F7: 45.17 | G7: 0.06105456659 | H7: 54.29
A8: Německo | B8: 2.07 | C8: 4.63 | D8: 10.09 | E8: 18.47 | F8: 30.56 | G8: 0.04130678669 | H8: 49.22
A9: Velká Británie | B9: 1.36 | C9: 2.78 | D9: 5.33 | E9: 12.01 | F9: 21.42 | G9: 0.02895259722 | H9: 49.67
A10: Kanada | B10: 0.22 | C10: 0.88 | D10: 2.52 | E10: 5.34 | F10: 10.03 | G10: 0.01355716854 | H10: 18.45
A11: Nizozemsko | B11: 1.08 | C11: 1.91 | D11: 4.16 | E11: 6.83 | F11: 9.37 | G11: 0.01266507171 | H11: 87.53
A12: BEV | B12: =SUM(B2:B11) -> 51.29 | C12: =SUM(C2:C11) -> 109.27 | D12: =SUM(D2:D11) -> 221.51 | E12: =SUM(E2:E11) -> 411.1 | F12: =SUM(F2:F11) -> 739.83 | G12: 1 | H12: =1256.9 -> 1256.9
B14: Slow | C14: Fast | D14: Slow+Fast | E14: EV/slow | F14: EV/fast | G14: EV/slow | H14: EV/fast (v desitkách)
A15: Čína | B15: 46657 | C15: 12101 | D15: =B15+C15 -> 58758 | E15: =$F2*1000/B15 -> 4.837859271 | F15: =$F2*1000/C15/10 -> 1.865300388 | G15: =$H2*1000/B15 -> 6.693315044 | H15: =$H2*1000/C15/10 -> 2.58069581
A16: USA | B16: 28150 | C16: 3524 | D16: =B16+C16 -> 31674 | E16: =$F3*1000/B16 -> 7.471758437 | F16: 5.968501703 | G16: =$H3*1000/B16 -> 14.35488455 | H16: 11.46679909
A17: Japonsko | B17: 16120 | C17: 5990 | D17: 22110 | E17: 4.400124069 | F17: 1.184140234 | G17: 7.841191067 | H17: 2.110183639
A18: Norsko | B18: 6357 | C18: 698 | D18: 7055 | E18: 9.540663835 | F18: 8.689111748 | G18: 11.14047507 | H18: 10.14613181
A19: Ostatní | B19: =161802-SUM(B15:B18)-SUM(B20:B24) -> 19747 | C19: =27707-SUM(C15:C18)-SUM(C20:C24) -> 2291 | D19: 22038 | E19: 2.818149592 | F19: 2.429070275 | G19: 4.26090039 | H19: 3.672632038
A20: Francie | B20: 10122 | C20: 543 | D20: 10665 | E20: 4.462556807 | F20: 8.318600368 | G20: 5.363564513 | H20: 9.998158379
A21: Německo | B21: 4787 | C21: 784 | D21: 5571 | E21: 6.383956549 | F21: 3.897959184 | G21: 10.28201379 | H21: 6.278061224
A22: Velká Británie | B22: 8716 | C22: 1158 | D22: 9874 | E22: 2.457549335 | F22: 1.849740933 | G22: 5.698715007 | H22: 4.289291883
A23: Kanada | B23: 3360 | C23: 153 | D23: 3513 | E23: 2.985119048 | F23: 6.555555556 | G23: 5.491071429 | H23: 12.05882353
A24: Nizozemsko | B24: 17786 | C24: 465 | D24: 18251 | E24: 0.5268188463 | F24: 2.015053763 | G24: 4.921286405 | H24: 18.82365591
A25: Svět | B25: =SUM(B15:B24) -> 161802 | C25: =SUM(C15:C24) -> 27707 | D25: =B25+C25 -> 189509 | E25: 4.57244039 | F25: 2.670191648 | G25: 7.768136364 | H25: 4.536398744

Sheet Regulation
C2: Pobídky při nákupu | G2: Pobídky a stimuly při používání | K2: Zvýhodnění v silničním provozu | N2: Emisní normy | P2: Podíl elektromobilů na domácím trhu (2015)
C4: Sleva při prodeji registraci | D4: Osvobození od prodejní daně | E4: Osvobození od DPH | F4: Daňový odpočet | G4: Osvobození od silniční daně | H4: Prominutí poplatků (např. parkování) | I4: Vyjímky pro dodávky elektřiny | J4: Daňový odpočet (firmy) | K4: Povolení použití autobusového jízdního pruhu | L4: Povolení pro použítí speciálních jízdních pruhů | M4: Povolení vjezdu do vyhrazných zón | N4: Normy pro spotřebu paliva | O4: Emisní norma
B7: Čína | O7: China 5 | P7: 0.01
B8: Francie | O8: Euro 6 | P8: 0.012
B9: Japonsko | O9: JPN 2009 | P9: 0.006
B10: Kanada | O10: Tier 2 | P10: 0.004
B11: Němcko | O11: Euro 6 | P11: 0.007
B12: Nizozemsko | O12: Euro 6 | P12: 0.097
B13: Norsko | O13: Euro 6 | P13: 0.233
B14: USA | O14: Tier 2 | P14: 0.007
B15: Velká Británie | O15: Euro 6 | P15: 0.01

Sheet Altmanovo Z+Kralicek Q test
B2: Altmanovo Z-score
C3: Váha | D3: 2016 | E3: 2015 | F3: 2014 | G3: 2013
B4: PK/A | C4: 6.56 | D4: ='12M'!K23/'12M'!K24 -> 0.01909590314 | E4: ='12M'!L23/'12M'!L24 -> -0.00359806885 | F4: ='12M'!M23/'12M'!M24 -> 0.1840110231 | G4: ='12M'!N23/'12M'!N24 -> 0.2428949903
B5: Zdr.dluhy/A | C5: 3.26 | D5: ='BS 2015-2016'!C72/'BS 2015-2016'!C36 -> -0.1322461591 | E5: ='BS 2015-2016'!D72/'BS 2015-2016'!D36 -> -0.2878458798 | F5: ='BS 2013-2014'!C63/'BS 2013-2014'!C34 -> -0.245105228 | G5: ='BS 2013-2014'!D63/'BS 2013-2014'!D34 -> -0.4715155176
B6: ZUD/A | C6: 6.72 | D6: ='IS 2014-2016'!C51/'BS 2015-2016'!C36 -> -0.02977902121 | E6: ='IS 2014-2016'!D51/'BS 2015-2016'!D36 -> -0.1101474615 | F6: ='IS 2014-2016'!E51/'BS 2013-2014'!C34 -> -0.0502696841 | G6: ='IS 2011-2013'!C45/'BS 2013-2014'!D34 -> -0.03062314589
B7: VK/Dluhy | C7: 1.05 | D7: ='BS 2015-2016'!C73/'BS 2015-2016'!C57 -> 0.2837530515 | E7: ='BS 2015-2016'!D73/'BS 2015-2016'!D57 -> 0.1562219708 | F7: ='BS 2013-2014'!C64/'BS 2013-2014'!C49 -> 0.186850899 | G7: ='BS 2013-2014'!D64/'BS 2013-2014'!D49 -> 0.3812528217
C8: Celkem | D8: =C4*D4+C5*D5+C6*D6+C7*D7 -> -0.2080276724 | E8: =C4*E4+C5*E5+C6*E6+C7*E7 -> -1.538138772 | F8: =C4*F4+C5*F5+C6*F6+C7*F7 -> 0.2664504351 | G8: =C4*G4+C5*G5+C6*G6+C7*G7 -> 0.2507784711
C9: Hodnocení | D9: =IF(D8<1.1,"bankrotujici",IF(D8>2.6,"prosperující","šedá zona")) -> bankrotujici | E9: =IF(E8<1.1,"bankrotujici",IF(E8>2.6,"prosperující","šedá zona")) -> bankrotujici | F9: =IF(F8<1.1,"bankrotujici",IF(F8>2.6,"prosperující","šedá zona")) -> bankrotujici | G9: bankrotujici
B11: Kralicekuv Quicktest
C12: 2016 | D12: Body | E12: 2015 | F12: Body | G12: 2014 | H12: Body | I12: 2013 | J12: Body
B13: VK/A | C13: ='BS 2015-2016'!C73/'BS 2015-2016'!C36 -> 0.2097112188 | D13: =IF(C13<0,0,IF(C13<0.1,1,IF(C13<0.2,2,IF(C13<0.3,3,4)))) -> 3 | E13: ='BS 2015-2016'!D73/'BS 2015-2016'!D36 -> 0.1343222848 | F13: =IF(E13<0,0,IF(E13<0.1,1,IF(E13<0.2,2,IF(E13<0.3,3,4)))) -> 2 | G13: ='BS 2013-2014'!C64/'BS 2013-2014'!C34 -> 0.1558678197 | H13: =IF(G13<0,0,IF(G13<0.1,1,IF(G13<0.2,2,IF(G13<0.3,3,4)))) -> 2 | I13: ='BS 2013-2014'!D64/'BS 2013-2014'!D34 -> 0.2760195786 | J13: =IF(I13<0,0,IF(I13<0.1,1,IF(I13<0.2,2,IF(I13<0.3,3,4)))) -> 3
B14: (Dluhy-KFM)/nezd. CF | C14: =('BS 2015-2016'!C57-'BS 2015-2016'!C22-'BS 2015-2016'!C23)/('IS 2014-2016'!C51+'12M'!K25) -> 48.68538678 | D14: =IF(C14<3,4,IF(C14<5,3,IF(C14<12,2,IF(C14<30,1,0)))) -> 0 | E14: =('BS 2015-2016'!D57-'BS 2015-2016'!D22-'BS 2015-2016'!D23)/('IS 2014-2016'!D51+'12M'!L25) -> -12.26720707 | F14: =IF(E14<3,4,IF(E14<5,3,IF(E14<12,2,IF(E14<30,1,0)))) -> 4 | G14: =('BS 2013-2014'!C49-'BS 2013-2014'!C24-'BS 2013-2014'!C25)/('IS 2014-2016'!C51+'12M'!M25) -> -6.672231214 | H14: =IF(G14<3,4,IF(G14<5,3,IF(G14<12,2,IF(G14<30,1,0)))) -> 4 | I14: =('BS 2013-2014'!D49-'BS 2013-2014'!D24-'BS 2013-2014'!D25)/('IS 2014-2016'!C51+'12M'!N25) -> -1.583790265 | J14: =IF(I14<3,4,IF(I14<5,3,IF(I14<12,2,IF(I14<30,1,0)))) -> 4
B15: ZUD/A | C15: ='IS 2014-2016'!C51/'BS 2015-2016'!C36 -> -0.02977902121 | D15: =IF(C15<0,0,IF(C15<0.1,1,IF(C15<0.2,2,IF(C15<0.3,3,4)))) -> 0 | E15: ='IS 2014-2016'!D51/'BS 2015-2016'!D36 -> -0.1101474615 | F15: =IF(E15<0,0,IF(E15<0.1,1,IF(E15<0.2,2,IF(E15<0.3,3,4)))) -> 0 | G15: ='IS 2014-2016'!E51/'BS 2013-2014'!C34 -> -0.0502696841 | H15: =IF(G15<0,0,IF(G15<0.1,1,IF(G15<0.2,2,IF(G15<0.3,3,4)))) -> 0 | I15: ='IS 2011-2013'!C45/'BS 2013-2014'!D34 -> -0.03062314589 | J15: =IF(I15<0,0,IF(I15<0.1,1,IF(I15<0.2,2,IF(I15<0.3,3,4)))) -> 0
B16: nezd.CF/Provozni vynosy | C16: =('IS 2014-2016'!C51+'12M'!K25)/'IS 2014-2016'!C28 -> 0.03888283821 | D16: =IF(C16<0,0,IF(C16<0.1,1,IF(C16<0.2,2,IF(C16<0.3,3,4)))) -> 1 | E16: =('IS 2014-2016'!D51+'12M'!L25)/'IS 2014-2016'!D28 -> -0.1151928127 | F16: =IF(E16<0,0,IF(E16<0.1,1,IF(E16<0.2,2,IF(E16<0.3,3,4)))) -> 0 | G16: =('IS 2014-2016'!E51+'12M'!M25)/'IS 2014-2016'!E28 -> -0.01941903903 | H16: =IF(G16<0,0,IF(G16<0.1,1,IF(G16<0.2,2,IF(G16<0.3,3,4)))) -> 0 | I16: =('IS 2011-2013'!C45+'12M'!N25)/'IS 2011-2013'!C24 -> 0.01592702444 | J16: =IF(I16<0,0,IF(I16<0.1,1,IF(I16<0.2,2,IF(I16<0.3,3,4)))) -> 1
D17: =SUM(D13:D16)/4 -> 1 | F17: =SUM(F13:F16)/4 -> 1.5 | H17: =SUM(H13:H16)/4 -> 1.5 | J17: =SUM(J13:J16)/4 -> 2
B18: Vyhodnoceni | D18: =IF(SUM(D13:D16)/4>3,"Velmi dobrý podnik",(IF(SUM(D13:D16)/4>2,"Dobrý podnik",(IF(SUM(D13:D16)/4>1,"Střední podnik","Špatný podnik"))))) -> Špatný podnik | F18: =IF(SUM(F13:F16)/4>3,"Velmi dobrý podnik",(IF(SUM(F13:F16)/4>2,"Dobrý podnik",(IF(SUM(F13:F16)/4>1,"Střední podnik","Špatný podnik"))))) -> Střední podnik | H18: =IF(SUM(H13:H16)/4>3,"Velmi dobrý podnik",(IF(SUM(H13:H16)/4>2,"Dobrý podnik",(IF(SUM(H13:H16)/4>1,"Střední podnik","Špatný podnik"))))) -> Střední podnik | J18: =IF(SUM(J13:J16)/4>3,"Velmi dobrý podnik",(IF(SUM(J13:J16)/4>2,"Dobrý podnik",(IF(SUM(J13:J16)/4>1,"Střední podnik","Špatný podnik"))))) -> Střední podnik

Sheet Financial analysis
A2: Rentabilita | J2: Ostatní
A3: Rok | B3: 2010 | C3: 2011 | D3: 2012 | E3: 2013 | F3: 2014 | G3: 2015 | H3: 2016 | J3: Rok | K3: 2010 | L3: 2011 | M3: 2012 | N3: 2013 | O3: 2014 | P3: 2015 | Q3: 2016
A4: Ukazatel | J4: Ukazatel
A5: ROA | B5: ='IS 2008-2010'!C40/'BS 2009-2010'!C34 -> -0.3803285312 | C5: ='IS 2011-2013'!E37/'BS 2011-2012'!D36 -> -0.352496608 | D5: ='IS 2011-2013'!D37/'BS 2011-2012'!C36 -> -0.3538741148 | E5: ='IS 2011-2013'!C37/'BS 2013-2014'!D34 -> -0.02535571986 | F5: ='IS 2014-2016'!E41/'BS 2013-2014'!C34 -> -0.03191673601 | G5: ='IS 2014-2016'!D41/'BS 2015-2016'!D36 -> -0.08882429577 | H5: ='IS 2014-2016'!C41/'BS 2015-2016'!C36 -> -0.02944483596 | J5: Gross Margin | K5: =('IS 2008-2010'!C24-'IS 2008-2010'!C29)/'IS 2008-2010'!C24 -> 0.2632340848 | L5: =('IS 2011-2013'!E24-'IS 2011-2013'!E29)/'IS 2011-2013'!E24 -> 0.3015785196 | M5: =('IS 2011-2013'!D24-'IS 2011-2013'!D29)/'IS 2011-2013'!D24 -> 0.07275635441 | N5: =('IS 2011-2013'!C24-'IS 2011-2013'!C29)/'IS 2011-2013'!C24 -> 0.2266018904 | O5: =('IS 2014-2016'!E28-'IS 2014-2016'!E35)/'IS 2014-2016'!E28 -> 0.2756638098 | P5: =('IS 2014-2016'!D28-'IS 2014-2016'!D35)/'IS 2014-2016'!D28 -> 0.2282494547 | Q5: =('IS 2014-2016'!C28-'IS 2014-2016'!C35)/'IS 2014-2016'!C28 -> 0.2284609776
A6: ROE | B6: ='IS 2008-2010'!C48/'BS 2009-2010'!C95 -> -0.7453730536 | C6: ='IS 2011-2013'!E45/'BS 2011-2012'!D70 -> -1.135535272 | D6: ='IS 2011-2013'!D45/'BS 2011-2012'!C70 -> -3.177329591 | E6: ='IS 2011-2013'!C45/'BS 2013-2014'!D64 -> -0.110945557 | F6: ='IS 2014-2016'!E47/'BS 2013-2014'!C64 -> -0.3225148348 | G6: ='IS 2014-2016'!D47/'BS 2015-2016'!D73 -> -0.8200237334 | H6: ='IS 2014-2016'!C47/'BS 2015-2016'!C73 -> -0.1626468495 | J6: Operating Margin | K6: ='IS 2008-2010'!C40/'IS 2008-2010'!C24 -> -1.257777702 | L6: ='IS 2011-2013'!E37/'IS 2011-2013'!E24 -> -1.231323626 | M6: ='IS 2011-2013'!D37/'IS 2011-2013'!D24 -> -0.9540889908 | N6: ='IS 2011-2013'!C37/'IS 2011-2013'!C24 -> -0.03043611708 | O6: ='IS 2014-2016'!E41/'IS 2014-2016'!E23 -> -0.06494777432 | P6: ='IS 2014-2016'!D41/'IS 2014-2016'!D23 -> -0.2088331142 | Q6: ='IS 2014-2016'!C41/'IS 2014-2016'!C23 -> -0.119402248
J7: Operating Margin (no R&D) | K7: =('IS 2008-2010'!C40+'IS 2008-2010'!C35)/'IS 2008-2010'!C24 -> -0.4611971493 | L7: =('IS 2011-2013'!E37+'IS 2011-2013'!E32)/'IS 2011-2013'!E24 -> -0.2081207587 | M7: =('IS 2011-2013'!D37+'IS 2011-2013'!D32)/'IS 2011-2013'!D24 -> -0.2911149505 | N7: =('IS 2011-2013'!C37+'IS 2011-2013'!C32)/'IS 2011-2013'!C24 -> 0.08477444206 | O7: =('IS 2014-2016'!E41+'IS 2014-2016'!E38)/'IS 2014-2016'!E23 -> 0.09671804813 | P7: =('IS 2014-2016'!D41+'IS 2014-2016'!D38)/'IS 2014-2016'!D23 -> 0.0003703825664 | Q7: =('IS 2014-2016'!C41+'IS 2014-2016'!C38)/'IS 2014-2016'!C23 -> 0.02989225098
A8: ROS | B8: ='IS 2008-2010'!C48/'IS 2008-2010'!C21 -> -1.589731968 | C8: ='IS 2011-2013'!E45/'IS 2011-2013'!E24 -> -1.24563508 | D8: ='IS 2011-2013'!D45/'IS 2011-2013'!D24 -> -0.9587592195 | E8: ='IS 2011-2013'!C45/'IS 2011-2013'!C24 -> -0.0367589506 | F8: ='IS 2014-2016'!E47/'IS 2014-2016'!E28 -> -0.09193473147 | G8: ='IS 2014-2016'!D47/'IS 2014-2016'!D28 -> -0.2196385341 | H8: ='IS 2014-2016'!C47/'IS 2014-2016'!C28 -> -0.1104330604 | J8: Net Profit Margin | K8: ='IS 2008-2010'!C48/'IS 2008-2010'!C24 -> -1.321935174 | L8: ='IS 2011-2013'!E45/'IS 2011-2013'!E24 -> -1.24563508 | M8: ='IS 2011-2013'!D45/'IS 2011-2013'!D24 -> -0.9587592195 | N8: ='IS 2011-2013'!C45/'IS 2011-2013'!C24 -> -0.0367589506 | O8: ='IS 2014-2016'!E47/'IS 2014-2016'!E28 -> -0.09193473147 | P8: ='IS 2014-2016'!D47/'IS 2014-2016'!D28 -> -0.2196385341 | Q8: ='IS 2014-2016'!C47/'IS 2014-2016'!C28 -> -0.1104330604
A10: Likvidita
A11: Rok | B11: 2010 | C11: 2011 | D11: 2012 | E11: 2013 | F11: 2014 | G11: 2015 | H11: 2016 | J11: Year | K11: 2010 | L11: 2011 | M11: 2012 | N11: 2013 | O11: 2014 | P11: 2015 | Q11: 2016
A12: Ukazatel | J12: Loss per share (EPS) | K12: ='IS 2008-2010'!C51 -> -3.04 | L12: ='IS 2011-2013'!E48 -> -2.53 | M12: ='IS 2011-2013'!D48 -> -3.69 | N12: ='IS 2011-2013'!C48 -> -0.62 | O12: ='IS 2014-2016'!E54 -> -2.36 | P12: ='IS 2014-2016'!D54 -> -6.93 | Q12: ='IS 2014-2016'!C54 -> -4.68
A13: Běžná likvidita | B13: ='BS 2009-2010'!C28/'BS 2009-2010'!C46 -> 2.756804768 | C13: ='BS 2011-2012'!D29/'BS 2011-2012'!D47 -> 1.948572952 | D13: ='BS 2011-2012'!C29/'BS 2011-2012'!C47 -> 0.973400506 | E13: ='BS 2013-2014'!D29/'BS 2013-2014'!D43 -> 1.875020736 | F13: ='BS 2013-2014'!C29/'BS 2013-2014'!C43 -> 1.51799004 | G13: ='BS 2015-2016'!D27/'BS 2015-2016'!D47 -> 0.9896731987 | H13: ='BS 2015-2016'!C27/'BS 2015-2016'!C47 -> 1.074273319
A14: Pohotová likvidita | B14: =('BS 2009-2010'!C22+'BS 2009-2010'!C23+'BS 2009-2010'!C24)/'BS 2009-2010'!C46 -> 2.102086133 | C14: =('BS 2011-2012'!D22+'BS 2011-2012'!D23+'BS 2011-2012'!D24+'BS 2011-2012'!D25)/'BS 2011-2012'!D47 -> 1.637627457 | D14: =('BS 2011-2012'!C22+'BS 2011-2012'!C23+'BS 2011-2012'!C24+'BS 2011-2012'!C25)/'BS 2011-2012'!C47 -> 0.4596963874 | E14: =('BS 2013-2014'!D24+'BS 2013-2014'!D25+'BS 2013-2014'!D26)/'BS 2013-2014'!D43 -> 1.330069909 | F14: =('BS 2013-2014'!C24+'BS 2013-2014'!C25+'BS 2013-2014'!C26)/'BS 2013-2014'!C43 -> 1.020453063 | G14: =('BS 2015-2016'!D22+'BS 2015-2016'!D23+'BS 2015-2016'!D24)/'BS 2015-2016'!D47 -> 0.4939465357 | H14: =('BS 2015-2016'!C22+'BS 2015-2016'!C23+'BS 2015-2016'!C24)/'BS 2015-2016'!C47 -> 0.6860946575
A15: Okamžitá likvidita | B15: =('BS 2009-2010'!C22)/'BS 2009-2010'!C46 -> 1.163536493 | C15: =('BS 2011-2012'!D22+'BS 2011-2012'!D23)/'BS 2011-2012'!D47 -> 1.465080302 | D15: =('BS 2011-2012'!C22+'BS 2011-2012'!C23)/'BS 2011-2012'!C47 -> 0.3744889707 | E15: =('BS 2013-2014'!D24+'BS 2013-2014'!D25)/'BS 2013-2014'!D43 -> 1.257333077 | F15: =('BS 2013-2014'!C24+'BS 2013-2014'!C25)/'BS 2013-2014'!C43 -> 0.9129133633 | G15: ='BS 2015-2016'!D22/'BS 2015-2016'!D47 -> 0.4257890777 | H15: ='BS 2015-2016'!C22/'BS 2015-2016'!C47 -> 0.5823259119 | J15: Ostatní
J16: Rok | K16: 2010 | L16: 2011 | M16: 2012 | N16: 2013 | O16: 2014 | P16: 2015 | Q16: 2016
B17: 2010 | C17: 2011 | D17: 2012 | E17: 2013 | F17: 2014 | G17: 2015 | H17: 2016 | J17: Ukazatel
A18: Zásoby | B18: ='BS 2009-2010'!C28-B19-B20 -> 56021 | C18: ='BS 2011-2012'!D29-C19-C20 -> 59496 | D18: ='BS 2011-2012'!C29-D19-D20 -> 276942 | E18: ='BS 2013-2014'!D29-E19-E20 -> 367929 | F18: ='BS 2013-2014'!C29-F19-F20 -> 1048393 | G18: ='BS 2015-2016'!D27-G19-G20 -> 1393505 | H18: ='BS 2015-2016'!C27-H19-H20 -> 2261919 | J18: Obrat aktiv | K18: ='IS 2008-2010'!C24/'BS 2009-2010'!C34 -> 0.3023813594 | L18: ='IS 2011-2013'!E24/'BS 2011-2012'!D36 -> 0.2862745428 | M18: ='IS 2011-2013'!D24/'BS 2011-2012'!C36 -> 0.3709026288 | N18: ='IS 2011-2013'!C24/'BS 2013-2014'!D34 -> 0.8330799816 | O18: ='IS 2014-2016'!E28/'BS 2013-2014'!C34 -> 0.5467975301 | P18: ='IS 2014-2016'!D28/'BS 2015-2016'!D36 -> 0.5014942478 | Q18: ='IS 2014-2016'!C28/'BS 2015-2016'!C36 -> 0.3088646544
A19: Pohledávky | B19: =('BS 2009-2010'!C22+'BS 2009-2010'!C23+'BS 2009-2010'!C24)-B20 -> 80307 | C19: =('BS 2011-2012'!D22+'BS 2011-2012'!D23+'BS 2011-2012'!D24+'BS 2011-2012'!D25)-C20 -> 33015 | D19: =('BS 2011-2012'!C22+'BS 2011-2012'!C23+'BS 2011-2012'!C24+'BS 2011-2012'!C25)-D20 -> 45936 | E19: =('BS 2013-2014'!D24+'BS 2013-2014'!D25+'BS 2013-2014'!D26)-E20 -> 49109 | F19: =('BS 2013-2014'!C24+'BS 2013-2014'!C25+'BS 2013-2014'!C26)-F20 -> 226604 | G19: =('BS 2015-2016'!D22+'BS 2015-2016'!D23+'BS 2015-2016'!D24)-G20 -> 191593 | H19: =('BS 2015-2016'!C22+'BS 2015-2016'!C23+'BS 2015-2016'!C24)-H20 -> 604661 | J19: Doba obratu aktiv | K19: =365/K18 -> 1207.084989 | L19: =365/L18 -> 1274.999853 | M19: =365/M18 -> 984.0857725 | N19: 438.1332022 | O19: 667.5231322 | P19: 727.8248985 | Q19: 1181.747393
A20: KFM | B20: =('BS 2009-2010'!C22) -> 99558 | C20: =('BS 2011-2012'!D22+'BS 2011-2012'!D23) -> 280327 | D20: =('BS 2011-2012'!C22+'BS 2011-2012'!C23) -> 201890 | E20: =('BS 2013-2014'!D24+'BS 2013-2014'!D25) -> 848901 | F20: =('BS 2013-2014'!C24+'BS 2013-2014'!C25) -> 1923660 | G20: ='BS 2015-2016'!D22 -> 1196908 | H20: ='BS 2015-2016'!C22 -> 3393216 | J20: Obrat zasob | K20: ='IS 2008-2010'!C24/'BS 2009-2010'!C25 -> 2.58386083 | L20: ='IS 2011-2013'!E24/'BS 2011-2012'!D26 -> 4.078151831 | M20: ='IS 2011-2013'!D24/'BS 2011-2012'!C26 -> 1.539105563 | N20: ='IS 2011-2013'!C24/'BS 2013-2014'!D27 -> 5.915870194 | O20: ='IS 2014-2016'!E28/'BS 2013-2014'!C27 -> 3.353716937 | P20: ='IS 2014-2016'!D28/'BS 2015-2016'!D25 -> 3.166305118 | Q20: ='IS 2014-2016'!C28/'BS 2015-2016'!C25 -> 3.385870738
A21: Kr. dluhy | B21: ='BS 2009-2010'!C46 -> 85565 | C21: ='BS 2011-2012'!D47 -> 191339 | D21: ='BS 2011-2012'!C47 -> 539108 | E21: ='BS 2013-2014'!D43 -> 675160 | F21: ='BS 2013-2014'!C43 -> 2107166 | G21: ='BS 2015-2016'!D47 -> 2811035 | H21: ='BS 2015-2016'!C47 -> 5827005 | J21: Doba obratu zasob | K21: =365/K20 -> 141.2614781 | L21: =365/L20 -> 89.50132686 | M21: 237.150725 | N21: 61.69844638 | O21: 108.8344684 | P21: 115.2763194 | Q21: 107.8009258
J22: Obrat Pohledavek | K22: ='IS 2008-2010'!C24/'BS 2009-2010'!C24 -> 17.39850969 | L22: ='IS 2011-2013'!E24/'BS 2011-2012'!D25 -> 21.41125904 | M22: ='IS 2011-2013'!D24/'BS 2011-2012'!C25 -> 15.39587214 | N22: ='IS 2011-2013'!C24/'BS 2013-2014'!D26 -> 41.0005498 | O22: ='IS 2014-2016'!E28/'BS 2013-2014'!C26 -> 14.11429631 | P22: ='IS 2014-2016'!D28/'BS 2015-2016'!D24 -> 23.94593555 | Q22: ='IS 2014-2016'!C28/'BS 2015-2016'!C24 -> 14.02432975
J23: Doba obratu pohledavek | K23: =365/K22 -> 20.97880833 | L23: =365/L22 -> 17.04710588 | M23: 23.70765337 | N23: 8.902319647 | O23: 25.86030448 | P23: 15.24267028 | Q23: 26.02619922
J24: Obrat KFM | K24: ='IS 2008-2010'!C24/('BS 2009-2010'!C22+'BS 2009-2010'!C23) -> 0.6742167422 | L24: ='IS 2011-2013'!E24/('BS 2011-2012'!D22+'BS 2011-2012'!D23) -> 0.7285848313 | M24: ='IS 2011-2013'!D24/('BS 2011-2012'!C22+'BS 2011-2012'!C23) -> 2.046936451 | N24: ='IS 2011-2013'!C24/('BS 2013-2014'!D24+'BS 2013-2014'!D25) -> 2.371885532 | O24: ='IS 2014-2016'!E28/('BS 2013-2014'!C24+'BS 2013-2014'!C25) -> 1.662641007 | P24: ='IS 2014-2016'!D28/('BS 2015-2016'!D22+'BS 2015-2016'!D23) -> 3.317675739 | Q24: ='IS 2014-2016'!C28/('BS 2015-2016'!C22+'BS 2015-2016'!C23) -> 2.000760846
J25: Doba obratu KFM | K25: =365/K24 -> 541.3689354 | L25: =365/L24 -> 500.9711763 | M25: 178.3152574 | N25: 153.8860097 | O25: 219.5302524 | P25: 110.0167794 | Q25: 182.4305992
A26: Finanční stabilita | J26: Doba obratu zavazku | K26: ='BS 2009-2010'!C39/('IS 2008-2010'!C24/365) -> 90.51527273 | L26: ='BS 2011-2012'!D40/('IS 2011-2013'!E24/365) -> 100.3293397 | M26: ='BS 2011-2012'!C40/('IS 2011-2013'!D24/365) -> 267.9560127 | N26: ='BS 2013-2014'!D37/('IS 2011-2013'!C24/365) -> 55.10251076 | O26: ='BS 2013-2014'!D37/('IS 2014-2016'!E28/365) -> 34.68928568 | P26: ='BS 2015-2016'!D39/('IS 2014-2016'!D28/365) -> 82.64754172 | Q26: ='BS 2015-2016'!C39/('IS 2014-2016'!C28/365) -> 97.00166583
A27: Rok | B27: 2010 | C27: 2011 | D27: 2012 | E27: 2013 | F27: 2014 | G27: 2015 | H27: 2016 | J27: Obchodni deficit | K27: =K23-K26 -> -69.5364644 | L27: =L23-L26 -> -83.28223382 | M27: -244.2483594 | N27: -46.20019111 | O27: -8.828981202 | P27: -67.40487145 | Q27: -70.97546661
A28: Ukazatel
A29: Debt to equity | B29: ='BS 2009-2010'!C54/'BS 2009-2010'!C95 -> 0.864698041 | C29: ='BS 2011-2012'!D54/'BS 2011-2012'!D70 -> 2.184395992 | D29: ='BS 2011-2012'!C54/'BS 2011-2012'!C70 -> 7.934963913 | E29: ='BS 2013-2014'!D49/'BS 2013-2014'!D64 -> 2.622931407 | F29: ='BS 2013-2014'!C49/'BS 2013-2014'!C64 -> 5.351860789 | G29: ='BS 2015-2016'!D57/'BS 2015-2016'!D73 -> 6.401148284 | H29: ='BS 2015-2016'!C57/'BS 2015-2016'!C73 -> 3.524191175
A30: LT Debt to equity | B30: =SUM('BS 2009-2010'!C47:C52)/'BS 2009-2010'!C95 -> 0.4514363819 | C30: =SUM('BS 2011-2012'!D48:D52)/'BS 2011-2012'!D70 -> 1.330375594 | D30: =SUM('BS 2011-2012'!C48:C52)/'BS 2011-2012'!C70 -> 3.611724138 | E30: =SUM('BS 2013-2014'!D44:D48)/'BS 2013-2014'!D64 -> 1.610879602 | F30: =SUM('BS 2013-2014'!C44:C48)/'BS 2013-2014'!C64 -> 3.040636825 | G30: =SUM('BS 2015-2016'!D50:D56)/'BS 2015-2016'!D73 -> 3.807234263 | H30: =SUM('BS 2015-2016'!C50:C56)/'BS 2015-2016'!C73 -> 2.298204616
A31: LT debt/ST debt | B31: =('BS 2009-2010'!C54-'BS 2009-2010'!C46)/'BS 2009-2010'!C46 -> 1.092374218 | C31: =('BS 2011-2012'!D54-'BS 2011-2012'!D47)/'BS 2011-2012'!D47 -> 1.557779648 | D31: =('BS 2011-2012'!C54-'BS 2011-2012'!C47)/'BS 2011-2012'!C47 -> 0.835420732 | E31: =('BS 2013-2014'!D49-'BS 2013-2014'!D43)/'BS 2013-2014'!D43 -> 1.591696783 | F31: =('BS 2013-2014'!C49-'BS 2013-2014'!C43)/'BS 2013-2014'!C43 -> 1.315595924 | G31: =('BS 2015-2016'!D57-'BS 2015-2016'!D47)/'BS 2015-2016'!D47 -> 1.467756538 | H31: =('BS 2015-2016'!C57-'BS 2015-2016'!C47)/'BS 2015-2016'!C47 -> 1.874575704
A32: Debt ratio | B32: ='BS 2009-2010'!C54/'BS 2009-2010'!C34 -> 0.4637201424 | C32: ='BS 2011-2012'!D54/'BS 2011-2012'!D36 -> 0.6859687041 | D32: ='BS 2011-2012'!C54/'BS 2011-2012'!C36 -> 0.88808013 | E32: ='BS 2013-2014'!D49/'BS 2013-2014'!D34 -> 0.7239804214 | F32: ='BS 2013-2014'!C49/'BS 2013-2014'!C34 -> 0.8341828723 | G32: ='BS 2015-2016'!D57/'BS 2015-2016'!D36 -> 0.8598168628 | H32: ='BS 2015-2016'!C57/'BS 2015-2016'!C36 -> 0.7390624264

Sheet FCFF
B2: Imput | E2: Growth estimation
B3: Rfr (10y T-bond) @31.3.2017 | C3: 0.023874 | D3: link | F3: 2008 | G3: 2009 | H3: 2010 | I3: 2011 | J3: 2012 | K3: 2013 | L3: 2014 | M3: 2015 | N3: 2016
B4: Revenues | C4: =F12 -> 8549354 | E4: Revenues | F4: 14742 | G4: 111943 | H4: 97078 | I4: 204242 | J4: 413256 | K4: 2013496 | L4: 3198356 | M4: 4046025 | N4: 7000132
B5: Book value of equity | C5: ='12M'!O33 -> 4987719 | E5: Rev. Growth | G5: =(G4-F4)/F4 -> 6.593474427 | H5: =(H4-G4)/G4 -> -0.1327907953 | I5: 1.103895836 | J5: 1.02336444 | K5: 3.872272877 | L5: 0.5884590781 | M5: 0.2650327231 | N5: 0.7301257407
B6: Book value of debt | C6: ='12M'!O34+'12M'!O35+'12M'!O37 -> 8169550 | G6: =1+G5 -> 7.593474427 | H6: =1+H5 -> 0.8672092047 | I6: 2.103895836 | J6: 2.02336444 | K6: 4.872272877 | L6: 1.588459078 | M6: 1.265032723 | N6: 1.730125741
B7: Cash and Marketable Securities | C7: ='12M'!O32 -> 4006593 | E7: Geometrický průměr růst tržeb | G7: =GEOMEAN(G6:N6)-1 -> 1.160571922
B8: Sales to Capital ratio (Tesla) | C8: ='Sales to Capital ratio'!F16 -> 1.549234011 | E8: Geometrický průměr růst tržeb (3.roky) | G8: =GEOMEAN(L6:N6)-1 -> 0.5149041411
B9: Sales to Capital ratio (Industry) | C9: ='Sales to Capital ratio'!D14 -> 1.235101804
B10: Průměr S/C ratio | C10: =C8*0.5+0.5*C9 -> 1.392167908 | E10: in thousands $ | F10: 12M | G10: 1 | H10: 2 | I10: 3 | J10: 4 | K10: 5 | L10: 6 | M10: 7 | N10: 8 | O10: 9 | P10: 10 | Q10: Terminal year
E11: Revenue Growth Rate | G11: =G8 -> 0.5149041411 | H11: =G11 -> 0.5149041411 | I11: =H11 -> 0.5149041411 | J11: =I11 -> 0.5149041411 | K11: =$G$11-(($G$11-$Q$11)/6)*1 -> 0.4330657843 | L11: =$G$11-(($G$11-$Q$11)/6)*2 -> 0.3512274274 | M11: =$G$11-(($G$11-$Q$11)/6)*3 -> 0.2693890706 | N11: =$G$11-(($G$11-$Q$11)/6)*4 -> 0.1875507137 | O11: =$G$11-(($G$11-$Q$11)/6)*5 -> 0.1057123569 | P11: =$G$11-(($G$11-$Q$11)/6)*6 -> 0.023874 | Q11: =C3 -> 0.023874
B12: ths.# of shares | C12: 164000 | E12: Revenues | F12: ='12M'!H28 -> 8549354 | G12: =F12*(1+G11) -> 12951451.78 | H12: =G12*(1+H11) -> 19620207.93 | I12: 29722734.25 | J12: 45027093.2 | K12: 64526786.62 | L12: 87190363.89 | M12: 110678495 | N12: 131436325.7 | O12: 145330769.5 | P12: 148800396.3 | Q12: =P12*(1+Q11) -> 152352856.9
B13: Price @31.3.2017 | C13: 278.3 | E13: Operating Margin | F13: =F14/F12 -> -0.07906325488 | G13: =$Q$13-($Q$13-$F$13)/10*(10-G10) -> -0.06179426224 | H13: =$Q$13-($Q$13-$F$13)/10*(10-H10) -> -0.04452526961 | I13: -0.02725627697 | J13: -0.009987284327 | K13: 0.007281708312 | L13: 0.02455070095 | M13: 0.04181969359 | N13: 0.05908868623 | O13: 0.07635767887 | P13: 0.09362667151 | Q13: ='Operating margin global'!D14 -> 0.09362667151
E14: EBIT | F14: ='12M'!H41+'Operating lease converter'!D26/1000 -> -675939.7544 | G14: =G13*G12 -> -800325.4076 | H14: =H13*H12 -> -873595.0479 | I14: -810131.0768 | J14: -449698.3822 | K14: 469865.2385 | L14: 2140584.55 | M14: 4628540.747 | N14: 7766399.809 | O14: 11097120.22 | P14: =P13*P12 -> 13931685.82 | Q14: =Q13*Q12 -> 14264290.89
E15: Taxes | F15: 0.4 | G15: 0.4 | H15: 0.4 | I15: 0.4 | J15: 0.4 | K15: 0.4 | L15: 0.4 | M15: 0.4 | N15: 0.4 | O15: 0.4 | P15: 0.4 | Q15: 0.4
E16: EBIT(1-t) | F16: =IF(F14>0,F14*(1-F15),F14) -> -675939.7544 | G16: =IF(G14>0,IF(G14<F22,G14,G14-(G14-F22)*G15),G14) -> -800325.4076 | H16: =IF(H14>0,IF(H14<G22,H14,H14-(H14-G22)*H15),H14) -> -873595.0479 | I16: -810131.0768 | J16: -449698.3822 | K16: 469865.2385 | L16: 2140584.55 | M16: 3261628.499 | N16: 4659839.885 | O16: =IF(O14>0,IF(O14<N22,O14,O14-(O14-N22)*O15),O14) -> 6658272.135 | P16: =IF(P14>0,IF(P14<O22,P14,P14-(P14-O22)*P15),P14) -> 8359011.492 | Q16: =IF(Q14>0,IF(Q14<P22,Q14,Q14-(Q14-P22)*Q15),Q14) -> 8558574.533
E17: - Reinvestment | G17: =(G12-F12)/$C$10 -> 3162045.149 | H17: =(H12-G12)/$C$10 -> 4790195.29 | I17: =(I12-H12)/$C$10 -> 7256686.682 | J17: 10993184.7 | K17: =(K12-J12)/$C$10 -> 14006710.92 | L17: 16279341.84 | M17: =(M12-L12)/$C$10 -> 16871622.28 | N17: 14910436.17 | O17: 9980436.763 | P17: =(P12-O12)/$C$10 -> 2492247.358 | Q17: =(Q12-P12)/$C$10 -> 2551747.272
E18: + Depreciation | F18: ='12M'!P30 -> 1167241
E19: - Capital Expenditures | F19: ='12M'!P32 -> 1616567
E20: - Chg WC | F20: ='12M'!K30 -> 461820
E21: FCFF | F21: =F16+F18-F19-F20 -> -1587085.754 | G21: =G16-G17 -> -3962370.556 | H21: =H16-H17 -> -5663790.338 | I21: -8066817.759 | J21: -11442883.09 | K21: -13536845.68 | L21: -14138757.29 | M21: -13609993.78 | N21: -10250596.28 | O21: =O16-O17 -> -3322164.628 | P21: 5866764.134 | Q21: 6006827.261
E22: NOL | F22: =-'12M'!H47 -> 887960 | G22: =IF(G14<0,F22-G14,IF(G14<F22,F22-G14,0)) -> 1688285.408 | H22: =IF(H14<0,G22-H14,IF(H14<G22,G22-H14,0)) -> 2561880.456 | I22: 3372011.532 | J22: 3821709.915 | K22: 3351844.676 | L22: 1211260.126 | M22: =IF(M14<0,L22-M14,IF(M14<L22,L22-M14,0)) -> 0 | N22: 0 | O22: =IF(O14<0,N22-O14,IF(O14<N22,N22-O14,0)) -> 0 | P22: =IF(P14<0,O22-P14,IF(P14<O22,O22-P14,0)) -> 0 | Q22: =IF(Q14<0,P22-Q14,IF(Q14<P22,P22-Q14,0)) -> 0
E24: Cost of capital | G24: =WACC!L5 -> 0.0590563127 | H24: =G24 -> 0.0590563127 | I24: 0.0590563127 | J24: 0.0590563127 | K24: 0.0590563127 | L24: 0.0590563127 | M24: 0.0590563127 | N24: 0.0590563127 | O24: 0.0590563127 | P24: 0.0590563127 | Q24: 0.0590563127
E25: Cumulated discount factor | F25: 1 | G25: =1/(1+G24)^G10 -> 0.9442368531 | H25: 0.8915832348 | I25: 0.841865748 | J25: 0.7949206646 | K25: 0.7505933868 | L25: 0.7087379376 | M25: 0.6692164799 | N25: 0.631898863 | O25: 0.5966621939 | P25: 0.5633904324
E26: PV(FCFF) | G26: =G21*G25 -> -3741416.305 | H26: -5049740.511 | I26: -6791177.566 | J26: -9096184.229 | K26: -10160666.84 | L26: -10020673.68 | M26: -9108032.13 | N26: -6477340.138 | O26: -1982210.036 | P26: 3305278.782
E28: Terminal cash flow | F28: =Q21 -> 6006827.261
E29: Terminal cost of capital | F29: =Q24 -> 0.0590563127
E30: Terminal value | F30: =F28/(F29-Q11) -> 170734292.3
E31: PV(Terminal value) | F31: =F30*P25 -> 96190066.77
E32: PV (CF over next 10 years) | F32: =SUM(G26:P26) -> -59122162.66
E33: Value of firm | F33: =F32+F31 -> 37067904.11
E34: - Debt | F34: =C6+'Operating lease converter'!D26 -> 8894795.606
E35: + Cash | F35: =C7 -> 4006593
E36: Value of equity | F36: =F33-F34+F35 -> 32179701.5
E37: Number of shares | F37: =C12 -> 164000
E38: Estimated value /share | F38: =F36/F37 -> 196.2176921
E39: Price @31.3.2017 | F39: =C13 -> 278.3
E40: Price as % of value | F40: =F39/F38 -> 1.418322665

Sheet Historicke modely
O1: Eviews regression:
C2: 2010 | D2: 2011 | E2: 2012 | F2: 2013 | G2: 2014 | H2: 2015 | I2: 2016 | J2: 12M | K2: 2017e | L2: průměr | O2: Dependent Variable: Book value
B3: Tržby | C3: ='IS 2008-2010'!C24 -> 116744 | D3: ='IS 2011-2013'!E24 -> 204242 | E3: ='IS 2011-2013'!D24 -> 413256 | F3: ='IS 2011-2013'!C24 -> 2013496 | G3: ='IS 2014-2016'!E28 -> 3198356 | H3: ='IS 2014-2016'!D28 -> 4046025 | I3: ='IS 2014-2016'!C28 -> 7000132 | J3: =FCFF!F12 -> 8549354 | K3: =FCFF!G12 -> 12951451.78 | O3: Method: Least Squares
B4: Účetní hodnota | C4: ='BS 2009-2010'!C95 -> 207048 | D4: ='BS 2011-2012'!D70 -> 224045 | E4: ='BS 2011-2012'!C70 -> 124700 | F4: ='BS 2013-2014'!D64 -> 667120 | G4: ='BS 2013-2014'!C64 -> 911710 | H4: ='BS 2015-2016'!D73 -> 1083704 | I4: ='BS 2015-2016'!C73 -> 4752911 | J4: =FCFF!C5 -> 4987719 | K4: =-286701.8+0.587218*K3 -> 7318623.81 | O4: Date: 05/03/17 Time: 08:39
B5: Počet akcií | C5: ='IS 2008-2010'!C55/1000 -> 50718.302 | D5: ='IS 2011-2013'!E52/1000 -> 100388.815 | E5: ='IS 2011-2013'!D52/1000 -> 107349.188 | F5: ='IS 2011-2013'!C52/1000 -> 119421.414 | G5: ='IS 2014-2016'!E57 -> 124539 | H5: ='IS 2014-2016'!D57 -> 128202 | I5: ='IS 2014-2016'!C57 -> 144212 | J5: 164000 | K5: =J5*(1+(J5-I5)/I5) -> 186503.2036 | O5: Sample (adjusted): 2010 2016
B6: Tržby na akcii (USD) | C6: =C3/$C$5 -> 2.301812076 | D6: 4.026988127 | E6: 8.148064578 | F6: 39.69959404 | G6: 63.06118056 | H6: 79.77445696 | I6: 138.0198414 | J6: 168.5654618 | L6: =AVERAGEA(C6:I6) -> 47.8617054 | O6: Included observations: 7 after adjustments
B7: Účetní hodnota na akcii (USD) | C7: 4.082313324 | D7: 4.417438896 | E7: 2.458678526 | F7: 13.1534372 | G7: 17.97595669 | H7: 21.36711911 | I7: 93.71195037 | J7: 98.34160063 | L7: =AVERAGEA(C7:I7) -> 22.45241344
B8: Závěrečný kurs akcie (USD) | C8: 26.84 | D8: 28.94 | E8: 35 | F8: 149.8 | G8: 222.87 | H8: 230.72 | I8: 214.86 | J8: =FCFF!C13 -> 278.3 | L8: =AVERAGEA(C8:I8) -> 129.8614286 | O8: Variable | P8: Coefficient | Q8: Std. Error | R8: t-Statistic | S8: Prob.
A10: S1 | B10: =K3/'Historicke modely'!K5 -> 69.44358878 | O10: C | P10: -286701.8 | Q10: 403086.1 | R10: -0.711267 | S10: 0.5087
A11: BV1 | B11: =K4/K5 -> 39.24127666 | O11: Sales | P11: 0.587218 | Q11: 0.119323 | R11: 4.921263 | S11: 0.0044
A13: V (P/S) | B13: =(L8/L6)*B10 -> 188.4187697 | O13: R-squared | P13: 0.828877 | Q13: Mean dependent var | S13: 1138748.
A14: V (P/BV) | B14: =(L8/L7)*B11 -> 226.9657228 | O14: Adjusted R-squared | P14: 0.794653 | Q14: S.D. dependent var | S14: 1636675.
O15: S.E. of regression | P15: 741663.0 | Q15: Akaike info criterion | S15: 30.10613
O16: Sum squared resid | P16: 2.75E+12 | Q16: Schwarz criterion | S16: 30.09068
O17: Log likelihood | P17: -103.3715 | Q17: Hannan-Quinn criter. | S17: 29.91512
O18: F-statistic | P18: 24.21883 | Q18: Durbin-Watson stat | S18: 1.549027
O19: Prob(F-statistic) | P19: 0.004393
O21: Tržby | P21: Účetní hodnota | Q21: Returns (S) | R21: Returns (BV)
O22: 116744 | P22: 207048
O23: 204242 | P23: 224045 | Q23: =(O23-O22)/O22 -> 0.749486055 | R23: =(P23-P22)/P22 -> 0.08209207527
O24: 413256 | P24: 124700 | Q24: =(O24-O23)/O23 -> 1.02336444 | R24: -0.4434153853
O25: 2013496 | P25: 667120 | Q25: 3.872272877 | R25: 4.349799519
O26: 3198356 | P26: 911710 | Q26: 0.5884590781 | R26: 0.3666356877
O27: 4046025 | P27: 1083704 | Q27: 0.2650327231 | R27: 0.1886498996
O28: 7000132 | P28: 4752911 | Q28: 0.7301257407 | R28: 3.385801843
O29: 8549354 | P29: 4987719 | Q29: 0.2213132552 | R29: 0.04940298693
O30: 12951451.78 | P30: 7318623.81 | Q30: 0.5149041411 | R30: 0.4673288151
O31: CORREL | P31: =CORREL(Q23:Q30,R23:R30) -> 0.7450533145

Sheet 12M
A1: Created by EDGAR Online, Inc.
A3: TESLA, INC.
A4: INCOME_STATEMENT
A5: Form Type: 10-K
A6: Period End: Dec 31, 2016
A7: Date Filed: Mar 01, 2017
A8: Table Of Contents
B10: Tesla, Inc.
B14: Consolidated Statements of Operations
B16: (in thousands, except per share data)
C21: 2016 | D21: Q2 | E21: Q3 | F21: Q4 | G21: Q1 2017 | H21: 12M | J21: Další informace mimo výkazy použíté k výpočtům
B22: Revenues | K22: 2016 (3) | L22: 2015 | M22: 2014 | N22: 2013 | O22: 2012
B23: Automotive | C23: 5589007 | D23: 1181852 | E23: 1917442 | F23: 1739449 | G23: 2035060 | H23: =SUM(D23:G23) -> 6873803 | J23: Working capital (deficit) (1) | K23: 432791 | L23: -29029 | M23: 1072907 | N23: 585665 | O23: -14340
B24: Automotive leasing | C24: 761759 | D24: 0 | E24: 231285 | F24: 254674 | G24: 254540 | H24: 740499 | J24: Total assets (1) | K24: 22664076 | L24: 8067939 | M24: 5830667 | N24: 2411186 | O24: 1114190
B25: Total automotive revenue | C25: 6350766 | D25: 1181852 | E25: 2148727 | F25: 1994123 | G25: 2289600 | H25: 7614302 | J25: Depreciation and amortization | K25: 947099 | L25: 422590 | M25: 231931 | N25: 106083
B26: Energy generation and storage | C26: 181394 | D26: 0 | E26: 0 | F26: 181394 | G26: 213944 | H26: 395338
B27: Services and other | C27: 467972 | D27: 88165 | E27: 149709 | F27: 109114 | G27: 192726 | H27: 539714 | J27: Ostatní informace použité ke FCFF kalkulaci
B28: Total revenues | C28: 7000132 | D28: 1270017 | E28: 2298436 | F28: 2284631 | G28: 2696270 | H28: 8549354 | K28: 2016 | L28: Q2 | M28: Q3 | N28: Q4 | O28: Q1 2017
B29: Cost of revenues | J29: Depreciation and amortization | K29: 947099 | L29: 183232 | M29: 280468 | N29: 326939 | O29: 376602 | P29: 12M
B30: Automotive | C30: 4268087 | D30: 909282 | E30: 1355102 | F30: 1372604 | G30: 1496649 | H30: =SUM(D30:G30) -> 5133637 | J30: ∆Working capital | K30: 461820 | P30: =SUM(L29:O29) -> 1167241
B31: Automotive leasing | C31: 481994 | D31: 0 | E31: 161959 | F31: 171818 | G31: 166026 | H31: 499803 | J31: CAPEX | K31: 1280802 | L31: 294720 | M31: 247611 | N31: 521612 | O31: 552624
B32: Total automotive cost of revenues | C32: 4750081 | D32: 909282 | E32: 1517061 | F32: 1544422 | G32: 1662675 | H32: 5633440 | J32: Cash and cash equivalents | K32: 3393216 | O32: 4006593 | P32: =SUM(L31:O31) -> 1616567
B33: Energy generation and storage | C33: 178332 | D33: 0 | E33: 0 | F33: 178332 | G33: 151773 | H33: 330105 | J33: Total stockholders' equity | K33: 4752911 | O33: 4987719
B34: Services and other | C34: 472462 | D34: 85959 | E34: 144640 | F34: 126599 | G34: 213876 | H34: 571074 | J34: Long-term debt and capital leases, net of current portion (1) | K34: 5969500 | O34: 7158956
B35: Total cost of revenues | C35: 5400875 | D35: 995241 | E35: 1661701 | F35: 1849353 | G35: 2028324 | H35: 6534619 | J35: Convertible senior notes (1)(2) | K35: 8784 | O35: 7283
B36: Gross profit | C36: 1599257 | D36: 274776 | E36: 636735 | F36: 435278 | G36: 667946 | H36: 2014735 | J36: Interest expense | K36: -198810 | L36: -46368 | M36: -46713 | N36: -65104 | O36: -99346
B37: Operating expenses | J37: Current portion of long-term debt and capital leases | K37: 1150147 | O37: 1003311 | P37: =SUM(L36:O36) -> -257531
B38: Research and development | C38: 834408 | D38: 191664 | E38: 214302 | F38: 245960 | G38: 322040 | H38: =SUM(D38:G38) -> 973966
B39: Selling, general and administrative | C39: 1432189 | D39: 321152 | E39: 336811 | F39: 456016 | G39: 603455 | H39: 1717434
B40: Total operating expenses | C40: 2266597 | D40: 512816 | E40: 551113 | F40: 701976 | G40: 925495 | H40: 2691400
B41: Loss from operations | C41: -667340 | D41: -238040 | E41: 85622 | F41: -266698 | G41: -257549 | H41: -676665
B42: Interest income | C42: 8530 | D42: 2242 | E42: 2858 | F42: 2179 | G42: 3090 | H42: 10369
B43: Interest expense | C43: -198810 | D43: -46368 | E43: -46713 | F43: -65104 | G43: -99346 | H43: -257531
B44: Other income (expense), net | C44: 111272 | D44: -7373 | E44: -11756 | F44: 121224 | G44: -18098 | H44: 83997
B45: Loss before income taxes | C45: -746348 | D45: -289539 | E45: 30011 | F45: -208399 | G45: -371903 | H45: -839830
B46: Provision for income taxes | C46: 26698 | D46: 3649 | E46: 8133 | F46: 11070 | G46: 25278 | H46: 48130
B47: Net loss | C47: -773046 | D47: -293188 | E47: 21878 | F47: -219469 | G47: -397181 | H47: -887960
B48: Net loss attributable to noncontrolling
B49: interests and redeemable
B50: noncontrolling interests | C50: -98132 | G50: -66904
B51: Net loss attributable to common stockholders | C51: -674914 | G51: -330277
B52: Net loss per share of common stock
B53: attributable to common stockholders,
B54: basic and diluted | C54: -4.68 | D54: -2.09 | E54: 0.15 | G54: -2.04
B55: Weighted average shares used in computing net
B56: loss per share of
B57: common stock, basic and diluted | C57: 144212 | D57: 139983 | E57: 148991 | G57: 162129

Sheet Global industry averages
A1: Industry name | B1: Number of firms | C1: Beta | D1: D/E Ratio | E1: Tax rate | F1: Unlevered beta | G1: Cash/Firm value | H1: Unlevered beta corrected for cash | I1: HiLo Risk | J1: Standard deviation of equity | K1: Standard deviation in operating income (last 10 years) | L1: Price/Sales | M1: Net Margin | N1: EV/Sales | O1: Pre-tax Operating Margin
A2: Advertising | B2: =VLOOKUP($A2,Betas!$A$9:$K$104,2,FALSE) -> 41 | C2: =VLOOKUP($A2,Betas!$A$9:$K$104,3,FALSE) -> 1.362998832 | D2: =VLOOKUP($A2,Betas!$A$9:$K$104,4,FALSE) -> 0.629755126 | E2: =VLOOKUP($A2,Betas!$A$9:$K$104,5,FALSE) -> 0.050960682 | F2: =VLOOKUP($A2,Betas!$A$9:$K$104,6,FALSE) -> 0.8531206925 | G2: =VLOOKUP($A2,Betas!$A$9:$K$104,7,FALSE) -> 0.06269218494 | H2: =VLOOKUP($A2,Betas!$A$9:$K$104,8,FALSE) -> 0.9101819902 | I2: =VLOOKUP($A2,Betas!$A$9:$K$104,9,FALSE) -> 0.66713346 | J2: =VLOOKUP($A2,Betas!$A$9:$K$104,10,FALSE) -> 0.728018376 | K2: =VLOOKUP($A2,Betas!$A$9:$K$104,11,FALSE) -> 0.1705173 | L2: =VLOOKUP(A2,'Revenues multiples'!$A$9:$F$102,3,FALSE) -> 1.12 | M2: =VLOOKUP(A2,'Revenues multiples'!$A$9:$F$102,4,FALSE) -> 0.0604 | N2: =VLOOKUP(A2,'Revenues multiples'!$A$9:$F$102,5,FALSE) -> 1.71 | O2: =VLOOKUP(A2,'Revenues multiples'!$A$9:$F$102,6,FALSE) -> 0.1207
A3: Aerospace/Defense | B3: =VLOOKUP($A3,Betas!$A$9:$K$104,2,FALSE) -> 96 | C3: =VLOOKUP($A3,Betas!$A$9:$K$104,3,FALSE) -> 1.074487468 | D3: =VLOOKUP($A3,Betas!$A$9:$K$104,4,FALSE) -> 0.2352636976 | E3: =VLOOKUP($A3,Betas!$A$9:$K$104,5,FALSE) -> 0.108554932 | F3: =VLOOKUP($A3,Betas!$A$9:$K$104,6,FALSE) -> 0.8882082849 | G3: =VLOOKUP($A3,Betas!$A$9:$K$104,7,FALSE) -> 0.05210499527 | H3: =VLOOKUP($A3,Betas!$A$9:$K$104,8,FALSE) -> 0.9370323511 | I3: =VLOOKUP($A3,Betas!$A$9:$K$104,9,FALSE) -> 0.524077122 | J3: =VLOOKUP($A3,Betas!$A$9:$K$104,10,FALSE) -> 0.407457595 | K3: =VLOOKUP($A3,Betas!$A$9:$K$104,11,FALSE) -> 0.1466738976 | L3: =VLOOKUP(A3,'Revenues multiples'!$A$9:$F$102,3,FALSE) -> 1.35 | M3: =VLOOKUP(A3,'Revenues multiples'!$A$9:$F$102,4,FALSE) -> 0.0715 | N3: =VLOOKUP(A3,'Revenues multiples'!$A$9:$F$102,5,FALSE) -> 1.59 | O3: =VLOOKUP(A3,'Revenues multiples'!$A$9:$F$102,6,FALSE) -> 0.1074 | Q3: Multi Business (Global Industry Averages)
A4: Air Transport | B4: =VLOOKUP($A4,Betas!$A$9:$K$104,2,FALSE) -> 18 | C4: =VLOOKUP($A4,Betas!$A$9:$K$104,3,FALSE) -> 1.122088785 | D4: =VLOOKUP($A4,Betas!$A$9:$K$104,4,FALSE) -> 0.7011643226 | E4: =VLOOKUP($A4,Betas!$A$9:$K$104,5,FALSE) -> 0.229868862 | F4: =VLOOKUP($A4,Betas!$A$9:$K$104,6,FALSE) -> 0.7286345328 | G4: =VLOOKUP($A4,Betas!$A$9:$K$104,7,FALSE) -> 0.0422938733 | H4: =VLOOKUP($A4,Betas!$A$9:$K$104,8,FALSE) -> 0.7608122288 | I4: =VLOOKUP($A4,Betas!$A$9:$K$104,9,FALSE) -> 0.476048165 | J4: =VLOOKUP($A4,Betas!$A$9:$K$104,10,FALSE) -> 0.386115145 | K4: =VLOOKUP($A4,Betas!$A$9:$K$104,11,FALSE) -> 0.993693308 | L4: =VLOOKUP(A4,'Revenues multiples'!$A$9:$F$102,3,FALSE) -> 0.94 | M4: =VLOOKUP(A4,'Revenues multiples'!$A$9:$F$102,4,FALSE) -> 0.1079 | N4: =VLOOKUP(A4,'Revenues multiples'!$A$9:$F$102,5,FALSE) -> 1.53 | O4: =VLOOKUP(A4,'Revenues multiples'!$A$9:$F$102,6,FALSE) -> 0.163 | Q4: Business | R4: Revenues | S4: EV/Sales | T4: Estimated Value | U4: Unlevered Beta
A5: Apparel | B5: =VLOOKUP($A5,Betas!$A$9:$K$104,2,FALSE) -> 58 | C5: =VLOOKUP($A5,Betas!$A$9:$K$104,3,FALSE) -> 0.880540498 | D5: =VLOOKUP($A5,Betas!$A$9:$K$104,4,FALSE) -> 0.3421375377 | E5: =VLOOKUP($A5,Betas!$A$9:$K$104,5,FALSE) -> 0.109533254 | F5: =VLOOKUP($A5,Betas!$A$9:$K$104,6,FALSE) -> 0.6749184314 | G5: =VLOOKUP($A5,Betas!$A$9:$K$104,7,FALSE) -> 0.04298240573 | H5: =VLOOKUP($A5,Betas!$A$9:$K$104,8,FALSE) -> 0.7052309544 | I5: =VLOOKUP($A5,Betas!$A$9:$K$104,9,FALSE) -> 0.496763552 | J5: =VLOOKUP($A5,Betas!$A$9:$K$104,10,FALSE) -> 0.471469004 | K5: =VLOOKUP($A5,Betas!$A$9:$K$104,11,FALSE) -> 0.2476777752 | L5: =VLOOKUP(A5,'Revenues multiples'!$A$9:$F$102,3,FALSE) -> 1.41 | M5: =VLOOKUP(A5,'Revenues multiples'!$A$9:$F$102,4,FALSE) -> 0.0629 | N5: =VLOOKUP(A5,'Revenues multiples'!$A$9:$F$102,5,FALSE) -> 1.81 | O5: =VLOOKUP(A5,'Revenues multiples'!$A$9:$F$102,6,FALSE) -> 0.1131 | Q5: Auto & Truck | R5: 60 | S5: =VLOOKUP(Q5,Table1[#All],14,FALSE) -> 1.07 | T5: =R5*S5 -> 64.2 | U5: =VLOOKUP(Q5,Table1[#All],6,FALSE) -> 0.3547783857
A6: Auto & Truck | B6: =VLOOKUP($A6,Betas!$A$9:$K$104,2,FALSE) -> 15 | C6: =VLOOKUP($A6,Betas!$A$9:$K$104,3,FALSE) -> 0.845010784 | D6: =VLOOKUP($A6,Betas!$A$9:$K$104,4,FALSE) -> 1.5042106 | E6: =VLOOKUP($A6,Betas!$A$9:$K$104,5,FALSE) -> 0.081379334 | F6: =VLOOKUP($A6,Betas!$A$9:$K$104,6,FALSE) -> 0.3547783857 | G6: =VLOOKUP($A6,Betas!$A$9:$K$104,7,FALSE) -> 0.0646084521 | H6: =VLOOKUP($A6,Betas!$A$9:$K$104,8,FALSE) -> 0.3792832921 | I6: =VLOOKUP($A6,Betas!$A$9:$K$104,9,FALSE) -> 0.622199142 | J6: =VLOOKUP($A6,Betas!$A$9:$K$104,10,FALSE) -> 0.292145212 | K6: =VLOOKUP($A6,Betas!$A$9:$K$104,11,FALSE) -> 3.665423705 | L6: =VLOOKUP(A6,'Revenues multiples'!$A$9:$F$102,3,FALSE) -> 0.46 | M6: =VLOOKUP(A6,'Revenues multiples'!$A$9:$F$102,4,FALSE) -> 0.0635 | N6: =VLOOKUP(A6,'Revenues multiples'!$A$9:$F$102,5,FALSE) -> 1.07 | O6: =VLOOKUP(A6,'Revenues multiples'!$A$9:$F$102,6,FALSE) -> 0.0539 | Q6: Electrical equipment | R6: 30 | S6: =VLOOKUP(Q6,Table1[#All],14,FALSE) -> 2.24 | T6: =R6*S6 -> 67.2 | U6: =VLOOKUP(Q6,Table1[#All],6,FALSE) -> 0.9686262256
A7: Auto Parts | B7: =VLOOKUP($A7,Betas!$A$9:$K$104,2,FALSE) -> 63 | C7: =VLOOKUP($A7,Betas!$A$9:$K$104,3,FALSE) -> 1.122629713 | D7: =VLOOKUP($A7,Betas!$A$9:$K$104,4,FALSE) -> 0.3522052462 | E7: =VLOOKUP($A7,Betas!$A$9:$K$104,5,FALSE) -> 0.103995087 | F7: =VLOOKUP($A7,Betas!$A$9:$K$104,6,FALSE) -> 0.8533359693 | G7: =VLOOKUP($A7,Betas!$A$9:$K$104,7,FALSE) -> 0.08900947621 | H7: =VLOOKUP($A7,Betas!$A$9:$K$104,8,FALSE) -> 0.9367122347 | I7: =VLOOKUP($A7,Betas!$A$9:$K$104,9,FALSE) -> 0.547780249 | J7: =VLOOKUP($A7,Betas!$A$9:$K$104,10,FALSE) -> 0.506406849 | K7: =VLOOKUP($A7,Betas!$A$9:$K$104,11,FALSE) -> 0.5410439774 | L7: =VLOOKUP(A7,'Revenues multiples'!$A$9:$F$102,3,FALSE) -> 0.67 | M7: =VLOOKUP(A7,'Revenues multiples'!$A$9:$F$102,4,FALSE) -> 0.0476 | N7: =VLOOKUP(A7,'Revenues multiples'!$A$9:$F$102,5,FALSE) -> 0.83 | O7: =VLOOKUP(A7,'Revenues multiples'!$A$9:$F$102,6,FALSE) -> 0.0868 | Q7: Green & Renewable Energy | R7: 10 | S7: =VLOOKUP(Q7,Table1[#All],14,FALSE) -> 7.72 | T7: =R7*S7 -> 77.2 | U7: =VLOOKUP(Q7,Table1[#All],6,FALSE) -> 0.4271131166
A8: Bank (Money Center) | B8: =VLOOKUP($A8,Betas!$A$9:$K$104,2,FALSE) -> 10 | C8: =VLOOKUP($A8,Betas!$A$9:$K$104,3,FALSE) -> 0.860228972 | D8: =VLOOKUP($A8,Betas!$A$9:$K$104,4,FALSE) -> 1.880296328 | E8: =VLOOKUP($A8,Betas!$A$9:$K$104,5,FALSE) -> 0.2789912 | F8: =VLOOKUP($A8,Betas!$A$9:$K$104,6,FALSE) -> 0.3651675712 | G8: =VLOOKUP($A8,Betas!$A$9:$K$104,7,FALSE) -> 0.0989485142 | H8: =VLOOKUP($A8,Betas!$A$9:$K$104,8,FALSE) -> 0.4052682638 | I8: =VLOOKUP($A8,Betas!$A$9:$K$104,9,FALSE) -> 0.265848774 | J8: =VLOOKUP($A8,Betas!$A$9:$K$104,10,FALSE) -> 0.258527317 | K8: =VLOOKUP($A8,Betas!$A$9:$K$104,11,FALSE) ->  | L8: =VLOOKUP(A8,'Revenues multiples'!$A$9:$F$102,3,FALSE) -> 3.17 | M8: =VLOOKUP(A8,'Revenues multiples'!$A$9:$F$102,4,FALSE) -> 0.245 | N8: =VLOOKUP(A8,'Revenues multiples'!$A$9:$F$102,5,FALSE) -> 8.24 | O8: =VLOOKUP(A8,'Revenues multiples'!$A$9:$F$102,6,FALSE) -> -0.0012 | Q8: Company | R8: =SUM(R5:R7) -> 100 | T8: =SUM(T5:T7) -> 208.6 | U8: =U5*(T5/T8)+U6*T6/T8+U7*(T7/T8) -> 0.5792981176
A9: Banks (Regional) | B9: =VLOOKUP($A9,Betas!$A$9:$K$104,2,FALSE) -> 645 | C9: =VLOOKUP($A9,Betas!$A$9:$K$104,3,FALSE) -> 0.471938211 | D9: =VLOOKUP($A9,Betas!$A$9:$K$104,4,FALSE) -> 0.6051125362 | E9: =VLOOKUP($A9,Betas!$A$9:$K$104,5,FALSE) -> 0.254251232 | F9: =VLOOKUP($A9,Betas!$A$9:$K$104,6,FALSE) -> 0.3251916155 | G9: =VLOOKUP($A9,Betas!$A$9:$K$104,7,FALSE) -> 0.1075704542 | H9: =VLOOKUP($A9,Betas!$A$9:$K$104,8,FALSE) -> 0.3643891185 | I9: =VLOOKUP($A9,Betas!$A$9:$K$104,9,FALSE) -> 0.232455577 | J9: =VLOOKUP($A9,Betas!$A$9:$K$104,10,FALSE) -> 0.228435165 | K9: =VLOOKUP($A9,Betas!$A$9:$K$104,11,FALSE) ->  | L9: =VLOOKUP(A9,'Revenues multiples'!$A$9:$F$102,3,FALSE) -> 4.38 | M9: =VLOOKUP(A9,'Revenues multiples'!$A$9:$F$102,4,FALSE) -> 0.2339 | N9: =VLOOKUP(A9,'Revenues multiples'!$A$9:$F$102,5,FALSE) -> 6.28 | O9: =VLOOKUP(A9,'Revenues multiples'!$A$9:$F$102,6,FALSE) -> -0.0013
A10: Beverage (Alcoholic) | B10: =VLOOKUP($A10,Betas!$A$9:$K$104,2,FALSE) -> 25 | C10: =VLOOKUP($A10,Betas!$A$9:$K$104,3,FALSE) -> 0.792801661 | D10: =VLOOKUP($A10,Betas!$A$9:$K$104,4,FALSE) -> 0.2902172167 | E10: =VLOOKUP($A10,Betas!$A$9:$K$104,5,FALSE) -> 0.108611294 | F10: =VLOOKUP($A10,Betas!$A$9:$K$104,6,FALSE) -> 0.6298593473 | G10: =VLOOKUP($A10,Betas!$A$9:$K$104,7,FALSE) -> 0.1130455984 | H10: =VLOOKUP($A10,Betas!$A$9:$K$104,8,FALSE) -> 0.7101372361 | I10: =VLOOKUP($A10,Betas!$A$9:$K$104,9,FALSE) -> 0.580495323 | J10: =VLOOKUP($A10,Betas!$A$9:$K$104,10,FALSE) -> 0.441795359 | K10: =VLOOKUP($A10,Betas!$A$9:$K$104,11,FALSE) -> 0.2749218981 | L10: =VLOOKUP(A10,'Revenues multiples'!$A$9:$F$102,3,FALSE) -> 4.71 | M10: =VLOOKUP(A10,'Revenues multiples'!$A$9:$F$102,4,FALSE) -> 0.1913 | N10: =VLOOKUP(A10,'Revenues multiples'!$A$9:$F$102,5,FALSE) -> 5.39 | O10: =VLOOKUP(A10,'Revenues multiples'!$A$9:$F$102,6,FALSE) -> 0.2426
A11: Beverage (Soft) | B11: =VLOOKUP($A11,Betas!$A$9:$K$104,2,FALSE) -> 36 | C11: =VLOOKUP($A11,Betas!$A$9:$K$104,3,FALSE) -> 0.911339119 | D11: =VLOOKUP($A11,Betas!$A$9:$K$104,4,FALSE) -> 0.2451301792 | E11: =VLOOKUP($A11,Betas!$A$9:$K$104,5,FALSE) -> 0.058678472 | F11: =VLOOKUP($A11,Betas!$A$9:$K$104,6,FALSE) -> 0.7404768213 | G11: =VLOOKUP($A11,Betas!$A$9:$K$104,7,FALSE) -> 0.04835943041 | H11: =VLOOKUP($A11,Betas!$A$9:$K$104,8,FALSE) -> 0.7781055631 | I11: =VLOOKUP($A11,Betas!$A$9:$K$104,9,FALSE) -> 0.585587459 | J11: =VLOOKUP($A11,Betas!$A$9:$K$104,10,FALSE) -> 0.527987959 | K11: =VLOOKUP($A11,Betas!$A$9:$K$104,11,FALSE) -> 0.1654898059 | L11: =VLOOKUP(A11,'Revenues multiples'!$A$9:$F$102,3,FALSE) -> 3.12 | M11: =VLOOKUP(A11,'Revenues multiples'!$A$9:$F$102,4,FALSE) -> 0.1281 | N11: =VLOOKUP(A11,'Revenues multiples'!$A$9:$F$102,5,FALSE) -> 3.7 | O11: =VLOOKUP(A11,'Revenues multiples'!$A$9:$F$102,6,FALSE) -> 0.1886
A12: Broadcasting | B12: =VLOOKUP($A12,Betas!$A$9:$K$104,2,FALSE) -> 30 | C12: =VLOOKUP($A12,Betas!$A$9:$K$104,3,FALSE) -> 1.220010347 | D12: =VLOOKUP($A12,Betas!$A$9:$K$104,4,FALSE) -> 0.9592489373 | E12: =VLOOKUP($A12,Betas!$A$9:$K$104,5,FALSE) -> 0.18542485 | F12: =VLOOKUP($A12,Betas!$A$9:$K$104,6,FALSE) -> 0.6848679728 | G12: =VLOOKUP($A12,Betas!$A$9:$K$104,7,FALSE) -> 0.02167314408 | H12: =VLOOKUP($A12,Betas!$A$9:$K$104,8,FALSE) -> 0.7000400415 | I12: =VLOOKUP($A12,Betas!$A$9:$K$104,9,FALSE) -> 0.426602903 | J12: =VLOOKUP($A12,Betas!$A$9:$K$104,10,FALSE) -> 0.410107314 | K12: =VLOOKUP($A12,Betas!$A$9:$K$104,11,FALSE) -> 0.1849723631 | L12: =VLOOKUP(A12,'Revenues multiples'!$A$9:$F$102,3,FALSE) -> 1.58 | M12: =VLOOKUP(A12,'Revenues multiples'!$A$9:$F$102,4,FALSE) -> 0.0749 | N12: =VLOOKUP(A12,'Revenues multiples'!$A$9:$F$102,5,FALSE) -> 3.02 | O12: =VLOOKUP(A12,'Revenues multiples'!$A$9:$F$102,6,FALSE) -> 0.2309
A13: Brokerage & Investment Banking | B13: =VLOOKUP($A13,Betas!$A$9:$K$104,2,FALSE) -> 45 | C13: =VLOOKUP($A13,Betas!$A$9:$K$104,3,FALSE) -> 1.076942368 | D13: =VLOOKUP($A13,Betas!$A$9:$K$104,4,FALSE) -> 2.322105563 | E13: =VLOOKUP($A13,Betas!$A$9:$K$104,5,FALSE) -> 0.135860097 | F13: =VLOOKUP($A13,Betas!$A$9:$K$104,6,FALSE) -> 0.358189897 | G13: =VLOOKUP($A13,Betas!$A$9:$K$104,7,FALSE) -> 0.1497397445 | H13: =VLOOKUP($A13,Betas!$A$9:$K$104,8,FALSE) -> 0.4212708929 | I13: =VLOOKUP($A13,Betas!$A$9:$K$104,9,FALSE) -> 0.457675666 | J13: =VLOOKUP($A13,Betas!$A$9:$K$104,10,FALSE) -> 0.449611259 | K13: =VLOOKUP($A13,Betas!$A$9:$K$104,11,FALSE) -> 0.4020139768 | L13: =VLOOKUP(A13,'Revenues multiples'!$A$9:$F$102,3,FALSE) -> 2.58 | M13: =VLOOKUP(A13,'Revenues multiples'!$A$9:$F$102,4,FALSE) -> 0.1342 | N13: =VLOOKUP(A13,'Revenues multiples'!$A$9:$F$102,5,FALSE) -> 7.28 | O13: =VLOOKUP(A13,'Revenues multiples'!$A$9:$F$102,6,FALSE) -> -0.0007
A14: Building Materials | B14: =VLOOKUP($A14,Betas!$A$9:$K$104,2,FALSE) -> 41 | C14: =VLOOKUP($A14,Betas!$A$9:$K$104,3,FALSE) -> 1.006784289 | D14: =VLOOKUP($A14,Betas!$A$9:$K$104,4,FALSE) -> 0.2697691193 | E14: =VLOOKUP($A14,Betas!$A$9:$K$104,5,FALSE) -> 0.233912351 | F14: =VLOOKUP($A14,Betas!$A$9:$K$104,6,FALSE) -> 0.8343515352 | G14: =VLOOKUP($A14,Betas!$A$9:$K$104,7,FALSE) -> 0.04045621171 | H14: =VLOOKUP($A14,Betas!$A$9:$K$104,8,FALSE) -> 0.8695294007 | I14: =VLOOKUP($A14,Betas!$A$9:$K$104,9,FALSE) -> 0.381828186 | J14: =VLOOKUP($A14,Betas!$A$9:$K$104,10,FALSE) -> 0.337657801 | K14: =VLOOKUP($A14,Betas!$A$9:$K$104,11,FALSE) -> 0.4835975228 | L14: =VLOOKUP(A14,'Revenues multiples'!$A$9:$F$102,3,FALSE) -> 1.23 | M14: =VLOOKUP(A14,'Revenues multiples'!$A$9:$F$102,4,FALSE) -> 0.0677 | N14: =VLOOKUP(A14,'Revenues multiples'!$A$9:$F$102,5,FALSE) -> 1.49 | O14: =VLOOKUP(A14,'Revenues multiples'!$A$9:$F$102,6,FALSE) -> 0.1045
A15: Business & Consumer Services | B15: =VLOOKUP($A15,Betas!$A$9:$K$104,2,FALSE) -> 165 | C15: =VLOOKUP($A15,Betas!$A$9:$K$104,3,FALSE) -> 1.070528005 | D15: =VLOOKUP($A15,Betas!$A$9:$K$104,4,FALSE) -> 0.3509784671 | E15: =VLOOKUP($A15,Betas!$A$9:$K$104,5,FALSE) -> 0.12605431 | F15: =VLOOKUP($A15,Betas!$A$9:$K$104,6,FALSE) -> 0.8192380924 | G15: =VLOOKUP($A15,Betas!$A$9:$K$104,7,FALSE) -> 0.03521923511 | H15: =VLOOKUP($A15,Betas!$A$9:$K$104,8,FALSE) -> 0.8491443053 | I15: =VLOOKUP($A15,Betas!$A$9:$K$104,9,FALSE) -> 0.519996318 | J15: =VLOOKUP($A15,Betas!$A$9:$K$104,10,FALSE) -> 0.447149183 | K15: =VLOOKUP($A15,Betas!$A$9:$K$104,11,FALSE) -> 0.2036750423 | L15: =VLOOKUP(A15,'Revenues multiples'!$A$9:$F$102,3,FALSE) -> 1.4 | M15: =VLOOKUP(A15,'Revenues multiples'!$A$9:$F$102,4,FALSE) -> 0.0461 | N15: =VLOOKUP(A15,'Revenues multiples'!$A$9:$F$102,5,FALSE) -> 1.83 | O15: =VLOOKUP(A15,'Revenues multiples'!$A$9:$F$102,6,FALSE) -> 0.1047
A16: Cable TV | B16: =VLOOKUP($A16,Betas!$A$9:$K$104,2,FALSE) -> 14 | C16: =VLOOKUP($A16,Betas!$A$9:$K$104,3,FALSE) -> 1.115739037 | D16: =VLOOKUP($A16,Betas!$A$9:$K$104,4,FALSE) -> 0.4923585742 | E16: =VLOOKUP($A16,Betas!$A$9:$K$104,5,FALSE) -> 0.202843211 | F16: =VLOOKUP($A16,Betas!$A$9:$K$104,6,FALSE) -> 0.8012563514 | G16: =VLOOKUP($A16,Betas!$A$9:$K$104,7,FALSE) -> 0.02315553419 | H16: =VLOOKUP($A16,Betas!$A$9:$K$104,8,FALSE) -> 0.8202496707 | I16: =VLOOKUP($A16,Betas!$A$9:$K$104,9,FALSE) -> 0.339521012 | J16: =VLOOKUP($A16,Betas!$A$9:$K$104,10,FALSE) -> 0.307837309 | K16: =VLOOKUP($A16,Betas!$A$9:$K$104,11,FALSE) -> 0.4008078661 | L16: =VLOOKUP(A16,'Revenues multiples'!$A$9:$F$102,3,FALSE) -> 2.63 | M16: =VLOOKUP(A16,'Revenues multiples'!$A$9:$F$102,4,FALSE) -> 0.1168 | N16: =VLOOKUP(A16,'Revenues multiples'!$A$9:$F$102,5,FALSE) -> 3.83 | O16: =VLOOKUP(A16,'Revenues multiples'!$A$9:$F$102,6,FALSE) -> 0.1921
A17: Chemical (Basic) | B17: =VLOOKUP($A17,Betas!$A$9:$K$104,2,FALSE) -> 45 | C17: =VLOOKUP($A17,Betas!$A$9:$K$104,3,FALSE) -> 1.002633463 | D17: =VLOOKUP($A17,Betas!$A$9:$K$104,4,FALSE) -> 0.5861565769 | E17: =VLOOKUP($A17,Betas!$A$9:$K$104,5,FALSE) -> 0.077064703 | F17: =VLOOKUP($A17,Betas!$A$9:$K$104,6,FALSE) -> 0.6506447025 | G17: =VLOOKUP($A17,Betas!$A$9:$K$104,7,FALSE) -> 0.03997213585 | H17: =VLOOKUP($A17,Betas!$A$9:$K$104,8,FALSE) -> 0.6777352271 | I17: =VLOOKUP($A17,Betas!$A$9:$K$104,9,FALSE) -> 0.552647789 | J17: =VLOOKUP($A17,Betas!$A$9:$K$104,10,FALSE) -> 0.599130897 | K17: =VLOOKUP($A17,Betas!$A$9:$K$104,11,FALSE) -> 0.5464015268 | L17: =VLOOKUP(A17,'Revenues multiples'!$A$9:$F$102,3,FALSE) -> 1.1 | M17: =VLOOKUP(A17,'Revenues multiples'!$A$9:$F$102,4,FALSE) -> 0.032 | N17: =VLOOKUP(A17,'Revenues multiples'!$A$9:$F$102,5,FALSE) -> 1.68 | O17: =VLOOKUP(A17,'Revenues multiples'!$A$9:$F$102,6,FALSE) -> 0.1024
A18: Chemical (Diversified) | B18: =VLOOKUP($A18,Betas!$A$9:$K$104,2,FALSE) -> 8 | C18: =VLOOKUP($A18,Betas!$A$9:$K$104,3,FALSE) -> 1.518895861 | D18: =VLOOKUP($A18,Betas!$A$9:$K$104,4,FALSE) -> 0.3552421226 | E18: =VLOOKUP($A18,Betas!$A$9:$K$104,5,FALSE) -> 0.065923463 | F18: =VLOOKUP($A18,Betas!$A$9:$K$104,6,FALSE) -> 1.140463472 | G18: =VLOOKUP($A18,Betas!$A$9:$K$104,7,FALSE) -> 0.06503694535 | H18: =VLOOKUP($A18,Betas!$A$9:$K$104,8,FALSE) -> 1.219795228 | I18: =VLOOKUP($A18,Betas!$A$9:$K$104,9,FALSE) -> 0.529804415 | J18: =VLOOKUP($A18,Betas!$A$9:$K$104,10,FALSE) -> 0.454849852 | K18: =VLOOKUP($A18,Betas!$A$9:$K$104,11,FALSE) -> 0.2646400617 | L18: =VLOOKUP(A18,'Revenues multiples'!$A$9:$F$102,3,FALSE) -> 1.54 | M18: =VLOOKUP(A18,'Revenues multiples'!$A$9:$F$102,4,FALSE) -> 0.1168 | N18: =VLOOKUP(A18,'Revenues multiples'!$A$9:$F$102,5,FALSE) -> 1.95 | O18: =VLOOKUP(A18,'Revenues multiples'!$A$9:$F$102,6,FALSE) -> 0.125
A19: Chemical (Specialty) | B19: =VLOOKUP($A19,Betas!$A$9:$K$104,2,FALSE) -> 100 | C19: =VLOOKUP($A19,Betas!$A$9:$K$104,3,FALSE) -> 1.198054185 | D19: =VLOOKUP($A19,Betas!$A$9:$K$104,4,FALSE) -> 0.2997797958 | E19: =VLOOKUP($A19,Betas!$A$9:$K$104,5,FALSE) -> 0.095849199 | F19: =VLOOKUP($A19,Betas!$A$9:$K$104,6,FALSE) -> 0.942573322 | G19: =VLOOKUP($A19,Betas!$A$9:$K$104,7,FALSE) -> 0.03966365196 | H19: =VLOOKUP($A19,Betas!$A$9:$K$104,8,FALSE) -> 0.9815033285 | I19: =VLOOKUP($A19,Betas!$A$9:$K$104,9,FALSE) -> 0.492445336 | J19: =VLOOKUP($A19,Betas!$A$9:$K$104,10,FALSE) -> 0.454402004 | K19: =VLOOKUP($A19,Betas!$A$9:$K$104,11,FALSE) -> 0.2794646949 | L19: =VLOOKUP(A19,'Revenues multiples'!$A$9:$F$102,3,FALSE) -> 1.94 | M19: =VLOOKUP(A19,'Revenues multiples'!$A$9:$F$102,4,FALSE) -> 0.0526 | N19: =VLOOKUP(A19,'Revenues multiples'!$A$9:$F$102,5,FALSE) -> 2.42 | O19: =VLOOKUP(A19,'Revenues multiples'!$A$9:$F$102,6,FALSE) -> 0.1416
A20: Coal & Related Energy | B20: =VLOOKUP($A20,Betas!$A$9:$K$104,2,FALSE) -> 38 | C20: =VLOOKUP($A20,Betas!$A$9:$K$104,3,FALSE) -> 1.363240792 | D20: =VLOOKUP($A20,Betas!$A$9:$K$104,4,FALSE) -> 1.385547706 | E20: =VLOOKUP($A20,Betas!$A$9:$K$104,5,FALSE) -> 0.00481985 | F20: =VLOOKUP($A20,Betas!$A$9:$K$104,6,FALSE) -> 0.5730624357 | G20: =VLOOKUP($A20,Betas!$A$9:$K$104,7,FALSE) -> 0.05342048767 | H20: =VLOOKUP($A20,Betas!$A$9:$K$104,8,FALSE) -> 0.6054033795 | I20: =VLOOKUP($A20,Betas!$A$9:$K$104,9,FALSE) -> 0.600129856 | J20: =VLOOKUP($A20,Betas!$A$9:$K$104,10,FALSE) -> 0.733131462 | K20: =VLOOKUP($A20,Betas!$A$9:$K$104,11,FALSE) -> 0.8486895371 | L20: =VLOOKUP(A20,'Revenues multiples'!$A$9:$F$102,3,FALSE) -> 1.01 | M20: =VLOOKUP(A20,'Revenues multiples'!$A$9:$F$102,4,FALSE) -> -0.1772 | N20: =VLOOKUP(A20,'Revenues multiples'!$A$9:$F$102,5,FALSE) -> 2.27 | O20: =VLOOKUP(A20,'Revenues multiples'!$A$9:$F$102,6,FALSE) -> -0.1427
A21: Computer Services | B21: =VLOOKUP($A21,Betas!$A$9:$K$104,2,FALSE) -> 117 | C21: =VLOOKUP($A21,Betas!$A$9:$K$104,3,FALSE) -> 0.985286934 | D21: =VLOOKUP($A21,Betas!$A$9:$K$104,4,FALSE) -> 0.2833160424 | E21: =VLOOKUP($A21,Betas!$A$9:$K$104,5,FALSE) -> 0.111806872 | F21: =VLOOKUP($A21,Betas!$A$9:$K$104,6,FALSE) -> 0.7871971464 | G21: =VLOOKUP($A21,Betas!$A$9:$K$104,7,FALSE) -> 0.05238281271 | H21: =VLOOKUP($A21,Betas!$A$9:$K$104,8,FALSE) -> 0.8307121873 | I21: =VLOOKUP($A21,Betas!$A$9:$K$104,9,FALSE) -> 0.538980922 | J21: =VLOOKUP($A21,Betas!$A$9:$K$104,10,FALSE) -> 0.455738414 | K21: =VLOOKUP($A21,Betas!$A$9:$K$104,11,FALSE) -> 0.1635660812 | L21: =VLOOKUP(A21,'Revenues multiples'!$A$9:$F$102,3,FALSE) -> 1.07 | M21: =VLOOKUP(A21,'Revenues multiples'!$A$9:$F$102,4,FALSE) -> 0.0602 | N21: =VLOOKUP(A21,'Revenues multiples'!$A$9:$F$102,5,FALSE) -> 1.3 | O21: =VLOOKUP(A21,'Revenues multiples'!$A$9:$F$102,6,FALSE) -> 0.0861
A22: Computers/Peripherals | B22: =VLOOKUP($A22,Betas!$A$9:$K$104,2,FALSE) -> 55 | C22: =VLOOKUP($A22,Betas!$A$9:$K$104,3,FALSE) -> 1.055442804 | D22: =VLOOKUP($A22,Betas!$A$9:$K$104,4,FALSE) -> 0.1959863318 | E22: =VLOOKUP($A22,Betas!$A$9:$K$104,5,FALSE) -> 0.056798409 | F22: =VLOOKUP($A22,Betas!$A$9:$K$104,6,FALSE) -> 0.8907783168 | G22: =VLOOKUP($A22,Betas!$A$9:$K$104,7,FALSE) -> 0.05614743383 | H22: =VLOOKUP($A22,Betas!$A$9:$K$104,8,FALSE) -> 0.943768496 | I22: =VLOOKUP($A22,Betas!$A$9:$K$104,9,FALSE) -> 0.486561063 | J22: =VLOOKUP($A22,Betas!$A$9:$K$104,10,FALSE) -> 0.602897337 | K22: =VLOOKUP($A22,Betas!$A$9:$K$104,11,FALSE) -> 0.5714672176 | L22: =VLOOKUP(A22,'Revenues multiples'!$A$9:$F$102,3,FALSE) -> 2.07 | M22: =VLOOKUP(A22,'Revenues multiples'!$A$9:$F$102,4,FALSE) -> 0.1418 | N22: =VLOOKUP(A22,'Revenues multiples'!$A$9:$F$102,5,FALSE) -> 2.33 | O22: =VLOOKUP(A22,'Revenues multiples'!$A$9:$F$102,6,FALSE) -> 0.1982
A23: Construction Supplies | B23: =VLOOKUP($A23,Betas!$A$9:$K$104,2,FALSE) -> 51 | C23: =VLOOKUP($A23,Betas!$A$9:$K$104,3,FALSE) -> 1.314828594 | D23: =VLOOKUP($A23,Betas!$A$9:$K$104,4,FALSE) -> 0.4257350991 | E23: =VLOOKUP($A23,Betas!$A$9:$K$104,5,FALSE) -> 0.18444153 | F23: =VLOOKUP($A23,Betas!$A$9:$K$104,6,FALSE) -> 0.9759627473 | G23: =VLOOKUP($A23,Betas!$A$9:$K$104,7,FALSE) -> 0.04678094356 | H23: =VLOOKUP($A23,Betas!$A$9:$K$104,8,FALSE) -> 1.023859879 | I23: =VLOOKUP($A23,Betas!$A$9:$K$104,9,FALSE) -> 0.442406072 | J23: =VLOOKUP($A23,Betas!$A$9:$K$104,10,FALSE) -> 0.388696067 | K23: =VLOOKUP($A23,Betas!$A$9:$K$104,11,FALSE) -> 0.2800333796 | L23: =VLOOKUP(A23,'Revenues multiples'!$A$9:$F$102,3,FALSE) -> 1.31 | M23: =VLOOKUP(A23,'Revenues multiples'!$A$9:$F$102,4,FALSE) -> 0.0399 | N23: =VLOOKUP(A23,'Revenues multiples'!$A$9:$F$102,5,FALSE) -> 1.78 | O23: =VLOOKUP(A23,'Revenues multiples'!$A$9:$F$102,6,FALSE) -> 0.0923
A24: Diversified | B24: =VLOOKUP($A24,Betas!$A$9:$K$104,2,FALSE) -> 24 | C24: =VLOOKUP($A24,Betas!$A$9:$K$104,3,FALSE) -> 0.764571368 | D24: =VLOOKUP($A24,Betas!$A$9:$K$104,4,FALSE) -> 0.3598205694 | E24: =VLOOKUP($A24,Betas!$A$9:$K$104,5,FALSE) -> 0.115501218 | F24: =VLOOKUP($A24,Betas!$A$9:$K$104,6,FALSE) -> 0.579984883 | G24: =VLOOKUP($A24,Betas!$A$9:$K$104,7,FALSE) -> 0.07837422174 | H24: =VLOOKUP($A24,Betas!$A$9:$K$104,8,FALSE) -> 0.6293062724 | I24: =VLOOKUP($A24,Betas!$A$9:$K$104,9,FALSE) -> 0.395060506 | J24: =VLOOKUP($A24,Betas!$A$9:$K$104,10,FALSE) -> 0.232809456 | K24: =VLOOKUP($A24,Betas!$A$9:$K$104,11,FALSE) -> 0.2191605391 | L24: =VLOOKUP(A24,'Revenues multiples'!$A$9:$F$102,3,FALSE) -> 2.1 | M24: =VLOOKUP(A24,'Revenues multiples'!$A$9:$F$102,4,FALSE) -> 0.0996 | N24: =VLOOKUP(A24,'Revenues multiples'!$A$9:$F$102,5,FALSE) -> 2.64 | O24: =VLOOKUP(A24,'Revenues multiples'!$A$9:$F$102,6,FALSE) -> 0.1378
A25: Drugs (Biotechnology) | B25: =VLOOKUP($A25,Betas!$A$9:$K$104,2,FALSE) -> 426 | C25: =VLOOKUP($A25,Betas!$A$9:$K$104,3,FALSE) -> 1.402457498 | D25: =VLOOKUP($A25,Betas!$A$9:$K$104,4,FALSE) -> 0.1944504371 | E25: =VLOOKUP($A25,Betas!$A$9:$K$104,5,FALSE) -> 0.014428309 | F25: =VLOOKUP($A25,Betas!$A$9:$K$104,6,FALSE) -> 1.176908961 | G25: =VLOOKUP($A25,Betas!$A$9:$K$104,7,FALSE) -> 0.05539955973 | H25: =VLOOKUP($A25,Betas!$A$9:$K$104,8,FALSE) -> 1.245933107 | I25: =VLOOKUP($A25,Betas!$A$9:$K$104,9,FALSE) -> 0.580454917 | J25: =VLOOKUP($A25,Betas!$A$9:$K$104,10,FALSE) -> 0.752300475 | K25: =VLOOKUP($A25,Betas!$A$9:$K$104,11,FALSE) -> 0.6860796993 | L25: =VLOOKUP(A25,'Revenues multiples'!$A$9:$F$102,3,FALSE) -> 5.82 | M25: =VLOOKUP(A25,'Revenues multiples'!$A$9:$F$102,4,FALSE) -> 0.1545 | N25: =VLOOKUP(A25,'Revenues multiples'!$A$9:$F$102,5,FALSE) -> 6.57 | O25: =VLOOKUP(A25,'Revenues multiples'!$A$9:$F$102,6,FALSE) -> 0.2789
A26: Drugs (Pharmaceutical) | B26: =VLOOKUP($A26,Betas!$A$9:$K$104,2,FALSE) -> 164 | C26: =VLOOKUP($A26,Betas!$A$9:$K$104,3,FALSE) -> 1.015395241 | D26: =VLOOKUP($A26,Betas!$A$9:$K$104,4,FALSE) -> 0.1457978595 | E26: =VLOOKUP($A26,Betas!$A$9:$K$104,5,FALSE) -> 0.025448829 | F26: =VLOOKUP($A26,Betas!$A$9:$K$104,6,FALSE) -> 0.8890695883 | G26: =VLOOKUP($A26,Betas!$A$9:$K$104,7,FALSE) -> 0.03981042896 | H26: =VLOOKUP($A26,Betas!$A$9:$K$104,8,FALSE) -> 0.925931311 | I26: =VLOOKUP($A26,Betas!$A$9:$K$104,9,FALSE) -> 0.6179055 | J26: =VLOOKUP($A26,Betas!$A$9:$K$104,10,FALSE) -> 0.67611292 | K26: =VLOOKUP($A26,Betas!$A$9:$K$104,11,FALSE) -> 0.1205329921 | L26: =VLOOKUP(A26,'Revenues multiples'!$A$9:$F$102,3,FALSE) -> 4.19 | M26: =VLOOKUP(A26,'Revenues multiples'!$A$9:$F$102,4,FALSE) -> 0.1419 | N26: =VLOOKUP(A26,'Revenues multiples'!$A$9:$F$102,5,FALSE) -> 4.61 | O26: =VLOOKUP(A26,'Revenues multiples'!$A$9:$F$102,6,FALSE) -> 0.2412
A27: Education | B27: =VLOOKUP($A27,Betas!$A$9:$K$104,2,FALSE) -> 36 | C27: =VLOOKUP($A27,Betas!$A$9:$K$104,3,FALSE) -> 1.225147196 | D27: =VLOOKUP($A27,Betas!$A$9:$K$104,4,FALSE) -> 0.3338157604 | E27: =VLOOKUP($A27,Betas!$A$9:$K$104,5,FALSE) -> 0.092901995 | F27: =VLOOKUP($A27,Betas!$A$9:$K$104,6,FALSE) -> 0.9403928469 | G27: =VLOOKUP($A27,Betas!$A$9:$K$104,7,FALSE) -> 0.1015928651 | H27: =VLOOKUP($A27,Betas!$A$9:$K$104,8,FALSE) -> 1.046733502 | I27: =VLOOKUP($A27,Betas!$A$9:$K$104,9,FALSE) -> 0.586527651 | J27: =VLOOKUP($A27,Betas!$A$9:$K$104,10,FALSE) -> 0.515052101 | K27: =VLOOKUP($A27,Betas!$A$9:$K$104,11,FALSE) -> 0.4335604872 | L27: =VLOOKUP(A27,'Revenues multiples'!$A$9:$F$102,3,FALSE) -> 1.25 | M27: =VLOOKUP(A27,'Revenues multiples'!$A$9:$F$102,4,FALSE) -> 0.0201 | N27: =VLOOKUP(A27,'Revenues multiples'!$A$9:$F$102,5,FALSE) -> 1.49 | O27: =VLOOKUP(A27,'Revenues multiples'!$A$9:$F$102,6,FALSE) -> 0.0784
A28: Electrical Equipment | B28: =VLOOKUP($A28,Betas!$A$9:$K$104,2,FALSE) -> 119 | C28: =VLOOKUP($A28,Betas!$A$9:$K$104,3,FALSE) -> 1.143250093 | D28: =VLOOKUP($A28,Betas!$A$9:$K$104,4,FALSE) -> 0.1915183858 | E28: =VLOOKUP($A28,Betas!$A$9:$K$104,5,FALSE) -> 0.058680823 | F28: =VLOOKUP($A28,Betas!$A$9:$K$104,6,FALSE) -> 0.9686262256 | G28: =VLOOKUP($A28,Betas!$A$9:$K$104,7,FALSE) -> 0.06421280572 | H28: =VLOOKUP($A28,Betas!$A$9:$K$104,8,FALSE) -> 1.035092414 | I28: =VLOOKUP($A28,Betas!$A$9:$K$104,9,FALSE) -> 0.625150448 | J28: =VLOOKUP($A28,Betas!$A$9:$K$104,10,FALSE) -> 0.546296312 | K28: =VLOOKUP($A28,Betas!$A$9:$K$104,11,FALSE) -> 0.1778332301 | L28: =VLOOKUP(A28,'Revenues multiples'!$A$9:$F$102,3,FALSE) -> 2.01 | M28: =VLOOKUP(A28,'Revenues multiples'!$A$9:$F$102,4,FALSE) -> 0.0671 | N28: =VLOOKUP(A28,'Revenues multiples'!$A$9:$F$102,5,FALSE) -> 2.24 | O28: =VLOOKUP(A28,'Revenues multiples'!$A$9:$F$102,6,FALSE) -> 0.1238
A29: Electronics (Consumer & Office) | B29: =VLOOKUP($A29,Betas!$A$9:$K$104,2,FALSE) -> 24 | C29: =VLOOKUP($A29,Betas!$A$9:$K$104,3,FALSE) -> 1.083404984 | D29: =VLOOKUP($A29,Betas!$A$9:$K$104,4,FALSE) -> 0.1938739603 | E29: =VLOOKUP($A29,Betas!$A$9:$K$104,5,FALSE) -> 0.038059152 | F29: =VLOOKUP($A29,Betas!$A$9:$K$104,6,FALSE) -> 0.9131136049 | G29: =VLOOKUP($A29,Betas!$A$9:$K$104,7,FALSE) -> 0.05994251116 | H29: =VLOOKUP($A29,Betas!$A$9:$K$104,8,FALSE) -> 0.9713380466 | I29: =VLOOKUP($A29,Betas!$A$9:$K$104,9,FALSE) -> 0.608578016 | J29: =VLOOKUP($A29,Betas!$A$9:$K$104,10,FALSE) -> 0.669406497 | K29: =VLOOKUP($A29,Betas!$A$9:$K$104,11,FALSE) -> 0.5744284622 | L29: =VLOOKUP(A29,'Revenues multiples'!$A$9:$F$102,3,FALSE) -> 1.1 | M29: =VLOOKUP(A29,'Revenues multiples'!$A$9:$F$102,4,FALSE) -> -0.0172 | N29: =VLOOKUP(A29,'Revenues multiples'!$A$9:$F$102,5,FALSE) -> 1.24 | O29: =VLOOKUP(A29,'Revenues multiples'!$A$9:$F$102,6,FALSE) -> 0.0216
A30: Electronics (General) | B30: =VLOOKUP($A30,Betas!$A$9:$K$104,2,FALSE) -> 164 | C30: =VLOOKUP($A30,Betas!$A$9:$K$104,3,FALSE) -> 0.864158321 | D30: =VLOOKUP($A30,Betas!$A$9:$K$104,4,FALSE) -> 0.1787478087 | E30: =VLOOKUP($A30,Betas!$A$9:$K$104,5,FALSE) -> 0.088485489 | F30: =VLOOKUP($A30,Betas!$A$9:$K$104,6,FALSE) -> 0.7430863538 | G30: =VLOOKUP($A30,Betas!$A$9:$K$104,7,FALSE) -> 0.1002263494 | H30: =VLOOKUP($A30,Betas!$A$9:$K$104,8,FALSE) -> 0.8258592072 | I30: =VLOOKUP($A30,Betas!$A$9:$K$104,9,FALSE) -> 0.495109307 | J30: =VLOOKUP($A30,Betas!$A$9:$K$104,10,FALSE) -> 0.489119183 | K30: =VLOOKUP($A30,Betas!$A$9:$K$104,11,FALSE) -> 0.3065685402 | L30: =VLOOKUP(A30,'Revenues multiples'!$A$9:$F$102,3,FALSE) -> 1.59 | M30: =VLOOKUP(A30,'Revenues multiples'!$A$9:$F$102,4,FALSE) -> 0.058 | N30: =VLOOKUP(A30,'Revenues multiples'!$A$9:$F$102,5,FALSE) -> 1.68 | O30: =VLOOKUP(A30,'Revenues multiples'!$A$9:$F$102,6,FALSE) -> 0.0828
A31: Engineering/Construction | B31: =VLOOKUP($A31,Betas!$A$9:$K$104,2,FALSE) -> 48 | C31: =VLOOKUP($A31,Betas!$A$9:$K$104,3,FALSE) -> 1.181064019 | D31: =VLOOKUP($A31,Betas!$A$9:$K$104,4,FALSE) -> 0.3245425203 | E31: =VLOOKUP($A31,Betas!$A$9:$K$104,5,FALSE) -> 0.151509873 | F31: =VLOOKUP($A31,Betas!$A$9:$K$104,6,FALSE) -> 0.9260551666 | G31: =VLOOKUP($A31,Betas!$A$9:$K$104,7,FALSE) -> 0.08259488996 | H31: =VLOOKUP($A31,Betas!$A$9:$K$104,8,FALSE) -> 1.00942883 | I31: =VLOOKUP($A31,Betas!$A$9:$K$104,9,FALSE) -> 0.505590903 | J31: =VLOOKUP($A31,Betas!$A$9:$K$104,10,FALSE) -> 0.442309129 | K31: =VLOOKUP($A31,Betas!$A$9:$K$104,11,FALSE) -> 0.2047758563 | L31: =VLOOKUP(A31,'Revenues multiples'!$A$9:$F$102,3,FALSE) -> 0.56 | M31: =VLOOKUP(A31,'Revenues multiples'!$A$9:$F$102,4,FALSE) -> 0.0057 | N31: =VLOOKUP(A31,'Revenues multiples'!$A$9:$F$102,5,FALSE) -> 0.68 | O31: =VLOOKUP(A31,'Revenues multiples'!$A$9:$F$102,6,FALSE) -> 0.0398
A32: Entertainment | B32: =VLOOKUP($A32,Betas!$A$9:$K$104,2,FALSE) -> 79 | C32: =VLOOKUP($A32,Betas!$A$9:$K$104,3,FALSE) -> 1.202356752 | D32: =VLOOKUP($A32,Betas!$A$9:$K$104,4,FALSE) -> 0.308268514 | E32: =VLOOKUP($A32,Betas!$A$9:$K$104,5,FALSE) -> 0.054961688 | F32: =VLOOKUP($A32,Betas!$A$9:$K$104,6,FALSE) -> 0.931102731 | G32: =VLOOKUP($A32,Betas!$A$9:$K$104,7,FALSE) -> 0.03591583671 | H32: =VLOOKUP($A32,Betas!$A$9:$K$104,8,FALSE) -> 0.9657898828 | I32: =VLOOKUP($A32,Betas!$A$9:$K$104,9,FALSE) -> 0.660488437 | J32: =VLOOKUP($A32,Betas!$A$9:$K$104,10,FALSE) -> 0.447072212 | K32: =VLOOKUP($A32,Betas!$A$9:$K$104,11,FALSE) -> 0.1889735103 | L32: =VLOOKUP(A32,'Revenues multiples'!$A$9:$F$102,3,FALSE) -> 2.28 | M32: =VLOOKUP(A32,'Revenues multiples'!$A$9:$F$102,4,FALSE) -> 0.1258 | N32: =VLOOKUP(A32,'Revenues multiples'!$A$9:$F$102,5,FALSE) -> 2.88 | O32: =VLOOKUP(A32,'Revenues multiples'!$A$9:$F$102,6,FALSE) -> 0.215
A33: Environmental & Waste Services | B33: =VLOOKUP($A33,Betas!$A$9:$K$104,2,FALSE) -> 89 | C33: =VLOOKUP($A33,Betas!$A$9:$K$104,3,FALSE) -> 0.852223053 | D33: =VLOOKUP($A33,Betas!$A$9:$K$104,4,FALSE) -> 0.38983966 | E33: =VLOOKUP($A33,Betas!$A$9:$K$104,5,FALSE) -> 0.050661097 | F33: =VLOOKUP($A33,Betas!$A$9:$K$104,6,FALSE) -> 0.6220197804 | G33: =VLOOKUP($A33,Betas!$A$9:$K$104,7,FALSE) -> 0.00954750424 | H33: =VLOOKUP($A33,Betas!$A$9:$K$104,8,FALSE) -> 0.6280157635 | I33: =VLOOKUP($A33,Betas!$A$9:$K$104,9,FALSE) -> 0.583678548 | J33: =VLOOKUP($A33,Betas!$A$9:$K$104,10,FALSE) -> 0.579383386 | K33: =VLOOKUP($A33,Betas!$A$9:$K$104,11,FALSE) -> 0.1424715819 | L33: =VLOOKUP(A33,'Revenues multiples'!$A$9:$F$102,3,FALSE) -> 1.78 | M33: =VLOOKUP(A33,'Revenues multiples'!$A$9:$F$102,4,FALSE) -> 0.0463 | N33: =VLOOKUP(A33,'Revenues multiples'!$A$9:$F$102,5,FALSE) -> 2.45 | O33: =VLOOKUP(A33,'Revenues multiples'!$A$9:$F$102,6,FALSE) -> 0.1204
A34: Farming/Agriculture | B34: =VLOOKUP($A34,Betas!$A$9:$K$104,2,FALSE) -> 37 | C34: =VLOOKUP($A34,Betas!$A$9:$K$104,3,FALSE) -> 0.919292835 | D34: =VLOOKUP($A34,Betas!$A$9:$K$104,4,FALSE) -> 0.6003563943 | E34: =VLOOKUP($A34,Betas!$A$9:$K$104,5,FALSE) -> 0.078907754 | F34: =VLOOKUP($A34,Betas!$A$9:$K$104,6,FALSE) -> 0.5919526925 | G34: =VLOOKUP($A34,Betas!$A$9:$K$104,7,FALSE) -> 0.03875761833 | H34: =VLOOKUP($A34,Betas!$A$9:$K$104,8,FALSE) -> 0.6158204255 | I34: =VLOOKUP($A34,Betas!$A$9:$K$104,9,FALSE) -> 0.548184069 | J34: =VLOOKUP($A34,Betas!$A$9:$K$104,10,FALSE) -> 0.411396952 | K34: =VLOOKUP($A34,Betas!$A$9:$K$104,11,FALSE) -> 0.2667344181 | L34: =VLOOKUP(A34,'Revenues multiples'!$A$9:$F$102,3,FALSE) -> 0.62 | M34: =VLOOKUP(A34,'Revenues multiples'!$A$9:$F$102,4,FALSE) -> 0.0318 | N34: =VLOOKUP(A34,'Revenues multiples'!$A$9:$F$102,5,FALSE) -> 0.95 | O34: =VLOOKUP(A34,'Revenues multiples'!$A$9:$F$102,6,FALSE) -> 0.0453
A35: Financial Svcs. (Non-bank & Insurance) | B35: =VLOOKUP($A35,Betas!$A$9:$K$104,2,FALSE) -> 258 | C35: =VLOOKUP($A35,Betas!$A$9:$K$104,3,FALSE) -> 0.654507864 | D35: =VLOOKUP($A35,Betas!$A$9:$K$104,4,FALSE) -> 11.24406262 | E35: =VLOOKUP($A35,Betas!$A$9:$K$104,5,FALSE) -> 0.208048097 | F35: =VLOOKUP($A35,Betas!$A$9:$K$104,6,FALSE) -> 0.06608015501 | G35: =VLOOKUP($A35,Betas!$A$9:$K$104,7,FALSE) -> 0.02293309407 | H35: =VLOOKUP($A35,Betas!$A$9:$K$104,8,FALSE) -> 0.06763114645 | I35: =VLOOKUP($A35,Betas!$A$9:$K$104,9,FALSE) -> 0.294692451 | J35: =VLOOKUP($A35,Betas!$A$9:$K$104,10,FALSE) -> 0.291975723 | K35: =VLOOKUP($A35,Betas!$A$9:$K$104,11,FALSE) -> 0.4532936027 | L35: =VLOOKUP(A35,'Revenues multiples'!$A$9:$F$102,3,FALSE) -> 2.66 | M35: =VLOOKUP(A35,'Revenues multiples'!$A$9:$F$102,4,FALSE) -> 0.2177 | N35: =VLOOKUP(A35,'Revenues multiples'!$A$9:$F$102,5,FALSE) -> 31.81 | O35: =VLOOKUP(A35,'Revenues multiples'!$A$9:$F$102,6,FALSE) -> 0.0778
A36: Food Processing | B36: =VLOOKUP($A36,Betas!$A$9:$K$104,2,FALSE) -> 87 | C36: =VLOOKUP($A36,Betas!$A$9:$K$104,3,FALSE) -> 0.753736473 | D36: =VLOOKUP($A36,Betas!$A$9:$K$104,4,FALSE) -> 0.268443198 | E36: =VLOOKUP($A36,Betas!$A$9:$K$104,5,FALSE) -> 0.146645236 | F36: =VLOOKUP($A36,Betas!$A$9:$K$104,6,FALSE) -> 0.6132539297 | G36: =VLOOKUP($A36,Betas!$A$9:$K$104,7,FALSE) -> 0.02574270487 | H36: =VLOOKUP($A36,Betas!$A$9:$K$104,8,FALSE) -> 0.6294578781 | I36: =VLOOKUP($A36,Betas!$A$9:$K$104,9,FALSE) -> 0.421412784 | J36: =VLOOKUP($A36,Betas!$A$9:$K$104,10,FALSE) -> 0.309800861 | K36: =VLOOKUP($A36,Betas!$A$9:$K$104,11,FALSE) -> 0.2214818823 | L36: =VLOOKUP(A36,'Revenues multiples'!$A$9:$F$102,3,FALSE) -> 1.92 | M36: =VLOOKUP(A36,'Revenues multiples'!$A$9:$F$102,4,FALSE) -> 0.0673 | N36: =VLOOKUP(A36,'Revenues multiples'!$A$9:$F$102,5,FALSE) -> 2.38 | O36: =VLOOKUP(A36,'Revenues multiples'!$A$9:$F$102,6,FALSE) -> 0.1366
A37: Food Wholesalers | B37: =VLOOKUP($A37,Betas!$A$9:$K$104,2,FALSE) -> 16 | C37: =VLOOKUP($A37,Betas!$A$9:$K$104,3,FALSE) -> 1.203724659 | D37: =VLOOKUP($A37,Betas!$A$9:$K$104,4,FALSE) -> 0.3633630293 | E37: =VLOOKUP($A37,Betas!$A$9:$K$104,5,FALSE) -> 0.117699908 | F37: =VLOOKUP($A37,Betas!$A$9:$K$104,6,FALSE) -> 0.9115015925 | G37: =VLOOKUP($A37,Betas!$A$9:$K$104,7,FALSE) -> 0.01759144335 | H37: =VLOOKUP($A37,Betas!$A$9:$K$104,8,FALSE) -> 0.9278233443 | I37: =VLOOKUP($A37,Betas!$A$9:$K$104,9,FALSE) -> 0.387848379 | J37: =VLOOKUP($A37,Betas!$A$9:$K$104,10,FALSE) -> 0.526582768 | K37: =VLOOKUP($A37,Betas!$A$9:$K$104,11,FALSE) -> 0.1559874616 | L37: =VLOOKUP(A37,'Revenues multiples'!$A$9:$F$102,3,FALSE) -> 0.37 | M37: =VLOOKUP(A37,'Revenues multiples'!$A$9:$F$102,4,FALSE) -> 0.0113 | N37: =VLOOKUP(A37,'Revenues multiples'!$A$9:$F$102,5,FALSE) -> 0.5 | O37: =VLOOKUP(A37,'Revenues multiples'!$A$9:$F$102,6,FALSE) -> 0.0285
A38: Furn/Home Furnishings | B38: =VLOOKUP($A38,Betas!$A$9:$K$104,2,FALSE) -> 30 | C38: =VLOOKUP($A38,Betas!$A$9:$K$104,3,FALSE) -> 0.83564219 | D38: =VLOOKUP($A38,Betas!$A$9:$K$104,4,FALSE) -> 0.290085168 | E38: =VLOOKUP($A38,Betas!$A$9:$K$104,5,FALSE) -> 0.145757495 | F38: =VLOOKUP($A38,Betas!$A$9:$K$104,6,FALSE) -> 0.6696907573 | G38: =VLOOKUP($A38,Betas!$A$9:$K$104,7,FALSE) -> 0.03390357218 | H38: =VLOOKUP($A38,Betas!$A$9:$K$104,8,FALSE) -> 0.6931924578 | I38: =VLOOKUP($A38,Betas!$A$9:$K$104,9,FALSE) -> 0.47891677 | J38: =VLOOKUP($A38,Betas!$A$9:$K$104,10,FALSE) -> 0.429435947 | K38: =VLOOKUP($A38,Betas!$A$9:$K$104,11,FALSE) -> 0.28130508 | L38: =VLOOKUP(A38,'Revenues multiples'!$A$9:$F$102,3,FALSE) -> 1.09 | M38: =VLOOKUP(A38,'Revenues multiples'!$A$9:$F$102,4,FALSE) -> 0.0602 | N38: =VLOOKUP(A38,'Revenues multiples'!$A$9:$F$102,5,FALSE) -> 1.36 | O38: =VLOOKUP(A38,'Revenues multiples'!$A$9:$F$102,6,FALSE) -> 0.0998
A39: Green & Renewable Energy | B39: =VLOOKUP($A39,Betas!$A$9:$K$104,2,FALSE) -> 25 | C39: =VLOOKUP($A39,Betas!$A$9:$K$104,3,FALSE) -> 1.140302509 | D39: =VLOOKUP($A39,Betas!$A$9:$K$104,4,FALSE) -> 1.743824597 | E39: =VLOOKUP($A39,Betas!$A$9:$K$104,5,FALSE) -> 0.042455057 | F39: =VLOOKUP($A39,Betas!$A$9:$K$104,6,FALSE) -> 0.4271131166 | G39: =VLOOKUP($A39,Betas!$A$9:$K$104,7,FALSE) -> 0.08854936315 | H39: =VLOOKUP($A39,Betas!$A$9:$K$104,8,FALSE) -> 0.4686080621 | I39: =VLOOKUP($A39,Betas!$A$9:$K$104,9,FALSE) -> 0.676961347 | J39: =VLOOKUP($A39,Betas!$A$9:$K$104,10,FALSE) -> 0.475992119 | K39: =VLOOKUP($A39,Betas!$A$9:$K$104,11,FALSE) -> 0.9734262667 | L39: =VLOOKUP(A39,'Revenues multiples'!$A$9:$F$102,3,FALSE) -> 3.09 | M39: =VLOOKUP(A39,'Revenues multiples'!$A$9:$F$102,4,FALSE) -> -0.0957 | N39: =VLOOKUP(A39,'Revenues multiples'!$A$9:$F$102,5,FALSE) -> 7.72 | O39: =VLOOKUP(A39,'Revenues multiples'!$A$9:$F$102,6,FALSE) -> 0.167
A40: Healthcare Products | B40: =VLOOKUP($A40,Betas!$A$9:$K$104,2,FALSE) -> 254 | C40: =VLOOKUP($A40,Betas!$A$9:$K$104,3,FALSE) -> 1.036305175 | D40: =VLOOKUP($A40,Betas!$A$9:$K$104,4,FALSE) -> 0.1795760734 | E40: =VLOOKUP($A40,Betas!$A$9:$K$104,5,FALSE) -> 0.061189371 | F40: =VLOOKUP($A40,Betas!$A$9:$K$104,6,FALSE) -> 0.8868011996 | G40: =VLOOKUP($A40,Betas!$A$9:$K$104,7,FALSE) -> 0.03907376892 | H40: =VLOOKUP($A40,Betas!$A$9:$K$104,8,FALSE) -> 0.9228608513 | I40: =VLOOKUP($A40,Betas!$A$9:$K$104,9,FALSE) -> 0.534817158 | J40: =VLOOKUP($A40,Betas!$A$9:$K$104,10,FALSE) -> 0.565929946 | K40: =VLOOKUP($A40,Betas!$A$9:$K$104,11,FALSE) -> 0.1119041968 | L40: =VLOOKUP(A40,'Revenues multiples'!$A$9:$F$102,3,FALSE) -> 3.34 | M40: =VLOOKUP(A40,'Revenues multiples'!$A$9:$F$102,4,FALSE) -> 0.0995 | N40: =VLOOKUP(A40,'Revenues multiples'!$A$9:$F$102,5,FALSE) -> 3.79 | O40: =VLOOKUP(A40,'Revenues multiples'!$A$9:$F$102,6,FALSE) -> 0.1591
A41: Healthcare Support Services | B41: =VLOOKUP($A41,Betas!$A$9:$K$104,2,FALSE) -> 121 | C41: =VLOOKUP($A41,Betas!$A$9:$K$104,3,FALSE) -> 0.938830232 | D41: =VLOOKUP($A41,Betas!$A$9:$K$104,4,FALSE) -> 0.3217837764 | E41: =VLOOKUP($A41,Betas!$A$9:$K$104,5,FALSE) -> 0.143061928 | F41: =VLOOKUP($A41,Betas!$A$9:$K$104,6,FALSE) -> 0.7359052619 | G41: =VLOOKUP($A41,Betas!$A$9:$K$104,7,FALSE) -> 0.1006972569 | H41: =VLOOKUP($A41,Betas!$A$9:$K$104,8,FALSE) -> 0.8183064797 | I41: =VLOOKUP($A41,Betas!$A$9:$K$104,9,FALSE) -> 0.509597739 | J41: =VLOOKUP($A41,Betas!$A$9:$K$104,10,FALSE) -> 0.50058688 | K41: =VLOOKUP($A41,Betas!$A$9:$K$104,11,FALSE) -> 0.220753488 | L41: =VLOOKUP(A41,'Revenues multiples'!$A$9:$F$102,3,FALSE) -> 0.46 | M41: =VLOOKUP(A41,'Revenues multiples'!$A$9:$F$102,4,FALSE) -> 0.023 | N41: =VLOOKUP(A41,'Revenues multiples'!$A$9:$F$102,5,FALSE) -> 0.55 | O41: =VLOOKUP(A41,'Revenues multiples'!$A$9:$F$102,6,FALSE) -> 0.046
A42: Heathcare Information and Technology | B42: =VLOOKUP($A42,Betas!$A$9:$K$104,2,FALSE) -> 125 | C42: =VLOOKUP($A42,Betas!$A$9:$K$104,3,FALSE) -> 0.950516269 | D42: =VLOOKUP($A42,Betas!$A$9:$K$104,4,FALSE) -> 0.206984438 | E42: =VLOOKUP($A42,Betas!$A$9:$K$104,5,FALSE) -> 0.063230075 | F42: =VLOOKUP($A42,Betas!$A$9:$K$104,6,FALSE) -> 0.7961460922 | G42: =VLOOKUP($A42,Betas!$A$9:$K$104,7,FALSE) -> 0.04219383745 | H42: =VLOOKUP($A42,Betas!$A$9:$K$104,8,FALSE) -> 0.8312183857 | I42: =VLOOKUP($A42,Betas!$A$9:$K$104,9,FALSE) -> 0.545785491 | J42: =VLOOKUP($A42,Betas!$A$9:$K$104,10,FALSE) -> 0.524647648 | K42: =VLOOKUP($A42,Betas!$A$9:$K$104,11,FALSE) -> 0.3737793824 | L42: =VLOOKUP(A42,'Revenues multiples'!$A$9:$F$102,3,FALSE) -> 3.29 | M42: =VLOOKUP(A42,'Revenues multiples'!$A$9:$F$102,4,FALSE) -> 0.0808 | N42: =VLOOKUP(A42,'Revenues multiples'!$A$9:$F$102,5,FALSE) -> 3.8 | O42: =VLOOKUP(A42,'Revenues multiples'!$A$9:$F$102,6,FALSE) -> 0.1338
A43: Homebuilding | B43: =VLOOKUP($A43,Betas!$A$9:$K$104,2,FALSE) -> 33 | C43: =VLOOKUP($A43,Betas!$A$9:$K$104,3,FALSE) -> 1.077566589 | D43: =VLOOKUP($A43,Betas!$A$9:$K$104,4,FALSE) -> 0.6629234353 | E43: =VLOOKUP($A43,Betas!$A$9:$K$104,5,FALSE) -> 0.272807214 | F43: =VLOOKUP($A43,Betas!$A$9:$K$104,6,FALSE) -> 0.7270670792 | G43: =VLOOKUP($A43,Betas!$A$9:$K$104,7,FALSE) -> 0.05329860103 | H43: =VLOOKUP($A43,Betas!$A$9:$K$104,8,FALSE) -> 0.7680004276 | I43: =VLOOKUP($A43,Betas!$A$9:$K$104,9,FALSE) -> 0.332102366 | J43: =VLOOKUP($A43,Betas!$A$9:$K$104,10,FALSE) -> 0.337606557 | K43: =VLOOKUP($A43,Betas!$A$9:$K$104,11,FALSE) -> 1.370647573 | L43: =VLOOKUP(A43,'Revenues multiples'!$A$9:$F$102,3,FALSE) -> 0.75 | M43: =VLOOKUP(A43,'Revenues multiples'!$A$9:$F$102,4,FALSE) -> 0.0617 | N43: =VLOOKUP(A43,'Revenues multiples'!$A$9:$F$102,5,FALSE) -> 1.18 | O43: =VLOOKUP(A43,'Revenues multiples'!$A$9:$F$102,6,FALSE) -> 0.1002
A44: Hospitals/Healthcare Facilities | B44: =VLOOKUP($A44,Betas!$A$9:$K$104,2,FALSE) -> 38 | C44: =VLOOKUP($A44,Betas!$A$9:$K$104,3,FALSE) -> 1.097826003 | D44: =VLOOKUP($A44,Betas!$A$9:$K$104,4,FALSE) -> 1.707654422 | E44: =VLOOKUP($A44,Betas!$A$9:$K$104,5,FALSE) -> 0.120551503 | F44: =VLOOKUP($A44,Betas!$A$9:$K$104,6,FALSE) -> 0.438815487 | G44: =VLOOKUP($A44,Betas!$A$9:$K$104,7,FALSE) -> 0.01433117921 | H44: =VLOOKUP($A44,Betas!$A$9:$K$104,8,FALSE) -> 0.4451956659 | I44: =VLOOKUP($A44,Betas!$A$9:$K$104,9,FALSE) -> 0.481673171 | J44: =VLOOKUP($A44,Betas!$A$9:$K$104,10,FALSE) -> 0.446744597 | K44: =VLOOKUP($A44,Betas!$A$9:$K$104,11,FALSE) -> 0.3238032597 | L44: =VLOOKUP(A44,'Revenues multiples'!$A$9:$F$102,3,FALSE) -> 0.5 | M44: =VLOOKUP(A44,'Revenues multiples'!$A$9:$F$102,4,FALSE) -> 0.0052 | N44: =VLOOKUP(A44,'Revenues multiples'!$A$9:$F$102,5,FALSE) -> 1.33 | O44: =VLOOKUP(A44,'Revenues multiples'!$A$9:$F$102,6,FALSE) -> 0.0974
A45: Hotel/Gaming | B45: =VLOOKUP($A45,Betas!$A$9:$K$104,2,FALSE) -> 69 | C45: =VLOOKUP($A45,Betas!$A$9:$K$104,3,FALSE) -> 0.960901266 | D45: =VLOOKUP($A45,Betas!$A$9:$K$104,4,FALSE) -> 0.5527602865 | E45: =VLOOKUP($A45,Betas!$A$9:$K$104,5,FALSE) -> 0.11230077 | F45: =VLOOKUP($A45,Betas!$A$9:$K$104,6,FALSE) -> 0.6446038854 | G45: =VLOOKUP($A45,Betas!$A$9:$K$104,7,FALSE) -> 0.03428937957 | H45: =VLOOKUP($A45,Betas!$A$9:$K$104,8,FALSE) -> 0.6674917639 | I45: =VLOOKUP($A45,Betas!$A$9:$K$104,9,FALSE) -> 0.459751054 | J45: =VLOOKUP($A45,Betas!$A$9:$K$104,10,FALSE) -> 0.393155543 | K45: =VLOOKUP($A45,Betas!$A$9:$K$104,11,FALSE) -> 0.2638437865 | L45: =VLOOKUP(A45,'Revenues multiples'!$A$9:$F$102,3,FALSE) -> 2.39 | M45: =VLOOKUP(A45,'Revenues multiples'!$A$9:$F$102,4,FALSE) -> 0.0806 | N45: =VLOOKUP(A45,'Revenues multiples'!$A$9:$F$102,5,FALSE) -> 3.59 | O45: =VLOOKUP(A45,'Revenues multiples'!$A$9:$F$102,6,FALSE) -> 0.1807
A46: Household Products | B46: =VLOOKUP($A46,Betas!$A$9:$K$104,2,FALSE) -> 129 | C46: =VLOOKUP($A46,Betas!$A$9:$K$104,3,FALSE) -> 0.796524584 | D46: =VLOOKUP($A46,Betas!$A$9:$K$104,4,FALSE) -> 0.2120288237 | E46: =VLOOKUP($A46,Betas!$A$9:$K$104,5,FALSE) -> 0.090529543 | F46: =VLOOKUP($A46,Betas!$A$9:$K$104,6,FALSE) -> 0.6677581429 | G46: =VLOOKUP($A46,Betas!$A$9:$K$104,7,FALSE) -> 0.02966981662 | H46: =VLOOKUP($A46,Betas!$A$9:$K$104,8,FALSE) -> 0.6881762047 | I46: =VLOOKUP($A46,Betas!$A$9:$K$104,9,FALSE) -> 0.592581779 | J46: =VLOOKUP($A46,Betas!$A$9:$K$104,10,FALSE) -> 0.509059938 | K46: =VLOOKUP($A46,Betas!$A$9:$K$104,11,FALSE) -> 0.0648142813 | L46: =VLOOKUP(A46,'Revenues multiples'!$A$9:$F$102,3,FALSE) -> 2.66 | M46: =VLOOKUP(A46,'Revenues multiples'!$A$9:$F$102,4,FALSE) -> 0.1022 | N46: =VLOOKUP(A46,'Revenues multiples'!$A$9:$F$102,5,FALSE) -> 3.13 | O46: =VLOOKUP(A46,'Revenues multiples'!$A$9:$F$102,6,FALSE) -> 0.1839
A47: Information Services | B47: =VLOOKUP($A47,Betas!$A$9:$K$104,2,FALSE) -> 64 | C47: =VLOOKUP($A47,Betas!$A$9:$K$104,3,FALSE) -> 0.981280223 | D47: =VLOOKUP($A47,Betas!$A$9:$K$104,4,FALSE) -> 0.2045755719 | E47: =VLOOKUP($A47,Betas!$A$9:$K$104,5,FALSE) -> 0.163691491 | F47: =VLOOKUP($A47,Betas!$A$9:$K$104,6,FALSE) -> 0.837921641 | G47: =VLOOKUP($A47,Betas!$A$9:$K$104,7,FALSE) -> 0.03709742465 | H47: =VLOOKUP($A47,Betas!$A$9:$K$104,8,FALSE) -> 0.8702039671 | I47: =VLOOKUP($A47,Betas!$A$9:$K$104,9,FALSE) -> 0.345242097 | J47: =VLOOKUP($A47,Betas!$A$9:$K$104,10,FALSE) -> 0.366468042 | K47: =VLOOKUP($A47,Betas!$A$9:$K$104,11,FALSE) -> 0.3487366396 | L47: =VLOOKUP(A47,'Revenues multiples'!$A$9:$F$102,3,FALSE) -> 4.02 | M47: =VLOOKUP(A47,'Revenues multiples'!$A$9:$F$102,4,FALSE) -> 0.1294 | N47: =VLOOKUP(A47,'Revenues multiples'!$A$9:$F$102,5,FALSE) -> 4.66 | O47: =VLOOKUP(A47,'Revenues multiples'!$A$9:$F$102,6,FALSE) -> 0.2332
A48: Insurance (General) | B48: =VLOOKUP($A48,Betas!$A$9:$K$104,2,FALSE) -> 19 | C48: =VLOOKUP($A48,Betas!$A$9:$K$104,3,FALSE) -> 0.904797344 | D48: =VLOOKUP($A48,Betas!$A$9:$K$104,4,FALSE) -> 0.3895134586 | E48: =VLOOKUP($A48,Betas!$A$9:$K$104,5,FALSE) -> 0.183317855 | F48: =VLOOKUP($A48,Betas!$A$9:$K$104,6,FALSE) -> 0.6864360678 | G48: =VLOOKUP($A48,Betas!$A$9:$K$104,7,FALSE) -> 0.03919491021 | H48: =VLOOKUP($A48,Betas!$A$9:$K$104,8,FALSE) -> 0.7144384175 | I48: =VLOOKUP($A48,Betas!$A$9:$K$104,9,FALSE) -> 0.276116803 | J48: =VLOOKUP($A48,Betas!$A$9:$K$104,10,FALSE) -> 0.303764905 | K48: =VLOOKUP($A48,Betas!$A$9:$K$104,11,FALSE) -> 0.7649175794 | L48: =VLOOKUP(A48,'Revenues multiples'!$A$9:$F$102,3,FALSE) -> 1.33 | M48: =VLOOKUP(A48,'Revenues multiples'!$A$9:$F$102,4,FALSE) -> 0.043 | N48: =VLOOKUP(A48,'Revenues multiples'!$A$9:$F$102,5,FALSE) -> 1.78 | O48: =VLOOKUP(A48,'Revenues multiples'!$A$9:$F$102,6,FALSE) -> 0.0842
A49: Insurance (Life) | B49: =VLOOKUP($A49,Betas!$A$9:$K$104,2,FALSE) -> 22 | C49: =VLOOKUP($A49,Betas!$A$9:$K$104,3,FALSE) -> 1.034403993 | D49: =VLOOKUP($A49,Betas!$A$9:$K$104,4,FALSE) -> 0.7140867175 | E49: =VLOOKUP($A49,Betas!$A$9:$K$104,5,FALSE) -> 0.229050458 | F49: =VLOOKUP($A49,Betas!$A$9:$K$104,6,FALSE) -> 0.667131525 | G49: =VLOOKUP($A49,Betas!$A$9:$K$104,7,FALSE) -> 0.1683207306 | H49: =VLOOKUP($A49,Betas!$A$9:$K$104,8,FALSE) -> 0.8021499989 | I49: =VLOOKUP($A49,Betas!$A$9:$K$104,9,FALSE) -> 0.281829707 | J49: =VLOOKUP($A49,Betas!$A$9:$K$104,10,FALSE) -> 0.278048566 | K49: =VLOOKUP($A49,Betas!$A$9:$K$104,11,FALSE) -> 0.349727462 | L49: =VLOOKUP(A49,'Revenues multiples'!$A$9:$F$102,3,FALSE) -> 0.94 | M49: =VLOOKUP(A49,'Revenues multiples'!$A$9:$F$102,4,FALSE) -> 0.0736 | N49: =VLOOKUP(A49,'Revenues multiples'!$A$9:$F$102,5,FALSE) -> 1.34 | O49: =VLOOKUP(A49,'Revenues multiples'!$A$9:$F$102,6,FALSE) -> 0.1251
A50: Insurance (Prop/Cas.) | B50: =VLOOKUP($A50,Betas!$A$9:$K$104,2,FALSE) -> 50 | C50: =VLOOKUP($A50,Betas!$A$9:$K$104,3,FALSE) -> 0.8301207 | D50: =VLOOKUP($A50,Betas!$A$9:$K$104,4,FALSE) -> 0.3110614186 | E50: =VLOOKUP($A50,Betas!$A$9:$K$104,5,FALSE) -> 0.222733946 | F50: =VLOOKUP($A50,Betas!$A$9:$K$104,6,FALSE) -> 0.668493923 | G50: =VLOOKUP($A50,Betas!$A$9:$K$104,7,FALSE) -> 0.04613515074 | H50: =VLOOKUP($A50,Betas!$A$9:$K$104,8,FALSE) -> 0.7008266669 | I50: =VLOOKUP($A50,Betas!$A$9:$K$104,9,FALSE) -> 0.252367653 | J50: =VLOOKUP($A50,Betas!$A$9:$K$104,10,FALSE) -> 0.254108207 | K50: =VLOOKUP($A50,Betas!$A$9:$K$104,11,FALSE) -> 0.5995977831 | L50: =VLOOKUP(A50,'Revenues multiples'!$A$9:$F$102,3,FALSE) -> 1.14 | M50: =VLOOKUP(A50,'Revenues multiples'!$A$9:$F$102,4,FALSE) -> 0.072 | N50: =VLOOKUP(A50,'Revenues multiples'!$A$9:$F$102,5,FALSE) -> 1.43 | O50: =VLOOKUP(A50,'Revenues multiples'!$A$9:$F$102,6,FALSE) -> 0.1143
A51: Investments & Asset Management | B51: =VLOOKUP($A51,Betas!$A$9:$K$104,2,FALSE) -> 156 | C51: =VLOOKUP($A51,Betas!$A$9:$K$104,3,FALSE) -> 0.895979616 | D51: =VLOOKUP($A51,Betas!$A$9:$K$104,4,FALSE) -> 0.6158884424 | E51: =VLOOKUP($A51,Betas!$A$9:$K$104,5,FALSE) -> 0.077059916 | F51: =VLOOKUP($A51,Betas!$A$9:$K$104,6,FALSE) -> 0.5712595932 | G51: =VLOOKUP($A51,Betas!$A$9:$K$104,7,FALSE) -> 0.1545596187 | H51: =VLOOKUP($A51,Betas!$A$9:$K$104,8,FALSE) -> 0.6756947099 | I51: =VLOOKUP($A51,Betas!$A$9:$K$104,9,FALSE) -> 0.380918773 | J51: =VLOOKUP($A51,Betas!$A$9:$K$104,10,FALSE) -> 0.343028075 | K51: =VLOOKUP($A51,Betas!$A$9:$K$104,11,FALSE) -> 0.3258740068 | L51: =VLOOKUP(A51,'Revenues multiples'!$A$9:$F$102,3,FALSE) -> 3.33 | M51: =VLOOKUP(A51,'Revenues multiples'!$A$9:$F$102,4,FALSE) -> 0.1839 | N51: =VLOOKUP(A51,'Revenues multiples'!$A$9:$F$102,5,FALSE) -> 4.56 | O51: =VLOOKUP(A51,'Revenues multiples'!$A$9:$F$102,6,FALSE) -> 0.1793
A52: Machinery | B52: =VLOOKUP($A52,Betas!$A$9:$K$104,2,FALSE) -> 127 | C52: =VLOOKUP($A52,Betas!$A$9:$K$104,3,FALSE) -> 1.062374576 | D52: =VLOOKUP($A52,Betas!$A$9:$K$104,4,FALSE) -> 0.2169540001 | E52: =VLOOKUP($A52,Betas!$A$9:$K$104,5,FALSE) -> 0.117293029 | F52: =VLOOKUP($A52,Betas!$A$9:$K$104,6,FALSE) -> 0.8916227491 | G52: =VLOOKUP($A52,Betas!$A$9:$K$104,7,FALSE) -> 0.04276947687 | H52: =VLOOKUP($A52,Betas!$A$9:$K$104,8,FALSE) -> 0.9314608421 | I52: =VLOOKUP($A52,Betas!$A$9:$K$104,9,FALSE) -> 0.446684012 | J52: =VLOOKUP($A52,Betas!$A$9:$K$104,10,FALSE) -> 0.385939542 | K52: =VLOOKUP($A52,Betas!$A$9:$K$104,11,FALSE) -> 0.2289281328 | L52: =VLOOKUP(A52,'Revenues multiples'!$A$9:$F$102,3,FALSE) -> 1.9 | M52: =VLOOKUP(A52,'Revenues multiples'!$A$9:$F$102,4,FALSE) -> 0.066 | N52: =VLOOKUP(A52,'Revenues multiples'!$A$9:$F$102,5,FALSE) -> 2.22 | O52: =VLOOKUP(A52,'Revenues multiples'!$A$9:$F$102,6,FALSE) -> 0.1334
A53: Metals & Mining | B53: =VLOOKUP($A53,Betas!$A$9:$K$104,2,FALSE) -> 97 | C53: =VLOOKUP($A53,Betas!$A$9:$K$104,3,FALSE) -> 1.303872193 | D53: =VLOOKUP($A53,Betas!$A$9:$K$104,4,FALSE) -> 0.5197986295 | E53: =VLOOKUP($A53,Betas!$A$9:$K$104,5,FALSE) -> 0.011602166 | F53: =VLOOKUP($A53,Betas!$A$9:$K$104,6,FALSE) -> 0.8613422474 | G53: =VLOOKUP($A53,Betas!$A$9:$K$104,7,FALSE) -> 0.02980128718 | H53: =VLOOKUP($A53,Betas!$A$9:$K$104,8,FALSE) -> 0.887799825 | I53: =VLOOKUP($A53,Betas!$A$9:$K$104,9,FALSE) -> 0.743975099 | J53: =VLOOKUP($A53,Betas!$A$9:$K$104,10,FALSE) -> 0.773569735 | K53: =VLOOKUP($A53,Betas!$A$9:$K$104,11,FALSE) -> 0.3269324522 | L53: =VLOOKUP(A53,'Revenues multiples'!$A$9:$F$102,3,FALSE) -> 1.58 | M53: =VLOOKUP(A53,'Revenues multiples'!$A$9:$F$102,4,FALSE) -> -0.2515 | N53: =VLOOKUP(A53,'Revenues multiples'!$A$9:$F$102,5,FALSE) -> 2.33 | O53: =VLOOKUP(A53,'Revenues multiples'!$A$9:$F$102,6,FALSE) -> 0.0517
A54: Office Equipment & Services | B54: =VLOOKUP($A54,Betas!$A$9:$K$104,2,FALSE) -> 24 | C54: =VLOOKUP($A54,Betas!$A$9:$K$104,3,FALSE) -> 1.490142311 | D54: =VLOOKUP($A54,Betas!$A$9:$K$104,4,FALSE) -> 0.54319833 | E54: =VLOOKUP($A54,Betas!$A$9:$K$104,5,FALSE) -> 0.16684141 | F54: =VLOOKUP($A54,Betas!$A$9:$K$104,6,FALSE) -> 1.025865843 | G54: =VLOOKUP($A54,Betas!$A$9:$K$104,7,FALSE) -> 0.06306200284 | H54: =VLOOKUP($A54,Betas!$A$9:$K$104,8,FALSE) -> 1.094913266 | I54: =VLOOKUP($A54,Betas!$A$9:$K$104,9,FALSE) -> 0.436240911 | J54: =VLOOKUP($A54,Betas!$A$9:$K$104,10,FALSE) -> 0.338495552 | K54: =VLOOKUP($A54,Betas!$A$9:$K$104,11,FALSE) -> 0.1476318843 | L54: =VLOOKUP(A54,'Revenues multiples'!$A$9:$F$102,3,FALSE) -> 0.82 | M54: =VLOOKUP(A54,'Revenues multiples'!$A$9:$F$102,4,FALSE) -> 0.0481 | N54: =VLOOKUP(A54,'Revenues multiples'!$A$9:$F$102,5,FALSE) -> 1.18 | O54: =VLOOKUP(A54,'Revenues multiples'!$A$9:$F$102,6,FALSE) -> 0.1019
A55: Oil/Gas (Integrated) | B55: =VLOOKUP($A55,Betas!$A$9:$K$104,2,FALSE) -> 7 | C55: =VLOOKUP($A55,Betas!$A$9:$K$104,3,FALSE) -> 1.080586115 | D55: =VLOOKUP($A55,Betas!$A$9:$K$104,4,FALSE) -> 0.1690634102 | E55: =VLOOKUP($A55,Betas!$A$9:$K$104,5,FALSE) -> 0.01143716 | F55: =VLOOKUP($A55,Betas!$A$9:$K$104,6,FALSE) -> 0.9258491304 | G55: =VLOOKUP($A55,Betas!$A$9:$K$104,7,FALSE) -> 0.0205103407 | H55: =VLOOKUP($A55,Betas!$A$9:$K$104,8,FALSE) -> 0.9452362479 | I55: =VLOOKUP($A55,Betas!$A$9:$K$104,9,FALSE) -> 0.516094356 | J55: =VLOOKUP($A55,Betas!$A$9:$K$104,10,FALSE) -> 0.462978422 | K55: =VLOOKUP($A55,Betas!$A$9:$K$104,11,FALSE) -> 0.4408012658 | L55: =VLOOKUP(A55,'Revenues multiples'!$A$9:$F$102,3,FALSE) -> 2.1 | M55: =VLOOKUP(A55,'Revenues multiples'!$A$9:$F$102,4,FALSE) -> 0.0056 | N55: =VLOOKUP(A55,'Revenues multiples'!$A$9:$F$102,5,FALSE) -> 2.41 | O55: =VLOOKUP(A55,'Revenues multiples'!$A$9:$F$102,6,FALSE) -> -0.0304
A56: Oil/Gas (Production and Exploration) | B56: =VLOOKUP($A56,Betas!$A$9:$K$104,2,FALSE) -> 330 | C56: =VLOOKUP($A56,Betas!$A$9:$K$104,3,FALSE) -> 1.377352122 | D56: =VLOOKUP($A56,Betas!$A$9:$K$104,4,FALSE) -> 0.4698408589 | E56: =VLOOKUP($A56,Betas!$A$9:$K$104,5,FALSE) -> 0.003206622 | F56: =VLOOKUP($A56,Betas!$A$9:$K$104,6,FALSE) -> 0.9380371775 | G56: =VLOOKUP($A56,Betas!$A$9:$K$104,7,FALSE) -> 0.05438647299 | H56: =VLOOKUP($A56,Betas!$A$9:$K$104,8,FALSE) -> 0.9919879007 | I56: =VLOOKUP($A56,Betas!$A$9:$K$104,9,FALSE) -> 0.64053304 | J56: =VLOOKUP($A56,Betas!$A$9:$K$104,10,FALSE) -> 0.750773728 | K56: =VLOOKUP($A56,Betas!$A$9:$K$104,11,FALSE) -> 0.7000062779 | L56: =VLOOKUP(A56,'Revenues multiples'!$A$9:$F$102,3,FALSE) -> 4.15 | M56: =VLOOKUP(A56,'Revenues multiples'!$A$9:$F$102,4,FALSE) -> -0.8574 | N56: =VLOOKUP(A56,'Revenues multiples'!$A$9:$F$102,5,FALSE) -> 5.77 | O56: =VLOOKUP(A56,'Revenues multiples'!$A$9:$F$102,6,FALSE) -> -0.2889
A57: Oil/Gas Distribution | B57: =VLOOKUP($A57,Betas!$A$9:$K$104,2,FALSE) -> 78 | C57: =VLOOKUP($A57,Betas!$A$9:$K$104,3,FALSE) -> 1.195250343 | D57: =VLOOKUP($A57,Betas!$A$9:$K$104,4,FALSE) -> 0.7704786104 | E57: =VLOOKUP($A57,Betas!$A$9:$K$104,5,FALSE) -> 0.029253812 | F57: =VLOOKUP($A57,Betas!$A$9:$K$104,6,FALSE) -> 0.6838054555 | G57: =VLOOKUP($A57,Betas!$A$9:$K$104,7,FALSE) -> 0.00759462176 | H57: =VLOOKUP($A57,Betas!$A$9:$K$104,8,FALSE) -> 0.6890384418 | I57: =VLOOKUP($A57,Betas!$A$9:$K$104,9,FALSE) -> 0.421458458 | J57: =VLOOKUP($A57,Betas!$A$9:$K$104,10,FALSE) -> 0.45132626 | K57: =VLOOKUP($A57,Betas!$A$9:$K$104,11,FALSE) -> 0.4524646679 | L57: =VLOOKUP(A57,'Revenues multiples'!$A$9:$F$102,3,FALSE) -> 1.84 | M57: =VLOOKUP(A57,'Revenues multiples'!$A$9:$F$102,4,FALSE) -> 0.0155 | N57: =VLOOKUP(A57,'Revenues multiples'!$A$9:$F$102,5,FALSE) -> 3.23 | O57: =VLOOKUP(A57,'Revenues multiples'!$A$9:$F$102,6,FALSE) -> 0.1366
A58: Oilfield Svcs/Equip. | B58: =VLOOKUP($A58,Betas!$A$9:$K$104,2,FALSE) -> 148 | C58: =VLOOKUP($A58,Betas!$A$9:$K$104,3,FALSE) -> 1.365760604 | D58: =VLOOKUP($A58,Betas!$A$9:$K$104,4,FALSE) -> 0.3266048175 | E58: =VLOOKUP($A58,Betas!$A$9:$K$104,5,FALSE) -> 0.041130841 | F58: =VLOOKUP($A58,Betas!$A$9:$K$104,6,FALSE) -> 1.040047569 | G58: =VLOOKUP($A58,Betas!$A$9:$K$104,7,FALSE) -> 0.06271584329 | H58: =VLOOKUP($A58,Betas!$A$9:$K$104,8,FALSE) -> 1.109639549 | I58: =VLOOKUP($A58,Betas!$A$9:$K$104,9,FALSE) -> 0.54503626 | J58: =VLOOKUP($A58,Betas!$A$9:$K$104,10,FALSE) -> 0.604987626 | K58: =VLOOKUP($A58,Betas!$A$9:$K$104,11,FALSE) -> 0.3360047408 | L58: =VLOOKUP(A58,'Revenues multiples'!$A$9:$F$102,3,FALSE) -> 0.99 | M58: =VLOOKUP(A58,'Revenues multiples'!$A$9:$F$102,4,FALSE) -> -0.0428 | N58: =VLOOKUP(A58,'Revenues multiples'!$A$9:$F$102,5,FALSE) -> 1.23 | O58: =VLOOKUP(A58,'Revenues multiples'!$A$9:$F$102,6,FALSE) -> 0.0281
A59: Packaging & Container | B59: =VLOOKUP($A59,Betas!$A$9:$K$104,2,FALSE) -> 26 | C59: =VLOOKUP($A59,Betas!$A$9:$K$104,3,FALSE) -> 0.838636636 | D59: =VLOOKUP($A59,Betas!$A$9:$K$104,4,FALSE) -> 0.5603284028 | E59: =VLOOKUP($A59,Betas!$A$9:$K$104,5,FALSE) -> 0.24469677 | F59: =VLOOKUP($A59,Betas!$A$9:$K$104,6,FALSE) -> 0.589253876 | G59: =VLOOKUP($A59,Betas!$A$9:$K$104,7,FALSE) -> 0.02554003989 | H59: =VLOOKUP($A59,Betas!$A$9:$K$104,8,FALSE) -> 0.6046978841 | I59: =VLOOKUP($A59,Betas!$A$9:$K$104,9,FALSE) -> 0.354624584 | J59: =VLOOKUP($A59,Betas!$A$9:$K$104,10,FALSE) -> 0.295798439 | K59: =VLOOKUP($A59,Betas!$A$9:$K$104,11,FALSE) -> 0.2049637087 | L59: =VLOOKUP(A59,'Revenues multiples'!$A$9:$F$102,3,FALSE) -> 1.03 | M59: =VLOOKUP(A59,'Revenues multiples'!$A$9:$F$102,4,FALSE) -> 0.0378 | N59: =VLOOKUP(A59,'Revenues multiples'!$A$9:$F$102,5,FALSE) -> 1.56 | O59: =VLOOKUP(A59,'Revenues multiples'!$A$9:$F$102,6,FALSE) -> 0.1009
A60: Paper/Forest Products | B60: =VLOOKUP($A60,Betas!$A$9:$K$104,2,FALSE) -> 23 | C60: =VLOOKUP($A60,Betas!$A$9:$K$104,3,FALSE) -> 1.118469839 | D60: =VLOOKUP($A60,Betas!$A$9:$K$104,4,FALSE) -> 0.4933935703 | E60: =VLOOKUP($A60,Betas!$A$9:$K$104,5,FALSE) -> 0.144583624 | F60: =VLOOKUP($A60,Betas!$A$9:$K$104,6,FALSE) -> 0.7865155098 | G60: =VLOOKUP($A60,Betas!$A$9:$K$104,7,FALSE) -> 0.04867965489 | H60: =VLOOKUP($A60,Betas!$A$9:$K$104,8,FALSE) -> 0.8267619986 | I60: =VLOOKUP($A60,Betas!$A$9:$K$104,9,FALSE) -> 0.504168473 | J60: =VLOOKUP($A60,Betas!$A$9:$K$104,10,FALSE) -> 0.386747016 | K60: =VLOOKUP($A60,Betas!$A$9:$K$104,11,FALSE) -> 0.3874961494 | L60: =VLOOKUP(A60,'Revenues multiples'!$A$9:$F$102,3,FALSE) -> 0.65 | M60: =VLOOKUP(A60,'Revenues multiples'!$A$9:$F$102,4,FALSE) -> 0.083 | N60: =VLOOKUP(A60,'Revenues multiples'!$A$9:$F$102,5,FALSE) -> 0.92 | O60: =VLOOKUP(A60,'Revenues multiples'!$A$9:$F$102,6,FALSE) -> 0.0491
A61: Power | B61: =VLOOKUP($A61,Betas!$A$9:$K$104,2,FALSE) -> 68 | C61: =VLOOKUP($A61,Betas!$A$9:$K$104,3,FALSE) -> 0.544082068 | D61: =VLOOKUP($A61,Betas!$A$9:$K$104,4,FALSE) -> 0.8730395261 | E61: =VLOOKUP($A61,Betas!$A$9:$K$104,5,FALSE) -> 0.19268079 | F61: =VLOOKUP($A61,Betas!$A$9:$K$104,6,FALSE) -> 0.319143114 | G61: =VLOOKUP($A61,Betas!$A$9:$K$104,7,FALSE) -> 0.024604804 | H61: =VLOOKUP($A61,Betas!$A$9:$K$104,8,FALSE) -> 0.3271936496 | I61: =VLOOKUP($A61,Betas!$A$9:$K$104,9,FALSE) -> 0.264763787 | J61: =VLOOKUP($A61,Betas!$A$9:$K$104,10,FALSE) -> 0.241059046 | K61: =VLOOKUP($A61,Betas!$A$9:$K$104,11,FALSE) -> 0.07624534512 | L61: =VLOOKUP(A61,'Revenues multiples'!$A$9:$F$102,3,FALSE) -> 1.88 | M61: =VLOOKUP(A61,'Revenues multiples'!$A$9:$F$102,4,FALSE) -> 0.0401 | N61: =VLOOKUP(A61,'Revenues multiples'!$A$9:$F$102,5,FALSE) -> 3.43 | O61: =VLOOKUP(A61,'Revenues multiples'!$A$9:$F$102,6,FALSE) -> 0.1844
A62: Precious Metals | B62: =VLOOKUP($A62,Betas!$A$9:$K$104,2,FALSE) -> 109 | C62: =VLOOKUP($A62,Betas!$A$9:$K$104,3,FALSE) -> 1.251165831 | D62: =VLOOKUP($A62,Betas!$A$9:$K$104,4,FALSE) -> 0.2410578176 | E62: =VLOOKUP($A62,Betas!$A$9:$K$104,5,FALSE) -> 0.018393818 | F62: =VLOOKUP($A62,Betas!$A$9:$K$104,6,FALSE) -> 1.011759426 | G62: =VLOOKUP($A62,Betas!$A$9:$K$104,7,FALSE) -> 0.08327902037 | H62: =VLOOKUP($A62,Betas!$A$9:$K$104,8,FALSE) -> 1.103672163 | I62: =VLOOKUP($A62,Betas!$A$9:$K$104,9,FALSE) -> 0.758586556 | J62: =VLOOKUP($A62,Betas!$A$9:$K$104,10,FALSE) -> 0.783112468 | K62: =VLOOKUP($A62,Betas!$A$9:$K$104,11,FALSE) -> 0.7293368139 | L62: =VLOOKUP(A62,'Revenues multiples'!$A$9:$F$102,3,FALSE) -> 2.83 | M62: =VLOOKUP(A62,'Revenues multiples'!$A$9:$F$102,4,FALSE) -> -0.1703 | N62: =VLOOKUP(A62,'Revenues multiples'!$A$9:$F$102,5,FALSE) -> 3.22 | O62: =VLOOKUP(A62,'Revenues multiples'!$A$9:$F$102,6,FALSE) -> 0.1461
A63: Publishing & Newspapers | B63: =VLOOKUP($A63,Betas!$A$9:$K$104,2,FALSE) -> 37 | C63: =VLOOKUP($A63,Betas!$A$9:$K$104,3,FALSE) -> 1.32027717 | D63: =VLOOKUP($A63,Betas!$A$9:$K$104,4,FALSE) -> 0.5694583406 | E63: =VLOOKUP($A63,Betas!$A$9:$K$104,5,FALSE) -> 0.143162892 | F63: =VLOOKUP($A63,Betas!$A$9:$K$104,6,FALSE) -> 0.8873229753 | G63: =VLOOKUP($A63,Betas!$A$9:$K$104,7,FALSE) -> 0.07765068764 | H63: =VLOOKUP($A63,Betas!$A$9:$K$104,8,FALSE) -> 0.9620248678 | I63: =VLOOKUP($A63,Betas!$A$9:$K$104,9,FALSE) -> 0.413180294 | J63: =VLOOKUP($A63,Betas!$A$9:$K$104,10,FALSE) -> 0.480822181 | K63: =VLOOKUP($A63,Betas!$A$9:$K$104,11,FALSE) -> 0.1356568808 | L63: =VLOOKUP(A63,'Revenues multiples'!$A$9:$F$102,3,FALSE) -> 0.63 | M63: =VLOOKUP(A63,'Revenues multiples'!$A$9:$F$102,4,FALSE) -> 0.0159 | N63: =VLOOKUP(A63,'Revenues multiples'!$A$9:$F$102,5,FALSE) -> 0.91 | O63: =VLOOKUP(A63,'Revenues multiples'!$A$9:$F$102,6,FALSE) -> 0.07
A64: R.E.I.T. | B64: =VLOOKUP($A64,Betas!$A$9:$K$104,2,FALSE) -> 238 | C64: =VLOOKUP($A64,Betas!$A$9:$K$104,3,FALSE) -> 0.724807336 | D64: =VLOOKUP($A64,Betas!$A$9:$K$104,4,FALSE) -> 0.7945685404 | E64: =VLOOKUP($A64,Betas!$A$9:$K$104,5,FALSE) -> 0.017204393 | F64: =VLOOKUP($A64,Betas!$A$9:$K$104,6,FALSE) -> 0.4069897009 | G64: =VLOOKUP($A64,Betas!$A$9:$K$104,7,FALSE) -> 0.01612065822 | H64: =VLOOKUP($A64,Betas!$A$9:$K$104,8,FALSE) -> 0.4136581424 | I64: =VLOOKUP($A64,Betas!$A$9:$K$104,9,FALSE) -> 0.239210673 | J64: =VLOOKUP($A64,Betas!$A$9:$K$104,10,FALSE) -> 0.246728323 | K64: =VLOOKUP($A64,Betas!$A$9:$K$104,11,FALSE) -> 0.2775040489 | L64: =VLOOKUP(A64,'Revenues multiples'!$A$9:$F$102,3,FALSE) -> 6.47 | M64: =VLOOKUP(A64,'Revenues multiples'!$A$9:$F$102,4,FALSE) -> 0.2243 | N64: =VLOOKUP(A64,'Revenues multiples'!$A$9:$F$102,5,FALSE) -> 11.43 | O64: =VLOOKUP(A64,'Revenues multiples'!$A$9:$F$102,6,FALSE) -> 0.2299
A65: Real Estate (Development) | B65: =VLOOKUP($A65,Betas!$A$9:$K$104,2,FALSE) -> 18 | C65: =VLOOKUP($A65,Betas!$A$9:$K$104,3,FALSE) -> 0.684268152 | D65: =VLOOKUP($A65,Betas!$A$9:$K$104,4,FALSE) -> 0.6050602214 | E65: =VLOOKUP($A65,Betas!$A$9:$K$104,5,FALSE) -> 0.019684427 | F65: =VLOOKUP($A65,Betas!$A$9:$K$104,6,FALSE) -> 0.4295064308 | G65: =VLOOKUP($A65,Betas!$A$9:$K$104,7,FALSE) -> 0.08474137209 | H65: =VLOOKUP($A65,Betas!$A$9:$K$104,8,FALSE) -> 0.4692732936 | I65: =VLOOKUP($A65,Betas!$A$9:$K$104,9,FALSE) -> 0.60380293 | J65: =VLOOKUP($A65,Betas!$A$9:$K$104,10,FALSE) -> 0.394546045 | K65: =VLOOKUP($A65,Betas!$A$9:$K$104,11,FALSE) -> 3.360161632 | L65: =VLOOKUP(A65,'Revenues multiples'!$A$9:$F$102,3,FALSE) -> 2.94 | M65: =VLOOKUP(A65,'Revenues multiples'!$A$9:$F$102,4,FALSE) -> 0.1733 | N65: =VLOOKUP(A65,'Revenues multiples'!$A$9:$F$102,5,FALSE) -> 4.31 | O65: =VLOOKUP(A65,'Revenues multiples'!$A$9:$F$102,6,FALSE) -> 0.0521
A66: Real Estate (General/Diversified) | B66: =VLOOKUP($A66,Betas!$A$9:$K$104,2,FALSE) -> 11 | C66: =VLOOKUP($A66,Betas!$A$9:$K$104,3,FALSE) -> 1.270788445 | D66: =VLOOKUP($A66,Betas!$A$9:$K$104,4,FALSE) -> 0.2433036703 | E66: =VLOOKUP($A66,Betas!$A$9:$K$104,5,FALSE) -> 0.153217991 | F66: =VLOOKUP($A66,Betas!$A$9:$K$104,6,FALSE) -> 1.05369977 | G66: =VLOOKUP($A66,Betas!$A$9:$K$104,7,FALSE) -> 0.03709758448 | H66: =VLOOKUP($A66,Betas!$A$9:$K$104,8,FALSE) -> 1.094295489 | I66: =VLOOKUP($A66,Betas!$A$9:$K$104,9,FALSE) -> 0.439100643 | J66: =VLOOKUP($A66,Betas!$A$9:$K$104,10,FALSE) -> 0.249892323 | K66: =VLOOKUP($A66,Betas!$A$9:$K$104,11,FALSE) -> 1.703203785 | L66: =VLOOKUP(A66,'Revenues multiples'!$A$9:$F$102,3,FALSE) -> 5.61 | M66: =VLOOKUP(A66,'Revenues multiples'!$A$9:$F$102,4,FALSE) -> 0.0456 | N66: =VLOOKUP(A66,'Revenues multiples'!$A$9:$F$102,5,FALSE) -> 6.72 | O66: =VLOOKUP(A66,'Revenues multiples'!$A$9:$F$102,6,FALSE) -> 0.2124
A67: Real Estate (Operations & Services) | B67: =VLOOKUP($A67,Betas!$A$9:$K$104,2,FALSE) -> 54 | C67: =VLOOKUP($A67,Betas!$A$9:$K$104,3,FALSE) -> 0.991680789 | D67: =VLOOKUP($A67,Betas!$A$9:$K$104,4,FALSE) -> 0.7666792218 | E67: =VLOOKUP($A67,Betas!$A$9:$K$104,5,FALSE) -> 0.087764248 | F67: =VLOOKUP($A67,Betas!$A$9:$K$104,6,FALSE) -> 0.5835502782 | G67: =VLOOKUP($A67,Betas!$A$9:$K$104,7,FALSE) -> 0.05210667888 | H67: =VLOOKUP($A67,Betas!$A$9:$K$104,8,FALSE) -> 0.6156286422 | I67: =VLOOKUP($A67,Betas!$A$9:$K$104,9,FALSE) -> 0.591250505 | J67: =VLOOKUP($A67,Betas!$A$9:$K$104,10,FALSE) -> 0.501542171 | K67: =VLOOKUP($A67,Betas!$A$9:$K$104,11,FALSE) -> 0.4120082849 | L67: =VLOOKUP(A67,'Revenues multiples'!$A$9:$F$102,3,FALSE) -> 0.96 | M67: =VLOOKUP(A67,'Revenues multiples'!$A$9:$F$102,4,FALSE) -> 0.0395 | N67: =VLOOKUP(A67,'Revenues multiples'!$A$9:$F$102,5,FALSE) -> 1.61 | O67: =VLOOKUP(A67,'Revenues multiples'!$A$9:$F$102,6,FALSE) -> 0.079
A68: Recreation | B68: =VLOOKUP($A68,Betas!$A$9:$K$104,2,FALSE) -> 66 | C68: =VLOOKUP($A68,Betas!$A$9:$K$104,3,FALSE) -> 0.920928349 | D68: =VLOOKUP($A68,Betas!$A$9:$K$104,4,FALSE) -> 0.3111745069 | E68: =VLOOKUP($A68,Betas!$A$9:$K$104,5,FALSE) -> 0.132108366 | F68: =VLOOKUP($A68,Betas!$A$9:$K$104,6,FALSE) -> 0.7251028918 | G68: =VLOOKUP($A68,Betas!$A$9:$K$104,7,FALSE) -> 0.04535695107 | H68: =VLOOKUP($A68,Betas!$A$9:$K$104,8,FALSE) -> 0.7595539428 | I68: =VLOOKUP($A68,Betas!$A$9:$K$104,9,FALSE) -> 0.523253316 | J68: =VLOOKUP($A68,Betas!$A$9:$K$104,10,FALSE) -> 0.460117306 | K68: =VLOOKUP($A68,Betas!$A$9:$K$104,11,FALSE) -> 0.287111586 | L68: =VLOOKUP(A68,'Revenues multiples'!$A$9:$F$102,3,FALSE) -> 1.62 | M68: =VLOOKUP(A68,'Revenues multiples'!$A$9:$F$102,4,FALSE) -> 0.067 | N68: =VLOOKUP(A68,'Revenues multiples'!$A$9:$F$102,5,FALSE) -> 2.03 | O68: =VLOOKUP(A68,'Revenues multiples'!$A$9:$F$102,6,FALSE) -> 0.1205
A69: Reinsurance | B69: =VLOOKUP($A69,Betas!$A$9:$K$104,2,FALSE) -> 3 | C69: =VLOOKUP($A69,Betas!$A$9:$K$104,3,FALSE) -> 0.747361371 | D69: =VLOOKUP($A69,Betas!$A$9:$K$104,4,FALSE) -> 0.3237501077 | E69: =VLOOKUP($A69,Betas!$A$9:$K$104,5,FALSE) -> 0.193321427 | F69: =VLOOKUP($A69,Betas!$A$9:$K$104,6,FALSE) -> 0.5925973095 | G69: =VLOOKUP($A69,Betas!$A$9:$K$104,7,FALSE) -> 0.08298495725 | H69: =VLOOKUP($A69,Betas!$A$9:$K$104,8,FALSE) -> 0.6462241969 | I69: =VLOOKUP($A69,Betas!$A$9:$K$104,9,FALSE) -> 0.251379798 | J69: =VLOOKUP($A69,Betas!$A$9:$K$104,10,FALSE) -> 0.212270175 | K69: =VLOOKUP($A69,Betas!$A$9:$K$104,11,FALSE) -> 0.7991598159 | L69: =VLOOKUP(A69,'Revenues multiples'!$A$9:$F$102,3,FALSE) -> 1.03 | M69: =VLOOKUP(A69,'Revenues multiples'!$A$9:$F$102,4,FALSE) -> 0.0745 | N69: =VLOOKUP(A69,'Revenues multiples'!$A$9:$F$102,5,FALSE) -> 1.25 | O69: =VLOOKUP(A69,'Revenues multiples'!$A$9:$F$102,6,FALSE) -> 0.1131
A70: Restaurant/Dining | B70: =VLOOKUP($A70,Betas!$A$9:$K$104,2,FALSE) -> 86 | C70: =VLOOKUP($A70,Betas!$A$9:$K$104,3,FALSE) -> 0.768290304 | D70: =VLOOKUP($A70,Betas!$A$9:$K$104,4,FALSE) -> 0.3500517715 | E70: =VLOOKUP($A70,Betas!$A$9:$K$104,5,FALSE) -> 0.16474325 | F70: =VLOOKUP($A70,Betas!$A$9:$K$104,6,FALSE) -> 0.5944756636 | G70: =VLOOKUP($A70,Betas!$A$9:$K$104,7,FALSE) -> 0.02358644375 | H70: =VLOOKUP($A70,Betas!$A$9:$K$104,8,FALSE) -> 0.6088359382 | I70: =VLOOKUP($A70,Betas!$A$9:$K$104,9,FALSE) -> 0.4122719 | J70: =VLOOKUP($A70,Betas!$A$9:$K$104,10,FALSE) -> 0.390963156 | K70: =VLOOKUP($A70,Betas!$A$9:$K$104,11,FALSE) -> 0.2158841148 | L70: =VLOOKUP(A70,'Revenues multiples'!$A$9:$F$102,3,FALSE) -> 2.27 | M70: =VLOOKUP(A70,'Revenues multiples'!$A$9:$F$102,4,FALSE) -> 0.092 | N70: =VLOOKUP(A70,'Revenues multiples'!$A$9:$F$102,5,FALSE) -> 2.99 | O70: =VLOOKUP(A70,'Revenues multiples'!$A$9:$F$102,6,FALSE) -> 0.1365
A71: Retail (Automotive) | B71: =VLOOKUP($A71,Betas!$A$9:$K$104,2,FALSE) -> 25 | C71: =VLOOKUP($A71,Betas!$A$9:$K$104,3,FALSE) -> 0.913034834 | D71: =VLOOKUP($A71,Betas!$A$9:$K$104,4,FALSE) -> 0.598901469 | E71: =VLOOKUP($A71,Betas!$A$9:$K$104,5,FALSE) -> 0.225780008 | F71: =VLOOKUP($A71,Betas!$A$9:$K$104,6,FALSE) -> 0.6237933867 | G71: =VLOOKUP($A71,Betas!$A$9:$K$104,7,FALSE) -> 0.01121744894 | H71: =VLOOKUP($A71,Betas!$A$9:$K$104,8,FALSE) -> 0.6308701403 | I71: =VLOOKUP($A71,Betas!$A$9:$K$104,9,FALSE) -> 0.433284628 | J71: =VLOOKUP($A71,Betas!$A$9:$K$104,10,FALSE) -> 0.283012957 | K71: =VLOOKUP($A71,Betas!$A$9:$K$104,11,FALSE) -> 0.3636151964 | L71: =VLOOKUP(A71,'Revenues multiples'!$A$9:$F$102,3,FALSE) -> 0.66 | M71: =VLOOKUP(A71,'Revenues multiples'!$A$9:$F$102,4,FALSE) -> 0.0363 | N71: =VLOOKUP(A71,'Revenues multiples'!$A$9:$F$102,5,FALSE) -> 1.04 | O71: =VLOOKUP(A71,'Revenues multiples'!$A$9:$F$102,6,FALSE) -> 0.0563
A72: Retail (Building Supply) | B72: =VLOOKUP($A72,Betas!$A$9:$K$104,2,FALSE) -> 6 | C72: =VLOOKUP($A72,Betas!$A$9:$K$104,3,FALSE) -> 1.298194393 | D72: =VLOOKUP($A72,Betas!$A$9:$K$104,4,FALSE) -> 0.2186348254 | E72: =VLOOKUP($A72,Betas!$A$9:$K$104,5,FALSE) -> 0.201050762 | F72: =VLOOKUP($A72,Betas!$A$9:$K$104,6,FALSE) -> 1.10514903 | G72: =VLOOKUP($A72,Betas!$A$9:$K$104,7,FALSE) -> 0.01658672343 | H72: =VLOOKUP($A72,Betas!$A$9:$K$104,8,FALSE) -> 1.123789008 | I72: =VLOOKUP($A72,Betas!$A$9:$K$104,9,FALSE) -> 0.262051967 | J72: =VLOOKUP($A72,Betas!$A$9:$K$104,10,FALSE) -> 0.396213283 | K72: =VLOOKUP($A72,Betas!$A$9:$K$104,11,FALSE) -> 0.2330265175 | L72: =VLOOKUP(A72,'Revenues multiples'!$A$9:$F$102,3,FALSE) -> 1.42 | M72: =VLOOKUP(A72,'Revenues multiples'!$A$9:$F$102,4,FALSE) -> 0.0625 | N72: =VLOOKUP(A72,'Revenues multiples'!$A$9:$F$102,5,FALSE) -> 1.71 | O72: =VLOOKUP(A72,'Revenues multiples'!$A$9:$F$102,6,FALSE) -> 0.1113
A73: Retail (Distributors) | B73: =VLOOKUP($A73,Betas!$A$9:$K$104,2,FALSE) -> 88 | C73: =VLOOKUP($A73,Betas!$A$9:$K$104,3,FALSE) -> 1.104604532 | D73: =VLOOKUP($A73,Betas!$A$9:$K$104,4,FALSE) -> 0.5695435338 | E73: =VLOOKUP($A73,Betas!$A$9:$K$104,5,FALSE) -> 0.169545711 | F73: =VLOOKUP($A73,Betas!$A$9:$K$104,6,FALSE) -> 0.7499114918 | G73: =VLOOKUP($A73,Betas!$A$9:$K$104,7,FALSE) -> 0.02186040082 | H73: =VLOOKUP($A73,Betas!$A$9:$K$104,8,FALSE) -> 0.7666712322 | I73: =VLOOKUP($A73,Betas!$A$9:$K$104,9,FALSE) -> 0.501838017 | J73: =VLOOKUP($A73,Betas!$A$9:$K$104,10,FALSE) -> 0.404782612 | K73: =VLOOKUP($A73,Betas!$A$9:$K$104,11,FALSE) -> 0.3854765318 | L73: =VLOOKUP(A73,'Revenues multiples'!$A$9:$F$102,3,FALSE) -> 0.9 | M73: =VLOOKUP(A73,'Revenues multiples'!$A$9:$F$102,4,FALSE) -> 0.0352 | N73: =VLOOKUP(A73,'Revenues multiples'!$A$9:$F$102,5,FALSE) -> 1.38 | O73: =VLOOKUP(A73,'Revenues multiples'!$A$9:$F$102,6,FALSE) -> 0.0842
A74: Retail (General) | B74: =VLOOKUP($A74,Betas!$A$9:$K$104,2,FALSE) -> 19 | C74: =VLOOKUP($A74,Betas!$A$9:$K$104,3,FALSE) -> 1.048330546 | D74: =VLOOKUP($A74,Betas!$A$9:$K$104,4,FALSE) -> 0.3957300281 | E74: =VLOOKUP($A74,Betas!$A$9:$K$104,5,FALSE) -> 0.222238312 | F74: =VLOOKUP($A74,Betas!$A$9:$K$104,6,FALSE) -> 0.80160854 | G74: =VLOOKUP($A74,Betas!$A$9:$K$104,7,FALSE) -> 0.02726026156 | H74: =VLOOKUP($A74,Betas!$A$9:$K$104,8,FALSE) -> 0.8240729851 | I74: =VLOOKUP($A74,Betas!$A$9:$K$104,9,FALSE) -> 0.280477075 | J74: =VLOOKUP($A74,Betas!$A$9:$K$104,10,FALSE) -> 0.40003422 | K74: =VLOOKUP($A74,Betas!$A$9:$K$104,11,FALSE) -> 0.06576114618 | L74: =VLOOKUP(A74,'Revenues multiples'!$A$9:$F$102,3,FALSE) -> 0.48 | M74: =VLOOKUP(A74,'Revenues multiples'!$A$9:$F$102,4,FALSE) -> 0.026 | N74: =VLOOKUP(A74,'Revenues multiples'!$A$9:$F$102,5,FALSE) -> 0.66 | O74: =VLOOKUP(A74,'Revenues multiples'!$A$9:$F$102,6,FALSE) -> 0.0433
A75: Retail (Grocery and Food) | B75: =VLOOKUP($A75,Betas!$A$9:$K$104,2,FALSE) -> 14 | C75: =VLOOKUP($A75,Betas!$A$9:$K$104,3,FALSE) -> 0.690068758 | D75: =VLOOKUP($A75,Betas!$A$9:$K$104,4,FALSE) -> 0.6685372931 | E75: =VLOOKUP($A75,Betas!$A$9:$K$104,5,FALSE) -> 0.241055639 | F75: =VLOOKUP($A75,Betas!$A$9:$K$104,6,FALSE) -> 0.4577927024 | G75: =VLOOKUP($A75,Betas!$A$9:$K$104,7,FALSE) -> 0.01250331941 | H75: =VLOOKUP($A75,Betas!$A$9:$K$104,8,FALSE) -> 0.4635891051 | I75: =VLOOKUP($A75,Betas!$A$9:$K$104,9,FALSE) -> 0.359948706 | J75: =VLOOKUP($A75,Betas!$A$9:$K$104,10,FALSE) -> 0.351270256 | K75: =VLOOKUP($A75,Betas!$A$9:$K$104,11,FALSE) -> 0.1761018275 | L75: =VLOOKUP(A75,'Revenues multiples'!$A$9:$F$102,3,FALSE) -> 0.32 | M75: =VLOOKUP(A75,'Revenues multiples'!$A$9:$F$102,4,FALSE) -> 0.0189 | N75: =VLOOKUP(A75,'Revenues multiples'!$A$9:$F$102,5,FALSE) -> 0.53 | O75: =VLOOKUP(A75,'Revenues multiples'!$A$9:$F$102,6,FALSE) -> 0.0256
A76: Retail (Online) | B76: =VLOOKUP($A76,Betas!$A$9:$K$104,2,FALSE) -> 57 | C76: =VLOOKUP($A76,Betas!$A$9:$K$104,3,FALSE) -> 1.227182507 | D76: =VLOOKUP($A76,Betas!$A$9:$K$104,4,FALSE) -> 0.09625918152 | E76: =VLOOKUP($A76,Betas!$A$9:$K$104,5,FALSE) -> 0.084639941 | F76: =VLOOKUP($A76,Betas!$A$9:$K$104,6,FALSE) -> 1.127809197 | G76: =VLOOKUP($A76,Betas!$A$9:$K$104,7,FALSE) -> 0.03794117335 | H76: =VLOOKUP($A76,Betas!$A$9:$K$104,8,FALSE) -> 1.172287147 | I76: =VLOOKUP($A76,Betas!$A$9:$K$104,9,FALSE) -> 0.521176972 | J76: =VLOOKUP($A76,Betas!$A$9:$K$104,10,FALSE) -> 0.488635002 | K76: =VLOOKUP($A76,Betas!$A$9:$K$104,11,FALSE) -> 0.5138453995 | L76: =VLOOKUP(A76,'Revenues multiples'!$A$9:$F$102,3,FALSE) -> 2.84 | M76: =VLOOKUP(A76,'Revenues multiples'!$A$9:$F$102,4,FALSE) -> 0.0297 | N76: =VLOOKUP(A76,'Revenues multiples'!$A$9:$F$102,5,FALSE) -> 2.99 | O76: =VLOOKUP(A76,'Revenues multiples'!$A$9:$F$102,6,FALSE) -> 0.0516
A77: Retail (Special Lines) | B77: =VLOOKUP($A77,Betas!$A$9:$K$104,2,FALSE) -> 108 | C77: =VLOOKUP($A77,Betas!$A$9:$K$104,3,FALSE) -> 1.022467012 | D77: =VLOOKUP($A77,Betas!$A$9:$K$104,4,FALSE) -> 0.5212613889 | E77: =VLOOKUP($A77,Betas!$A$9:$K$104,5,FALSE) -> 0.212907391 | F77: =VLOOKUP($A77,Betas!$A$9:$K$104,6,FALSE) -> 0.7250094284 | G77: =VLOOKUP($A77,Betas!$A$9:$K$104,7,FALSE) -> 0.04291625779 | H77: =VLOOKUP($A77,Betas!$A$9:$K$104,8,FALSE) -> 0.757519323 | I77: =VLOOKUP($A77,Betas!$A$9:$K$104,9,FALSE) -> 0.410786339 | J77: =VLOOKUP($A77,Betas!$A$9:$K$104,10,FALSE) -> 0.421890966 | K77: =VLOOKUP($A77,Betas!$A$9:$K$104,11,FALSE) -> 0.2186210632 | L77: =VLOOKUP(A77,'Revenues multiples'!$A$9:$F$102,3,FALSE) -> 0.68 | M77: =VLOOKUP(A77,'Revenues multiples'!$A$9:$F$102,4,FALSE) -> 0.0317 | N77: =VLOOKUP(A77,'Revenues multiples'!$A$9:$F$102,5,FALSE) -> 0.99 | O77: =VLOOKUP(A77,'Revenues multiples'!$A$9:$F$102,6,FALSE) -> 0.0619
A78: Rubber& Tires | B78: =VLOOKUP($A78,Betas!$A$9:$K$104,2,FALSE) -> 4 | C78: =VLOOKUP($A78,Betas!$A$9:$K$104,3,FALSE) -> 1.345535047 | D78: =VLOOKUP($A78,Betas!$A$9:$K$104,4,FALSE) -> 0.7234694433 | E78: =VLOOKUP($A78,Betas!$A$9:$K$104,5,FALSE) -> 0.100946221 | F78: =VLOOKUP($A78,Betas!$A$9:$K$104,6,FALSE) -> 0.8152594029 | G78: =VLOOKUP($A78,Betas!$A$9:$K$104,7,FALSE) -> 0.08088116717 | H78: =VLOOKUP($A78,Betas!$A$9:$K$104,8,FALSE) -> 0.887001086 | I78: =VLOOKUP($A78,Betas!$A$9:$K$104,9,FALSE) -> 0.455487442 | J78: =VLOOKUP($A78,Betas!$A$9:$K$104,10,FALSE) -> 0.63876931 | K78: =VLOOKUP($A78,Betas!$A$9:$K$104,11,FALSE) -> 0.4621223748 | L78: =VLOOKUP(A78,'Revenues multiples'!$A$9:$F$102,3,FALSE) -> 0.56 | M78: =VLOOKUP(A78,'Revenues multiples'!$A$9:$F$102,4,FALSE) -> 0.0296 | N78: =VLOOKUP(A78,'Revenues multiples'!$A$9:$F$102,5,FALSE) -> 0.88 | O78: =VLOOKUP(A78,'Revenues multiples'!$A$9:$F$102,6,FALSE) -> 0.1181
A79: Semiconductor | B79: =VLOOKUP($A79,Betas!$A$9:$K$104,2,FALSE) -> 80 | C79: =VLOOKUP($A79,Betas!$A$9:$K$104,3,FALSE) -> 1.195275265 | D79: =VLOOKUP($A79,Betas!$A$9:$K$104,4,FALSE) -> 0.1409172587 | E79: =VLOOKUP($A79,Betas!$A$9:$K$104,5,FALSE) -> 0.077081178 | F79: =VLOOKUP($A79,Betas!$A$9:$K$104,6,FALSE) -> 1.057714061 | G79: =VLOOKUP($A79,Betas!$A$9:$K$104,7,FALSE) -> 0.04782947896 | H79: =VLOOKUP($A79,Betas!$A$9:$K$104,8,FALSE) -> 1.110845209 | I79: =VLOOKUP($A79,Betas!$A$9:$K$104,9,FALSE) -> 0.471729552 | J79: =VLOOKUP($A79,Betas!$A$9:$K$104,10,FALSE) -> 0.420767575 | K79: =VLOOKUP($A79,Betas!$A$9:$K$104,11,FALSE) -> 0.3360520043 | L79: =VLOOKUP(A79,'Revenues multiples'!$A$9:$F$102,3,FALSE) -> 3.69 | M79: =VLOOKUP(A79,'Revenues multiples'!$A$9:$F$102,4,FALSE) -> 0.1427 | N79: =VLOOKUP(A79,'Revenues multiples'!$A$9:$F$102,5,FALSE) -> 4 | O79: =VLOOKUP(A79,'Revenues multiples'!$A$9:$F$102,6,FALSE) -> 0.2094
A80: Semiconductor Equip | B80: =VLOOKUP($A80,Betas!$A$9:$K$104,2,FALSE) -> 45 | C80: =VLOOKUP($A80,Betas!$A$9:$K$104,3,FALSE) -> 1.09725641 | D80: =VLOOKUP($A80,Betas!$A$9:$K$104,4,FALSE) -> 0.1634805539 | E80: =VLOOKUP($A80,Betas!$A$9:$K$104,5,FALSE) -> 0.111278244 | F80: =VLOOKUP($A80,Betas!$A$9:$K$104,6,FALSE) -> 0.9580609554 | G80: =VLOOKUP($A80,Betas!$A$9:$K$104,7,FALSE) -> 0.1268761585 | H80: =VLOOKUP($A80,Betas!$A$9:$K$104,8,FALSE) -> 1.097279572 | I80: =VLOOKUP($A80,Betas!$A$9:$K$104,9,FALSE) -> 0.432400163 | J80: =VLOOKUP($A80,Betas!$A$9:$K$104,10,FALSE) -> 0.38240556 | K80: =VLOOKUP($A80,Betas!$A$9:$K$104,11,FALSE) -> 0.5040979547 | L80: =VLOOKUP(A80,'Revenues multiples'!$A$9:$F$102,3,FALSE) -> 2.82 | M80: =VLOOKUP(A80,'Revenues multiples'!$A$9:$F$102,4,FALSE) -> 0.113 | N80: =VLOOKUP(A80,'Revenues multiples'!$A$9:$F$102,5,FALSE) -> 2.86 | O80: =VLOOKUP(A80,'Revenues multiples'!$A$9:$F$102,6,FALSE) -> 0.17
A81: Shipbuilding & Marine | B81: =VLOOKUP($A81,Betas!$A$9:$K$104,2,FALSE) -> 11 | C81: =VLOOKUP($A81,Betas!$A$9:$K$104,3,FALSE) -> 1.202475701 | D81: =VLOOKUP($A81,Betas!$A$9:$K$104,4,FALSE) -> 0.4840862438 | E81: =VLOOKUP($A81,Betas!$A$9:$K$104,5,FALSE) -> 0.072994815 | F81: =VLOOKUP($A81,Betas!$A$9:$K$104,6,FALSE) -> 0.8300088496 | G81: =VLOOKUP($A81,Betas!$A$9:$K$104,7,FALSE) -> 0.02825884311 | H81: =VLOOKUP($A81,Betas!$A$9:$K$104,8,FALSE) -> 0.8541460282 | I81: =VLOOKUP($A81,Betas!$A$9:$K$104,9,FALSE) -> 0.595303587 | J81: =VLOOKUP($A81,Betas!$A$9:$K$104,10,FALSE) -> 0.735391843 | K81: =VLOOKUP($A81,Betas!$A$9:$K$104,11,FALSE) -> 0.246165912 | L81: =VLOOKUP(A81,'Revenues multiples'!$A$9:$F$102,3,FALSE) -> 1.46 | M81: =VLOOKUP(A81,'Revenues multiples'!$A$9:$F$102,4,FALSE) -> -0.0762 | N81: =VLOOKUP(A81,'Revenues multiples'!$A$9:$F$102,5,FALSE) -> 2.11 | O81: =VLOOKUP(A81,'Revenues multiples'!$A$9:$F$102,6,FALSE) -> 0.0775
A82: Shoe | B82: =VLOOKUP($A82,Betas!$A$9:$K$104,2,FALSE) -> 10 | C82: =VLOOKUP($A82,Betas!$A$9:$K$104,3,FALSE) -> 0.851920561 | D82: =VLOOKUP($A82,Betas!$A$9:$K$104,4,FALSE) -> 0.1025801513 | E82: =VLOOKUP($A82,Betas!$A$9:$K$104,5,FALSE) -> 0.144693274 | F82: =VLOOKUP($A82,Betas!$A$9:$K$104,6,FALSE) -> 0.7832041887 | G82: =VLOOKUP($A82,Betas!$A$9:$K$104,7,FALSE) -> 0.05594935852 | H82: =VLOOKUP($A82,Betas!$A$9:$K$104,8,FALSE) -> 0.8296209486 | I82: =VLOOKUP($A82,Betas!$A$9:$K$104,9,FALSE) -> 0.300673844 | J82: =VLOOKUP($A82,Betas!$A$9:$K$104,10,FALSE) -> 0.372111033 | K82: =VLOOKUP($A82,Betas!$A$9:$K$104,11,FALSE) -> 0.2627085437 | L82: =VLOOKUP(A82,'Revenues multiples'!$A$9:$F$102,3,FALSE) -> 2.15 | M82: =VLOOKUP(A82,'Revenues multiples'!$A$9:$F$102,4,FALSE) -> 0.1004 | N82: =VLOOKUP(A82,'Revenues multiples'!$A$9:$F$102,5,FALSE) -> 2.24 | O82: =VLOOKUP(A82,'Revenues multiples'!$A$9:$F$102,6,FALSE) -> 0.121
A83: Software (Entertainment) | B83: =VLOOKUP($A83,Betas!$A$9:$K$104,2,FALSE) -> 13 | C83: =VLOOKUP($A83,Betas!$A$9:$K$104,3,FALSE) -> 0.980741716 | D83: =VLOOKUP($A83,Betas!$A$9:$K$104,4,FALSE) -> 0.1474217588 | E83: =VLOOKUP($A83,Betas!$A$9:$K$104,5,FALSE) -> 0.01037851 | F83: =VLOOKUP($A83,Betas!$A$9:$K$104,6,FALSE) -> 0.855876416 | G83: =VLOOKUP($A83,Betas!$A$9:$K$104,7,FALSE) -> 0.11287888 | H83: =VLOOKUP($A83,Betas!$A$9:$K$104,8,FALSE) -> 0.9647796638 | I83: =VLOOKUP($A83,Betas!$A$9:$K$104,9,FALSE) -> 0.612390721 | J83: =VLOOKUP($A83,Betas!$A$9:$K$104,10,FALSE) -> 0.481404993 | K83: =VLOOKUP($A83,Betas!$A$9:$K$104,11,FALSE) -> 1.193411704 | L83: =VLOOKUP(A83,'Revenues multiples'!$A$9:$F$102,3,FALSE) -> 4.44 | M83: =VLOOKUP(A83,'Revenues multiples'!$A$9:$F$102,4,FALSE) -> 0.1471 | N83: =VLOOKUP(A83,'Revenues multiples'!$A$9:$F$102,5,FALSE) -> 4.52 | O83: =VLOOKUP(A83,'Revenues multiples'!$A$9:$F$102,6,FALSE) -> 0.173
A84: Software (Internet) | B84: =VLOOKUP($A84,Betas!$A$9:$K$104,2,FALSE) -> 297 | C84: =VLOOKUP($A84,Betas!$A$9:$K$104,3,FALSE) -> 1.133334074 | D84: =VLOOKUP($A84,Betas!$A$9:$K$104,4,FALSE) -> 0.04267393151 | E84: =VLOOKUP($A84,Betas!$A$9:$K$104,5,FALSE) -> 0.034863142 | F84: =VLOOKUP($A84,Betas!$A$9:$K$104,6,FALSE) -> 1.088502797 | G84: =VLOOKUP($A84,Betas!$A$9:$K$104,7,FALSE) -> 0.02642326022 | H84: =VLOOKUP($A84,Betas!$A$9:$K$104,8,FALSE) -> 1.118045196 | I84: =VLOOKUP($A84,Betas!$A$9:$K$104,9,FALSE) -> 0.629319174 | J84: =VLOOKUP($A84,Betas!$A$9:$K$104,10,FALSE) -> 0.558514378 | K84: =VLOOKUP($A84,Betas!$A$9:$K$104,11,FALSE) -> 0.465278915 | L84: =VLOOKUP(A84,'Revenues multiples'!$A$9:$F$102,3,FALSE) -> 6.66 | M84: =VLOOKUP(A84,'Revenues multiples'!$A$9:$F$102,4,FALSE) -> 0.1308 | N84: =VLOOKUP(A84,'Revenues multiples'!$A$9:$F$102,5,FALSE) -> 6.76 | O84: =VLOOKUP(A84,'Revenues multiples'!$A$9:$F$102,6,FALSE) -> 0.2169
A85: Software (System & Application) | B85: =VLOOKUP($A85,Betas!$A$9:$K$104,2,FALSE) -> 236 | C85: =VLOOKUP($A85,Betas!$A$9:$K$104,3,FALSE) -> 1.125760214 | D85: =VLOOKUP($A85,Betas!$A$9:$K$104,4,FALSE) -> 0.2150133614 | E85: =VLOOKUP($A85,Betas!$A$9:$K$104,5,FALSE) -> 0.056743788 | F85: =VLOOKUP($A85,Betas!$A$9:$K$104,6,FALSE) -> 0.9359397556 | G85: =VLOOKUP($A85,Betas!$A$9:$K$104,7,FALSE) -> 0.05326564409 | H85: =VLOOKUP($A85,Betas!$A$9:$K$104,8,FALSE) -> 0.9885980684 | I85: =VLOOKUP($A85,Betas!$A$9:$K$104,9,FALSE) -> 0.561367973 | J85: =VLOOKUP($A85,Betas!$A$9:$K$104,10,FALSE) -> 0.474012732 | K85: =VLOOKUP($A85,Betas!$A$9:$K$104,11,FALSE) -> 0.1703723413 | L85: =VLOOKUP(A85,'Revenues multiples'!$A$9:$F$102,3,FALSE) -> 4.2 | M85: =VLOOKUP(A85,'Revenues multiples'!$A$9:$F$102,4,FALSE) -> 0.1121 | N85: =VLOOKUP(A85,'Revenues multiples'!$A$9:$F$102,5,FALSE) -> 4.83 | O85: =VLOOKUP(A85,'Revenues multiples'!$A$9:$F$102,6,FALSE) -> 0.1562
A86: Steel | B86: =VLOOKUP($A86,Betas!$A$9:$K$104,2,FALSE) -> 38 | C86: =VLOOKUP($A86,Betas!$A$9:$K$104,3,FALSE) -> 1.599676101 | D86: =VLOOKUP($A86,Betas!$A$9:$K$104,4,FALSE) -> 0.479279734 | E86: =VLOOKUP($A86,Betas!$A$9:$K$104,5,FALSE) -> 0.079423923 | F86: =VLOOKUP($A86,Betas!$A$9:$K$104,6,FALSE) -> 1.109950849 | G86: =VLOOKUP($A86,Betas!$A$9:$K$104,7,FALSE) -> 0.07038219772 | H86: =VLOOKUP($A86,Betas!$A$9:$K$104,8,FALSE) -> 1.193986224 | I86: =VLOOKUP($A86,Betas!$A$9:$K$104,9,FALSE) -> 0.597177424 | J86: =VLOOKUP($A86,Betas!$A$9:$K$104,10,FALSE) -> 0.541872775 | K86: =VLOOKUP($A86,Betas!$A$9:$K$104,11,FALSE) -> 0.6541158324 | L86: =VLOOKUP(A86,'Revenues multiples'!$A$9:$F$102,3,FALSE) -> 0.78 | M86: =VLOOKUP(A86,'Revenues multiples'!$A$9:$F$102,4,FALSE) -> -0.0571 | N86: =VLOOKUP(A86,'Revenues multiples'!$A$9:$F$102,5,FALSE) -> 1.07 | O86: =VLOOKUP(A86,'Revenues multiples'!$A$9:$F$102,6,FALSE) -> 0.0064
A87: Telecom (Wireless) | B87: =VLOOKUP($A87,Betas!$A$9:$K$104,2,FALSE) -> 17 | C87: =VLOOKUP($A87,Betas!$A$9:$K$104,3,FALSE) -> 1.11578972 | D87: =VLOOKUP($A87,Betas!$A$9:$K$104,4,FALSE) -> 1.145795352 | E87: =VLOOKUP($A87,Betas!$A$9:$K$104,5,FALSE) -> 0.091112082 | F87: =VLOOKUP($A87,Betas!$A$9:$K$104,6,FALSE) -> 0.5465807607 | G87: =VLOOKUP($A87,Betas!$A$9:$K$104,7,FALSE) -> 0.05921878317 | H87: =VLOOKUP($A87,Betas!$A$9:$K$104,8,FALSE) -> 0.5809860475 | I87: =VLOOKUP($A87,Betas!$A$9:$K$104,9,FALSE) -> 0.653026254 | J87: =VLOOKUP($A87,Betas!$A$9:$K$104,10,FALSE) -> 0.376721455 | K87: =VLOOKUP($A87,Betas!$A$9:$K$104,11,FALSE) -> 0.4223215911 | L87: =VLOOKUP(A87,'Revenues multiples'!$A$9:$F$102,3,FALSE) -> 1.15 | M87: =VLOOKUP(A87,'Revenues multiples'!$A$9:$F$102,4,FALSE) -> -0.0236 | N87: =VLOOKUP(A87,'Revenues multiples'!$A$9:$F$102,5,FALSE) -> 2.32 | O87: =VLOOKUP(A87,'Revenues multiples'!$A$9:$F$102,6,FALSE) -> 0.0429
A88: Telecom. Equipment | B88: =VLOOKUP($A88,Betas!$A$9:$K$104,2,FALSE) -> 107 | C88: =VLOOKUP($A88,Betas!$A$9:$K$104,3,FALSE) -> 0.988585317 | D88: =VLOOKUP($A88,Betas!$A$9:$K$104,4,FALSE) -> 0.2455043214 | E88: =VLOOKUP($A88,Betas!$A$9:$K$104,5,FALSE) -> 0.06141508 | F88: =VLOOKUP($A88,Betas!$A$9:$K$104,6,FALSE) -> 0.8034492051 | G88: =VLOOKUP($A88,Betas!$A$9:$K$104,7,FALSE) -> 0.06861003895 | H88: =VLOOKUP($A88,Betas!$A$9:$K$104,8,FALSE) -> 0.8626345985 | I88: =VLOOKUP($A88,Betas!$A$9:$K$104,9,FALSE) -> 0.489257497 | J88: =VLOOKUP($A88,Betas!$A$9:$K$104,10,FALSE) -> 0.492408678 | K88: =VLOOKUP($A88,Betas!$A$9:$K$104,11,FALSE) -> 0.1773482293 | L88: =VLOOKUP(A88,'Revenues multiples'!$A$9:$F$102,3,FALSE) -> 2.56 | M88: =VLOOKUP(A88,'Revenues multiples'!$A$9:$F$102,4,FALSE) -> 0.1211 | N88: =VLOOKUP(A88,'Revenues multiples'!$A$9:$F$102,5,FALSE) -> 2.97 | O88: =VLOOKUP(A88,'Revenues multiples'!$A$9:$F$102,6,FALSE) -> 0.1827
A89: Telecom. Services | B89: =VLOOKUP($A89,Betas!$A$9:$K$104,2,FALSE) -> 67 | C89: =VLOOKUP($A89,Betas!$A$9:$K$104,3,FALSE) -> 1.042428987 | D89: =VLOOKUP($A89,Betas!$A$9:$K$104,4,FALSE) -> 0.6588887058 | E89: =VLOOKUP($A89,Betas!$A$9:$K$104,5,FALSE) -> 0.133572765 | F89: =VLOOKUP($A89,Betas!$A$9:$K$104,6,FALSE) -> 0.6635959279 | G89: =VLOOKUP($A89,Betas!$A$9:$K$104,7,FALSE) -> 0.01779812807 | H89: =VLOOKUP($A89,Betas!$A$9:$K$104,8,FALSE) -> 0.6756207119 | I89: =VLOOKUP($A89,Betas!$A$9:$K$104,9,FALSE) -> 0.45309948 | J89: =VLOOKUP($A89,Betas!$A$9:$K$104,10,FALSE) -> 0.472061983 | K89: =VLOOKUP($A89,Betas!$A$9:$K$104,11,FALSE) -> 0.377436325 | L89: =VLOOKUP(A89,'Revenues multiples'!$A$9:$F$102,3,FALSE) -> 1.6 | M89: =VLOOKUP(A89,'Revenues multiples'!$A$9:$F$102,4,FALSE) -> 0.0957 | N89: =VLOOKUP(A89,'Revenues multiples'!$A$9:$F$102,5,FALSE) -> 2.61 | O89: =VLOOKUP(A89,'Revenues multiples'!$A$9:$F$102,6,FALSE) -> 0.1874
A90: Tobacco | B90: =VLOOKUP($A90,Betas!$A$9:$K$104,2,FALSE) -> 22 | C90: =VLOOKUP($A90,Betas!$A$9:$K$104,3,FALSE) -> 1.279160354 | D90: =VLOOKUP($A90,Betas!$A$9:$K$104,4,FALSE) -> 0.1718422204 | E90: =VLOOKUP($A90,Betas!$A$9:$K$104,5,FALSE) -> 0.088435478 | F90: =VLOOKUP($A90,Betas!$A$9:$K$104,6,FALSE) -> 1.10592278 | G90: =VLOOKUP($A90,Betas!$A$9:$K$104,7,FALSE) -> 0.02380214031 | H90: =VLOOKUP($A90,Betas!$A$9:$K$104,8,FALSE) -> 1.132887938 | I90: =VLOOKUP($A90,Betas!$A$9:$K$104,9,FALSE) -> 0.634952659 | J90: =VLOOKUP($A90,Betas!$A$9:$K$104,10,FALSE) -> 0.617287832 | K90: =VLOOKUP($A90,Betas!$A$9:$K$104,11,FALSE) -> 0.1666861006 | L90: =VLOOKUP(A90,'Revenues multiples'!$A$9:$F$102,3,FALSE) -> 5.66 | M90: =VLOOKUP(A90,'Revenues multiples'!$A$9:$F$102,4,FALSE) -> 0.2739 | N90: =VLOOKUP(A90,'Revenues multiples'!$A$9:$F$102,5,FALSE) -> 6.47 | O90: =VLOOKUP(A90,'Revenues multiples'!$A$9:$F$102,6,FALSE) -> 0.4028
A91: Transportation | B91: =VLOOKUP($A91,Betas!$A$9:$K$104,2,FALSE) -> 17 | C91: =VLOOKUP($A91,Betas!$A$9:$K$104,3,FALSE) -> 1.013576519 | D91: =VLOOKUP($A91,Betas!$A$9:$K$104,4,FALSE) -> 0.3197632808 | E91: =VLOOKUP($A91,Betas!$A$9:$K$104,5,FALSE) -> 0.17464259 | F91: =VLOOKUP($A91,Betas!$A$9:$K$104,6,FALSE) -> 0.8019315513 | G91: =VLOOKUP($A91,Betas!$A$9:$K$104,7,FALSE) -> 0.03507738261 | H91: =VLOOKUP($A91,Betas!$A$9:$K$104,8,FALSE) -> 0.8310837956 | I91: =VLOOKUP($A91,Betas!$A$9:$K$104,9,FALSE) -> 0.396887611 | J91: =VLOOKUP($A91,Betas!$A$9:$K$104,10,FALSE) -> 0.327158639 | K91: =VLOOKUP($A91,Betas!$A$9:$K$104,11,FALSE) -> 0.2407873021 | L91: =VLOOKUP(A91,'Revenues multiples'!$A$9:$F$102,3,FALSE) -> 1.14 | M91: =VLOOKUP(A91,'Revenues multiples'!$A$9:$F$102,4,FALSE) -> 0.0499 | N91: =VLOOKUP(A91,'Revenues multiples'!$A$9:$F$102,5,FALSE) -> 1.45 | O91: =VLOOKUP(A91,'Revenues multiples'!$A$9:$F$102,6,FALSE) -> 0.0966
A92: Transportation (Railroads) | B92: =VLOOKUP($A92,Betas!$A$9:$K$104,2,FALSE) -> 7 | C92: =VLOOKUP($A92,Betas!$A$9:$K$104,3,FALSE) -> 0.786016021 | D92: =VLOOKUP($A92,Betas!$A$9:$K$104,4,FALSE) -> 0.2793990706 | E92: =VLOOKUP($A92,Betas!$A$9:$K$104,5,FALSE) -> 0.221709007 | F92: =VLOOKUP($A92,Betas!$A$9:$K$104,6,FALSE) -> 0.6456228843 | G92: =VLOOKUP($A92,Betas!$A$9:$K$104,7,FALSE) -> 0.01817099819 | H92: =VLOOKUP($A92,Betas!$A$9:$K$104,8,FALSE) -> 0.657571617 | I92: =VLOOKUP($A92,Betas!$A$9:$K$104,9,FALSE) -> 0.282894615 | J92: =VLOOKUP($A92,Betas!$A$9:$K$104,10,FALSE) -> 0.270511332 | K92: =VLOOKUP($A92,Betas!$A$9:$K$104,11,FALSE) -> 0.2820410456 | L92: =VLOOKUP(A92,'Revenues multiples'!$A$9:$F$102,3,FALSE) -> 3.64 | M92: =VLOOKUP(A92,'Revenues multiples'!$A$9:$F$102,4,FALSE) -> 0.1831 | N92: =VLOOKUP(A92,'Revenues multiples'!$A$9:$F$102,5,FALSE) -> 4.58 | O92: =VLOOKUP(A92,'Revenues multiples'!$A$9:$F$102,6,FALSE) -> 0.3214
A93: Trucking | B93: =VLOOKUP($A93,Betas!$A$9:$K$104,2,FALSE) -> 30 | C93: =VLOOKUP($A93,Betas!$A$9:$K$104,3,FALSE) -> 1.205034614 | D93: =VLOOKUP($A93,Betas!$A$9:$K$104,4,FALSE) -> 0.9079623092 | E93: =VLOOKUP($A93,Betas!$A$9:$K$104,5,FALSE) -> 0.267388849 | F93: =VLOOKUP($A93,Betas!$A$9:$K$104,6,FALSE) -> 0.7236648392 | G93: =VLOOKUP($A93,Betas!$A$9:$K$104,7,FALSE) -> 0.04254807482 | H93: =VLOOKUP($A93,Betas!$A$9:$K$104,8,FALSE) -> 0.7558236817 | I93: =VLOOKUP($A93,Betas!$A$9:$K$104,9,FALSE) -> 0.457732562 | J93: =VLOOKUP($A93,Betas!$A$9:$K$104,10,FALSE) -> 0.420122795 | K93: =VLOOKUP($A93,Betas!$A$9:$K$104,11,FALSE) -> 0.3331646629 | L93: =VLOOKUP(A93,'Revenues multiples'!$A$9:$F$102,3,FALSE) -> 0.81 | M93: =VLOOKUP(A93,'Revenues multiples'!$A$9:$F$102,4,FALSE) -> 0.0384 | N93: =VLOOKUP(A93,'Revenues multiples'!$A$9:$F$102,5,FALSE) -> 1.47 | O93: =VLOOKUP(A93,'Revenues multiples'!$A$9:$F$102,6,FALSE) -> 0.0945
A94: Utility (General) | B94: =VLOOKUP($A94,Betas!$A$9:$K$104,2,FALSE) -> 18 | C94: =VLOOKUP($A94,Betas!$A$9:$K$104,3,FALSE) -> 0.376499481 | D94: =VLOOKUP($A94,Betas!$A$9:$K$104,4,FALSE) -> 0.6837168016 | E94: =VLOOKUP($A94,Betas!$A$9:$K$104,5,FALSE) -> 0.256242141 | F94: =VLOOKUP($A94,Betas!$A$9:$K$104,6,FALSE) -> 0.2495820703 | G94: =VLOOKUP($A94,Betas!$A$9:$K$104,7,FALSE) -> 0.00654100201 | H94: =VLOOKUP($A94,Betas!$A$9:$K$104,8,FALSE) -> 0.2512253358 | I94: =VLOOKUP($A94,Betas!$A$9:$K$104,9,FALSE) -> 0.151539521 | J94: =VLOOKUP($A94,Betas!$A$9:$K$104,10,FALSE) -> 0.193179203 | K94: =VLOOKUP($A94,Betas!$A$9:$K$104,11,FALSE) -> 0.0686478016 | L94: =VLOOKUP(A94,'Revenues multiples'!$A$9:$F$102,3,FALSE) -> 2.22 | M94: =VLOOKUP(A94,'Revenues multiples'!$A$9:$F$102,4,FALSE) -> 0.0941 | N94: =VLOOKUP(A94,'Revenues multiples'!$A$9:$F$102,5,FALSE) -> 3.72 | O94: =VLOOKUP(A94,'Revenues multiples'!$A$9:$F$102,6,FALSE) -> 0.1979
A95: Utility (Water) | B95: =VLOOKUP($A95,Betas!$A$9:$K$104,2,FALSE) -> 22 | C95: =VLOOKUP($A95,Betas!$A$9:$K$104,3,FALSE) -> 0.648851869 | D95: =VLOOKUP($A95,Betas!$A$9:$K$104,4,FALSE) -> 0.434650669 | E95: =VLOOKUP($A95,Betas!$A$9:$K$104,5,FALSE) -> 0.119746167 | F95: =VLOOKUP($A95,Betas!$A$9:$K$104,6,FALSE) -> 0.4692973382 | G95: =VLOOKUP($A95,Betas!$A$9:$K$104,7,FALSE) -> 0.004318035953 | H95: =VLOOKUP($A95,Betas!$A$9:$K$104,8,FALSE) -> 0.4713325692 | I95: =VLOOKUP($A95,Betas!$A$9:$K$104,9,FALSE) -> 0.452990194 | J95: =VLOOKUP($A95,Betas!$A$9:$K$104,10,FALSE) -> 0.450375341 | K95: =VLOOKUP($A95,Betas!$A$9:$K$104,11,FALSE) -> 0.251444726 | L95: =VLOOKUP(A95,'Revenues multiples'!$A$9:$F$102,3,FALSE) -> 4.34 | M95: =VLOOKUP(A95,'Revenues multiples'!$A$9:$F$102,4,FALSE) -> 0.1369 | N95: =VLOOKUP(A95,'Revenues multiples'!$A$9:$F$102,5,FALSE) -> 6.2 | O95: =VLOOKUP(A95,'Revenues multiples'!$A$9:$F$102,6,FALSE) -> 0.2997
A96: Total Market | B96: =VLOOKUP($A96,Betas!$A$9:$K$104,2,FALSE) -> 7330 | C96: =VLOOKUP($A96,Betas!$A$9:$K$104,3,FALSE) -> 1.000981401 | D96: =VLOOKUP($A96,Betas!$A$9:$K$104,4,FALSE) -> 0.6789703292 | E96: =VLOOKUP($A96,Betas!$A$9:$K$104,5,FALSE) -> 0.104353396 | F96: =VLOOKUP($A96,Betas!$A$9:$K$104,6,FALSE) -> 0.6224553989 | G96: =VLOOKUP($A96,Betas!$A$9:$K$104,7,FALSE) -> 0.04915185893 | H96: =VLOOKUP($A96,Betas!$A$9:$K$104,8,FALSE) -> 0.6546317672 | I96: =VLOOKUP($A96,Betas!$A$9:$K$104,9,FALSE) -> 0.48218977 | J96: =VLOOKUP($A96,Betas!$A$9:$K$104,10,FALSE) -> 0.450375341 | K96: =VLOOKUP($A96,Betas!$A$9:$K$104,11,FALSE) -> 0.1728240726 | L96: =VLOOKUP(A96,'Revenues multiples'!$A$9:$F$102,3,FALSE) ->  | M96: =VLOOKUP(A96,'Revenues multiples'!$A$9:$F$102,4,FALSE) ->  | N96: =VLOOKUP(A96,'Revenues multiples'!$A$9:$F$102,5,FALSE) ->  | O96: =VLOOKUP(A96,'Revenues multiples'!$A$9:$F$102,6,FALSE) -> 
A97: Total Market (without financials) | B97: =VLOOKUP($A97,Betas!$A$9:$K$104,2,FALSE) -> 6100 | C97: =VLOOKUP($A97,Betas!$A$9:$K$104,3,FALSE) -> 1.079612935 | D97: =VLOOKUP($A97,Betas!$A$9:$K$104,4,FALSE) -> 0.3571066118 | E97: =VLOOKUP($A97,Betas!$A$9:$K$104,5,FALSE) -> 0.08305870969 | F97: =VLOOKUP($A97,Betas!$A$9:$K$104,6,FALSE) -> 0.8133009555 | G97: =VLOOKUP($A97,Betas!$A$9:$K$104,7,FALSE) -> 0.04080952888 | H97: =VLOOKUP($A97,Betas!$A$9:$K$104,8,FALSE) -> 0.8479034977 | I97: =VLOOKUP($A97,Betas!$A$9:$K$104,9,FALSE) -> 0.5248761373 | J97: =VLOOKUP($A97,Betas!$A$9:$K$104,10,FALSE) -> 0.4881404361 | K97: =VLOOKUP($A97,Betas!$A$9:$K$104,11,FALSE) -> 0.1691342416 | L97: =VLOOKUP(A97,'Revenues multiples'!$A$9:$F$102,3,FALSE) ->  | M97: =VLOOKUP(A97,'Revenues multiples'!$A$9:$F$102,4,FALSE) ->  | N97: =VLOOKUP(A97,'Revenues multiples'!$A$9:$F$102,5,FALSE) ->  | O97: =VLOOKUP(A97,'Revenues multiples'!$A$9:$F$102,6,FALSE) -> 
A99: str.268 | B99: ..\Literature\[Aswath_Damodaran]_Investment_valuation(BookZZ.org).pdf

Sheet Operating margin global
A1: Date updated: | B1: 2017-01-05
A2: Created by: | B2: Aswath Damodaran, adamodar@stern.nyu.edu
A3: What is this data? | B3: Profit margins (net, operating and EBITDA) | F3: Global
A4: Home Page: | B4: http://www.damodaran.com
A5: Data website: | B5: http://www.stern.nyu.edu/~adamodar/New_Home_Page/data.html
A6: Companies in each industry: | B6: http://www.stern.nyu.edu/~adamodar/pc/datasets/indname.xls
A7: Variable definitions: | B7: http://www.stern.nyu.edu/~adamodar/New_Home_Page/datafile/variable.htm
A9: Opeating margin
A10: Industry Name | B10: Number of firms | C10: Weight | D10: Pre-tax Unadjusted Operating Margin
A11: Auto & Truck | B11: =VLOOKUP(A11,$A$17:$I$114,2,FALSE) -> 128 | C11: 0.6 | D11: =VLOOKUP(A11,$A$18:$I$113,4,FALSE) -> 0.06326821334
A12: Electrical equipment | B12: =VLOOKUP(A12,$A$17:$I$114,2,FALSE) -> 856 | C12: 0.3 | D12: =VLOOKUP(A12,$A$18:$I$113,4,FALSE) -> 0.07422263872
A13: Green & Renewable Energy | B13: =VLOOKUP(A13,$A$17:$I$114,2,FALSE) -> 179 | C13: 0.1 | D13: 0.3339895189
A14: Average | D14: =D11*C11+D12*C12+D13*C13 -> 0.09362667151
C18: Net Income Based | D18: Operating Income Based | J18: EBITDA Based
A19: Industry Name | B19: Number of firms | C19: Net Margin | D19: Pre-tax Unadjusted Operating Margin | E19: After-tax Unadjusted Operating Margin | F19: Pre-tax Lease adjusted Margin | G19: After-tax Lease Adjusted Margin | H19: Pre-tax Lease & R&D adj Margin | I19: After-tax Lease & R&D adj Margin | J19: EBITDA/Sales | K19: EBITDASG&A/Sales | L19: EBITDAR&D/Sales
A20: Advertising | B20: 251 | C20: 0.06272503485 | D20: 0.103769284 | E20: 0.08712781442 | F20: 0.1056395952 | G20: 0.088698184 | H20: 0.1056727082 | I20: 0.088731297 | J20: 0.1370565379 | K20: 0.4013445334 | L20: 0.1382948974
A21: Aerospace/Defense | B21: 222 | C21: 0.05172065595 | D21: 0.08872545325 | E21: 0.07917346083 | F21: 0.08957463858 | G21: 0.07993122468 | H21: 0.0900780981 | I21: 0.0804346842 | J21: 0.120925152 | K21: 0.2181395498 | L21: 0.167245767
A22: Air Transport | B22: 158 | C22: 0.07248373413 | D22: 0.1140212854 | E22: 0.09344759067 | F22: 0.1104716488 | G22: 0.09053844103 | H22: 0.1104979294 | I22: 0.09056472156 | J22: 0.176153711 | K22: 0.2380506262 | L22: 0.1765651489
A23: Apparel | B23: 1171 | C23: 0.05668162706 | D23: 0.1008170359 | E23: 0.08593680347 | F23: 0.1041570358 | G23: 0.08878383135 | H23: 0.1044698556 | I23: 0.08909665114 | J23: 0.1319167107 | K23: 0.4171695761 | L23: 0.1365789027
A24: Auto & Truck | B24: 128 | C24: 0.05257732953 | D24: 0.06326821334 | E24: 0.05404110827 | F24: 0.0635800127 | G24: 0.05430743447 | H24: 0.0664808345 | I24: 0.05720825628 | J24: 0.09603383469 | K24: 0.200462185 | L24: 0.1323594173
A25: Auto Parts | B25: 642 | C25: 0.04209340922 | D25: 0.06986590686 | E25: 0.05649642289 | F25: 0.07103892742 | G25: 0.05744497517 | H25: 0.07438310713 | I25: 0.06078915489 | J25: 0.1016073422 | K25: 0.1879967861 | L25: 0.1350640685
A26: Bank (Money Center) | B26: 623 | C26: 0.2706182807 | D26: 5.043071779e-05 | E26: 4.030298569e-05 | F26: 0.0009859322824 | G26: 0.0007879327601 | H26: 0.0009857917631 | I26: 0.0007877922408 | J26: 5.234983846e-05 | K26: 0.4595937673 | L26: 5.234983846e-05
A27: Banks (Regional) | B27: 889 | C27: 0.2556602285 | D27: 0.0002019950986 | E27: 0.0001519548648 | F27: -0.0001010993859 | G27: -7.605404098e-05 | H27: -0.0001010993859 | I27: -7.605404098e-05 | J27: 0.0001368957625 | K27: 0.4786431316 | L27: 0.0001368957625
A28: Beverage (Alcoholic) | B28: 223 | C28: 0.09584903068 | D28: 0.1927827018 | E28: 0.15418296 | F28: 0.1930251603 | G28: 0.1543768725 | H28: 0.1933128199 | I28: 0.1546645321 | J28: 0.2384541191 | K28: 0.5070066058 | L28: 0.2430553526
A29: Beverage (Soft) | B29: 103 | C29: 0.09676665786 | D29: 0.1469715713 | E29: 0.1279938385 | F29: 0.1480326812 | G29: 0.1289179324 | H29: 0.1481934867 | I29: 0.1290787379 | J29: 0.1769964361 | K29: 0.5367112419 | L29: 0.1815653183
A30: Broadcasting | B30: 142 | C30: 0.07154784993 | D30: 0.1698745251 | E30: 0.1380395324 | F30: 0.1707307214 | G30: 0.1387352749 | H30: 0.1706426534 | I30: 0.1386472069 | J30: 0.208213637 | K30: 0.4031941072 | L30: 0.2086967607
A31: Brokerage & Investment Banking | B31: 569 | C31: 0.1553057052 | D31: 0.003246766759 | E31: 0.002808475009 | F31: 0.00311607251 | G31: 0.002695423608 | H31: 0.003162597097 | I31: 0.002741948195 | J31: 0.002741027884 | K31: 0.3261461996 | L31: 0.003760395964
A32: Building Materials | B32: 434 | C32: 0.0412241928 | D32: 0.08141093151 | E32: 0.06529167885 | F32: 0.08376072934 | G32: 0.06717621993 | H32: 0.08422988159 | I32: 0.06764537218 | J32: 0.1069196147 | K32: 0.2906565329 | L32: 0.1218898432
A33: Business & Consumer Services | B33: 772 | C33: 0.04543582416 | D33: 0.08822803819 | E33: 0.0717820042 | F33: 0.09148598279 | G33: 0.07443265582 | H33: 0.09169769061 | I33: 0.07464436363 | J33: 0.1164877515 | K33: 0.3080941451 | L33: 0.1184541302
A34: Cable TV | B34: 63 | C34: 0.07499127115 | D34: 0.1696137092 | E34: 0.1443297011 | F34: 0.1706003588 | G34: 0.1451692726 | H34: 0.1706399265 | I34: 0.1452088403 | J34: 0.2838054066 | K34: 0.5398828956 | L34: 0.2847332438
A35: Chemical (Basic) | B35: 774 | C35: 0.06493452547 | D35: 0.09696140655 | E35: 0.08084760487 | F35: 0.0974156479 | G35: 0.08122635686 | H35: 0.09872765814 | I35: 0.0825383671 | J35: 0.1439996984 | K35: 0.242369742 | L35: 0.1578461513
A36: Chemical (Diversified) | B36: 81 | C36: 0.06864098817 | D36: 0.1020724919 | E36: 0.08246983993 | F36: 0.1024964912 | G36: 0.08281241172 | H36: 0.1036091023 | I36: 0.08392502277 | J36: 0.1559161765 | K36: 0.2976701903 | L36: 0.1903720479
A37: Chemical (Specialty) | B37: 731 | C37: 0.05752024772 | D37: 0.1095142469 | E37: 0.09170396099 | F37: 0.1106729289 | G37: 0.09267420672 | H37: 0.1113872885 | I37: 0.09338856634 | J37: 0.166068502 | K37: 0.3256295819 | L37: 0.1921757806
A38: Coal & Related Energy | B38: 278 | C38: -0.02073044189 | D38: 0.050066206 | E38: 0.04788982617 | F38: 0.0520147915 | G38: 0.04975370659 | H38: 0.05221632967 | I38: 0.04995524476 | J38: 0.193512241 | K38: 0.337612229 | L38: 0.1970302702
A39: Computer Services | B39: 929 | C39: 0.05471102787 | D39: 0.07387427447 | E39: 0.06118986437 | F39: 0.07575784917 | G39: 0.06275002427 | H39: 0.07682214396 | I39: 0.06381431906 | J39: 0.09433647707 | K39: 0.2194644175 | L39: 0.1095257381
A40: Computers/Peripherals | B40: 327 | C40: 0.07518487629 | D40: 0.1073860825 | E40: 0.09281762207 | F40: 0.1079014883 | G40: 0.09326310575 | H40: 0.108903292 | I40: 0.09426490943 | J40: 0.1523138905 | K40: 0.2845289079 | L40: 0.200360907
A41: Construction Supplies | B41: 757 | C41: 0.03599480998 | D41: 0.07230593832 | E41: 0.06043431893 | F41: 0.0733106672 | G41: 0.06127408544 | H41: 0.07322833496 | I41: 0.0611917532 | J41: 0.1129917187 | K41: 0.2553678423 | L41: 0.1316769982
A42: Diversified | B42: 356 | C42: 0.06362041108 | D42: 0.1182422293 | E42: 0.1021853264 | F42: 0.1198678433 | G42: 0.1035901874 | H42: 0.1207416803 | I42: 0.1044640244 | J42: 0.1519540041 | K42: 0.2678720557 | L42: 0.1693812062
A43: Drugs (Biotechnology) | B43: 884 | C43: 0.1211839256 | D43: 0.2427515848 | E43: 0.2367910621 | F43: 0.240856 | G43: 0.2349420216 | H43: 0.2739797711 | I43: 0.2680657926 | J43: 0.2969867093 | K43: 0.5592751534 | L43: 0.5815695189
A44: Drugs (Pharmaceutical) | B44: 971 | C44: 0.1271311777 | D44: 0.1930440317 | E44: 0.1694359796 | F44: 0.1935927195 | G44: 0.1699175664 | H44: 0.1978627495 | I44: 0.1741875963 | J44: 0.2543882952 | K44: 0.5424757864 | L44: 0.3874907444
A45: Education | B45: 174 | C45: 0.03745730079 | D45: 0.09478652886 | E45: 0.0811212495 | F45: 0.09201657879 | G45: 0.07875064037 | H45: 0.09294291509 | I45: 0.07967697667 | J45: 0.1345335535 | K45: 0.4753373049 | L45: 0.1410103566
A46: Electrical Equipment | B46: 856 | C46: 0.04280783557 | D46: 0.07422263872 | E46: 0.06394369497 | F46: 0.08293236686 | G46: 0.0714472304 | H46: 0.08372764342 | I46: 0.07224250696 | J46: 0.1004338197 | K46: 0.2560570742 | L46: 0.1309120904
A47: Electronics (Consumer & Office) | B47: 153 | C47: 0.006506002226 | D47: 0.02959271552 | E47: 0.02600468242 | F47: 0.03105149214 | G47: 0.0272865865 | H47: 0.04883744814 | I47: 0.0450725425 | J47: 0.06185776769 | K47: 0.2509788504 | L47: 0.1320085558
A48: Electronics (General) | B48: 1239 | C48: 0.04167857322 | D48: 0.06244148306 | E48: 0.05390084691 | F48: 0.06325299844 | G48: 0.05460136464 | H48: 0.06642068867 | I48: 0.05776905487 | J48: 0.1105770207 | K48: 0.2296368645 | L48: 0.1467519762
A49: Engineering/Construction | B49: 1118 | C49: 0.02071581374 | D49: 0.04857248299 | E49: 0.04029022483 | F49: 0.04959728884 | G49: 0.04114028758 | H49: 0.04983348044 | I49: 0.04137647917 | J49: 0.06496284804 | K49: 0.1581378971 | L49: 0.07061718859
A50: Entertainment | B50: 353 | C50: 0.108651043 | D50: 0.1800635676 | E50: 0.1607853749 | F50: 0.1758742187 | G50: 0.1570445513 | H50: 0.1758920353 | I50: 0.157062368 | J50: 0.2143145172 | K50: 0.4072695159 | L50: 0.2158648491
A51: Environmental & Waste Services | B51: 306 | C51: 0.04489941936 | D51: 0.09936829082 | E51: 0.08767496692 | F51: 0.1028147235 | G51: 0.09071583509 | H51: 0.102718028 | I51: 0.09061913958 | J51: 0.1585273361 | K51: 0.3028028009 | L51: 0.1617231747
A52: Farming/Agriculture | B52: 388 | C52: 0.03228530178 | D52: 0.05113153243 | E52: 0.04425918777 | F52: 0.05171417228 | G52: 0.04476351778 | H52: 0.05262913007 | I52: 0.04567847558 | J52: 0.07973749289 | K52: 0.1618197261 | L52: 0.09228897012
A53: Financial Svcs. (Non-bank & Insurance) | B53: 1016 | C53: 0.2166513444 | D53: 0.07605796848 | E53: 0.06269979111 | F53: 0.07514890306 | G53: 0.06195038624 | H53: 0.07527749449 | I53: 0.06207897767 | J53: 0.08857670988 | K53: 0.4224836042 | L53: 0.08999567177
A54: Food Processing | B54: 1275 | C54: 0.05214944914 | D54: 0.09013510488 | E54: 0.07526443753 | F54: 0.0904991612 | G54: 0.07556843112 | H54: 0.09083566717 | I54: 0.07590493709 | J54: 0.1100277466 | K54: 0.2954174243 | L54: 0.1161335033
A55: Food Wholesalers | B55: 128 | C55: 0.01220466293 | D55: 0.02411753261 | E55: 0.01936709126 | F55: 0.02536219548 | G55: 0.02036659232 | H55: 0.02534916725 | I55: 0.02035356409 | J55: 0.03436654995 | K55: 0.1550961032 | L55: 0.03443105114
A56: Furn/Home Furnishings | B56: 307 | C56: 0.06531650398 | D56: 0.08366505238 | E56: 0.06787571358 | F56: 0.08041699703 | G56: 0.06524063396 | H56: 0.08139884148 | I56: 0.06622247841 | J56: 0.09858963901 | K56: 0.2946574982 | L56: 0.1158634006
A57: Green & Renewable Energy | B57: 179 | C57: 0.1356159638 | D57: 0.3339895189 | E57: 0.301266338 | F57: 0.3264129582 | G57: 0.2944321035 | H57: 0.3264541348 | I57: 0.2944732801 | J57: 0.530476523 | K57: 0.60353979 | L57: 0.532915819
A58: Healthcare Products | B58: 677 | C58: 0.09560732074 | D58: 0.1545389456 | E58: 0.1412522621 | F58: 0.156833428 | G58: 0.1433494735 | H58: 0.1632148998 | I58: 0.1497309452 | J58: 0.2054176006 | K58: 0.5274158523 | L58: 0.274380721
A59: Healthcare Support Services | B59: 334 | C59: 0.02337069502 | D59: 0.04637111148 | E59: 0.038041954 | F59: 0.04697840512 | G59: 0.03854016584 | H59: 0.04708839327 | I59: 0.03865015399 | J59: 0.0533184036 | K59: 0.1378782548 | L59: 0.05464130989
A60: Heathcare Information and Technology | B60: 322 | C60: 0.093166335 | D60: 0.1246986131 | E60: 0.1154854173 | F60: 0.1263879923 | G60: 0.1170499789 | H60: 0.1305143663 | I60: 0.1211763529 | J60: 0.1749256086 | K60: 0.4355848014 | L60: 0.2341798335
A61: Homebuilding | B61: 173 | C61: 0.06785082387 | D61: 0.09498087518 | E61: 0.07408154194 | F61: 0.08759246885 | G61: 0.06831886043 | H61: 0.08788344595 | I61: 0.06860983753 | J61: 0.09739052205 | K61: 0.2092544065 | L61: 0.09946289471
A62: Hospitals/Healthcare Facilities | B62: 192 | C62: 0.02435207658 | D62: 0.1024308657 | E62: 0.08457802646 | F62: 0.09141222565 | G62: 0.07547984276 | H62: 0.09143949828 | I62: 0.07550711539 | J62: 0.1458198882 | K62: 0.2110746326 | L62: 0.1459303631
A63: Hotel/Gaming | B63: 658 | C63: 0.07728157047 | D63: 0.1357818717 | E63: 0.117884464 | F63: 0.1300921422 | G63: 0.1129446977 | H63: 0.1306550839 | I63: 0.1135076394 | J63: 0.2018474304 | K63: 0.3722425052 | L63: 0.2053158901
A64: Household Products | B64: 494 | C64: 0.09474441953 | D64: 0.155944011 | E64: 0.1328038804 | F64: 0.157111743 | G64: 0.1337983357 | H64: 0.1577943954 | I64: 0.1344809881 | J64: 0.1805677973 | K64: 0.5219963122 | L64: 0.1994647532
A65: Information Services | B65: 186 | C65: 0.1239739083 | D65: 0.2189122815 | E65: 0.1837396227 | F65: 0.2218124909 | G65: 0.1861738552 | H65: 0.2230517286 | I65: 0.1874130928 | J65: 0.2560032847 | K65: 0.4609837387 | L65: 0.2769037166
A66: Insurance (General) | B66: 233 | C66: 0.04504337454 | D66: 0.07701712014 | E66: 0.06565650081 | F66: 0.07665710009 | G66: 0.0653495865 | H66: 0.07665734626 | I66: 0.06534983266 | J66: 0.09375541833 | K66: 0.1802762852 | L66: 0.09376994353
A67: Insurance (Life) | B67: 123 | C67: 0.04666005424 | D67: 0.08339091197 | E67: 0.06755715154 | F67: 0.08382613141 | G67: 0.06790973415 | H67: 0.08382613141 | I67: 0.06790973415 | J67: 0.08312011092 | K67: 0.1705794132 | L67: 0.08312011092
A68: Insurance (Prop/Cas.) | B68: 227 | C68: 0.06557928807 | D68: 0.1046035021 | E68: 0.08706042009 | F68: 0.1046582966 | G68: 0.087106025 | H68: 0.1046582966 | I68: 0.087106025 | J68: 0.1090571371 | K68: 0.2140332178 | L68: 0.1090571371
A69: Investments & Asset Management | B69: 1013 | C69: 0.1949535476 | D69: 0.1994585091 | E69: 0.1844964593 | F69: 0.1959000909 | G69: 0.18120497 | H69: 0.1961513593 | I69: 0.1814562384 | J69: 0.2047276401 | K69: 0.4483654317 | L69: 0.2070477499
A70: Machinery | B70: 1270 | C70: 0.04945179351 | D70: 0.09132889371 | E70: 0.07550598113 | F70: 0.09474101495 | G70: 0.07832694557 | H70: 0.09653023521 | I70: 0.08011616583 | J70: 0.1258848853 | K70: 0.308698806 | L70: 0.1496023114
A71: Metals & Mining | B71: 1517 | C71: -0.05479411454 | D71: 0.03864297824 | E71: 0.03738006102 | F71: 0.03886455651 | G71: 0.03759439775 | H71: 0.03887024811 | I71: 0.03760008935 | J71: 0.1449851192 | K71: 0.2281035269 | L71: 0.1480407814
A72: Office Equipment & Services | B72: 159 | C72: 0.04447156616 | D72: 0.08078580137 | E72: 0.06605502146 | F72: 0.0905412653 | G72: 0.07403163824 | H72: 0.09098981878 | I72: 0.07448019173 | J72: 0.1085622797 | K72: 0.3492838066 | L72: 0.1196654309
A73: Oil/Gas (Integrated) | B73: 49 | C73: 0.008256824503 | D73: 0.02412510459 | E73: 0.02138050813 | F73: 0.02196806132 | G73: 0.01946886124 | H73: 0.02175300192 | I73: 0.01925380184 | J73: 0.1600735156 | K73: 0.2346701912 | L73: 0.1642787495
A74: Oil/Gas (Production and Exploration) | B74: 964 | C74: -0.4807398202 | D74: -0.1534245185 | E74: -0.1510142646 | F74: -0.1476401855 | G74: -0.1453208018 | H74: -0.1478011143 | I74: -0.1454817306 | J74: 0.5098818544 | K74: 0.6289940745 | L74: 0.5120536342
A75: Oil/Gas Distribution | B75: 210 | C75: 0.0276910082 | D75: 0.1368885011 | E75: 0.1254181537 | F75: 0.136975152 | G75: 0.1254975437 | H75: 0.136978589 | I75: 0.1255009808 | J75: 0.2060941694 | K75: 0.2612022395 | L75: 0.206235419
A76: Oilfield Svcs/Equip. | B76: 544 | C76: -0.01384227359 | D76: 0.03573674467 | E76: 0.03230234652 | F76: 0.03703643229 | G76: 0.03347713063 | H76: 0.03682877301 | I76: 0.03326947135 | J76: 0.09561829842 | K76: 0.1551045062 | L76: 0.09923968606
A77: Packaging & Container | B77: 395 | C77: 0.04272689589 | D77: 0.09026293297 | E77: 0.07239433969 | F77: 0.09145207114 | G77: 0.07334807418 | H77: 0.09170795283 | I77: 0.07360395587 | J77: 0.136521391 | K77: 0.2600543486 | L77: 0.14179073
A78: Paper/Forest Products | B78: 296 | C78: 0.04646169071 | D78: 0.07519226607 | E78: 0.06382212718 | F78: 0.07523387001 | G78: 0.06385744002 | H78: 0.07559215605 | I78: 0.06421572606 | J78: 0.1251556693 | K78: 0.2615658926 | L78: 0.1296672005
A79: Power | B79: 569 | C79: 0.05429745473 | D79: 0.1360885637 | E79: 0.111751518 | F79: 0.135434642 | G79: 0.1112145387 | H79: 0.1355882658 | I79: 0.1113681626 | J79: 0.2290044707 | K79: 0.3008422571 | L79: 0.2313143264
A80: Precious Metals | B80: 961 | C80: -0.09171272245 | D80: 0.06178315307 | E80: 0.05972371948 | F80: 0.0627103606 | G80: 0.06062002016 | H80: 0.06285860402 | I80: 0.06076826358 | J80: 0.2361787762 | K80: 0.3054043616 | L80: 0.2390424832
A81: Publishing & Newspapers | B81: 364 | C81: 0.02722836691 | D81: 0.06477100577 | E81: 0.05455962574 | F81: 0.06536438966 | G81: 0.05505946054 | H81: 0.06543926482 | I81: 0.0551343357 | J81: 0.1082329165 | K81: 0.3235517247 | L81: 0.1135614132
A82: R.E.I.T. | B82: 527 | C82: 0.3105635103 | D82: 0.3339039875 | E82: 0.325467747 | F82: 0.3057930245 | G82: 0.2980670207 | H82: 0.3058061476 | I82: 0.2980801437 | J82: 0.472408656 | K82: 0.5566301116 | L82: 0.4726177646
A83: Real Estate (Development) | B83: 746 | C83: 0.1149853674 | D83: 0.1613886901 | E83: 0.1314493556 | F83: 0.1615389846 | G83: 0.1315717688 | H83: 0.1615253792 | I83: 0.1315581635 | J83: 0.1579197804 | K83: 0.2419050947 | L83: 0.1579945804
A84: Real Estate (General/Diversified) | B84: 420 | C84: 0.1483689697 | D84: 0.1735236167 | E84: 0.1463541724 | F84: 0.1842951608 | G84: 0.1554391629 | H84: 0.1843534927 | I84: 0.1554974949 | J84: 0.1924350044 | K84: 0.3055679121 | L84: 0.1929224881
A85: Real Estate (Operations & Services) | B85: 606 | C85: 0.2262581784 | D85: 0.2862975544 | E85: 0.2459538996 | F85: 0.2747626196 | G85: 0.2360444115 | H85: 0.2747731813 | I85: 0.2360549732 | J85: 0.2944430864 | K85: 0.4840214328 | L85: 0.2945461085
A86: Recreation | B86: 307 | C86: 0.06301374702 | D86: 0.1105981831 | E86: 0.0916906465 | F86: 0.1083899699 | G86: 0.08985994288 | H86: 0.113185417 | I86: 0.09465538996 | J86: 0.1562625973 | K86: 0.3755332919 | L86: 0.187462625
A87: Reinsurance | B87: 38 | C87: 0.07357668245 | D87: 0.1038427733 | E87: 0.08833258607 | F87: 0.1038127117 | G87: 0.0883070145 | H87: 0.1038127117 | I87: 0.0883070145 | J87: 0.1063248893 | K87: 0.1969109216 | L87: 0.1063248893
A88: Restaurant/Dining | B88: 346 | C88: 0.06584510743 | D88: 0.1146153376 | E88: 0.09136160027 | F88: 0.1053673009 | G88: 0.08398985183 | H88: 0.105372816 | I88: 0.08399536697 | J88: 0.1509630343 | K88: 0.2969488777 | L88: 0.1511709898
A89: Retail (Automotive) | B89: 163 | C89: 0.02829699392 | D89: 0.04922978609 | E89: 0.03932838668 | F89: 0.04575599087 | G89: 0.03655326266 | H89: 0.04573695536 | I89: 0.03653422715 | J89: 0.06136614753 | K89: 0.1875773614 | L89: 0.06140695392
A90: Retail (Building Supply) | B90: 50 | C90: 0.05278687521 | D90: 0.09926470581 | E90: 0.07834561774 | F90: 0.09379200084 | G90: 0.07402623303 | H90: 0.09379236233 | I90: 0.07402659452 | J90: 0.1145554461 | K90: 0.3418800829 | L90: 0.1145578252
A91: Retail (Distributors) | B91: 929 | C91: 0.01075359754 | D91: 0.03319700437 | E91: 0.02721462154 | F91: 0.03427219687 | G91: 0.0280960552 | H91: 0.0343084542 | I91: 0.02813231253 | J91: 0.05061084187 | K91: 0.1578824556 | L91: 0.05092594502
A92: Retail (General) | B92: 220 | C92: 0.02338857504 | D92: 0.04431190336 | E92: 0.0343879636 | F92: 0.03900730384 | G92: 0.03027136374 | H92: 0.03902661068 | I92: 0.03029067058 | J92: 0.06626908588 | K92: 0.2780015738 | L92: 0.06637201273
A93: Retail (Grocery and Food) | B93: 163 | C93: 0.01919395184 | D93: 0.0360981021 | E93: 0.02753071897 | F93: 0.0314805265 | G93: 0.0240090608 | H93: 0.03147804944 | I93: 0.02400658374 | J93: 0.05632581514 | K93: 0.2434649639 | L93: 0.05645912086
A94: Retail (Online) | B94: 190 | C94: 0.02649370158 | D94: 0.05203900127 | E94: 0.04435489138 | F94: 0.05205058343 | G94: 0.04436476331 | H94: 0.05405670076 | I94: 0.04637088064 | J94: 0.07940532899 | K94: 0.3388680798 | L94: 0.09076602352
A95: Retail (Special Lines) | B95: 505 | C95: 0.0348242559 | D95: 0.06433174116 | E95: 0.05111473308 | F95: 0.06399939967 | G95: 0.05085067143 | H95: 0.06408602006 | I95: 0.05093729181 | J95: 0.08356306602 | K95: 0.3226707231 | L95: 0.08417828636
A96: Rubber& Tires | B96: 87 | C96: 0.06243217727 | D96: 0.1110956802 | E96: 0.08970367736 | F96: 0.1127995709 | G96: 0.09107947578 | H96: 0.1140985766 | I96: 0.09237848147 | J96: 0.1547580351 | K96: 0.3356556999 | L96: 0.1777601606
A97: Semiconductor | B97: 535 | C97: 0.10962965 | D97: 0.1599175349 | E97: 0.1442209282 | F97: 0.161827322 | G97: 0.1459432614 | H97: 0.1732336681 | I97: 0.1573496074 | J97: 0.2772720149 | K97: 0.3813881742 | L97: 0.418035553
A98: Semiconductor Equip | B98: 258 | C98: 0.09570660771 | D98: 0.1416773992 | E98: 0.1223345728 | F98: 0.1433240522 | G98: 0.1237564127 | H98: 0.1496597476 | I98: 0.1300921082 | J98: 0.1867804846 | K98: 0.3131400633 | L98: 0.2776875877
A99: Shipbuilding & Marine | B99: 326 | C99: -0.03465364924 | D99: 0.05044535134 | E99: 0.04468112277 | F99: 0.05500187451 | G99: 0.04871698665 | H99: 0.05500270701 | I99: 0.04871781915 | J99: 0.1640118004 | K99: 0.2498378678 | L99: 0.1641337561
A100: Shoe | B100: 89 | C100: 0.07499627836 | D100: 0.09761336843 | E100: 0.07969846658 | F100: 0.1001181691 | G100: 0.08174356321 | H100: 0.1006027002 | I100: 0.08222809428 | J100: 0.1165390589 | K100: 0.4172174838 | L100: 0.1243834268
A101: Software (Entertainment) | B101: 120 | C101: 0.09706449565 | D101: 0.1521885049 | E101: 0.1352833571 | F101: 0.1541081191 | G101: 0.1369897399 | H101: 0.1633354817 | I101: 0.1462171025 | J101: 0.1784678858 | K101: 0.4866773906 | L101: 0.3086469582
A102: Software (Internet) | B102: 830 | C102: 0.1282268438 | D102: 0.212088381 | E102: 0.1942469172 | F102: 0.2109937579 | G102: 0.1932443768 | H102: 0.2248968737 | I102: 0.2071474926 | J102: 0.2271186568 | K102: 0.5056394149 | L102: 0.3522903199
A103: Software (System & Application) | B103: 1026 | C103: 0.1118782238 | D103: 0.154942531 | E103: 0.1377649139 | F103: 0.1560342588 | G103: 0.1387356079 | H103: 0.1645049629 | I103: 0.147206312 | J103: 0.205385574 | K103: 0.4718257242 | L103: 0.3341935683
A104: Steel | B104: 737 | C104: -0.0248875898 | D104: 0.0305595325 | E104: 0.02698822103 | F104: 0.03224483848 | G104: 0.02847657529 | H104: 0.03193287024 | I104: 0.02816460705 | J104: 0.07989685735 | K104: 0.1659908155 | L104: 0.0888222499
A105: Telecom (Wireless) | B105: 106 | C105: 0.05730185475 | D105: 0.1240435076 | E105: 0.1069490701 | F105: 0.1282023975 | G105: 0.1105348233 | H105: 0.1283170542 | I105: 0.1106494801 | J105: 0.2896095853 | K105: 0.5029921343 | L105: 0.2918185853
A106: Telecom. Equipment | B106: 480 | C106: 0.07364338388 | D106: 0.1093285208 | E106: 0.0986039825 | F106: 0.1111630072 | G106: 0.1002585157 | H106: 0.1194377933 | I106: 0.1085333018 | J106: 0.1475924065 | K106: 0.3262607892 | L106: 0.2594284908
A107: Telecom. Services | B107: 297 | C107: 0.0781876436 | D107: 0.1520297893 | E107: 0.1291451435 | F107: 0.1516863679 | G107: 0.1288534164 | H107: 0.1516583681 | I107: 0.1288254165 | J107: 0.2988590239 | K107: 0.4663357269 | L107: 0.3067813809
A108: Tobacco | B108: 59 | C108: 0.2243542227 | D108: 0.3265221285 | E108: 0.2726635948 | F108: 0.3277072231 | G108: 0.2736532127 | H108: 0.3278044113 | I108: 0.273750401 | J108: 0.345430974 | K108: 0.5279586607 | L108: 0.3558708316
A109: Transportation | B109: 221 | C109: 0.05029990761 | D109: 0.09293620433 | E109: 0.07402831683 | F109: 0.09620604605 | G109: 0.07663290867 | H109: 0.09635493205 | I109: 0.07678179466 | J109: 0.1196055917 | K109: 0.1669583911 | L109: 0.1206170376
A110: Transportation (Railroads) | B110: 49 | C110: 0.1052636095 | D110: 0.2081094584 | E110: 0.1600047554 | F110: 0.2108925394 | G110: 0.1621445246 | H110: 0.2107133067 | I110: 0.1619652919 | J110: 0.3007711543 | K110: 0.3782121967 | L110: 0.3054882472
A111: Trucking | B111: 195 | C111: 0.03912035807 | D111: 0.06743306497 | E111: 0.05337560876 | F111: 0.07251779874 | G111: 0.05740035182 | H111: 0.0725344679 | I111: 0.05741702098 | J111: 0.117468211 | K111: 0.193591135 | L111: 0.1175514127
A112: Utility (General) | B112: 57 | C112: 0.006425047435 | D112: 0.1092764744 | E112: 0.08646827946 | F112: 0.1092984911 | G112: 0.08648570083 | H112: 0.109873901 | I112: 0.08706111076 | J112: 0.1629127208 | K112: 0.2352917554 | L112: 0.1653968502
A113: Utility (Water) | B113: 96 | C113: 0.1682143957 | D113: 0.2604329662 | E113: 0.2213906589 | F113: 0.2577479759 | G113: 0.2191081837 | H113: 0.2577105622 | I113: 0.21907077 | J113: 0.360267514 | K113: 0.4871907427 | L113: 0.3618885532
A114: Total Market | B114: 42678 | C114: 0.05804950443 | D114: 0.08461696099 | E114: 0.07291215765 | F114: 0.08474469422 | G114: 0.07302222193 | H114: 0.08581836146 | I114: 0.07409588918 | J114: 0.1318672263 | K114: 0.288720419 | L114: 0.1485167997
A115: Total Market (without financials) | B115: 37762 | C115: 0.04364830725 | D115: 0.08842962311 | E115: 0.076413725 | F115: 0.08855523183 | G115: 0.07652226589 | H115: 0.0897899767 | I115: 0.07775701076 | J115: 0.1421070803 | K115: 0.2826506113 | L115: 0.1612667983

Sheet WACC
A2: ths.# of shares | B2: =FCFF!C12 -> 164000 | I2: Equity | J2: Debt | K2: Preferred Stock | L2: Capital
A3: Price @31.3.2017 | B3: =FCFF!C13 -> 278.3 | H3: Market Value | I3: =B2*B3 -> 45641200 | J3: =B18+B25 -> 7936681.617 | K3: 0 | L3: =SUM(I3:K3) -> 53577881.62
H4: Weight in Cost of Capital | I4: =I3/$L$3 -> 0.8518664535 | J4: =J3/$L$3 -> 0.1481335465 | K4: =K3/$L$3 -> 0 | L4: =SUM(I4:K4) -> 1
A5: Country | B5: Revenues | C5: ERP | D5: Weight | E5: Weighted ERP | H5: Cost of Component | I5: =B13+E10*B16 -> 0.06358732105 | J5: =B24*(1-B15) -> 0.033 | K5: 0 | L5: =I4*I5+J4*J5+K4*K5 -> 0.0590563127
A6: United States of America | B6: 4200706 | C6: ='ERPs by country'!H149 -> 0.0569 | D6: =B6/$B$10 -> 0.6000895412 | E6: =D6*C6 -> 0.03414509489
A7: Norway | B7: 1065255 | C7: ='ERPs by country'!H109 -> 0.0569 | D7: =B7/$B$10 -> 0.1521764161 | E7: =D7*C7 -> 0.008658838076
A8: China | B8: 335572 | C8: ='ERPs by country'!H38 -> 0.0727729525 | D8: 0.04793795317 | E8: 0.003488586389
A9: Others | B9: 1398599 | C9: =AVERAGE('ERP Others'!E3:E29) -> 0.0790045506 | D9: 0.1997960896 | E9: 0.01578480027 | H9: ke | I9: =I5 -> 0.06358732105
A10: Total | B10: =SUM(B6:B9) -> 7000132 | D10: =SUM(D6:D9) -> 1 | E10: =SUM(E6:E9) -> 0.06207731963 | H10: kd | I10: =J5 -> 0.033
H12: WACC | I12: =I3/L3*I9+J3/L3*I10 -> 0.0590563127
A13: Risk free rate (10 T-bond) | B13: =FCFF!C3 -> 0.023874
A14: Unlevered β | B14: ='Global industry averages'!U8 -> 0.5792981176
A15: Tax rate | B15: 0.4
A16: Levered β for equity | B16: =B14*(1+(1-B15)*J3/I3) -> 0.6397396229
A18: Debt value of operating leases = | B18: ='Operating lease converter'!D26 -> 725245.606
A20: Book Value of Straight Debt = | B20: =FCFF!C6 -> 8169550
A21: Interest Expense on Debt = | B21: =-'12M'!P37 -> 257531
A22: Average Maturity = | B22: =ROUND(Maturity!K16,0) -> 6 | C22: Vlastní výpočty, data z Výroční zpráva 2016, s.81
A23: S&P Rating (Tesla Inc.) | B23: B- | C23: link
A24: Pre-tax Cost of Debt = | B24: 0.055 | C24: link
A25: Market Value of Straight Debt | B25: =B21*(1-(1+B24)^(-B22))/B24+B20/(1+B24)^B22 -> 7211436.011

Sheet Operating lease converter
B2: Výdaje na operační leasing v běžném roce (2016) | E2: 116800
B3: Budoucí závazky z operačního leasingu
B4: Rok | C4: Závazek
A5: 2017 | B5: 1 | C5: 165457
A6: 2018 | B6: 2 | C6: 150925
A7: 2019 | B7: 3 | C7: 125148
A8: 2020 | B8: 4 | C8: 102804
A9: 2021 | B9: 5 | C9: 88950
A10: 2022+ | B10: 6 a dále | C10: 248030
B13: Náklady na cizí kapitál (před daní) | D13: =WACC!B24 -> 0.055
B16: Průměrný počet let po roce 2022: | D16: =IF(C10>0,ROUND(C10/AVERAGE(C5:C9),0),0) -> 2 | E16: Jako odhad pro další roky jsem využil průměrné náklady na operační leasing v průběhu prvních 5 let
B18: SH budoucí plateb oper. leasingu
B19: Rok | C19: Závazek | D19: SH
A20: 2017 | B20: =B5 -> 1 | C20: =C5 -> 165457 | D20: =C20/(1+$D$13)^B20 -> 156831.2796
A21: 2018 | B21: =B6 -> 2 | C21: 150925 | D21: =C21/(1+$D$13)^B21 -> 135598.9308
A22: 2019 | B22: 3 | C22: 125148 | D22: =C22/(1+$D$13)^B22 -> 106577.7468
A23: 2020 | B23: 4 | C23: 102804 | D23: =C23/(1+$D$13)^B23 -> 82985.11008
A24: 2021 | B24: 5 | C24: 88950 | D24: =C24/(1+$D$13)^B24 -> 68058.70077
A25: 2022+ | B25: =B10 -> 6 a dále | C25: =IF(C10>0,IF(D16>0,C10/D16,C10),0) -> 124015 | D25: =IF(D16>0,(C25*(1-(1+D13)^(-D16))/D13)/(1+$D$13)^5,C25/(1+D13)^6) -> 175193.8378
D26: =SUM(D20:D25) -> 725245.606

Sheet Sales to Capital ratio
A1: Date updated: | B1: 2017-01-05
A2: Created by: | B2: Aswath Damodaran, adamodar@stern.nyu.edu
A3: What is this data? | B3: Capital Expenditures, Acquisitions and R&D and Sales/Invested Capital Ratios | F3: Global
A4: Home Page: | B4: http://www.damodaran.com
A5: Data website: | B5: http://www.stern.nyu.edu/~adamodar/New_Home_Page/data.html
A6: Companies in each industry: | B6: http://www.stern.nyu.edu/~adamodar/pc/datasets/indname.xls
A7: Variable definitions: | B7: http://www.stern.nyu.edu/~adamodar/New_Home_Page/datafile/variable.htm
A9: Sales/Capital ratio | E9: TESLA Inc. | F9: 2016 | G9: 2015 | H9: 2014
A10: Industry Name | B10: Number of Firms | C10: Weight | D10: Sales/Capital | E10: Revenues | F10: 7000132 | G10: 4046025 | H10: 3198356
A11: Auto & Truck | B11: =VLOOKUP(A11,$A$22:$J$117,2,FALSE) -> 128 | C11: 0.6 | D11: =VLOOKUP(A11,$A$22:$J$117,10,FALSE) -> 1.280280484 | E11: Book value of equity | F11: 4752911 | G11: 1083704 | H11: 911710
A12: Electrical equipment | B12: =VLOOKUP(A12,$A$22:$J$117,2,FALSE) -> 856 | C12: 0.3 | D12: =VLOOKUP(A12,$A$22:$J$117,10,FALSE) -> 1.475402658 | E12: Book value of debt | F12: =1150147+5978284 -> 7128431 | G12: 2649020 | H12: 2429883
A13: Green & Renewable Energy | B13: =VLOOKUP(A13,$A$22:$J$117,2,FALSE) -> 179 | C13: 0.1 | D13: 0.2431271628 | E13: Cash and Marketable Securities | F13: 3393216 | G13: 1196908 | H13: 1905713
A14: Average (Industry) | D14: =C11*D11+C12*D12+C13*D13 -> 1.235101804 | E14: S/C | F14: =F10/(F11+F12-F13) -> 0.8246969944 | G14: =G10/(G11+G12-G13) -> 1.595551491 | H14: =H10/(H11+H12-H13) -> 2.227453548
E16: Průměrné S/C ratio | F16: =AVERAGE(F14:H14) -> 1.549234011
A21: Industry Name | B21: Number of Firms | C21: Capital Expenditures | D21: Depreciation | E21: Cap Ex/Deprecn | F21: Acquisitions | G21: Net R&D | H21: Net Cap Ex/Sales | I21: Net Cap Ex/ EBIT (1-t) | J21: Sales/Capital
A22: Advertising | B22: 251 | C22: 2600.902 | D22: 3471.919 | E22: 0.7491251956 | F22: 3040.127 | G22: 4.1122 | H22: 0.01749961272 | I22: 0.232210051 | J22: 3.77343306
A23: Aerospace/Defense | B23: 222 | C23: 23781.948 | D23: 19078.454 | E23: 1.246534337 | F23: 15464.855 | G23: 335.6928 | H23: 0.03075119617 | I23: 0.4336507326 | J23: 2.448597321
A24: Air Transport | B24: 158 | C24: 70177.454 | D24: 36205.946 | E24: 1.93828533 | F24: 2377.007 | G24: 15.233 | H24: 0.06273607558 | I24: 0.7439020541 | J24: 1.095768266
A25: Apparel | B25: 1171 | C25: 18958.736 | D25: 13955.36 | E25: 1.35852719 | F25: 6880.711 | G25: 155.367 | H25: 0.02424053619 | I25: 0.3204824122 | J25: 1.489834493
A26: Auto & Truck | B26: 128 | C26: 151949.233 | D26: 67921.509 | E26: 2.237129817 | F26: 2157.142 | G26: 6055.1402 | H26: 0.0441892033 | I26: 0.9172137593 | J26: 1.280280484
A27: Auto Parts | B27: 642 | C27: 46958.971 | D27: 15899.854 | E27: 2.953421522 | F27: 10678.931 | G27: 2732.172 | H27: 0.0544315686 | I27: 1.044838928 | J27: 1.990424458
A28: Bank (Money Center) | B28: 623 | C28: 81312.326 | D28: 9.201 | E28: NA | F28: 26709.163 | G28: -0.286 | H28: 0.0530691412 | I28: 60.82825484 | J28: 0.1161938611
A29: Banks (Regional) | B29: 889 | C29: 13758.422 | D29: 3.45 | E29: NA | F29: 3448.062 | G29: 0 | H29: 0.06227582124 | I29: NA | J29: 0.2728123722
A30: Beverage (Alcoholic) | B30: 223 | C30: 12408.577 | D30: 13140.915 | E30: 0.9442703952 | F30: 5982.423 | G30: 79.95 | H30: 0.01917743388 | I30: 0.1329405576 | J30: 0.8511347479
A31: Beverage (Soft) | B31: 103 | C31: 8491.56 | D31: 3690.802 | E31: 2.300735721 | F31: 1357.88 | G31: 31.9138 | H31: 0.0311926132 | I31: 0.2788153164 | J31: 1.705627656
A32: Broadcasting | B32: 142 | C32: 4596.605 | D32: 6557.913 | E32: 0.7009249741 | F32: 3764.918 | G32: -10.3396 | H32: 0.01527426389 | I32: 0.1211810246 | J32: 1.160158318
A33: Brokerage & Investment Banking | B33: 569 | C33: 11212.215 | D33: 3366.382 | E33: 3.330642512 | F33: -8049.996 | G33: 12.465 | H33: -0.0007154970198 | I33: -0.3113142503 | J33: 0.1538970015
A34: Building Materials | B34: 434 | C34: 13231.766 | D34: 7902.071 | E34: 1.674468124 | F34: 6669.405 | G34: 154.6756 | H34: 0.03686406356 | I34: 0.6373112938 | J34: 1.770714844
A35: Business & Consumer Services | B35: 772 | C35: 12563.114 | D35: 13251.717 | E35: 0.9480366959 | F35: 14891.145 | G35: 99.4918 | H35: 0.03043318446 | I35: 0.4730340111 | J35: 3.035338441
A36: Cable TV | B36: 63 | C36: 27988.52 | D36: 34499.662 | E36: 0.8112693974 | F36: 51691.307 | G36: 8.886 | H36: 0.2012184064 | I36: 1.592866158 | J36: 0.9311590788
A37: Chemical (Basic) | B37: 774 | C37: 35195.166 | D37: 16336.389 | E37: 2.154403032 | F37: 7869.382 | G37: 694.806 | H37: 0.05178310349 | I37: 0.6801730036 | J37: 1.127989041
A38: Chemical (Diversified) | B38: 81 | C38: 25512.517 | D38: 14003.833 | E38: 1.821823854 | F38: 5330.551 | G38: 351.9118 | H38: 0.05435185734 | I38: 0.6529734858 | J38: 1.268452528
A39: Chemical (Specialty) | B39: 731 | C39: 36012.796 | D39: 22036.754 | E39: 1.634215094 | F39: 9240.198 | G39: 381.5782 | H39: 0.04417791222 | I39: 0.5281797992 | J39: 1.203872433
A40: Coal & Related Energy | B40: 278 | C40: 15374.009 | D40: 17819.207 | E40: 0.8627773952 | F40: 2609.809 | G40: 27.5822 | H40: 0.001404321106 | I40: 0.05760176918 | J40: 0.5605628708
A41: Computer Services | B41: 929 | C41: 14712.251 | D41: 12476.304 | E41: 1.179215495 | F41: 23057.786 | G41: 824.3992 | H41: 0.03371836365 | I41: 0.564229737 | J41: 3.544250543
A42: Computers/Peripherals | B42: 327 | C42: 50606.214 | D42: 23958.904 | E42: 2.112209056 | F42: 14841.35 | G42: 1044.3078 | H42: 0.04080184358 | I42: 0.5101233516 | J42: 1.550147817
A43: Construction Supplies | B43: 757 | C43: 41369.777 | D43: 32593.115 | E43: 1.269279632 | F43: 19134.324 | G43: -66.464 | H43: 0.03449238413 | I43: 0.6373276849 | J43: 1.125841216
A44: Diversified | B44: 356 | C44: 73973.022 | D44: 48626.208 | E44: 1.521258289 | F44: 71551.925 | G44: 1355.3754 | H44: 0.06334634623 | I44: 0.6878367445 | J44: 0.8892895368
A45: Drugs (Biotechnology) | B45: 884 | C45: 7545.316 | D45: 8191.948 | E45: 0.9210649286 | F45: 24400.828 | G45: 5394.724 | H45: 0.1789752639 | I45: 1.052637908 | J45: 0.5245891684
A46: Drugs (Pharmaceutical) | B46: 971 | C46: 37910.916 | D46: 58514.137 | E46: 0.6478932775 | F46: 73485.787 | G46: 3650.686 | H46: 0.06612419716 | I46: 0.432543352 | J46: 0.7302754423
A47: Education | B47: 174 | C47: 1843.481 | D47: 1153.003 | E47: 1.598851868 | F47: 1550.963 | G47: 32.4362 | H47: 0.06493901843 | I47: 0.9008820345 | J47: 1.32027926
A48: Electrical Equipment | B48: 856 | C48: 21156.088 | D48: 11510.368 | E48: 1.838002747 | F48: 8831.991 | G48: 407.2804 | H48: 0.03687580112 | I48: 0.5876623397 | J48: 1.475402658
A49: Electronics (Consumer & Office) | B49: 153 | C49: 14081.24 | D49: 5501.91 | E49: 2.559336667 | F49: 1960.638 | G49: 5853.2916 | H49: 0.04981296232 | I49: 2.241297904 | J49: 2.103657037
A50: Electronics (General) | B50: 1239 | C50: 48311 | D50: 18234.345 | E50: 2.649450803 | F50: 2451.802 | G50: 2507.8816 | H50: 0.04425418939 | I50: 0.9136367225 | J50: 1.613917607
A51: Engineering/Construction | B51: 1118 | C51: 47933.974 | D51: 26535.461 | E51: 1.806411956 | F51: 10261.032 | G51: 377.1334 | H51: 0.02006397228 | I51: 0.5544869108 | J51: 2.240476518
A52: Entertainment | B52: 353 | C52: 10039.183 | D52: 7404.346 | E52: 1.355850064 | F52: 6911.427 | G52: 3.6558 | H52: 0.04654178091 | I52: 0.3789789575 | J52: 1.523248189
A53: Environmental & Waste Services | B53: 306 | C53: 7654.492 | D53: 6155.432 | E53: 1.243534491 | F53: 5496.953 | G53: -9.5016 | H53: 0.07110005295 | I53: 0.9912645993 | J53: 1.733207885
A54: Farming/Agriculture | B54: 388 | C54: 16664.355 | D54: 8395.128 | E54: 1.985003088 | F54: 3538.725 | G54: 329.3448 | H54: 0.03371880867 | I54: 0.861176106 | J54: 1.286638595
A55: Financial Svcs. (Non-bank & Insurance) | B55: 1016 | C55: 42128.704 | D55: 11079.299 | E55: 3.802470174 | F55: 27497.236 | G55: 69.7934 | H55: 0.1079983363 | I55: 1.899222548 | J55: 0.05945743832
A56: Food Processing | B56: 1275 | C56: 54313.602 | D56: 31010.659 | E56: 1.751449461 | F56: 15521.809 | G56: 401.5876 | H56: 0.03286928532 | I56: 0.4905272722 | J56: 1.831902459
A57: Food Wholesalers | B57: 128 | C57: 4227.201 | D57: 2979.005 | E57: 1.418997618 | F57: 6099.953 | G57: -3.99 | H57: 0.02398030515 | I57: 1.242899133 | J57: 6.204731206
A58: Furn/Home Furnishings | B58: 307 | C58: 7650.647 | D58: 4299.774 | E58: 1.77931375 | F58: 11119.581 | G58: 234.3374 | H58: 0.06161123986 | I58: 0.9604460104 | J58: 2.19203111
A59: Green & Renewable Energy | B59: 179 | C59: 10873.069 | D59: 7829.23 | E59: 1.388778845 | F59: 14171.128 | G59: 1.3748 | H59: 0.5156459405 | I59: 1.973379127 | J59: 0.2431271628
A60: Healthcare Products | B60: 677 | C60: 14475.916 | D60: 13624.652 | E60: 1.062479688 | F60: 18203.341 | G60: 1787.7792 | H60: 0.07439681942 | I60: 0.5934637872 | J60: 1.011775971
A61: Healthcare Support Services | B61: 334 | C61: 14619.952 | D61: 13304.024 | E61: 1.098912028 | F61: 20011.013 | G61: 163.1914 | H61: 0.01448397275 | I61: 0.4773088862 | J61: 7.984794909
A62: Heathcare Information and Technology | B62: 322 | C62: 4201.091 | D62: 5007.778 | E62: 0.8389131866 | F62: 11370.634 | G62: 385.0092 | H62: 0.1173465143 | I62: 1.159529818 | J62: 1.249513726
A63: Homebuilding | B63: 173 | C63: 2244.805 | D63: 999.537 | E63: 2.245844826 | F63: 1070.751 | G63: 62.0442 | H63: 0.01115272527 | I63: 0.1813073344 | J63: 1.342034676
A64: Hospitals/Healthcare Facilities | B64: 192 | C64: 12096.546 | D64: 9219.291 | E64: 1.312090702 | F64: 9185.057 | G64: 5.28 | H64: 0.0623323789 | I64: 0.9270682707 | J64: 1.29678041
A65: Hotel/Gaming | B65: 658 | C65: 28762.511 | D65: 22519.695 | E65: 1.277215833 | F65: 10150.467 | G65: 177.5466 | H65: 0.05254063818 | I65: 0.470347002 | J65: 0.7717796906
A66: Household Products | B66: 494 | C66: 17116.782 | D66: 12263.35 | E66: 1.395767225 | F66: 15642.262 | G66: 288.7574 | H66: 0.04913659557 | I66: 0.4282827558 | J66: 1.871254095
A67: Information Services | B67: 186 | C67: 5785.971 | D67: 10310.696 | E67: 0.5611620205 | F67: 23906.474 | G67: 236.5188 | H67: 0.1027896994 | I67: 0.6236754877 | J67: 1.812840832
A68: Insurance (General) | B68: 233 | C68: 7354.19 | D68: 10163.62 | E68: 0.7235797875 | F68: 3516.103 | G68: 0.2212 | H68: 0.0007866824994 | I68: 0.01403305781 | J68: 1.54881039
A69: Insurance (Life) | B69: 123 | C69: 9784.294 | D69: 6477.55 | E69: 1.51049301 | F69: 6325.422 | G69: 0 | H69: 0.006469392072 | I69: 0.1001472409 | J69: 1.673026343
A70: Insurance (Prop/Cas.) | B70: 227 | C70: 4174.317 | D70: 4948.472 | E70: 0.8435567585 | F70: 16281.552 | G70: 0 | H70: 0.02536859932 | I70: 0.3160186538 | J70: 1.384973585
A71: Investments & Asset Management | B71: 1013 | C71: 5068.207 | D71: 1020.251 | E71: 4.967607971 | F71: 17451.214 | G71: 55.1494 | H71: 0.09820450973 | I71: 0.6091267413 | J71: 0.3120049835
A72: Machinery | B72: 1270 | C72: 26205.64 | D72: 15298.609 | E72: 1.71294266 | F72: 13847.102 | G72: 1196.31 | H72: 0.03881189523 | I72: 0.5676058742 | J72: 1.569240775
A73: Metals & Mining | B73: 1517 | C73: 67524.653 | D73: 56923.327 | E73: 1.186238693 | F73: 5198.24 | G73: 4.093 | H73: 0.02197608394 | I73: 0.6974543773 | J73: 0.8003216185
A74: Office Equipment & Services | B74: 159 | C74: 2059.093 | D74: 1543.625 | E74: 1.333933436 | F74: 965.861 | G74: 27.3948 | H74: 0.02470334958 | I74: 0.3804862231 | J74: 2.121660837
A75: Oil/Gas (Integrated) | B75: 49 | C75: 236890.694 | D75: 209348.723 | E75: 1.131560253 | F75: 18544.833 | G75: -414.0376 | H75: 0.02372334695 | I75: 1.573074655 | J75: 0.8613855844
A76: Oil/Gas (Production and Exploration) | B76: 964 | C76: 123126.878 | D76: 145298.315 | E76: 0.8474074734 | F76: 6047.519 | G76: -47.5844 | H76: -0.05469146192 | I76: NA | J76: 0.2760460827
A77: Oil/Gas Distribution | B77: 210 | C77: 87457.221 | D77: 32506.728 | E77: 2.690434454 | F77: 23312.053 | G77: 1.4262 | H77: 0.1886122644 | I77: 1.535286984 | J77: 0.5592795998
A78: Oilfield Svcs/Equip. | B78: 544 | C78: 51177.565 | D78: 41471.18 | E78: 1.234051334 | F78: 11016.474 | G78: -253.1016 | H78: 0.01679458035 | I78: 0.6365442441 | J78: 1.698927014
A79: Packaging & Container | B79: 395 | C79: 12877.883 | D79: 9075.747 | E79: 1.41893367 | F79: 11042.217 | G79: 58.6062 | H79: 0.06506810448 | I79: 0.9760846726 | J79: 1.65098245
A80: Paper/Forest Products | B80: 296 | C80: 14591.857 | D80: 9311.832 | E80: 1.567023224 | F80: 1268.891 | G80: 73.4384 | H80: 0.03230867116 | I80: 0.5584453321 | J80: 1.014926734
A81: Power | B81: 569 | C81: 285211.899 | D81: 149495.599 | E81: 1.907828063 | F81: 50765.68 | G81: 251.6326 | H81: 0.1140024494 | I81: 1.117122162 | J81: 0.6557581772
A82: Precious Metals | B82: 961 | C82: 28285.125 | D82: 24043.9 | E82: 1.176395052 | F82: 1903.067 | G82: 19.6146 | H82: 0.04658563395 | I82: 1.86817166 | J82: 0.5324975173
A83: Publishing & Newspapers | B83: 364 | C83: 5439.638 | D83: 6101.807 | E83: 0.8914798518 | F83: 4444.177 | G83: 12.6738 | H83: 0.02241848546 | I83: 0.4683312371 | J83: 1.72605687
A84: R.E.I.T. | B84: 527 | C84: 9132.808 | D84: 34936.267 | E84: 0.2614133903 | F84: 21396.835 | G84: 2.671 | H84: -0.02163727978 | I84: -0.0737791232 | J84: 0.1176547879
A85: Real Estate (Development) | B85: 746 | C85: 14247.102 | D85: 3949.136 | E85: 3.607650382 | F85: 15670.132 | G85: -6.2128 | H85: 0.05685362223 | I85: 0.5102433183 | J85: 0.4834834846
A86: Real Estate (General/Diversified) | B86: 420 | C86: 17211.025 | D86: 4946.816 | E86: 3.47921269 | F86: 3936.437 | G86: 13.8794 | H86: 0.06814594644 | I86: 0.4897211792 | J86: 0.3064406579
A87: Real Estate (Operations & Services) | B87: 606 | C87: 7010.083 | D87: 2604.238 | E87: 2.691798138 | F87: 8177.591 | G87: 1.3146 | H87: 0.1011079303 | I87: 0.4513709016 | J87: 0.2127817639
A88: Recreation | B88: 307 | C88: 8618.839 | D88: 4431.297 | E88: 1.944992403 | F88: 2796.787 | G88: 579.728 | H88: 0.0625690584 | I88: 0.8057925792 | J88: 1.208832218
A89: Reinsurance | B89: 38 | C89: 179.373 | D89: -398.401 | E89: NA | F89: 179.563 | G89: 0 | H89: 0.003891100143 | I89: 0.04521276909 | J89: 1.341893919
A90: Restaurant/Dining | B90: 346 | C90: 15671.106 | D90: 11647.021 | E90: 1.345503369 | F90: 2347.752 | G90: 1.685 | H90: 0.02086108078 | I90: 0.2741341618 | J90: 1.570695785
A91: Retail (Automotive) | B91: 163 | C91: 8176.659 | D91: 3620.256 | E91: 2.258585857 | F91: 5689.033 | G91: -5.7788 | H91: 0.03372968867 | I91: 1.107166854 | J91: 2.696976361
A92: Retail (Building Supply) | B92: 50 | C92: 4343.57 | D92: 4501.631 | E92: 0.9648880595 | F92: 2473.506 | G92: 0.0784 | H92: 0.01067649223 | I92: 0.1818721999 | J92: 2.45150508
A93: Retail (Distributors) | B93: 929 | C93: 34397.371 | D93: 15600.821 | E93: 2.204843643 | F93: 9087.227 | G93: 44.6994 | H93: 0.02265381687 | I93: 0.9318139314 | J93: 1.758400492
A94: Retail (General) | B94: 220 | C94: 47750.285 | D94: 35252.008 | E94: 1.354540853 | F94: 4521.746 | G94: 31.0292 | H94: 0.01060942485 | I94: 0.3940051824 | J94: 2.65595434
A95: Retail (Grocery and Food) | B95: 163 | C95: 29101.361 | D95: 20037.128 | E95: 1.452371867 | F95: 454.336 | G95: -2.381 | H95: 0.009900123769 | I95: 0.4296926635 | J95: 3.189397563
A96: Retail (Online) | B96: 190 | C96: 9718.452 | D96: 10243.355 | E96: 0.9487567306 | F96: 2140.092 | G96: 500.2338 | H96: 0.008483605745 | I96: 0.2392148261 | J96: 3.367221135
A97: Retail (Special Lines) | B97: 505 | C97: 23611.04 | D97: 20742.287 | E97: 1.138304566 | F97: 5313.492 | G97: 92.3824 | H97: 0.007758527563 | I97: 0.1762117917 | J97: 2.442412574
A98: Rubber& Tires | B98: 87 | C98: 7174.118 | D98: 4499.249 | E98: 1.594514551 | F98: 332.633 | G98: 189.1474 | H98: 0.0219535968 | I98: 0.2749103629 | J98: 1.432591346
A99: Semiconductor | B99: 535 | C99: 47146.974 | D99: 31276.095 | E99: 1.507444392 | F99: 40774.757 | G99: 4310.6896 | H99: 0.1612941336 | I99: 1.191632045 | J99: 0.7784013045
A100: Semiconductor Equip | B100: 258 | C100: 6285.83 | D100: 4020.372 | E100: 1.563494622 | F100: 1649.802 | G100: 585.3084 | H100: 0.04871659249 | I100: 0.4161750861 | J100: 0.9998805318
A101: Shipbuilding & Marine | B101: 326 | C101: 26135.309 | D101: 16558.834 | E101: 1.578330274 | F101: 2604.984 | G101: 0.2062 | H101: 0.04918141717 | I101: 1.092922625 | J101: 0.6036713146
A102: Shoe | B102: 89 | C102: 1576.632 | D102: 2158.69 | E102: 0.7303651752 | F102: 697.221 | G102: 45.5024 | H102: 0.001710841146 | I102: 0.02152553719 | J102: 1.834385408
A103: Software (Entertainment) | B103: 120 | C103: 1069.008 | D103: 1317.149 | E103: 0.8116074947 | F103: 5121.508 | G103: 349.5592 | H103: 0.1378703063 | I103: 1.132420529 | J103: 1.049259604
A104: Software (Internet) | B104: 830 | C104: 19251.001 | D104: 14413.296 | E104: 1.335641827 | F104: 7946.871 | G104: 3356.0636 | H104: 0.06686559262 | I104: 0.4136108363 | J104: 0.7973483514
A105: Software (System & Application) | B105: 1026 | C105: 17895.259 | D105: 18602.679 | E105: 0.9619721439 | F105: 63791.019 | G105: 3102.0074 | H105: 0.1807341563 | I105: 1.502301128 | J105: 1.06370585
A106: Steel | B106: 737 | C106: 50158.031 | D106: 31532.641 | E106: 1.590670157 | F106: 4808.128 | G106: -251.5804 | H106: 0.02874639028 | I106: 1.28877689 | J106: 0.9907127479
A107: Telecom (Wireless) | B107: 106 | C107: 82016.818 | D107: 102300.522 | E107: 0.8017243353 | F107: 37107.268 | G107: 77.3026 | H107: 0.02506770767 | I107: 0.2769254346 | J107: 0.7930968593
A108: Telecom. Equipment | B108: 480 | C108: 8777.667 | D108: 6939.03 | E108: 1.26497032 | F108: -279.336 | G108: 2040.4132 | H108: 0.01459844747 | I108: 0.166354817 | J108: 1.067174036
A109: Telecom. Services | B109: 297 | C109: 141976.118 | D109: 175716.143 | E109: 0.8079856271 | F109: 30203.73 | G109: -31.8538 | H109: -0.003136438067 | I109: -0.02797801134 | J109: 0.9498972866
A110: Tobacco | B110: 59 | C110: 4496.917 | D110: 3595.857 | E110: 1.250582824 | F110: 1228.84 | G110: 14.5292 | H110: 0.01434444652 | I110: 0.06212888957 | J110: 1.421636253
A111: Transportation | B111: 221 | C111: 21802.902 | D111: 15972.321 | E111: 1.365042814 | F111: 9455.311 | G111: 68.4712 | H111: 0.03338702493 | I111: 0.4774842228 | J111: 1.650661982
A112: Transportation (Railroads) | B112: 49 | C112: 36313.64 | D112: 12242.957 | E112: 2.966084092 | F112: 871.18 | G112: -40.69 | H112: 0.1096855389 | I112: 0.7512507834 | J112: 0.591961445
A113: Trucking | B113: 195 | C113: 17834.879 | D113: 7601.511 | E113: 2.346228138 | F113: 3215.333 | G113: 3.2384 | H113: 0.06924175612 | I113: 1.40025908 | J113: 1.405366609
A114: Utility (General) | B114: 57 | C114: 65799.837 | D114: 33630.253 | E114: 1.956566815 | F114: 7439.415 | G114: 322.0812 | H114: 0.07133834517 | I114: 0.7725009271 | J114: 0.989102072
A115: Utility (Water) | B115: 96 | C115: 7070.239 | D115: 3970.722 | E115: 1.780592799 | F115: 1653.014 | G115: -1.2962 | H115: 0.1371403214 | I115: 0.6766127046 | J115: 0.3693828619
A116: Total Market | B116: 42678 | C116: 2983562.35 | D116: 2104340.403 | E116: 1.417813556 | F116: 1118274.869 | G116: 53022.397 | H116: 0.04152161041 | I116: 0.6549697308 | J116: 0.7064387788
A117: Total Market (without financials) | B117: 37762 | C117: 2796361.098 | D117: 2054131.263 | E117: 1.361335153 | F117: 1019113.69 | G117: 52805.104 | H117: 0.04242034443 | I117: 0.6418692374 | J117: 1.138416064

Sheet Maturity
A1: Created by EDGAR Online, Inc.
A3: TESLA, INC.
A4: TABLE34
A5: Form Type: 10-K
A6: Period End: Dec 31, 2016
A7: Date Filed: Mar 01, 2017
A8: Table Of Contents
B10: Note 13 - Convertible and Long-term Debt Obligations
B12: The following is a summary of our debt as of December 31, 2016 (in thousands):
K15: =SUM(K21:K67)/C69 -> 73.54317963 | L15: Průměrná splatnost v měsících
C16: Unpaid | F16: Unused | K16: =K15/12 -> 6.128598302 | L16: Průměrná splatnost v letech
C17: Principal | D17: Net Carrying Value | F17: Committed
C18: Balance | D18: Current | E18: Long-Term | F18: Amount | G18: Interest Rate | H18: Maturity Dates | I18: Maturity Dates
B19: Recourse debt:
B20: 1.5% Convertible Senior | J20: Počet měsíců do splatnosti | K20: Dlužná částka vážená početem měcíů
B21: Notes due in 2018 | C21: 205013 | D21: 196229 | E21: 0 | F21: 0 | G21: 0.015 | H21: June 2018 | I21: June 2018 | J21: 15 | K21: =C21*J21 -> 3075195
B22: 0.25% Convertible Senior | K22: 0
B23: Notes due in 2019 | C23: 920000 | D23: 0 | E23: 827620 | F23: 0 | G23: 0.0025 | H23: March 2019 | I23: March 2019 | J23: 24 | K23: 22080000
B24: 1.25% Convertible Senior | K24: 0
B25: Notes due in 2021 | C25: 1380000 | D25: 0 | E25: 1132029 | F25: 0 | G25: 0.0125 | H25: March 2021 | I25: March 2021 | J25: 48 | K25: 66240000
B26: Credit Agreement | C26: 969000 | D26: 0 | E26: 969000 | F26: 181000 | G26: 1% plus LIBOR | H26: June 2020 | I26: June 2020 | J26: 39 | K26: 37791000
B27: Secured Revolving Credit | H27: January 2017 -
B28: Facility | C28: 364000 | D28: 366247 | E28: 0 | F28: 24305 | G28: 4.0%-6.0% | H28: December 2017 | I28: December 2017 | J28: 9 | K28: =C28*J28 -> 3276000
H29: March 2017 -
B30: Vehicle and Other Loans | C30: 23771 | D30: 17235 | E30: 6536 | F30: 0 | G30: 2.9%-7.6% | H30: June 2019 | I30: June 2019 | J30: 27 | K30: =C30*J30 -> 641817
B31: 2.75% Convertible Senior | K31: 0
B32: Notes due in 2018 | C32: 230000 | D32: 0 | E32: 212223 | F32: 0 | G32: 0.028 | H32: November 2018 | I32: November 2018 | J32: 20 | K32: 4600000
B33: 1.625% Convertible Senior | K33: 0
B34: Notes due in 2019 | C34: 566000 | D34: 0 | E34: 483820 | F34: 0 | G34: 0.016 | H34: November 2019 | I34: November 2019 | J34: 32 | K34: 18112000
B35: Zero-coupon Convertible | K35: 0
B36: Senior Notes due in 2020 | C36: 113000 | D36: 0 | E36: 89418 | F36: 0 | G36: 0 | H36: December 2020 | I36: December 2020 | J36: 45 | K36: 5085000
H37: January 2017 -
B38: Solar Bonds | C38: 332060 | D38: 181582 | E38: 148948 | F38: * | G38: 1.1%-6.5% | H38: January 2031 | I38: January 2031 | J38: 166 | K38: =C38*J38 -> 55121960
B39: Total recourse debt | C39: 5102844 | D39: 761293 | E39: 3869594 | F39: 205305 | K39: 0
B40: Non-recourse debt: | K40: 0
B41: Warehouse Agreement | C41: 390000 | D41: 73708 | E41: 316292 | F41: 210000 | G41: Various | H41: September 2018 | I41: September 2018 | J41: 18 | K41: 7020000
B42: Canada Credit Facility | C42: 67342 | D42: 18489 | E42: 48853 | F42: 0 | G42: 3.6%- 4.5% | H42: December 2020 | I42: December 2020 | J42: 45 | K42: 3030390
B43: Term Loan due in December | K43: 0
B44: 2017 | C44: 75467 | D44: 75715 | E44: 0 | F44: 52173 | G44: 0.042 | H44: December 2017 | I44: December 2017 | J44: 9 | K44: 679203
B45: Term Loan due in January | K45: 0
B46: 2021 | C46: 183388 | D46: 5860 | E46: 176169 | F46: 0 | G46: 0.045 | H46: January 2021 | I46: January 2021 | J46: 46 | K46: 8435848
B47: MyPower Revolving Credit | K47: 0
B48: Facility | C48: 133762 | D48: 133827 | E48: 0 | F48: 56238 | G48: 4.1%-6.6% | H48: January 2017 | I48: January 2017 | K48: 0
B49: Revolving Aggregation Credit | K49: 0
B50: Facility | C50: 424757 | D50: 0 | E50: 427944 | F50: 335243 | G50: 4.0%-4.8% | H50: December 2018 | I50: December 2018 | J50: 21 | K50: 8919897
B51: Solar Renewable Energy | H51: April 2017 -
B52: Credit Term Loan | C52: 38124 | D52: 12491 | E52: 26262 | F52: 0 | G52: 6.6%-9.9% | H52: July 2021 | I52: July 2021 | J52: 52 | K52: =C52*J52 -> 1982448
B53: Cash Equity Debt I | C53: 119753 | D53: 3272 | E53: 115464 | F53: 0 | G53: 0.057 | H53: July 2033 | I53: July 2033 | J53: 196 | K53: 23471588
B54: Cash Equity Debt II | C54: 206901 | D54: 5376 | E54: 189424 | F54: 0 | G54: 0.053 | H54: July 2034 | I54: July 2034 | J54: 208 | K54: 43035408
B55: Cash Equity Debt III | C55: 170000 | D55: 4994 | E55: 161853 | G55: 0.058 | H55: January 2035 | I55: January 2035 | J55: 214 | K55: 36380000
B56: Solar Asset-backed Notes, | K56: 0
B57: Series 2013-1 | C57: 41899 | D57: 3329 | E57: 38346 | F57: 0 | G57: 0.048 | H57: November 2038 | I57: November 2038 | J57: 260 | K57: 10893740
B58: Solar Asset-backed Notes, | K58: 0
B59: Series 2014-1 | C59: 60768 | D59: 3016 | E59: 57417 | F59: 0 | G59: 0.046 | H59: April 2044 | I59: April 2044 | J59: 325 | K59: 19749600
B60: Solar Asset-backed Notes, | G60: 4.0%-Class A
B61: Series 2014-2 | C61: 186851 | D61: 7055 | E61: 173625 | F61: 0 | G61: 5.4%-Class B | H61: July 2044 | I61: July 2044 | J61: 328 | K61: =C61*J61 -> 61287128
B62: Solar Asset-backed Notes, | G62: 4.2%-Class A
B63: Series 2015-1 | C63: 119199 | D63: 1511 | E63: 110238 | F63: 0 | G63: 5.6%-Class B | H63: August 2045 | I63: August 2045 | J63: 341 | K63: =C63*J63 -> 40646859
B64: Solar Asset-backed Notes, | G64: 5.3%-Class A
B65: Series 2016-1 | C65: 50119 | D65: 1202 | E65: 47025 | F65: 0 | G65: 7.5%-Class B | H65: September 2046 | I65: September 2046 | J65: 354 | K65: =C65*J65 -> 17742126
B66: Solar Loan-backed Notes, | G66: 4.8%-Class A
B67: Series 2016-A | C67: 140586 | D67: 3514 | E67: 133510 | F67: 0 | G67: 6.9%-Class B | H67: September 2048 | I67: September 2048 | J67: 378 | K67: =C67*J67 -> 53141508
B68: Total non-recourse debt | C68: 2408916 | D68: 353359 | E68: 2022422 | F68: 653654
B69: Total debt | C69: 7511760 | D69: 1114652 | E69: 5892016 | F69: 858959

Sheet Betas
A1: Date updated: | B1: 2017-01-05
A2: Created by: | B2: Aswath Damodaran, adamodar@stern.nyu.edu
A3: What is this data? | B3: Beta, Unlevered beta and other risk measures | F3: US companies
A4: Home Page: | B4: http://www.damodaran.com
A5: Data website: | B5: http://www.stern.nyu.edu/~adamodar/New_Home_Page/data.html
A6: Companies in each industry: | B6: http://www.stern.nyu.edu/~adamodar/pc/datasets/indname.xls
A7: Variable definitions: | B7: http://www.stern.nyu.edu/~adamodar/New_Home_Page/datafile/variable.htm
A8: Industry Name | B8: Number of firms | C8: Beta | D8: D/E Ratio | E8: Tax rate | F8: Unlevered beta | G8: Cash/Firm value | H8: Unlevered beta corrected for cash | I8: HiLo Risk | J8: Standard deviation of equity | K8: Standard deviation in operating income (last 10 years)
A9: Advertising | B9: 41 | C9: 1.362998832 | D9: 0.629755126 | E9: 0.050960682 | F9: 0.8531206925 | G9: 0.06269218494 | H9: 0.9101819902 | I9: 0.66713346 | J9: 0.728018376 | K9: 0.1705173
A10: Aerospace/Defense | B10: 96 | C10: 1.074487468 | D10: 0.2352636976 | E10: 0.108554932 | F10: 0.8882082849 | G10: 0.05210499527 | H10: 0.9370323511 | I10: 0.524077122 | J10: 0.407457595 | K10: 0.1466738976
A11: Air Transport | B11: 18 | C11: 1.122088785 | D11: 0.7011643226 | E11: 0.229868862 | F11: 0.7286345328 | G11: 0.0422938733 | H11: 0.7608122288 | I11: 0.476048165 | J11: 0.386115145 | K11: 0.993693308
A12: Apparel | B12: 58 | C12: 0.880540498 | D12: 0.3421375377 | E12: 0.109533254 | F12: 0.6749184314 | G12: 0.04298240573 | H12: 0.7052309544 | I12: 0.496763552 | J12: 0.471469004 | K12: 0.2476777752
A13: Auto & Truck | B13: 15 | C13: 0.845010784 | D13: 1.5042106 | E13: 0.081379334 | F13: 0.3547783857 | G13: 0.0646084521 | H13: 0.3792832921 | I13: 0.622199142 | J13: 0.292145212 | K13: 3.665423705
A14: Auto Parts | B14: 63 | C14: 1.122629713 | D14: 0.3522052462 | E14: 0.103995087 | F14: 0.8533359693 | G14: 0.08900947621 | H14: 0.9367122347 | I14: 0.547780249 | J14: 0.506406849 | K14: 0.5410439774
A15: Bank (Money Center) | B15: 10 | C15: 0.860228972 | D15: 1.880296328 | E15: 0.2789912 | F15: 0.3651675712 | G15: 0.0989485142 | H15: 0.4052682638 | I15: 0.265848774 | J15: 0.258527317
A16: Banks (Regional) | B16: 645 | C16: 0.471938211 | D16: 0.6051125362 | E16: 0.254251232 | F16: 0.3251916155 | G16: 0.1075704542 | H16: 0.3643891185 | I16: 0.232455577 | J16: 0.228435165
A17: Beverage (Alcoholic) | B17: 25 | C17: 0.792801661 | D17: 0.2902172167 | E17: 0.108611294 | F17: 0.6298593473 | G17: 0.1130455984 | H17: 0.7101372361 | I17: 0.580495323 | J17: 0.441795359 | K17: 0.2749218981
A18: Beverage (Soft) | B18: 36 | C18: 0.911339119 | D18: 0.2451301792 | E18: 0.058678472 | F18: 0.7404768213 | G18: 0.04835943041 | H18: 0.7781055631 | I18: 0.585587459 | J18: 0.527987959 | K18: 0.1654898059
A19: Broadcasting | B19: 30 | C19: 1.220010347 | D19: 0.9592489373 | E19: 0.18542485 | F19: 0.6848679728 | G19: 0.02167314408 | H19: 0.7000400415 | I19: 0.426602903 | J19: 0.410107314 | K19: 0.1849723631
A20: Brokerage & Investment Banking | B20: 45 | C20: 1.076942368 | D20: 2.322105563 | E20: 0.135860097 | F20: 0.358189897 | G20: 0.1497397445 | H20: 0.4212708929 | I20: 0.457675666 | J20: 0.449611259 | K20: 0.4020139768
A21: Building Materials | B21: 41 | C21: 1.006784289 | D21: 0.2697691193 | E21: 0.233912351 | F21: 0.8343515352 | G21: 0.04045621171 | H21: 0.8695294007 | I21: 0.381828186 | J21: 0.337657801 | K21: 0.4835975228
A22: Business & Consumer Services | B22: 165 | C22: 1.070528005 | D22: 0.3509784671 | E22: 0.12605431 | F22: 0.8192380924 | G22: 0.03521923511 | H22: 0.8491443053 | I22: 0.519996318 | J22: 0.447149183 | K22: 0.2036750423
A23: Cable TV | B23: 14 | C23: 1.115739037 | D23: 0.4923585742 | E23: 0.202843211 | F23: 0.8012563514 | G23: 0.02315553419 | H23: 0.8202496707 | I23: 0.339521012 | J23: 0.307837309 | K23: 0.4008078661
A24: Chemical (Basic) | B24: 45 | C24: 1.002633463 | D24: 0.5861565769 | E24: 0.077064703 | F24: 0.6506447025 | G24: 0.03997213585 | H24: 0.6777352271 | I24: 0.552647789 | J24: 0.599130897 | K24: 0.5464015268
A25: Chemical (Diversified) | B25: 8 | C25: 1.518895861 | D25: 0.3552421226 | E25: 0.065923463 | F25: 1.140463472 | G25: 0.06503694535 | H25: 1.219795228 | I25: 0.529804415 | J25: 0.454849852 | K25: 0.2646400617
A26: Chemical (Specialty) | B26: 100 | C26: 1.198054185 | D26: 0.2997797958 | E26: 0.095849199 | F26: 0.942573322 | G26: 0.03966365196 | H26: 0.9815033285 | I26: 0.492445336 | J26: 0.454402004 | K26: 0.2794646949
A27: Coal & Related Energy | B27: 38 | C27: 1.363240792 | D27: 1.385547706 | E27: 0.00481985 | F27: 0.5730624357 | G27: 0.05342048767 | H27: 0.6054033795 | I27: 0.600129856 | J27: 0.733131462 | K27: 0.8486895371
A28: Computer Services | B28: 117 | C28: 0.985286934 | D28: 0.2833160424 | E28: 0.111806872 | F28: 0.7871971464 | G28: 0.05238281271 | H28: 0.8307121873 | I28: 0.538980922 | J28: 0.455738414 | K28: 0.1635660812
A29: Computers/Peripherals | B29: 55 | C29: 1.055442804 | D29: 0.1959863318 | E29: 0.056798409 | F29: 0.8907783168 | G29: 0.05614743383 | H29: 0.943768496 | I29: 0.486561063 | J29: 0.602897337 | K29: 0.5714672176
A30: Construction Supplies | B30: 51 | C30: 1.314828594 | D30: 0.4257350991 | E30: 0.18444153 | F30: 0.9759627473 | G30: 0.04678094356 | H30: 1.023859879 | I30: 0.442406072 | J30: 0.388696067 | K30: 0.2800333796
A31: Diversified | B31: 24 | C31: 0.764571368 | D31: 0.3598205694 | E31: 0.115501218 | F31: 0.579984883 | G31: 0.07837422174 | H31: 0.6293062724 | I31: 0.395060506 | J31: 0.232809456 | K31: 0.2191605391
A32: Drugs (Biotechnology) | B32: 426 | C32: 1.402457498 | D32: 0.1944504371 | E32: 0.014428309 | F32: 1.176908961 | G32: 0.05539955973 | H32: 1.245933107 | I32: 0.580454917 | J32: 0.752300475 | K32: 0.6860796993
A33: Drugs (Pharmaceutical) | B33: 164 | C33: 1.015395241 | D33: 0.1457978595 | E33: 0.025448829 | F33: 0.8890695883 | G33: 0.03981042896 | H33: 0.925931311 | I33: 0.6179055 | J33: 0.67611292 | K33: 0.1205329921
A34: Education | B34: 36 | C34: 1.225147196 | D34: 0.3338157604 | E34: 0.092901995 | F34: 0.9403928469 | G34: 0.1015928651 | H34: 1.046733502 | I34: 0.586527651 | J34: 0.515052101 | K34: 0.4335604872
A35: Electrical Equipment | B35: 119 | C35: 1.143250093 | D35: 0.1915183858 | E35: 0.058680823 | F35: 0.9686262256 | G35: 0.06421280572 | H35: 1.035092414 | I35: 0.625150448 | J35: 0.546296312 | K35: 0.1778332301
A36: Electronics (Consumer & Office) | B36: 24 | C36: 1.083404984 | D36: 0.1938739603 | E36: 0.038059152 | F36: 0.9131136049 | G36: 0.05994251116 | H36: 0.9713380466 | I36: 0.608578016 | J36: 0.669406497 | K36: 0.5744284622
A37: Electronics (General) | B37: 164 | C37: 0.864158321 | D37: 0.1787478087 | E37: 0.088485489 | F37: 0.7430863538 | G37: 0.1002263494 | H37: 0.8258592072 | I37: 0.495109307 | J37: 0.489119183 | K37: 0.3065685402
A38: Engineering/Construction | B38: 48 | C38: 1.181064019 | D38: 0.3245425203 | E38: 0.151509873 | F38: 0.9260551666 | G38: 0.08259488996 | H38: 1.00942883 | I38: 0.505590903 | J38: 0.442309129 | K38: 0.2047758563
A39: Entertainment | B39: 79 | C39: 1.202356752 | D39: 0.308268514 | E39: 0.054961688 | F39: 0.931102731 | G39: 0.03591583671 | H39: 0.9657898828 | I39: 0.660488437 | J39: 0.447072212 | K39: 0.1889735103
A40: Environmental & Waste Services | B40: 89 | C40: 0.852223053 | D40: 0.38983966 | E40: 0.050661097 | F40: 0.6220197804 | G40: 0.00954750424 | H40: 0.6280157635 | I40: 0.583678548 | J40: 0.579383386 | K40: 0.1424715819
A41: Farming/Agriculture | B41: 37 | C41: 0.919292835 | D41: 0.6003563943 | E41: 0.078907754 | F41: 0.5919526925 | G41: 0.03875761833 | H41: 0.6158204255 | I41: 0.548184069 | J41: 0.411396952 | K41: 0.2667344181
A42: Financial Svcs. (Non-bank & Insurance) | B42: 258 | C42: 0.654507864 | D42: 11.24406262 | E42: 0.208048097 | F42: 0.06608015501 | G42: 0.02293309407 | H42: 0.06763114645 | I42: 0.294692451 | J42: 0.291975723 | K42: 0.4532936027
A43: Food Processing | B43: 87 | C43: 0.753736473 | D43: 0.268443198 | E43: 0.146645236 | F43: 0.6132539297 | G43: 0.02574270487 | H43: 0.6294578781 | I43: 0.421412784 | J43: 0.309800861 | K43: 0.2214818823
A44: Food Wholesalers | B44: 16 | C44: 1.203724659 | D44: 0.3633630293 | E44: 0.117699908 | F44: 0.9115015925 | G44: 0.01759144335 | H44: 0.9278233443 | I44: 0.387848379 | J44: 0.526582768 | K44: 0.1559874616
A45: Furn/Home Furnishings | B45: 30 | C45: 0.83564219 | D45: 0.290085168 | E45: 0.145757495 | F45: 0.6696907573 | G45: 0.03390357218 | H45: 0.6931924578 | I45: 0.47891677 | J45: 0.429435947 | K45: 0.28130508
A46: Green & Renewable Energy | B46: 25 | C46: 1.140302509 | D46: 1.743824597 | E46: 0.042455057 | F46: 0.4271131166 | G46: 0.08854936315 | H46: 0.4686080621 | I46: 0.676961347 | J46: 0.475992119 | K46: 0.9734262667
A47: Healthcare Products | B47: 254 | C47: 1.036305175 | D47: 0.1795760734 | E47: 0.061189371 | F47: 0.8868011996 | G47: 0.03907376892 | H47: 0.9228608513 | I47: 0.534817158 | J47: 0.565929946 | K47: 0.1119041968
A48: Healthcare Support Services | B48: 121 | C48: 0.938830232 | D48: 0.3217837764 | E48: 0.143061928 | F48: 0.7359052619 | G48: 0.1006972569 | H48: 0.8183064797 | I48: 0.509597739 | J48: 0.50058688 | K48: 0.220753488
A49: Heathcare Information and Technology | B49: 125 | C49: 0.950516269 | D49: 0.206984438 | E49: 0.063230075 | F49: 0.7961460922 | G49: 0.04219383745 | H49: 0.8312183857 | I49: 0.545785491 | J49: 0.524647648 | K49: 0.3737793824
A50: Homebuilding | B50: 33 | C50: 1.077566589 | D50: 0.6629234353 | E50: 0.272807214 | F50: 0.7270670792 | G50: 0.05329860103 | H50: 0.7680004276 | I50: 0.332102366 | J50: 0.337606557 | K50: 1.370647573
A51: Hospitals/Healthcare Facilities | B51: 38 | C51: 1.097826003 | D51: 1.707654422 | E51: 0.120551503 | F51: 0.438815487 | G51: 0.01433117921 | H51: 0.4451956659 | I51: 0.481673171 | J51: 0.446744597 | K51: 0.3238032597
A52: Hotel/Gaming | B52: 69 | C52: 0.960901266 | D52: 0.5527602865 | E52: 0.11230077 | F52: 0.6446038854 | G52: 0.03428937957 | H52: 0.6674917639 | I52: 0.459751054 | J52: 0.393155543 | K52: 0.2638437865
A53: Household Products | B53: 129 | C53: 0.796524584 | D53: 0.2120288237 | E53: 0.090529543 | F53: 0.6677581429 | G53: 0.02966981662 | H53: 0.6881762047 | I53: 0.592581779 | J53: 0.509059938 | K53: 0.0648142813
A54: Information Services | B54: 64 | C54: 0.981280223 | D54: 0.2045755719 | E54: 0.163691491 | F54: 0.837921641 | G54: 0.03709742465 | H54: 0.8702039671 | I54: 0.345242097 | J54: 0.366468042 | K54: 0.3487366396
A55: Insurance (General) | B55: 19 | C55: 0.904797344 | D55: 0.3895134586 | E55: 0.183317855 | F55: 0.6864360678 | G55: 0.03919491021 | H55: 0.7144384175 | I55: 0.276116803 | J55: 0.303764905 | K55: 0.7649175794
A56: Insurance (Life) | B56: 22 | C56: 1.034403993 | D56: 0.7140867175 | E56: 0.229050458 | F56: 0.667131525 | G56: 0.1683207306 | H56: 0.8021499989 | I56: 0.281829707 | J56: 0.278048566 | K56: 0.349727462
A57: Insurance (Prop/Cas.) | B57: 50 | C57: 0.8301207 | D57: 0.3110614186 | E57: 0.222733946 | F57: 0.668493923 | G57: 0.04613515074 | H57: 0.7008266669 | I57: 0.252367653 | J57: 0.254108207 | K57: 0.5995977831
A58: Investments & Asset Management | B58: 156 | C58: 0.895979616 | D58: 0.6158884424 | E58: 0.077059916 | F58: 0.5712595932 | G58: 0.1545596187 | H58: 0.6756947099 | I58: 0.380918773 | J58: 0.343028075 | K58: 0.3258740068
A59: Machinery | B59: 127 | C59: 1.062374576 | D59: 0.2169540001 | E59: 0.117293029 | F59: 0.8916227491 | G59: 0.04276947687 | H59: 0.9314608421 | I59: 0.446684012 | J59: 0.385939542 | K59: 0.2289281328
A60: Metals & Mining | B60: 97 | C60: 1.303872193 | D60: 0.5197986295 | E60: 0.011602166 | F60: 0.8613422474 | G60: 0.02980128718 | H60: 0.887799825 | I60: 0.743975099 | J60: 0.773569735 | K60: 0.3269324522
A61: Office Equipment & Services | B61: 24 | C61: 1.490142311 | D61: 0.54319833 | E61: 0.16684141 | F61: 1.025865843 | G61: 0.06306200284 | H61: 1.094913266 | I61: 0.436240911 | J61: 0.338495552 | K61: 0.1476318843
A62: Oil/Gas (Integrated) | B62: 7 | C62: 1.080586115 | D62: 0.1690634102 | E62: 0.01143716 | F62: 0.9258491304 | G62: 0.0205103407 | H62: 0.9452362479 | I62: 0.516094356 | J62: 0.462978422 | K62: 0.4408012658
A63: Oil/Gas (Production and Exploration) | B63: 330 | C63: 1.377352122 | D63: 0.4698408589 | E63: 0.003206622 | F63: 0.9380371775 | G63: 0.05438647299 | H63: 0.9919879007 | I63: 0.64053304 | J63: 0.750773728 | K63: 0.7000062779
A64: Oil/Gas Distribution | B64: 78 | C64: 1.195250343 | D64: 0.7704786104 | E64: 0.029253812 | F64: 0.6838054555 | G64: 0.00759462176 | H64: 0.6890384418 | I64: 0.421458458 | J64: 0.45132626 | K64: 0.4524646679
A65: Oilfield Svcs/Equip. | B65: 148 | C65: 1.365760604 | D65: 0.3266048175 | E65: 0.041130841 | F65: 1.040047569 | G65: 0.06271584329 | H65: 1.109639549 | I65: 0.54503626 | J65: 0.604987626 | K65: 0.3360047408
A66: Packaging & Container | B66: 26 | C66: 0.838636636 | D66: 0.5603284028 | E66: 0.24469677 | F66: 0.589253876 | G66: 0.02554003989 | H66: 0.6046978841 | I66: 0.354624584 | J66: 0.295798439 | K66: 0.2049637087
A67: Paper/Forest Products | B67: 23 | C67: 1.118469839 | D67: 0.4933935703 | E67: 0.144583624 | F67: 0.7865155098 | G67: 0.04867965489 | H67: 0.8267619986 | I67: 0.504168473 | J67: 0.386747016 | K67: 0.3874961494
A68: Power | B68: 68 | C68: 0.544082068 | D68: 0.8730395261 | E68: 0.19268079 | F68: 0.319143114 | G68: 0.024604804 | H68: 0.3271936496 | I68: 0.264763787 | J68: 0.241059046 | K68: 0.07624534512
A69: Precious Metals | B69: 109 | C69: 1.251165831 | D69: 0.2410578176 | E69: 0.018393818 | F69: 1.011759426 | G69: 0.08327902037 | H69: 1.103672163 | I69: 0.758586556 | J69: 0.783112468 | K69: 0.7293368139
A70: Publishing & Newspapers | B70: 37 | C70: 1.32027717 | D70: 0.5694583406 | E70: 0.143162892 | F70: 0.8873229753 | G70: 0.07765068764 | H70: 0.9620248678 | I70: 0.413180294 | J70: 0.480822181 | K70: 0.1356568808
A71: R.E.I.T. | B71: 238 | C71: 0.724807336 | D71: 0.7945685404 | E71: 0.017204393 | F71: 0.4069897009 | G71: 0.01612065822 | H71: 0.4136581424 | I71: 0.239210673 | J71: 0.246728323 | K71: 0.2775040489
A72: Real Estate (Development) | B72: 18 | C72: 0.684268152 | D72: 0.6050602214 | E72: 0.019684427 | F72: 0.4295064308 | G72: 0.08474137209 | H72: 0.4692732936 | I72: 0.60380293 | J72: 0.394546045 | K72: 3.360161632
A73: Real Estate (General/Diversified) | B73: 11 | C73: 1.270788445 | D73: 0.2433036703 | E73: 0.153217991 | F73: 1.05369977 | G73: 0.03709758448 | H73: 1.094295489 | I73: 0.439100643 | J73: 0.249892323 | K73: 1.703203785
A74: Real Estate (Operations & Services) | B74: 54 | C74: 0.991680789 | D74: 0.7666792218 | E74: 0.087764248 | F74: 0.5835502782 | G74: 0.05210667888 | H74: 0.6156286422 | I74: 0.591250505 | J74: 0.501542171 | K74: 0.4120082849
A75: Recreation | B75: 66 | C75: 0.920928349 | D75: 0.3111745069 | E75: 0.132108366 | F75: 0.7251028918 | G75: 0.04535695107 | H75: 0.7595539428 | I75: 0.523253316 | J75: 0.460117306 | K75: 0.287111586
A76: Reinsurance | B76: 3 | C76: 0.747361371 | D76: 0.3237501077 | E76: 0.193321427 | F76: 0.5925973095 | G76: 0.08298495725 | H76: 0.6462241969 | I76: 0.251379798 | J76: 0.212270175 | K76: 0.7991598159
A77: Restaurant/Dining | B77: 86 | C77: 0.768290304 | D77: 0.3500517715 | E77: 0.16474325 | F77: 0.5944756636 | G77: 0.02358644375 | H77: 0.6088359382 | I77: 0.4122719 | J77: 0.390963156 | K77: 0.2158841148
A78: Retail (Automotive) | B78: 25 | C78: 0.913034834 | D78: 0.598901469 | E78: 0.225780008 | F78: 0.6237933867 | G78: 0.01121744894 | H78: 0.6308701403 | I78: 0.433284628 | J78: 0.283012957 | K78: 0.3636151964
A79: Retail (Building Supply) | B79: 6 | C79: 1.298194393 | D79: 0.2186348254 | E79: 0.201050762 | F79: 1.10514903 | G79: 0.01658672343 | H79: 1.123789008 | I79: 0.262051967 | J79: 0.396213283 | K79: 0.2330265175
A80: Retail (Distributors) | B80: 88 | C80: 1.104604532 | D80: 0.5695435338 | E80: 0.169545711 | F80: 0.7499114918 | G80: 0.02186040082 | H80: 0.7666712322 | I80: 0.501838017 | J80: 0.404782612 | K80: 0.3854765318
A81: Retail (General) | B81: 19 | C81: 1.048330546 | D81: 0.3957300281 | E81: 0.222238312 | F81: 0.80160854 | G81: 0.02726026156 | H81: 0.8240729851 | I81: 0.280477075 | J81: 0.40003422 | K81: 0.06576114618
A82: Retail (Grocery and Food) | B82: 14 | C82: 0.690068758 | D82: 0.6685372931 | E82: 0.241055639 | F82: 0.4577927024 | G82: 0.01250331941 | H82: 0.4635891051 | I82: 0.359948706 | J82: 0.351270256 | K82: 0.1761018275
A83: Retail (Online) | B83: 57 | C83: 1.227182507 | D83: 0.09625918152 | E83: 0.084639941 | F83: 1.127809197 | G83: 0.03794117335 | H83: 1.172287147 | I83: 0.521176972 | J83: 0.488635002 | K83: 0.5138453995
A84: Retail (Special Lines) | B84: 108 | C84: 1.022467012 | D84: 0.5212613889 | E84: 0.212907391 | F84: 0.7250094284 | G84: 0.04291625779 | H84: 0.757519323 | I84: 0.410786339 | J84: 0.421890966 | K84: 0.2186210632
A85: Rubber& Tires | B85: 4 | C85: 1.345535047 | D85: 0.7234694433 | E85: 0.100946221 | F85: 0.8152594029 | G85: 0.08088116717 | H85: 0.887001086 | I85: 0.455487442 | J85: 0.63876931 | K85: 0.4621223748
A86: Semiconductor | B86: 80 | C86: 1.195275265 | D86: 0.1409172587 | E86: 0.077081178 | F86: 1.057714061 | G86: 0.04782947896 | H86: 1.110845209 | I86: 0.471729552 | J86: 0.420767575 | K86: 0.3360520043
A87: Semiconductor Equip | B87: 45 | C87: 1.09725641 | D87: 0.1634805539 | E87: 0.111278244 | F87: 0.9580609554 | G87: 0.1268761585 | H87: 1.097279572 | I87: 0.432400163 | J87: 0.38240556 | K87: 0.5040979547
A88: Shipbuilding & Marine | B88: 11 | C88: 1.202475701 | D88: 0.4840862438 | E88: 0.072994815 | F88: 0.8300088496 | G88: 0.02825884311 | H88: 0.8541460282 | I88: 0.595303587 | J88: 0.735391843 | K88: 0.246165912
A89: Shoe | B89: 10 | C89: 0.851920561 | D89: 0.1025801513 | E89: 0.144693274 | F89: 0.7832041887 | G89: 0.05594935852 | H89: 0.8296209486 | I89: 0.300673844 | J89: 0.372111033 | K89: 0.2627085437
A90: Software (Entertainment) | B90: 13 | C90: 0.980741716 | D90: 0.1474217588 | E90: 0.01037851 | F90: 0.855876416 | G90: 0.11287888 | H90: 0.9647796638 | I90: 0.612390721 | J90: 0.481404993 | K90: 1.193411704
A91: Software (Internet) | B91: 297 | C91: 1.133334074 | D91: 0.04267393151 | E91: 0.034863142 | F91: 1.088502797 | G91: 0.02642326022 | H91: 1.118045196 | I91: 0.629319174 | J91: 0.558514378 | K91: 0.465278915
A92: Software (System & Application) | B92: 236 | C92: 1.125760214 | D92: 0.2150133614 | E92: 0.056743788 | F92: 0.9359397556 | G92: 0.05326564409 | H92: 0.9885980684 | I92: 0.561367973 | J92: 0.474012732 | K92: 0.1703723413
A93: Steel | B93: 38 | C93: 1.599676101 | D93: 0.479279734 | E93: 0.079423923 | F93: 1.109950849 | G93: 0.07038219772 | H93: 1.193986224 | I93: 0.597177424 | J93: 0.541872775 | K93: 0.6541158324
A94: Telecom (Wireless) | B94: 17 | C94: 1.11578972 | D94: 1.145795352 | E94: 0.091112082 | F94: 0.5465807607 | G94: 0.05921878317 | H94: 0.5809860475 | I94: 0.653026254 | J94: 0.376721455 | K94: 0.4223215911
A95: Telecom. Equipment | B95: 107 | C95: 0.988585317 | D95: 0.2455043214 | E95: 0.06141508 | F95: 0.8034492051 | G95: 0.06861003895 | H95: 0.8626345985 | I95: 0.489257497 | J95: 0.492408678 | K95: 0.1773482293
A96: Telecom. Services | B96: 67 | C96: 1.042428987 | D96: 0.6588887058 | E96: 0.133572765 | F96: 0.6635959279 | G96: 0.01779812807 | H96: 0.6756207119 | I96: 0.45309948 | J96: 0.472061983 | K96: 0.377436325
A97: Tobacco | B97: 22 | C97: 1.279160354 | D97: 0.1718422204 | E97: 0.088435478 | F97: 1.10592278 | G97: 0.02380214031 | H97: 1.132887938 | I97: 0.634952659 | J97: 0.617287832 | K97: 0.1666861006
A98: Transportation | B98: 17 | C98: 1.013576519 | D98: 0.3197632808 | E98: 0.17464259 | F98: 0.8019315513 | G98: 0.03507738261 | H98: 0.8310837956 | I98: 0.396887611 | J98: 0.327158639 | K98: 0.2407873021
A99: Transportation (Railroads) | B99: 7 | C99: 0.786016021 | D99: 0.2793990706 | E99: 0.221709007 | F99: 0.6456228843 | G99: 0.01817099819 | H99: 0.657571617 | I99: 0.282894615 | J99: 0.270511332 | K99: 0.2820410456
A100: Trucking | B100: 30 | C100: 1.205034614 | D100: 0.9079623092 | E100: 0.267388849 | F100: 0.7236648392 | G100: 0.04254807482 | H100: 0.7558236817 | I100: 0.457732562 | J100: 0.420122795 | K100: 0.3331646629
A101: Utility (General) | B101: 18 | C101: 0.376499481 | D101: 0.6837168016 | E101: 0.256242141 | F101: 0.2495820703 | G101: 0.00654100201 | H101: 0.2512253358 | I101: 0.151539521 | J101: 0.193179203 | K101: 0.0686478016
A102: Utility (Water) | B102: 22 | C102: 0.648851869 | D102: 0.434650669 | E102: 0.119746167 | F102: 0.4692973382 | G102: 0.004318035953 | H102: 0.4713325692 | I102: 0.452990194 | J102: 0.450375341 | K102: 0.251444726
A103: Total Market | B103: 7330 | C103: 1.000981401 | D103: 0.6789703292 | E103: 0.104353396 | F103: 0.6224553989 | G103: 0.04915185893 | H103: 0.6546317672 | I103: 0.48218977 | J103: 0.450375341 | K103: 0.1728240726
A104: Total Market (without financials) | B104: 6100 | C104: 1.079612935 | D104: 0.3571066118 | E104: 0.08305870969 | F104: 0.8133009555 | G104: 0.04080952888 | H104: 0.8479034977 | I104: 0.5248761373 | J104: 0.4881404361 | K104: 0.1691342416

Sheet Revenues multiples
A1: Date updated: | B1: 2017-01-05
A2: Created by: | B2: Aswath Damodaran, adamodar@stern.nyu.edu
A3: What is this data? | B3: Revenue multiples | F3: US companies
A4: Home Page: | B4: http://www.damodaran.com
A5: Data website: | B5: http://www.stern.nyu.edu/~adamodar/New_Home_Page/data.html
A6: Companies in each industry: | B6: http://www.stern.nyu.edu/~adamodar/pc/datasets/indname.xls
A7: Variable definitions: | B7: http://www.stern.nyu.edu/~adamodar/New_Home_Page/datafile/variable.htm
A8: Industry Name | B8: Number of firms | C8: Price/Sales | D8: Net Margin | E8: EV/Sales | F8: Pre-tax Operating Margin
A9: Advertising | B9: 41 | C9: 1.12 | D9: 0.0604 | E9: 1.71 | F9: 0.1207
A10: Aerospace/Defense | B10: 96 | C10: 1.35 | D10: 0.0715 | E10: 1.59 | F10: 0.1074
A11: Air Transport | B11: 18 | C11: 0.94 | D11: 0.1079 | E11: 1.53 | F11: 0.163
A12: Apparel | B12: 58 | C12: 1.41 | D12: 0.0629 | E12: 1.81 | F12: 0.1131
A13: Auto & Truck | B13: 15 | C13: 0.46 | D13: 0.0635 | E13: 1.07 | F13: 0.0539
A14: Auto Parts | B14: 63 | C14: 0.67 | D14: 0.0476 | E14: 0.83 | F14: 0.0868
A15: Bank (Money Center) | B15: 10 | C15: 3.17 | D15: 0.245 | E15: 8.24 | F15: -0.0012
A16: Banks (Regional) | B16: 645 | C16: 4.38 | D16: 0.2339 | E16: 6.28 | F16: -0.0013
A17: Beverage (Alcoholic) | B17: 25 | C17: 4.71 | D17: 0.1913 | E17: 5.39 | F17: 0.2426
A18: Beverage (Soft) | B18: 36 | C18: 3.12 | D18: 0.1281 | E18: 3.7 | F18: 0.1886
A19: Broadcasting | B19: 30 | C19: 1.58 | D19: 0.0749 | E19: 3.02 | F19: 0.2309
A20: Brokerage & Investment Banking | B20: 45 | C20: 2.58 | D20: 0.1342 | E20: 7.28 | F20: -0.0007
A21: Building Materials | B21: 41 | C21: 1.23 | D21: 0.0677 | E21: 1.49 | F21: 0.1045
A22: Business & Consumer Services | B22: 165 | C22: 1.4 | D22: 0.0461 | E22: 1.83 | F22: 0.1047
A23: Cable TV | B23: 14 | C23: 2.63 | D23: 0.1168 | E23: 3.83 | F23: 0.1921
A24: Chemical (Basic) | B24: 45 | C24: 1.1 | D24: 0.032 | E24: 1.68 | F24: 0.1024
A25: Chemical (Diversified) | B25: 8 | C25: 1.54 | D25: 0.1168 | E25: 1.95 | F25: 0.125
A26: Chemical (Specialty) | B26: 100 | C26: 1.94 | D26: 0.0526 | E26: 2.42 | F26: 0.1416
A27: Coal & Related Energy | B27: 38 | C27: 1.01 | D27: -0.1772 | E27: 2.27 | F27: -0.1427
A28: Computer Services | B28: 117 | C28: 1.07 | D28: 0.0602 | E28: 1.3 | F28: 0.0861
A29: Computers/Peripherals | B29: 55 | C29: 2.07 | D29: 0.1418 | E29: 2.33 | F29: 0.1982
A30: Construction Supplies | B30: 51 | C30: 1.31 | D30: 0.0399 | E30: 1.78 | F30: 0.0923
A31: Diversified | B31: 24 | C31: 2.1 | D31: 0.0996 | E31: 2.64 | F31: 0.1378
A32: Drugs (Biotechnology) | B32: 426 | C32: 5.82 | D32: 0.1545 | E32: 6.57 | F32: 0.2789
A33: Drugs (Pharmaceutical) | B33: 164 | C33: 4.19 | D33: 0.1419 | E33: 4.61 | F33: 0.2412
A34: Education | B34: 36 | C34: 1.25 | D34: 0.0201 | E34: 1.49 | F34: 0.0784
A35: Electrical Equipment | B35: 119 | C35: 2.01 | D35: 0.0671 | E35: 2.24 | F35: 0.1238
A36: Electronics (Consumer & Office) | B36: 24 | C36: 1.1 | D36: -0.0172 | E36: 1.24 | F36: 0.0216
A37: Electronics (General) | B37: 164 | C37: 1.59 | D37: 0.058 | E37: 1.68 | F37: 0.0828
A38: Engineering/Construction | B38: 48 | C38: 0.56 | D38: 0.0057 | E38: 0.68 | F38: 0.0398
A39: Entertainment | B39: 79 | C39: 2.28 | D39: 0.1258 | E39: 2.88 | F39: 0.215
A40: Environmental & Waste Services | B40: 89 | C40: 1.78 | D40: 0.0463 | E40: 2.45 | F40: 0.1204
A41: Farming/Agriculture | B41: 37 | C41: 0.62 | D41: 0.0318 | E41: 0.95 | F41: 0.0453
A42: Financial Svcs. (Non-bank & Insurance) | B42: 258 | C42: 2.66 | D42: 0.2177 | E42: 31.81 | F42: 0.0778
A43: Food Processing | B43: 87 | C43: 1.92 | D43: 0.0673 | E43: 2.38 | F43: 0.1366
A44: Food Wholesalers | B44: 16 | C44: 0.37 | D44: 0.0113 | E44: 0.5 | F44: 0.0285
A45: Furn/Home Furnishings | B45: 30 | C45: 1.09 | D45: 0.0602 | E45: 1.36 | F45: 0.0998
A46: Green & Renewable Energy | B46: 25 | C46: 3.09 | D46: -0.0957 | E46: 7.72 | F46: 0.167
A47: Healthcare Products | B47: 254 | C47: 3.34 | D47: 0.0995 | E47: 3.79 | F47: 0.1591
A48: Healthcare Support Services | B48: 121 | C48: 0.46 | D48: 0.023 | E48: 0.55 | F48: 0.046
A49: Heathcare Information and Technology | B49: 125 | C49: 3.29 | D49: 0.0808 | E49: 3.8 | F49: 0.1338
A50: Homebuilding | B50: 33 | C50: 0.75 | D50: 0.0617 | E50: 1.18 | F50: 0.1002
A51: Hospitals/Healthcare Facilities | B51: 38 | C51: 0.5 | D51: 0.0052 | E51: 1.33 | F51: 0.0974
A52: Hotel/Gaming | B52: 69 | C52: 2.39 | D52: 0.0806 | E52: 3.59 | F52: 0.1807
A53: Household Products | B53: 129 | C53: 2.66 | D53: 0.1022 | E53: 3.13 | F53: 0.1839
A54: Information Services | B54: 64 | C54: 4.02 | D54: 0.1294 | E54: 4.66 | F54: 0.2332
A55: Insurance (General) | B55: 19 | C55: 1.33 | D55: 0.043 | E55: 1.78 | F55: 0.0842
A56: Insurance (Life) | B56: 22 | C56: 0.94 | D56: 0.0736 | E56: 1.34 | F56: 0.1251
A57: Insurance (Prop/Cas.) | B57: 50 | C57: 1.14 | D57: 0.072 | E57: 1.43 | F57: 0.1143
A58: Investments & Asset Management | B58: 156 | C58: 3.33 | D58: 0.1839 | E58: 4.56 | F58: 0.1793
A59: Machinery | B59: 127 | C59: 1.9 | D59: 0.066 | E59: 2.22 | F59: 0.1334
A60: Metals & Mining | B60: 97 | C60: 1.58 | D60: -0.2515 | E60: 2.33 | F60: 0.0517
A61: Office Equipment & Services | B61: 24 | C61: 0.82 | D61: 0.0481 | E61: 1.18 | F61: 0.1019
A62: Oil/Gas (Integrated) | B62: 7 | C62: 2.1 | D62: 0.0056 | E62: 2.41 | F62: -0.0304
A63: Oil/Gas (Production and Exploration) | B63: 330 | C63: 4.15 | D63: -0.8574 | E63: 5.77 | F63: -0.2889
A64: Oil/Gas Distribution | B64: 78 | C64: 1.84 | D64: 0.0155 | E64: 3.23 | F64: 0.1366
A65: Oilfield Svcs/Equip. | B65: 148 | C65: 0.99 | D65: -0.0428 | E65: 1.23 | F65: 0.0281
A66: Packaging & Container | B66: 26 | C66: 1.03 | D66: 0.0378 | E66: 1.56 | F66: 0.1009
A67: Paper/Forest Products | B67: 23 | C67: 0.65 | D67: 0.083 | E67: 0.92 | F67: 0.0491
A68: Power | B68: 68 | C68: 1.88 | D68: 0.0401 | E68: 3.43 | F68: 0.1844
A69: Precious Metals | B69: 109 | C69: 2.83 | D69: -0.1703 | E69: 3.22 | F69: 0.1461
A70: Publishing & Newspapers | B70: 37 | C70: 0.63 | D70: 0.0159 | E70: 0.91 | F70: 0.07
A71: R.E.I.T. | B71: 238 | C71: 6.47 | D71: 0.2243 | E71: 11.43 | F71: 0.2299
A72: Real Estate (Development) | B72: 18 | C72: 2.94 | D72: 0.1733 | E72: 4.31 | F72: 0.0521
A73: Real Estate (General/Diversified) | B73: 11 | C73: 5.61 | D73: 0.0456 | E73: 6.72 | F73: 0.2124
A74: Real Estate (Operations & Services) | B74: 54 | C74: 0.96 | D74: 0.0395 | E74: 1.61 | F74: 0.079
A75: Recreation | B75: 66 | C75: 1.62 | D75: 0.067 | E75: 2.03 | F75: 0.1205
A76: Reinsurance | B76: 3 | C76: 1.03 | D76: 0.0745 | E76: 1.25 | F76: 0.1131
A77: Restaurant/Dining | B77: 86 | C77: 2.27 | D77: 0.092 | E77: 2.99 | F77: 0.1365
A78: Retail (Automotive) | B78: 25 | C78: 0.66 | D78: 0.0363 | E78: 1.04 | F78: 0.0563
A79: Retail (Building Supply) | B79: 6 | C79: 1.42 | D79: 0.0625 | E79: 1.71 | F79: 0.1113
A80: Retail (Distributors) | B80: 88 | C80: 0.9 | D80: 0.0352 | E80: 1.38 | F80: 0.0842
A81: Retail (General) | B81: 19 | C81: 0.48 | D81: 0.026 | E81: 0.66 | F81: 0.0433
A82: Retail (Grocery and Food) | B82: 14 | C82: 0.32 | D82: 0.0189 | E82: 0.53 | F82: 0.0256
A83: Retail (Online) | B83: 57 | C83: 2.84 | D83: 0.0297 | E83: 2.99 | F83: 0.0516
A84: Retail (Special Lines) | B84: 108 | C84: 0.68 | D84: 0.0317 | E84: 0.99 | F84: 0.0619
A85: Rubber& Tires | B85: 4 | C85: 0.56 | D85: 0.0296 | E85: 0.88 | F85: 0.1181
A86: Semiconductor | B86: 80 | C86: 3.69 | D86: 0.1427 | E86: 4 | F86: 0.2094
A87: Semiconductor Equip | B87: 45 | C87: 2.82 | D87: 0.113 | E87: 2.86 | F87: 0.17
A88: Shipbuilding & Marine | B88: 11 | C88: 1.46 | D88: -0.0762 | E88: 2.11 | F88: 0.0775
A89: Shoe | B89: 10 | C89: 2.15 | D89: 0.1004 | E89: 2.24 | F89: 0.121
A90: Software (Entertainment) | B90: 13 | C90: 4.44 | D90: 0.1471 | E90: 4.52 | F90: 0.173
A91: Software (Internet) | B91: 297 | C91: 6.66 | D91: 0.1308 | E91: 6.76 | F91: 0.2169
A92: Software (System & Application) | B92: 236 | C92: 4.2 | D92: 0.1121 | E92: 4.83 | F92: 0.1562
A93: Steel | B93: 38 | C93: 0.78 | D93: -0.0571 | E93: 1.07 | F93: 0.0064
A94: Telecom (Wireless) | B94: 17 | C94: 1.15 | D94: -0.0236 | E94: 2.32 | F94: 0.0429
A95: Telecom. Equipment | B95: 107 | C95: 2.56 | D95: 0.1211 | E95: 2.97 | F95: 0.1827
A96: Telecom. Services | B96: 67 | C96: 1.6 | D96: 0.0957 | E96: 2.61 | F96: 0.1874
A97: Tobacco | B97: 22 | C97: 5.66 | D97: 0.2739 | E97: 6.47 | F97: 0.4028
A98: Transportation | B98: 17 | C98: 1.14 | D98: 0.0499 | E98: 1.45 | F98: 0.0966
A99: Transportation (Railroads) | B99: 7 | C99: 3.64 | D99: 0.1831 | E99: 4.58 | F99: 0.3214
A100: Trucking | B100: 30 | C100: 0.81 | D100: 0.0384 | E100: 1.47 | F100: 0.0945
A101: Utility (General) | B101: 18 | C101: 2.22 | D101: 0.0941 | E101: 3.72 | F101: 0.1979
A102: Utility (Water) | B102: 22 | C102: 4.34 | D102: 0.1369 | E102: 6.2 | F102: 0.2997
A103: Total Market | B103: 7330 | C103: 1.81 | D103: 0.0622 | E103: 2.89 | F103: 0.1028
A104: Total Market (without financials) | B104: 6100 | C104: 1.74 | D104: 0.051 | E104: 2.26 | F104: 0.107

Sheet ERPs by country
A1: Estimating Country Risk Premiums
A3: Enter the current risk premium for a mature equity market | E3: 0.0569 | F3: Updated January 5, 2017
A4: Do you want to adjust the country default spread for the additional volatility of the equity market to get to a country premium? | E4: Yes
A5: If yes, enter the multiplier to use on the default spread (See worksheet for volatility numbers for selected emerging markets) | E5: ='[2]Relative Equity Volatility'!B4 -> 1.230461434 | F5: Updated January 5, 2017
A7: Country | B7: Africa | C7: Moody's rating | D7: Rating-based Default Spread | E7: Total Equity Risk Premium | F7: Country Risk Premium | G7: Sovereign CDS, net of US | H7: Total Equity Risk Premium2 | I7: Country Risk Premium3 | J7: Has to be sorted in ascending order
A8: ='[2]Sovereign Ratings (Moody''s,S&P)'!A2 -> Abu Dhabi | B8: =VLOOKUP(A8,'[2]Regional lookup table'!$A$2:$B$151,2) -> Middle East | C8: ='[2]Sovereign Ratings (Moody''s,S&P)'!C2 -> Aa2 | D8: =VLOOKUP(C8,$J$9:$K$29,2)/10000 -> 0.0057321 | E8: =$E$3+F8 -> 0.06395312799 | F8: =IF($E$4="Yes",D8*$E$5,D8) -> 0.007053127985 | G8: =VLOOKUP(A8,'[2]10-year CDS Spreads'!$A$2:$D$147,4) -> 0.0059 | H8: =IF(I8="NA","NA",$E$3+I8) -> 0.06415972246 | I8: =IF(G8="NA","NA",G8*$E$5) -> 0.00725972246 | J8: Rating | K8: Default spread in basis points
A9: ='[2]Sovereign Ratings (Moody''s,S&P)'!A3 -> Albania | B9: =VLOOKUP(A9,'[2]Regional lookup table'!$A$3:$B$151,2) -> Eastern Europe & Russia | C9: ='[2]Sovereign Ratings (Moody''s,S&P)'!C3 -> B1 | D9: 0.05200578 | E9: =$E$3+F9 -> 0.1208911066 | F9: =IF($E$4="Yes",D9*$E$5,D9) -> 0.06399110663 | G9: =VLOOKUP(A9,'[2]10-year CDS Spreads'!$A$2:$D$147,4) -> NA | H9: =IF(I9="NA","NA",$E$3+I9) -> NA | I9: =IF(G9="NA","NA",G9*$E$5) -> NA | J9: A1 | K9: =C185 -> 81.2916
A10: ='[2]Sovereign Ratings (Moody''s,S&P)'!A4 -> Andorra (Principality of) | B10: =VLOOKUP(A10,'[2]Regional lookup table'!$A$3:$B$151,2) -> Western Europe | C10: ='[2]Sovereign Ratings (Moody''s,S&P)'!C4 -> Baa3 | D10: 0.02542968 | E10: 0.08819024052 | F10: 0.03129024052 | G10: =VLOOKUP(A10,'[2]10-year CDS Spreads'!$A$2:$D$147,4) -> NA | H10: NA | I10: NA | J10: A2 | K10: 97.9668
A11: ='[2]Sovereign Ratings (Moody''s,S&P)'!A5 -> Angola | B11: =VLOOKUP(A11,'[2]Regional lookup table'!$A$3:$B$151,2) -> Africa | C11: ='[2]Sovereign Ratings (Moody''s,S&P)'!C5 -> B1 | D11: 0.05200578 | E11: 0.1208911066 | F11: 0.06399110663 | G11: =VLOOKUP(A11,'[2]10-year CDS Spreads'!$A$2:$D$147,4) -> NA | H11: NA | I11: NA | J11: A3 | K11: 138.6126
A12: ='[2]Sovereign Ratings (Moody''s,S&P)'!A6 -> Argentina | B12: =VLOOKUP(A12,'[2]Regional lookup table'!$A$3:$B$151,2) -> Central and South America | C12: ='[2]Sovereign Ratings (Moody''s,S&P)'!C6 -> B3 | D12: 0.07514262 | E12: 0.149360096 | F12: 0.09246009595 | G12: =VLOOKUP(A12,'[2]10-year CDS Spreads'!$A$2:$D$147,4) -> 0.0476 | H12: 0.1154699643 | I12: 0.05856996425 | J12: Aa1 | K12: 45.8568
A13: ='[2]Sovereign Ratings (Moody''s,S&P)'!A7 -> Armenia | B13: =VLOOKUP(A13,'[2]Regional lookup table'!$A$3:$B$151,2) -> Eastern Europe & Russia | C13: ='[2]Sovereign Ratings (Moody''s,S&P)'!C7 -> B1 | D13: 0.05200578 | E13: 0.1208911066 | F13: 0.06399110663 | G13: =VLOOKUP(A13,'[2]10-year CDS Spreads'!$A$2:$D$147,4) -> NA | H13: NA | I13: NA | J13: Aa2 | K13: 57.321
A14: ='[2]Sovereign Ratings (Moody''s,S&P)'!A8 -> Aruba | B14: =VLOOKUP(A14,'[2]Regional lookup table'!$A$3:$B$151,2) -> Caribbean | C14: ='[2]Sovereign Ratings (Moody''s,S&P)'!C8 -> Baa1 | D14: 0.01844694 | E14: 0.07959824824 | F14: 0.02269824824 | G14: =VLOOKUP(A14,'[2]10-year CDS Spreads'!$A$2:$D$147,4) -> NA | H14: NA | I14: NA | J14: Aa3 | K14: 69.8274
A15: ='[2]Sovereign Ratings (Moody''s,S&P)'!A9 -> Australia | B15: =VLOOKUP(A15,'[2]Regional lookup table'!$A$3:$B$151,2) -> Australia & New Zealand | C15: ='[2]Sovereign Ratings (Moody''s,S&P)'!C9 -> Aaa | D15: 0 | E15: 0.0569 | F15: 0 | G15: =VLOOKUP(A15,'[2]10-year CDS Spreads'!$A$2:$D$147,4) -> 0.0011 | H15: 0.05825350758 | I15: 0.001353507577 | J15: Aaa | K15: 0
A16: ='[2]Sovereign Ratings (Moody''s,S&P)'!A10 -> Austria | B16: =VLOOKUP(A16,'[2]Regional lookup table'!$A$3:$B$151,2) -> Western Europe | C16: ='[2]Sovereign Ratings (Moody''s,S&P)'!C10 -> Aa1 | D16: 0.00458568 | E16: 0.06254250239 | F16: 0.005642502388 | G16: =VLOOKUP(A16,'[2]10-year CDS Spreads'!$A$2:$D$147,4) -> 0.0014 | H16: 0.05862264601 | I16: 0.001722646007 | J16: B1 | K16: 520.0578
A17: ='[2]Sovereign Ratings (Moody''s,S&P)'!A11 -> Azerbaijan | B17: =VLOOKUP(A17,'[2]Regional lookup table'!$A$3:$B$151,2) -> Eastern Europe & Russia | C17: ='[2]Sovereign Ratings (Moody''s,S&P)'!C11 -> Ba1 | D17: 0.02886894 | E17: 0.09242211731 | F17: 0.03552211731 | G17: =VLOOKUP(A17,'[2]10-year CDS Spreads'!$A$2:$D$147,4) -> NA | H17: NA | I17: NA | J17: B2 | K17: 635.742
A18: ='[2]Sovereign Ratings (Moody''s,S&P)'!A12 -> Bahamas | B18: =VLOOKUP(A18,'[2]Regional lookup table'!$A$3:$B$151,2) -> Caribbean | C18: ='[2]Sovereign Ratings (Moody''s,S&P)'!C12 -> Baa3 | D18: 0.02542968 | E18: 0.08819024052 | F18: 0.03129024052 | G18: =VLOOKUP(A18,'[2]10-year CDS Spreads'!$A$2:$D$147,4) -> NA | H18: NA | I18: NA | J18: B3 | K18: 751.4262
A19: ='[2]Sovereign Ratings (Moody''s,S&P)'!A13 -> Bahrain | B19: =VLOOKUP(A19,'[2]Regional lookup table'!$A$3:$B$151,2) -> Middle East | C19: ='[2]Sovereign Ratings (Moody''s,S&P)'!C13 -> Ba2 | D19: 0.03470526 | E19: 0.09960348398 | F19: 0.04270348398 | G19: =VLOOKUP(A19,'[2]10-year CDS Spreads'!$A$2:$D$147,4) -> 0.0279 | H19: 0.09122987401 | I19: 0.03432987401 | J19: Ba1 | K19: 288.6894
A20: ='[2]Sovereign Ratings (Moody''s,S&P)'!A14 -> Bangladesh | B20: =VLOOKUP(A20,'[2]Regional lookup table'!$A$3:$B$151,2) -> Asia | C20: ='[2]Sovereign Ratings (Moody''s,S&P)'!C14 -> Ba3 | D20: 0.04158378 | E20: 0.1080672376 | F20: 0.05116723757 | G20: =VLOOKUP(A20,'[2]10-year CDS Spreads'!$A$2:$D$147,4) -> NA | H20: NA | I20: NA | J20: Ba2 | K20: 347.0526
A21: ='[2]Sovereign Ratings (Moody''s,S&P)'!A15 -> Barbados | B21: =VLOOKUP(A21,'[2]Regional lookup table'!$A$3:$B$151,2) -> Caribbean | C21: ='[2]Sovereign Ratings (Moody''s,S&P)'!C15 -> Caa1 | D21: 0.08660682 | E21: 0.1634663519 | F21: 0.1065663519 | G21: =VLOOKUP(A21,'[2]10-year CDS Spreads'!$A$2:$D$147,4) -> NA | H21: NA | I21: NA | J21: Ba3 | K21: 415.8378
A22: ='[2]Sovereign Ratings (Moody''s,S&P)'!A16 -> Belarus | B22: =VLOOKUP(A22,'[2]Regional lookup table'!$A$3:$B$151,2) -> Eastern Europe & Russia | C22: ='[2]Sovereign Ratings (Moody''s,S&P)'!C16 -> Caa1 | D22: 0.08660682 | E22: 0.1634663519 | F22: 0.1065663519 | G22: =VLOOKUP(A22,'[2]10-year CDS Spreads'!$A$2:$D$147,4) -> NA | H22: NA | I22: NA | J22: Baa1 | K22: 184.4694
A23: ='[2]Sovereign Ratings (Moody''s,S&P)'!A17 -> Belgium | B23: =VLOOKUP(A23,'[2]Regional lookup table'!$A$3:$B$151,2) -> Western Europe | C23: ='[2]Sovereign Ratings (Moody''s,S&P)'!C17 -> Aa3 | D23: 0.00698274 | E23: 0.06549199227 | F23: 0.008591992273 | G23: =VLOOKUP(A23,'[2]10-year CDS Spreads'!$A$2:$D$147,4) -> 0.0022 | H23: 0.05960701515 | I23: 0.002707015155 | J23: Baa2 | K23: 219.9042
A24: ='[2]Sovereign Ratings (Moody''s,S&P)'!A18 -> Belize | B24: =VLOOKUP(A24,'[2]Regional lookup table'!$A$3:$B$151,2) -> Central and South America | C24: ='[2]Sovereign Ratings (Moody''s,S&P)'!C18 -> Caa2 | D24: 0.10401156 | E24: 0.1848822133 | F24: 0.1279822133 | G24: =VLOOKUP(A24,'[2]10-year CDS Spreads'!$A$2:$D$147,4) -> NA | H24: NA | I24: NA | J24: Baa3 | K24: 254.2968
A25: ='[2]Sovereign Ratings (Moody''s,S&P)'!A19 -> Bermuda | B25: =VLOOKUP(A25,'[2]Regional lookup table'!$A$3:$B$151,2) -> Caribbean | C25: ='[2]Sovereign Ratings (Moody''s,S&P)'!C19 -> A2 | D25: 0.00979668 | E25: 0.06895443692 | F25: 0.01205443692 | G25: =VLOOKUP(A25,'[2]10-year CDS Spreads'!$A$2:$D$147,4) -> NA | H25: NA | I25: NA | J25: =B201 -> Ca | K25: 1386.126
A26: ='[2]Sovereign Ratings (Moody''s,S&P)'!A20 -> Bolivia | B26: =VLOOKUP(A26,'[2]Regional lookup table'!$A$3:$B$151,2) -> Central and South America | C26: ='[2]Sovereign Ratings (Moody''s,S&P)'!C20 -> Ba3 | D26: 0.04158378 | E26: 0.1080672376 | F26: 0.05116723757 | G26: =VLOOKUP(A26,'[2]10-year CDS Spreads'!$A$2:$D$147,4) -> NA | H26: NA | I26: NA | J26: =B202 -> Caa1 | K26: 866.0682
A27: ='[2]Sovereign Ratings (Moody''s,S&P)'!A21 -> Bosnia and Herzegovina | B27: =VLOOKUP(A27,'[2]Regional lookup table'!$A$3:$B$151,2) -> Eastern Europe & Russia | C27: ='[2]Sovereign Ratings (Moody''s,S&P)'!C21 -> B3 | D27: 0.07514262 | E27: 0.149360096 | F27: 0.09246009595 | G27: =VLOOKUP(A27,'[2]10-year CDS Spreads'!$A$2:$D$147,4) -> NA | H27: NA | I27: NA | J27: =B203 -> Caa2 | K27: 1040.1156
A28: ='[2]Sovereign Ratings (Moody''s,S&P)'!A22 -> Botswana | B28: =VLOOKUP(A28,'[2]Regional lookup table'!$A$3:$B$151,2) -> Africa | C28: ='[2]Sovereign Ratings (Moody''s,S&P)'!C22 -> A2 | D28: 0.00979668 | E28: 0.06895443692 | F28: 0.01205443692 | G28: =VLOOKUP(A28,'[2]10-year CDS Spreads'!$A$2:$D$147,4) -> NA | H28: NA | I28: NA | J28: =B204 -> Caa3 | K28: 1154.7576
A29: ='[2]Sovereign Ratings (Moody''s,S&P)'!A23 -> Brazil | B29: =VLOOKUP(A29,'[2]Regional lookup table'!$A$3:$B$151,2) -> Central and South America | C29: ='[2]Sovereign Ratings (Moody''s,S&P)'!C23 -> Ba2 | D29: 0.03470526 | E29: 0.09960348398 | F29: 0.04270348398 | G29: =VLOOKUP(A29,'[2]10-year CDS Spreads'!$A$2:$D$147,4) -> 0.0321 | H29: 0.09639781203 | I29: 0.03949781203 | J29: NR | K29: NA
A30: ='[2]Sovereign Ratings (Moody''s,S&P)'!A24 -> Bulgaria | B30: =VLOOKUP(A30,'[2]Regional lookup table'!$A$3:$B$151,2) -> Eastern Europe & Russia | C30: ='[2]Sovereign Ratings (Moody''s,S&P)'!C24 -> Baa2 | D30: 0.02199042 | E30: 0.08395836373 | F30: 0.02705836373 | G30: =VLOOKUP(A30,'[2]10-year CDS Spreads'!$A$2:$D$147,4) -> 0.0149 | H30: 0.07523387536 | I30: 0.01833387536
A31: ='[2]Sovereign Ratings (Moody''s,S&P)'!A25 -> Burkina Faso | B31: =VLOOKUP(A31,'[2]Regional lookup table'!$A$3:$B$151,2) -> Africa | C31: ='[2]Sovereign Ratings (Moody''s,S&P)'!C25 -> B3 | D31: 0.07514262 | E31: 0.149360096 | F31: 0.09246009595 | G31: =VLOOKUP(A31,'[2]10-year CDS Spreads'!$A$2:$D$147,4) -> NA | H31: NA | I31: NA
A32: ='[2]Sovereign Ratings (Moody''s,S&P)'!A26 -> Cambodia | B32: =VLOOKUP(A32,'[2]Regional lookup table'!$A$3:$B$151,2) -> Asia | C32: ='[2]Sovereign Ratings (Moody''s,S&P)'!C26 -> B2 | D32: 0.0635742 | E32: 0.1351256013 | F32: 0.07822560129 | G32: =VLOOKUP(A32,'[2]10-year CDS Spreads'!$A$2:$D$147,4) -> NA | H32: NA | I32: NA
A33: ='[2]Sovereign Ratings (Moody''s,S&P)'!A27 -> Cameroon | B33: =VLOOKUP(A33,'[2]Regional lookup table'!$A$3:$B$151,2) -> Africa | C33: ='[2]Sovereign Ratings (Moody''s,S&P)'!C27 -> B2 | D33: 0.0635742 | E33: 0.1351256013 | F33: 0.07822560129 | G33: =VLOOKUP(A33,'[2]10-year CDS Spreads'!$A$2:$D$147,4) -> NA | H33: NA | I33: NA
A34: ='[2]Sovereign Ratings (Moody''s,S&P)'!A28 -> Canada | B34: =VLOOKUP(A34,'[2]Regional lookup table'!$A$3:$B$151,2) -> North America | C34: ='[2]Sovereign Ratings (Moody''s,S&P)'!C28 -> Aaa | D34: 0 | E34: 0.0569 | F34: 0 | G34: =VLOOKUP(A34,'[2]10-year CDS Spreads'!$A$2:$D$147,4) -> NA | H34: NA | I34: NA
A35: ='[2]Sovereign Ratings (Moody''s,S&P)'!A29 -> Cayman Islands | B35: =VLOOKUP(A35,'[2]Regional lookup table'!$A$3:$B$151,2) -> Caribbean | C35: ='[2]Sovereign Ratings (Moody''s,S&P)'!C29 -> Aa3 | D35: 0.00698274 | E35: 0.06549199227 | F35: 0.008591992273 | G35: =VLOOKUP(A35,'[2]10-year CDS Spreads'!$A$2:$D$147,4) -> NA | H35: NA | I35: NA
A36: ='[2]Sovereign Ratings (Moody''s,S&P)'!A30 -> Cape Verde | B36: =VLOOKUP(A36,'[2]Regional lookup table'!$A$3:$B$151,2) -> Africa | C36: ='[2]Sovereign Ratings (Moody''s,S&P)'!C30 -> B2 | D36: 0.0635742 | E36: 0.1351256013 | F36: 0.07822560129 | G36: =VLOOKUP(A36,'[2]10-year CDS Spreads'!$A$2:$D$147,4) -> NA | H36: NA | I36: NA
A37: ='[2]Sovereign Ratings (Moody''s,S&P)'!A31 -> Chile | B37: =VLOOKUP(A37,'[2]Regional lookup table'!$A$3:$B$151,2) -> Eastern Europe & Russia | C37: ='[2]Sovereign Ratings (Moody''s,S&P)'!C31 -> Aa3 | D37: 0.00698274 | E37: 0.06549199227 | F37: 0.008591992273 | G37: =VLOOKUP(A37,'[2]10-year CDS Spreads'!$A$2:$D$147,4) -> 0.0129 | H37: 0.0727729525 | I37: 0.0158729525
A38: ='[2]Sovereign Ratings (Moody''s,S&P)'!A32 -> China | B38: =VLOOKUP(A38,'[2]Regional lookup table'!$A$3:$B$151,2) -> Eastern Europe & Russia | C38: ='[2]Sovereign Ratings (Moody''s,S&P)'!C32 -> Aa3 | D38: 0.00698274 | E38: 0.06549199227 | F38: 0.008591992273 | G38: =VLOOKUP(A38,'[2]10-year CDS Spreads'!$A$2:$D$147,4) -> 0.0129 | H38: 0.0727729525 | I38: 0.0158729525
A39: ='[2]Sovereign Ratings (Moody''s,S&P)'!A33 -> Colombia | B39: =VLOOKUP(A39,'[2]Regional lookup table'!$A$3:$B$151,2) -> Central and South America | C39: ='[2]Sovereign Ratings (Moody''s,S&P)'!C33 -> Baa2 | D39: 0.02199042 | E39: 0.08395836373 | F39: 0.02705836373 | G39: =VLOOKUP(A39,'[2]10-year CDS Spreads'!$A$2:$D$147,4) -> NA | H39: NA | I39: NA
A40: ='[2]Sovereign Ratings (Moody''s,S&P)'!A34 -> Congo (Democratic Republic of) | B40: =VLOOKUP(A40,'[2]Regional lookup table'!$A$3:$B$151,2) -> Africa | C40: ='[2]Sovereign Ratings (Moody''s,S&P)'!C34 -> B3 | D40: 0.07514262 | E40: 0.149360096 | F40: 0.09246009595 | G40: =VLOOKUP(A40,'[2]10-year CDS Spreads'!$A$2:$D$147,4) -> NA | H40: NA | I40: NA
A41: ='[2]Sovereign Ratings (Moody''s,S&P)'!A35 -> Congo (Republic of) | B41: =VLOOKUP(A41,'[2]Regional lookup table'!$A$3:$B$151,2) -> Africa | C41: ='[2]Sovereign Ratings (Moody''s,S&P)'!C35 -> B3 | D41: 0.07514262 | E41: 0.149360096 | F41: 0.09246009595 | G41: =VLOOKUP(A41,'[2]10-year CDS Spreads'!$A$2:$D$147,4) -> NA | H41: NA | I41: NA
A42: ='[2]Sovereign Ratings (Moody''s,S&P)'!A36 -> Cook Islands | B42: =VLOOKUP(A42,'[2]Regional lookup table'!$A$3:$B$151,2) -> Australia & New Zealand | C42: ='[2]Sovereign Ratings (Moody''s,S&P)'!C36 -> Caa1 | D42: 0.08660682 | E42: 0.1634663519 | F42: 0.1065663519 | G42: =VLOOKUP(A42,'[2]10-year CDS Spreads'!$A$2:$D$147,4) -> NA | H42: NA | I42: NA
A43: ='[2]Sovereign Ratings (Moody''s,S&P)'!A37 -> Costa Rica | B43: =VLOOKUP(A43,'[2]Regional lookup table'!$A$3:$B$151,2) -> Central and South America | C43: ='[2]Sovereign Ratings (Moody''s,S&P)'!C37 -> Ba1 | D43: 0.02886894 | E43: 0.09242211731 | F43: 0.03552211731 | G43: =VLOOKUP(A43,'[2]10-year CDS Spreads'!$A$2:$D$147,4) -> 0.0302 | H43: 0.0940599353 | I43: 0.0371599353
A44: ='[2]Sovereign Ratings (Moody''s,S&P)'!A38 -> Côte d'Ivoire | B44: =VLOOKUP(A44,'[2]Regional lookup table'!$A$3:$B$151,2) -> Africa | C44: ='[2]Sovereign Ratings (Moody''s,S&P)'!C38 -> Ba3 | D44: 0.04158378 | E44: 0.1080672376 | F44: 0.05116723757 | G44: =VLOOKUP(A44,'[2]10-year CDS Spreads'!$A$2:$D$147,4) -> NA | H44: NA | I44: NA
A45: ='[2]Sovereign Ratings (Moody''s,S&P)'!A39 -> Croatia | B45: =VLOOKUP(A45,'[2]Regional lookup table'!$A$3:$B$151,2) -> Eastern Europe & Russia | C45: ='[2]Sovereign Ratings (Moody''s,S&P)'!C39 -> Ba2 | D45: 0.03470526 | E45: 0.09960348398 | F45: 0.04270348398 | G45: =VLOOKUP(A45,'[2]10-year CDS Spreads'!$A$2:$D$147,4) -> 0.0222 | H45: 0.08421624383 | I45: 0.02731624383
A46: ='[2]Sovereign Ratings (Moody''s,S&P)'!A40 -> Cuba | B46: =VLOOKUP(A46,'[2]Regional lookup table'!$A$3:$B$151,2) -> Caribbean | C46: ='[2]Sovereign Ratings (Moody''s,S&P)'!C40 -> Caa2 | D46: 0.10401156 | E46: 0.1848822133 | F46: 0.1279822133 | G46: =VLOOKUP(A46,'[2]10-year CDS Spreads'!$A$2:$D$147,4) -> NA | H46: NA | I46: NA
A47: ='[2]Sovereign Ratings (Moody''s,S&P)'!A41 -> Curacao | B47: =VLOOKUP(A47,'[2]Regional lookup table'!$A$3:$B$151,2) -> Caribbean | C47: ='[2]Sovereign Ratings (Moody''s,S&P)'!C41 -> Caa1 | D47: 0.08660682 | E47: 0.1634663519 | F47: 0.1065663519 | G47: =VLOOKUP(A47,'[2]10-year CDS Spreads'!$A$2:$D$147,4) -> NA | H47: NA | I47: NA
A48: ='[2]Sovereign Ratings (Moody''s,S&P)'!A42 -> Cyprus | B48: =VLOOKUP(A48,'[2]Regional lookup table'!$A$3:$B$151,2) -> Western Europe | C48: ='[2]Sovereign Ratings (Moody''s,S&P)'!C42 -> B1 | D48: 0.05200578 | E48: 0.1208911066 | F48: 0.06399110663 | G48: =VLOOKUP(A48,'[2]10-year CDS Spreads'!$A$2:$D$147,4) -> 0.0229 | H48: 0.08507756684 | I48: 0.02817756684
A49: ='[2]Sovereign Ratings (Moody''s,S&P)'!A43 -> Czech Republic | B49: =VLOOKUP(A49,'[2]Regional lookup table'!$A$3:$B$151,2) -> Eastern Europe & Russia | C49: ='[2]Sovereign Ratings (Moody''s,S&P)'!C43 -> A1 | D49: 0.00812916 | E49: 0.06690261787 | F49: 0.01000261787 | G49: =VLOOKUP(A49,'[2]10-year CDS Spreads'!$A$2:$D$147,4) -> 0.0036 | H49: 0.06132966116 | I49: 0.004429661162
A50: ='[2]Sovereign Ratings (Moody''s,S&P)'!A44 -> Denmark | B50: =VLOOKUP(A50,'[2]Regional lookup table'!$A$3:$B$151,2) -> Western Europe | C50: ='[2]Sovereign Ratings (Moody''s,S&P)'!C44 -> Aaa | D50: 0 | E50: 0.0569 | F50: 0 | G50: =VLOOKUP(A50,'[2]10-year CDS Spreads'!$A$2:$D$147,4) -> 0.0003 | H50: 0.05726913843 | I50: 0.0003691384302
A51: ='[2]Sovereign Ratings (Moody''s,S&P)'!A45 -> Dominican Republic | B51: =VLOOKUP(A51,'[2]Regional lookup table'!$A$3:$B$151,2) -> Caribbean | C51: ='[2]Sovereign Ratings (Moody''s,S&P)'!C45 -> B1 | D51: 0.05200578 | E51: 0.1208911066 | F51: 0.06399110663 | G51: =VLOOKUP(A51,'[2]10-year CDS Spreads'!$A$2:$D$147,4) -> NA | H51: NA | I51: NA
A52: ='[2]Sovereign Ratings (Moody''s,S&P)'!A46 -> Ecuador | B52: =VLOOKUP(A52,'[2]Regional lookup table'!$A$3:$B$151,2) -> Central and South America | C52: ='[2]Sovereign Ratings (Moody''s,S&P)'!C46 -> B3 | D52: 0.07514262 | E52: 0.149360096 | F52: 0.09246009595 | G52: =VLOOKUP(A52,'[2]10-year CDS Spreads'!$A$2:$D$147,4) -> NA | H52: NA | I52: NA
A53: ='[2]Sovereign Ratings (Moody''s,S&P)'!A47 -> Egypt | B53: =VLOOKUP(A53,'[2]Regional lookup table'!$A$3:$B$151,2) -> Africa | C53: ='[2]Sovereign Ratings (Moody''s,S&P)'!C47 -> B3 | D53: 0.07514262 | E53: 0.149360096 | F53: 0.09246009595 | G53: =VLOOKUP(A53,'[2]10-year CDS Spreads'!$A$2:$D$147,4) -> 0.0438 | H53: 0.1107942108 | I53: 0.0538942108
A54: ='[2]Sovereign Ratings (Moody''s,S&P)'!A48 -> El Salvador | B54: =VLOOKUP(A54,'[2]Regional lookup table'!$A$3:$B$151,2) -> Central and South America | C54: ='[2]Sovereign Ratings (Moody''s,S&P)'!C48 -> B3 | D54: 0.07514262 | E54: 0.149360096 | F54: 0.09246009595 | G54: =VLOOKUP(A54,'[2]10-year CDS Spreads'!$A$2:$D$147,4) -> NA | H54: NA | I54: NA
A55: ='[2]Sovereign Ratings (Moody''s,S&P)'!A49 -> Estonia | B55: =VLOOKUP(A55,'[2]Regional lookup table'!$A$3:$B$151,2) -> Eastern Europe & Russia | C55: ='[2]Sovereign Ratings (Moody''s,S&P)'!C49 -> A1 | D55: 0.00812916 | E55: 0.06690261787 | F55: 0.01000261787 | G55: =VLOOKUP(A55,'[2]10-year CDS Spreads'!$A$2:$D$147,4) -> 0.0043 | H55: 0.06219098417 | I55: 0.005290984166
A56: ='[2]Sovereign Ratings (Moody''s,S&P)'!A50 -> Ethiopia | B56: =VLOOKUP(A56,'[2]Regional lookup table'!$A$3:$B$151,2) -> Africa | C56: ='[2]Sovereign Ratings (Moody''s,S&P)'!C50 -> B1 | D56: 0.05200578 | E56: 0.1208911066 | F56: 0.06399110663 | G56: =VLOOKUP(A56,'[2]10-year CDS Spreads'!$A$2:$D$147,4) -> NA | H56: NA | I56: NA
A57: ='[2]Sovereign Ratings (Moody''s,S&P)'!A51 -> Fiji | B57: =VLOOKUP(A57,'[2]Regional lookup table'!$A$3:$B$151,2) -> Asia | C57: ='[2]Sovereign Ratings (Moody''s,S&P)'!C51 -> B1 | D57: 0.05200578 | E57: 0.1208911066 | F57: 0.06399110663 | G57: =VLOOKUP(A57,'[2]10-year CDS Spreads'!$A$2:$D$147,4) -> NA | H57: NA | I57: NA
A58: ='[2]Sovereign Ratings (Moody''s,S&P)'!A52 -> Finland | B58: =VLOOKUP(A58,'[2]Regional lookup table'!$A$3:$B$151,2) -> Western Europe | C58: ='[2]Sovereign Ratings (Moody''s,S&P)'!C52 -> Aa1 | D58: 0.00458568 | E58: 0.06254250239 | F58: 0.005642502388 | G58: =VLOOKUP(A58,'[2]10-year CDS Spreads'!$A$2:$D$147,4) -> 0.0007 | H58: 0.057761323 | I58: 0.0008613230037
A59: ='[2]Sovereign Ratings (Moody''s,S&P)'!A53 -> France | B59: =VLOOKUP(A59,'[2]Regional lookup table'!$A$3:$B$151,2) -> Western Europe | C59: ='[2]Sovereign Ratings (Moody''s,S&P)'!C53 -> Aa2 | D59: 0.0057321 | E59: 0.06395312799 | F59: 0.007053127985 | G59: =VLOOKUP(A59,'[2]10-year CDS Spreads'!$A$2:$D$147,4) -> 0.0032 | H59: 0.06083747659 | I59: 0.003937476588
A60: ='[2]Sovereign Ratings (Moody''s,S&P)'!A54 -> Gabon | B60: =VLOOKUP(A60,'[2]Regional lookup table'!$A$3:$B$151,2) -> Africa | C60: ='[2]Sovereign Ratings (Moody''s,S&P)'!C54 -> B1 | D60: 0.05200578 | E60: 0.1208911066 | F60: 0.06399110663 | G60: =VLOOKUP(A60,'[2]10-year CDS Spreads'!$A$2:$D$147,4) -> NA | H60: NA | I60: NA
A61: ='[2]Sovereign Ratings (Moody''s,S&P)'!A55 -> Georgia | B61: =VLOOKUP(A61,'[2]Regional lookup table'!$A$3:$B$151,2) -> Eastern Europe & Russia | C61: ='[2]Sovereign Ratings (Moody''s,S&P)'!C55 -> Ba3 | D61: 0.04158378 | E61: 0.1080672376 | F61: 0.05116723757 | G61: =VLOOKUP(A61,'[2]10-year CDS Spreads'!$A$2:$D$147,4) -> NA | H61: NA | I61: NA
A62: ='[2]Sovereign Ratings (Moody''s,S&P)'!A56 -> Germany | B62: =VLOOKUP(A62,'[2]Regional lookup table'!$A$3:$B$151,2) -> Western Europe | C62: ='[2]Sovereign Ratings (Moody''s,S&P)'!C56 -> Aaa | D62: 0 | E62: 0.0569 | F62: 0 | G62: =VLOOKUP(A62,'[2]10-year CDS Spreads'!$A$2:$D$147,4) -> 0.0006 | H62: 0.05763827686 | I62: 0.0007382768603
A63: ='[2]Sovereign Ratings (Moody''s,S&P)'!A57 -> Ghana | B63: =VLOOKUP(A63,'[2]Regional lookup table'!$A$3:$B$151,2) -> Africa | C63: ='[2]Sovereign Ratings (Moody''s,S&P)'!C57 -> B3 | D63: 0.07514262 | E63: 0.149360096 | F63: 0.09246009595 | G63: =VLOOKUP(A63,'[2]10-year CDS Spreads'!$A$2:$D$147,4) -> NA | H63: NA | I63: NA
A64: ='[2]Sovereign Ratings (Moody''s,S&P)'!A58 -> Greece | B64: =VLOOKUP(A64,'[2]Regional lookup table'!$A$3:$B$151,2) -> Western Europe | C64: ='[2]Sovereign Ratings (Moody''s,S&P)'!C58 -> Caa3 | D64: 0.11547576 | E64: 0.1989884692 | F64: 0.1420884692 | G64: =VLOOKUP(A64,'[2]10-year CDS Spreads'!$A$2:$D$147,4) -> NA | H64: NA | I64: NA
A65: ='[2]Sovereign Ratings (Moody''s,S&P)'!A59 -> Guatemala | B65: =VLOOKUP(A65,'[2]Regional lookup table'!$A$3:$B$151,2) -> Central and South America | C65: ='[2]Sovereign Ratings (Moody''s,S&P)'!C59 -> Ba1 | D65: 0.02886894 | E65: 0.09242211731 | F65: 0.03552211731 | G65: =VLOOKUP(A65,'[2]10-year CDS Spreads'!$A$2:$D$147,4) -> NA | H65: NA | I65: NA
A66: ='[2]Sovereign Ratings (Moody''s,S&P)'!A60 -> Guernsey (States of) | B66: =VLOOKUP(A66,'[2]Regional lookup table'!$A$3:$B$151,2) -> Western Europe | C66: ='[2]Sovereign Ratings (Moody''s,S&P)'!C60 -> Aa1 | D66: 0.00458568 | E66: 0.06254250239 | F66: 0.005642502388 | G66: =VLOOKUP(A66,'[2]10-year CDS Spreads'!$A$2:$D$147,4) -> NA | H66: NA | I66: NA
A67: ='[2]Sovereign Ratings (Moody''s,S&P)'!A61 -> Honduras | B67: =VLOOKUP(A67,'[2]Regional lookup table'!$A$3:$B$151,2) -> Central and South America | C67: ='[2]Sovereign Ratings (Moody''s,S&P)'!C61 -> B2 | D67: 0.0635742 | E67: 0.1351256013 | F67: 0.07822560129 | G67: =VLOOKUP(A67,'[2]10-year CDS Spreads'!$A$2:$D$147,4) -> NA | H67: NA | I67: NA
A68: ='[2]Sovereign Ratings (Moody''s,S&P)'!A62 -> Hong Kong | B68: =VLOOKUP(A68,'[2]Regional lookup table'!$A$3:$B$151,2) -> Asia | C68: ='[2]Sovereign Ratings (Moody''s,S&P)'!C62 -> Aa1 | D68: 0.00458568 | E68: 0.06254250239 | F68: 0.005642502388 | G68: =VLOOKUP(A68,'[2]10-year CDS Spreads'!$A$2:$D$147,4) -> 0.002 | H68: 0.05936092287 | I68: 0.002460922868
A69: ='[2]Sovereign Ratings (Moody''s,S&P)'!A63 -> Hungary | B69: =VLOOKUP(A69,'[2]Regional lookup table'!$A$3:$B$151,2) -> Eastern Europe & Russia | C69: ='[2]Sovereign Ratings (Moody''s,S&P)'!C63 -> Baa3 | D69: 0.02542968 | E69: 0.08819024052 | F69: 0.03129024052 | G69: =VLOOKUP(A69,'[2]10-year CDS Spreads'!$A$2:$D$147,4) -> 0.0129 | H69: 0.0727729525 | I69: 0.0158729525
A70: ='[2]Sovereign Ratings (Moody''s,S&P)'!A64 -> Iceland | B70: =VLOOKUP(A70,'[2]Regional lookup table'!$A$3:$B$151,2) -> Western Europe | C70: ='[2]Sovereign Ratings (Moody''s,S&P)'!C64 -> A3 | D70: 0.01386126 | E70: 0.07395574586 | F70: 0.01705574586 | G70: =VLOOKUP(A70,'[2]10-year CDS Spreads'!$A$2:$D$147,4) -> 0.0072 | H70: 0.06575932232 | I70: 0.008859322324
A71: ='[2]Sovereign Ratings (Moody''s,S&P)'!A65 -> India | B71: =VLOOKUP(A71,'[2]Regional lookup table'!$A$3:$B$151,2) -> Asia | C71: ='[2]Sovereign Ratings (Moody''s,S&P)'!C65 -> Baa3 | D71: 0.02542968 | E71: 0.08819024052 | F71: 0.03129024052 | G71: =VLOOKUP(A71,'[2]10-year CDS Spreads'!$A$2:$D$147,4) -> 0.0138 | H71: 0.07388036779 | I71: 0.01698036779
A72: ='[2]Sovereign Ratings (Moody''s,S&P)'!A66 -> Indonesia | B72: =VLOOKUP(A72,'[2]Regional lookup table'!$A$3:$B$151,2) -> Asia | C72: ='[2]Sovereign Ratings (Moody''s,S&P)'!C66 -> Baa3 | D72: =VLOOKUP(C72,$J$9:$K$29,2)/10000 -> 0.02542968 | E72: 0.08819024052 | F72: 0.03129024052 | G72: =VLOOKUP(A72,'[2]10-year CDS Spreads'!$A$2:$D$147,4) -> 0.0187 | H72: 0.07990962881 | I72: 0.02300962881
